Workbook

Sheet Cover
I2: version 1.4
B5: Instructions for use are located in the Overview & Instructions worksheet as well as in each of the black-colored worksheets.
B6: Please be sure to enable macros before using or the tool will not function properly. | I6: Click for Google instructions
B7: To check for the latest update of the Total Cost of Ownership (TCO) tool, click the link to compare versions. | I7: TCO tool website
B10: Quick links | D10: Overview | E10: Instructions | G10: Acronyms | I10: FAQ
D12: CCE decision tree | F12: Comparison tools | H12: Total solution cost
B14: Country/local assumptions | D14: Country and segment input and assumptions | G14: Labor, maintenance, and installation assumptions
B16: Technology/model assumption worksheets | D16: Cold room/freezer room | F16: Ice-lined refrigerator | H16: Freezer
D18: Solar direct drive refrigerator | G18: Long-term passive storage device
D20: Solar w/battery | F20: Gas refrigerator | H20: Kerosene refrigerator
C23: © 2016 PATH This work is licensed under the Creative Commons Attribution-NonCommercial-ShareAlike 4.0 International License. To view a copy of this license, visit http://creativecommons.org/licenses/by-nc-sa/4.0/.
B26: Please send any feedback, suggestions, or comments to Matt Morio | F26: mmorio@path.org
B28: Versioning
B29: v.0.1.0 | C29: 2013 | D29: Original version of the Total Life Cost model developed by PATH and shared in 2013
B30: v.0.5.1 | C30: 2014-10-01 | D30: Revision of templates and costing data
B31: v.0.5.2 | C31: 2015-04-01 | D31: addition of total solution cost approach
B32: v0.5.3 | C32: 2015-07-15 | D32: general modifications and enhancements
B33: v0.5.4 | C33: 2015-08-01 | D33: incorporate feedback and release for review and comments prior to country sharing
B34: v0.6 | C34: 2015-08-20 | D34: Updated version with feedback incorporated
B35: v1.x | C35: 2016-01-01 | D35: Version 1.0 release
B36: v1.4 | C36: 2017-04-26 | D36: Updated version with CCEOP eligibility
I38: 2017-04-26

Sheet Updates (hidden)
A1: Notes:
A3: version | C3: Comments
A4: 1.0.0 | C4: Release for review - frozen version until 1.1 release
A5: 1.0.1 | C5: added freezer capcity to Walk in Freezer Rooms and Cold room/ Freezer room combos
C6: Add column in solution costs to show the Annualized Opex costs for each unit
C7: adjusted installation delivery costs and hours based on McK Archetypes 3 and 4 for installation and delivery costs.
C8: edit Country input transport to "first mile"
C9: Explain tab colors
C10: Add gross weight to PQS table
A12: 1.0.2 | C12: Add 5 new PQS models E003/055 - E003/059
D13: PQS, SDD and Parts tabs are done
D14: Calculations, Comparison data, Cash flow data are left (invalid password)
A16: 1.0.3 | C16: Added more lines for immunization schedule in Country Input
C17: formatting changes to tables in Total Solution Costs for better readability
C18: Changed holdover and autonomy in Total Soulution Costs to look at all temperature ranges, not just 43. Holdover default is 43 if both are listed as indicated in operating range column
C19: Reflected consolidated operating range to one column in PQS vs 32 and 43 to align with PQS database
C20: Added new PQS models and parts
C21: edits to instructions and guidance pop-ups
C22: repaired links between L&M and tech worksheets
C23: Updated pricing for PQS items and parts per latest UNICEF and PQS catalogs on Dec 11
A25: 1.0.5 | C25: sort vaccines for better presentation
C26: minor formula edits
C27: Minor text edits
C28: vaccine table update (price & volume)
A30: next release | C30: Create reference table for general values. Eg freight rates, training costs, installation,etc. The Organge cells generally
C31: SML sizing for solar arrays etc.
C32: Add CCEOP pricing and approved equip if available
A34: 2.0.1 | C34: Update CCE list with latest PQS catalogue(20170410)
C35: Add CCEOP marks and slicer
C36: Fix lookup ranges problem

Sheet Acronyms
A1: Acronyms
A2: BCG | B2: bacillus Calmette-Guerin
A3: CAPEX | B3: capital expense
A4: CCE | B4: cold chain equipment
A5: CCEOP | B5: Cold chain equipment optimization platform
A6: DTP | B6: diphtheria, tetanus toxoids, and pertussis
A7: FAQ | B7: frequently asked question
A8: HepB | B8: hepatitis B
A9: Hib | B9: Haemophilus influenzae type B
A10: ILR | B10: ice-lined refrigerator
A11: LP | B11: liquefied petroleum
A12: LT | B12: long term
A13: MMR | B13: measles, mumps, and rubella
A14: MR | B14: measles and rubella
A15: OPEX | B15: operating expenses
A16: OPV | B16: oral polio virus
A17: PCV | B17: pneumococcal conjugate vaccine
A18: PQS | B18: Performance, Quality and Safety
A19: Rota | B19: rotavirus
A20: SDD | B20: solar direct drive
A21: TCO | B21: total cost of ownership
A22: TT | B22: tetanus toxoid
A23: UNICEF | B23: United Nations Children’s Fund
A24: WHO | B24: World Health Organization
A25: WICR | B25: walk-in cold room
A26: WIFR | B26: walk-in freezer room
A27: YF | B27: yellow fever

Sheet Overview & Instructions
A1: Getting started
A2: Before using the tool, please ensure that macros are enabled. Typically there will be a pop-up notification or alert in the top of the workbook to confirm the use of macros. Click "Enable Content" to affirm the use of macros before proceeding. It is also safe to save this file as a "trusted document" if asked. Example:
A3: Mac compatibility: Unfortunately, the TCO tool is not compatible with Mac computers due to a limitation of Microsoft Office for Mac. We have inquired with Microsoft when an update will be available but do not have a timeline.
A4: Overview of the tool
A5: Click here to skip to instructions | E5: Click here to skip to FAQ
A6: What is total cost of ownership?
A7: The concept of total cost of ownership (TCO) is to evaluate a purchasing decision based on the comprehensive costs of owning and operating a piece of equipment over its useful life or a set period of time. TCO includes not only the purchase price but also the costs of installation, spare parts (capital expenses, commonly referred to as capex), and recurring operating costs such as electricity, routine maintenance, and repairs over time (operating expenses, commonly referred to as opex). The term "useful life" refers to the expected longevity of a piece of equipment before needing to be replaced. Useful life is applied in calculating the total recurring opex during the use and operation of a device.
A8: What is total solution cost?
A9: Total solution cost is a comprehensive comparison of equipment options. The total solution cost refers to the total costs for equipment (capex and opex) plus training costs over a defined time horizon, multiplied by the number of units needed to provide adequate storage. The quantity of units needed is based on the values entered in the Country Input worksheet, primarily the number of facilities to equip and the storage volume needed per facility per delivery. This quantity of units needed may differ as equipment models may have varying capacity or useful life. This is captured in the Total Solution Costs worksheet.
A10: What is this tool for? How does it work?
A11: The TCO tool is designed to assist decision-makers in evaluating available cold chain equipment (CCE) options from a cost perspective. The tool allows users to explore the capital and operating costs associated across various CCE technology categories, as well as to compare costs for specific models within a technology category or across multiple technologies.
A12: This tool is designed to allow for localized inputs, such as energy costs and discount rates as well as immunization-specific needs, to provide a consistent platform for comparing equipment once a facility segmentation has been completed to identify needs.
A13: Users may filter the available equipment for comparison by storage capacity, technology (ice-lined refrigerator [ILR], solar direct-drive refrigerator [SDD], walk-in cold room [WICR], etc.), or even specific models for evaluation by using the filters at the top of each comparison worksheet.
A14: The general workflow for the tool is illustrated below. Users may skip steps if they already have technologies or models in mind for comparison, but it is important to complete the Country Input worksheet to produce an appropriate total cost analysis scenario.
B20: Compare technologies
B21: The tool also incorporates assumptions for each technology category such as installation costs, maintenance and repairs, and useful life of equipment. This approach allows users to evaluate broad comparisons of one technology versus another (example: kerosene and SDD refrigerators).
B23: Compare models
B24: For a more granular analysis, the tool also has model-specific fields that users can modify based on expert opinions or experience for a more accurate model-to-model comparison (example: useful life may vary between models, or the frequency of repairs may differ).
B26: Evaluate country total solution costs
B27: Based on the country inputs, specifically the number of facilities to equip and volume per facility*, the tool will calculate the TCO for equipment over a defined time period. These comparisons are total solution costs matching the country needs with appropriate quantities of equipment needed in the cold chain, not just a model-to-model comparison. These worksheets allow users to see the recurring operating expenses, initial capital costs, and replacement costs for equipment and installation over time presented in several views. This is helpful for projecting budget estimates and comparisons over a set (user-defined) period of time.
B29: * Driven by programmatic needs, installed-base inventory assessment, and facility segmentation.
A30: Instructions
A31: How do I use the tool?
A32: The tool is designed to be a stand-alone tool or to work with other tools and analysis to help guide CCE procurement decisions. The key inputs are the primary drivers for the tool; the yellow and green cells should be updated before beginning an analysis. Users can enter data based on their needs and experiences in multiple locations using the color-coding guide described below. However, primary attention should be on the Country Input and Labor and Maintenance worksheets.
A33: Color-coding—data entry
B34: The tool uses simple color-coding of cells in the workbook to identify when and where a user should review or update values. The number of inputs are kept to a minimum for ease of use.
C36: Yellow cells are key questions that should always be reviewed and updated for each comparison.
C37: Green cells are important assumptions that should be reviewed after addressing the key questions. These can be updated for each comparison, but are generally applicable across multiple comparison scenarios once initially entered.
C38: Orange cells are default assumptions that have been compiled for general use in the tool. The default assumption values that are in the Country Input and Labor and Maintenance worksheets can be overwritten as desired based on local costs or experiences with a technology.
C39: For individual model variances, please refer to the appropriate technology worksheet and locate the specific model to update if it differs from the default assumption (e.g., ILR—Vestfrost MK204 useful life equals XX years instead of default 10 years).
C40: Grey cells are calculated values; to avoid corruption of the formulas and data flow, they should not be changed.
A42: In general, once the green and orange cells are updated for a country or segmentation, they should not need further updating for each scenario or comparison completed.
A43: When conducting a total solutions cost comparison, it is important to enter the appropriate data in the Country Input worksheet; these data should focus the analysis on a particular segment of facilities to equip. These data should be available once the following have been completed: an inventory of CCE and a facility segmentation analysis to identify the number and type of facilities to equip and equipment to procure. Resources for calculating the values for the key inputs can be found in the TechNet21 website country technical assistance package. This package provides technical assistance resources for analysis and planning of CCE procurement.
A44: The tool is designed to be a stand-alone tool or to work with other tools and analysis to help guide CCE procurement decisions. Users can enter data based on their needs in the Key Inputs worksheet using the color-coding guide described below. Resources for calculating the values for the key inputs can be found in the TechNet21 website country technical assistance package if assistance is desired.
A45: Workflow
B46: The tool is structured such that data and decisions flow across the worksheets from left to right, and the worksheets are color coded (see below).
B47: <Section name> | D47: At the beginning of each section, a black colored worksheet contains detailed instructions to clarify individual cells or steps.
B48: Key Inputs | D48: These two tabs allow the user to enter country-specific values into the assumptions and drivers for the tool. Such values including facility segmentation data, energy and labor costs, and general assumptions around equipment.
B49: Key Outputs | D49: The dark green worksheets are the total solution cost comparisons, which take the assumptions from the Country Input and Labor and Maintenance worksheets to calculate the total costs over a selected time planning horizon (1 to 20 years). The yellow-highlighted cell is a dropdown for the number of years to calculate and a key driver for the forecast horizon.
B50: Comparisons | D50: These are general Total Cost of Ownership comparisons for technology categories and/or specific equipment models. These worksheets include: TCO over a unit's useful life, TCO per liter over a unit's useful life, and operating expenses per unit over the useful life.
B51: Data and Assumptions | D51: These worksheets provide the inputs for model-specific values based on local experiences or feedback from users for useful life, parts, and maintenance and repair.
A53: Tips for using the tool
A54: Filters
D55: Within each comparison are a set of three filters to help refine the equipment for comparison. These filters are broken into three categories: vaccine storage capacity, equipment technology, and a list of models.
D56: Available items for selection/filtering are in blue. If a selection is not applicable or has already been filtered out, it will appear as white or light blue.
D57: To select a filter criteria, simply click on the button to filter. For example, if you only want to look at ILRs with 60–90 liters of capacity, you could click on the 60–89 button under the Capacity filter and on the ILR button under the Technology filter.
D58: To select multiple options in a filter, hold the Ctrl key down and then click on any buttons you would like to include in your selection. For example, if we want to compare kerosene, gas, and SDD refrigerators we would hold down the Ctrl key and then click on Kerosene, Gas, and SDD under the Technology filter. When we release the Ctrl key, the options will refresh to reflect our filter choices.
D60: To clear the filters, click on the funnel icon at the top right of a filter.
B65: Note: When selecting a capacity segment, it may be useful to select the next larger segment, in addition to the segment with the needed capacity, to compare costs for larger equipment capacity models.
A67: Expanding selections
B68: As technology options are narrowed down or filters are applied, it is a good opportunity to look at individual models in the comparisons to help refine the equipment options. To do this, click on the + button to the left of a technology in the filtered lists.
B69: This will expand the selection to show individual models and the associated capital and operating costs rather than a technology average.
B70: To consolidate an expanded list, click on the - button.
B75: Expanded selection
A82: Frequently asked questions (FAQs)
A84: What is capex?
B85: Capex is short for capital expenses, which are one-time costs incurred at the time of purchase. Capex includes the costs of the equipment, recommended spare parts, in-country transport, installation kit, and installation labor. Because of the high variability, training is not included in the capex or TCO. Training costs are reflected in the total solution costs as a one time, year 1 cost.
A86: What is opex?
B87: Opex is short for operating expenses, which are recurring expenses over the useful life. This includes cost of energy (electricity, gas, kerosene), maintenance, and repairs.
A88: Where do prices come from?
B89: Pricing is derived from the latest United Nations Children’s Fund (UNICEF) Supply Division catalog pricing when available. If UNICEF pricing is not available, the pricing is the default PQS (World Health Organization Performance, Quality and Safety) price provided by the manufacturer.
A90: Can I view in my local currency?
B91: Currently the tool does not accommodate currencies other than US$. There are plans to incorporate local currencies in future versions of the tool.
A92: What is the difference between TCO and total solution cost?
B93: The TCO includes the capital and operating expenses (capex and opex) for one unit of equipment over its useful life; the total solution cost also includes training costs and looks at the total number of units needed versus a single unit. The total solution cost comparison applies the TCO to the total number of units required to meet the specific needs and requirements for the country’s segmentation over a user-defined period of time. This allows variances in refrigerator capacity or useful life to be considered in the comparisons; for example, multiple units of some equipment may be needed to meet capacity needs or a unit with a shorter useful life than others would need replacement within the time period. These variances are visually indicated in the total solutions cost comparison:
B94: Solution cost colors
D95: The color of the solution costs is a visual indicator of the range of solution costs. The range is from green to light yellow, with green indicating the lowest total cost models of the selected equipment.
B97: Useful life icons
D98: Useful life is shown in number of years. When the useful life is the same as the forecast horizon, a grey circle will appear next to the number of years. For useful life variances from the forecast, a green or red arrow will show up next to the equipment useful life. A green, up arrow indicates that the units have a greater useful life than the forecast. A red, down arrow indicates that the units have a shorter useful life than the forecast; therefore, the units will need replacement during the horizon. This will be reflected in the number of units needed.
B99: Storage capacity bars
D100: Capacity for 2°C–8°C and freezer storage is shown with bars, which provide a visual comparison of the available capacity for each unit in relation to other selected equipment. As equipment is filtered by size, technology, or model(s), the capacity bars will compare the equipment selected.

Sheet Technology Decision Tree
A1: Technology decision tree
A3: `
A29: Source: World Health Organization (WHO), United Nations Children’s Fund. Introducing Solar-Powered Vaccine Refrigerator and Freezer Systems: A Guide for Managers in National Immunization Programmes. Geneva: WHO; 2015
A32: Available at: http://www.who.int/immunization/documents/9789241509862/en/

Sheet Key Inputs ==>
A1: Key inputs
B2: Two worksheets in the Key Inputs section allow for localization of assumptions and costs to increase the accuracy of the analysis and comparisons.
B3: The first worksheet is the Country Input where users can enter key inputs that will drive the costing scenarios.
B4: The second worksheet is Labor and Maintenance, which allows for localized costing of labor rates, installation costs, and assumptions for routine and preventive maintenance as well as repair labor by technology. (These values can also be entered model by model in the Technology worksheets.)
A6: In general, once the green and orange cells are updated for a country or segmentation, they should not need further updating for each scenario or comparison completed.
B8: Input cell legend
C9: Key question
C10: Input value needed
C11: General assumption may be overwritten as appropriate
C12: Calculated value; do not change
C13: Linked data; do not change
B15: Country Input
B16: 1 | C16: Select the Country Input worksheet.
B17: 2 | C17: Name the facility segment to evaluate—this is typically started from a cold chain equipment inventory, capacity gap analysis, or facility segmentation exercise.
B18: 3 | C18: Answer the key questions—number of facilities to equip, number of deliveries per year, and volume need (annual) if known.
B19: 4 | C19: Review and complete the green cells with appropriate information for the segment in the comparison.
C20: If needed volume is known, enter data in cell “D14.” If volume is unknown, take the following steps: Enter the population covered by the facilities in the segmentation and annual birth rate. Select vaccine from the drop-down list, enter coverage target, and repeat, adding vaccines as needed.
B23: 5 | C23: Scroll down to the Financial Assumptions section.
B24: 6 | C24: Update values for Discount rate (if applicable), euro to USD exchange rate, and freight costs (to country port).
B25: 7 | C25: Scroll down to the Energy Costs section.
B26: 8 | C26: Update any values for energy (electricity, fuel, solar panel needs).
B28: Labor and Maintenance
B29: 1 | C29: Select the Labor and Maintenance worksheet.
B30: 2 | C30: Update values as appropriate for labor rates.
B31: 3 | C31: Review installation per unit values in orange and update as needed for local market.
B32: 4 | C32: Review general maintenance per unit values in orange and update as needed for local market.
B34: Note: frequency of maintenance or repairs are expressed in years.
B35: Example: if an activity occurs every 3 months, enter 0.25; if an activity occurs every 2 years, enter 2.

Sheet Country Input
A1: Country input
A3: Vaccine selection and volume demand inputs
A5: Annual vaccine capacity drivers | F5: Input cell color legend
B6: Cold chain segmentation being evaluated | D6: User-defined field
B7: Number of vaccine storage facilities to equip | D7: 10 | G7: Key questions
B8: Vaccine deliveries per year | D8: 4 | G8: Input value needed
B9: Safety stock (%) | D9: 0 | G9: General assumption may be overwritten as appropriate
B10: Refrigerator utilization (% filled) | D10: 1 | G10: Calculated value; do not change
G11: Linked data from model; do not change
A12: Is needed storage volume known from other forecasting tool? | D12: YES | E12: (select)
A13: If Yes, what is the annual storage volume needed in liters? | D13: 500 | F13: To clear yellow and green assumptions, click here --->
A14: If No, complete the following tables in section below. | F14: ***Once cleared, assumptions cannot be restored***
B16: Population of facilities to equip | D16: 5000000
B17: Annual birth rate | D17: 0.025
A19: Vaccines Included in Schedule (select all vaccines used)
B21: Vaccines (select from dropdown) | C21: National coverage target | D21: Annual vaccine volume demand (cm3)
B22: BCG-lyophilized-20 | C22: 0.9 | D22: =IF(B22="--","",VLOOKUP(B22,vaccines!$B:$O,14,FALSE)*Population*BirthRate*NationalCoverage) -> 365625
B23: TT-liquid-20 | C23: 0.8 | D23: =IF(B23="--","",VLOOKUP(B23,vaccines!$B:$O,14,FALSE)*Population*BirthRate*NationalCoverage) -> 535150
B24: Measles-lyophilized-5 | C24: 0.9 | D24: =IF(B24="--","",VLOOKUP(B24,vaccines!$B:$O,14,FALSE)*Population*BirthRate*NationalCoverage) -> 3234705.882
B25: OPV-liquid-20 | C25: 0.9 | D25: =IF(B25="--","",VLOOKUP(B25,vaccines!$B:$O,14,FALSE)*Population*BirthRate*NationalCoverage) -> 388125
B26: DTP-HepB-Hib-liquid-10 | C26: 0.9 | D26: =IF(B26="--","",VLOOKUP(B26,vaccines!$B:$O,14,FALSE)*Population*BirthRate*NationalCoverage) -> 1091911.765
B27: PCV-13-liquid-1 | C27: 0.9 | D27: =IF(B27="--","",VLOOKUP(B27,vaccines!$B:$O,14,FALSE)*Population*BirthRate*NationalCoverage) -> 4094318.182
B28: Rota_RV1-liquid-1 | C28: 0.9 | D28: =IF(B28="--","",VLOOKUP(B28,vaccines!$B:$O,14,FALSE)*Population*BirthRate*NationalCoverage) -> 3938636.364
B29: -- | D29: =IF(B29="--","",VLOOKUP(B29,vaccines!$B:$O,14,FALSE)*Population*BirthRate*NationalCoverage) -> 
B30: -- | D30: =IF(B30="--","",VLOOKUP(B30,vaccines!$B:$O,14,FALSE)*Population*BirthRate*NationalCoverage) -> 
B31: -- | D31: =IF(B31="--","",VLOOKUP(B31,vaccines!$B:$O,14,FALSE)*Population*BirthRate*NationalCoverage) -> 
B32: -- | D32: =IF(B32="--","",VLOOKUP(B32,vaccines!$B:$O,14,FALSE)*Population*BirthRate*NationalCoverage) -> 
B33: -- | D33: =IF(B33="--","",VLOOKUP(B33,vaccines!$B:$O,14,FALSE)*Population*BirthRate*NationalCoverage) -> 
B34: -- | D34: =IF(B34="--","",VLOOKUP(B34,vaccines!$B:$O,14,FALSE)*Population*BirthRate*NationalCoverage) -> 
B35: -- | D35: =IF(B35="--","",VLOOKUP(B35,vaccines!$B:$O,14,FALSE)*Population*BirthRate*NationalCoverage) -> 
B36: --
B38: Estimated vaccine volume (liters) per delivery | D38: =(1+D9)*IF(D12="NO",(SUM(D22:D36)*0.001)*(1+(1-RefrigeratorUtilization))/DeliveryFrequency,(D13)*(1+(1-RefrigeratorUtilization))/DeliveryFrequency) -> 125
B39: Estimated vaccine volume per facility per delivery | D39: =LitersPerDelivery/D7 -> 12.5
A42: Financial parameters
E43: Visit:
B44: Discount Rate | C44: 0
B45: Inflation Rate | C45: 0 | E45: Average inflation rate of countries included in World Bank 2014 "Inflation, consumer prices (annual %)" http://data.worldbank.org/indicator/FP.CPI.TOTL.ZG/countries?display=default
B46: Exchange rate: 1 € = | C46: 1.09 | E46: www.xe.com
B47: Freight costs (% of value) | C47: 0.07 | E47: for estimating “first-mile” freight costs to port of entry.
A50: Energy costs
C51: Local costs
B52: Kerosene (US$/liter) | C52: 1.17
B53: LP gas (US$/kg) | C53: 1.83
B54: Electricity (US$/kWh) | C54: 0.2
B56: Absorption fridge fuel percentage
B57: Kerosene or gas use | C57: 1 | E57: Note: This is the mix of power sources if electricity is available.
B58: Electricity use | C58: =1-C57 -> 0
B60: Solar system panels (if applicable)
B61: Solar array size | C61: Small | E61: Source: Based on data from UNICEF Supply Division catalog estimates

Sheet Labor and Maintenance
A1: Labor, maintenance, and installation assumptions
A2: Labor rates
B3: Rates in US$
A4: Hourly wage of a cold chain technician | B4: 2
A5: Average travel costs for onsite repairs | B5: 40 | D5: Travel costs for cold chain technician should not be different by technology.
A6: Average travel costs to obtain fuel annually | B6: 4 | D6: NOT USED IN CALCULATIONS For kerosene or gas absorption CCE
A7: Average travel cost for installation technician | B7: 150 | D7: Average travel costs for a technician to CCE site, variable based on facility segment that is being modeled.
A8: Average equipment transport cost | B8: 150 | D8: Equipment transport cost should be similar to installation but not bulk transport, this is for moving CCE to a workshop and back
A9: Average cost to obtain ice (per trip) | D9: TBD with passive studies starting in 2015.
A11: Training costs (total)
A12: Total budgeted training for segmented facilities | B12: 0 | D12: Training costs are highly variable so a simple line item to calculate with capex total solution costs (not included in TCO).
A14: Installation per unit
C16: Number of technicians needed per unit installed | D16: Number of hours of installation for each technician | E16: Travel of refrigeration unit to installation site in-country | F16: Installation hardware | G16: Travel of installation technicians | H16: Installation labor | I16: Total installation cost per unit | J16: Installation cost without hardware
A17: Cold room / freezer room | C17: 4 | D17: 16 | E17: 1000 | F17: 3000 | G17: =InstallationTechnicianTravelCost*TechniciansPerUnit -> 600 | H17: =TechniciansPerUnit*HoursPerTechnician*TechnicianHourlyWage -> 128 | I17: =SUM(E17:H17) -> 4728 | J17: =I17-E17-F17 -> 728
A18: Solar direct drive | C18: 2 | D18: 48 | E18: 550 | F18: 120 | G18: =InstallationTechnicianTravelCost*TechniciansPerUnit -> 300 | H18: 192 | I18: =SUM(E18:H18) -> 1162 | J18: =I18-E18-F18 -> 492
A19: Solar with batteries | C19: 2 | D19: 48 | E19: 550 | F19: =F18*1.2 -> 144 | G19: 300 | H19: 192 | I19: 1186 | J19: 492
A20: Electric with kerosene | C20: 1 | D20: 8 | E20: =E18/2 -> 275 | F20: 0 | G20: 150 | H20: 16 | I20: 441 | J20: 166
A21: Electric with gas | C21: 1 | D21: 8 | E21: =E18/2 -> 275 | F21: 0 | G21: 150 | H21: 16 | I21: 441 | J21: 166
A22: Ice-lined refrigerator (ILR) | C22: 1 | D22: 24 | E22: 550 | F22: 50 | G22: 150 | H22: 48 | I22: 798 | J22: 198
A23: Freezer | C23: 1 | D23: 8 | E23: =E22 -> 550 | F23: 50 | G23: 150 | H23: 16 | I23: 766 | J23: 166
A24: Long-term passive storage device | C24: 1 | D24: 8 | E24: 150 | F24: 100 | G24: 150 | H24: 16 | I24: 416 | J24: 166
A29: General maintenance per unit
A31: Type of refrigerator | B31: Duration of equipment (years) | C31: Number of labor hours required | D31: Cost per unit or activity | E31: Frequency (in years) | F31: Repair performed | G31: Description/comments
A33: Kerosene | B33: 10
A34: Maintenance costs—wick replacement | C34: 1 | D34: =(C34*TechnicianHourlyWage) -> 2 | E34: =1/12 -> 0.08333333333 | F34: Monthly | G34: Cleaning and check / adjust thermostat
A35: Onsite repairs 1—Change of one or more of the following: gas jet, thermocouple, flame-failure device, or thermostat | C35: 3 | D35: =(C35*TechnicianHourlyWage)+IF(C35=0,0,RemoteTravelCostPerDay) -> 46 | E35: 5 | F35: Every 5 years
A36: Onsite repairs 2—Electric heater replacement | C36: 3 | D36: =(C36*TechnicianHourlyWage)+IF(C36=0,0,RemoteTravelCostPerDay) -> 46 | E36: 2 | F36: Every 2 years
A37: Major repairs in a workshop by a technician | C37: 16 | D37: =(C37*TechnicianHourlyWage)+IF(C37>0,EquipTransportRate,0) -> 182 | E37: 5 | F37: Every 5 years | G37: Major breakdown estimate
A39: Gas | B39: 10
A40: Routine maintenance | C40: 1 | D40: =(C40*TechnicianHourlyWage) -> 2 | E40: =1/12 -> 0.08333333333 | F40: Monthly | G40: Cleaning and check / adjust thermostat
A41: Onsite repairs 1 | C41: 0 | D41: =(C41*TechnicianHourlyWage)+IF(C41=0,0,RemoteTravelCostPerDay) -> 0 | E41: 0
A42: Onsite repairs 2 | C42: 0 | D42: =(C42*TechnicianHourlyWage)+IF(C42=0,0,RemoteTravelCostPerDay) -> 0 | E42: 0
A43: Major repairs in a workshop by a technician | C43: 10 | D43: =(C43*TechnicianHourlyWage)+IF(C43>0,EquipTransportRate,0) -> 170 | E43: 5 | F43: Every 5 years | G43: Major breakdown estimate
A45: Ice-lined refrigerator | B45: 10
A46: Routine maintenance | C46: 3 | D46: =(C46*TechnicianHourlyWage) -> 6 | E46: 0.25 | F46: Quarterly | G46: Defrosting/cleaning
A47: Onsite repairs 1 | C47: 1 | D47: =(C47*TechnicianHourlyWage)+IF(C47=0,0,RemoteTravelCostPerDay) -> 42 | E47: 1
A48: Onsite repairs 2 | C48: 0 | D48: =(C48*TechnicianHourlyWage)+IF(C48=0,0,RemoteTravelCostPerDay) -> 0 | E48: 0
A49: Major repairs in a workshop by a technician | C49: 4 | D49: =(C49*TechnicianHourlyWage)+IF(C49>0,EquipTransportRate,0) -> 158 | E49: 3 | F49: Every 3 years | G49: Periodic repair estimate [needs country data to substantiate]
A51: Solar with battery | B51: 10
A52: Routine maintenance | C52: 2 | D52: =(C52*TechnicianHourlyWage) -> 4 | E52: 0.25 | F52: Quarterly
A53: Routine maintenance—Battery disposal cost | C53: 0 | D53: =Parts!$E$92*0.08 -> 21.4664 | E53: 3 | F53: Every 3 years | G53: Assume battery disposal is 8% of the purchase price of the battery. Two additional batteries need to be disposed over a 10-year period.
A54: Onsite repairs 1 | C54: 0 | D54: =(C54*TechnicianHourlyWage)+IF(C54=0,0,RemoteTravelCostPerDay) -> 0 | E54: 0
A55: Onsite repairs 2 | C55: 0 | D55: =(C55*TechnicianHourlyWage)+IF(C55=0,0,RemoteTravelCostPerDay) -> 0 | E55: 0
A56: Major repairs in a workshop by a technician | C56: 4 | D56: =(C56*TechnicianHourlyWage)+IF(C56>0,EquipTransportRate,0) -> 158 | E56: 1 | G56: Checking electrolyte levels in batteries and maintenance.
A58: Solar direct drive | B58: 10
A59: Cleaning panels + general maintenance | C59: 1 | D59: =(C59*TechnicianHourlyWage) -> 2 | E59: =1/12 -> 0.08333333333 | F59: Monthly
A60: Onsite repairs 1 | C60: 2 | D60: =(C60*TechnicianHourlyWage)+IF(C60=0,0,RemoteTravelCostPerDay) -> 44 | E60: 1
A61: Onsite repairs 2 | C61: 0 | D61: =(C61*TechnicianHourlyWage)+IF(C61=0,0,RemoteTravelCostPerDay) -> 0 | E61: 0
A62: Major repairs in a workshop by a technician | C62: 4 | D62: =(C62*TechnicianHourlyWage)+IF(C62>0,EquipTransportRate,0) -> 158 | E62: 4
A64: Freezer | B64: 10
A65: Routine maintenance | C65: 3 | D65: =(C65*TechnicianHourlyWage) -> 6 | E65: 0.25 | F65: Quarterly | G65: Defrosting/cleaning
A66: Onsite repairs 1 | C66: 1 | D66: =(C66*TechnicianHourlyWage)+IF(C66=0,0,RemoteTravelCostPerDay) -> 42 | E66: 1
A67: Onsite repairs 2 | C67: 0 | D67: =(C67*TechnicianHourlyWage)+IF(C67=0,0,RemoteTravelCostPerDay) -> 0 | E67: 0
A68: Major repairs in a workshop by a technician | C68: 4 | D68: =(C68*TechnicianHourlyWage)+IF(C68>0,EquipTransportRate,0) -> 158 | E68: 3 | F68: Every 3 years | G68: Periodic repair estimate [needs country data to substantiate]
A70: Cold room/freezer room | B70: 15
A71: Cleaning and general maintenance | C71: 4 | D71: =(C71*TechnicianHourlyWage) -> 8 | E71: 0.25 | F71: Quarterly
A72: Onsite repairs 1 | C72: 16 | D72: =(C72*TechnicianHourlyWage)+IF(C72=0,0,RemoteTravelCostPerDay) -> 72 | E72: 3
A73: Onsite repairs 2 | C73: 0 | D73: =(C73*TechnicianHourlyWage)+IF(C73=0,0,RemoteTravelCostPerDay) -> 0 | E73: 0
A74: Major repairs by a technician | C74: 0 | D74: =(C74*TechnicianHourlyWage)+IF(C74>0,EquipTransportRate,0) -> 0 | E74: 0
A76: Long-term passive | B76: 8
A77: Routine maintenance | C77: 1 | D77: =(C77*TechnicianHourlyWage) -> 2 | E77: =1/12 -> 0.08333333333 | F77: Monthly | G77: Equipment cleaning and battery check
A78: Onsite repairs 1 | C78: 1 | D78: =(C78*TechnicianHourlyWage)+IF(C78=0,0,RemoteTravelCostPerDay) -> 42 | E78: 1
A79: Onsite repairs 2 | C79: 0 | D79: =(C79*TechnicianHourlyWage)+IF(C79=0,0,RemoteTravelCostPerDay) -> 0 | E79: 0
A80: Major repairs in a workshop by a technician | C80: 0 | D80: =(C80*TechnicianHourlyWage)+IF(C80>0,EquipTransportRate,0) -> 0
A81: Ice delivery | D81: =AvgIceDelivery -> 0 | E81: =1/12 -> 0.08333333333 | F81: Monthly | G81: Ice delivery assumption

Sheet Comparisons ==>
A1: Comparisons
B2: Use these worksheets to compare different cold chain equipment (CCE) technologies.
C3: The summary data are displayed as the average costs for a technology.
C4: The filters allow for analysis by storage capacity, technology, or specific model. To select multiple filters, hold down the Ctrl key while clicking on a selection.
C5: To analyze the models within a technology, click on the + in the left side of the data tables, and the table will expand to display individual equipment models in that technology category.
B8: Technology Decision Tree
C9: This graphic was developed through the World Health Organization (WHO) CCE working group to help users visualize the decision matrices for selecting CCE.
B11: TCO Comparison
C12: This worksheet displays the total cost of ownership by technology broken down by capital costs and total operating expenses over the useful life of a unit of equipment.
B14: Cost per Liter Comparison
C15: This worksheet displays the average total costs divided by the storage capacity of a unit to compare capital and operating expenses per liter of storage over the useful life of a piece of equipment.
B17: Detailed TCO Comparison
C18: This worksheet breaks down the annual expenses for purchasing and operating a piece of equipment by equipment cost, spare parts, installation labor, energy, maintenance and major repairs over the useful life of a piece of equipment.
A20: Calculations for comparisons are driven by the assumptions in the Country Input, Labor and Maintenance, and Technology worksheets.
B23: Total Solution Cost
C24: Provides the total costs for a solution that meets the CCE scenario needs. This incorporates the number of facilities to equip and storage needs per re-supply period as well as the useful life of equipment compared to the forecast horizon.
B26: Cash Flows Comparison
C27: Graphical representation of the solution costs by year for selected equipment. Allows visualization for cash flow planning based on equipment useful life (hardware, solar panels, batteries). Parts are not included in the chart.

Sheet TCO Comparison
A1: Total cost comparison over useful life (per unit)
B17: To expand a technology to look at models, click on the plus (+) button below
B18: * after name indicates CCEOP eligible product
B19: Row Labels | C19: Average capex | D19: Average opex over useful life | F19: Total cost of ownership
B20: Freezer | C20: 2725.163927 | D20: 3113.136667 | F20: =IF(C20="","",C20+D20) -> 5838.300594
B21: Gas | C21: 2367.959433 | D21: 4676.76 | F21: =IF(C21="","",C21+D21) -> 7044.719433
B22: ILR | C22: 2539.778635 | D22: 2222.011979 | F22: 4761.790614
B23: Kerosene | C23: 2561.516531 | D23: 4769.45 | F23: 7330.96653
B24: LT passive | C24: 1276.503333 | D24: 528 | F24: 1804.503333
B25: SDD | C25: 6759.677654 | D25: 1075 | F25: 7834.677654
B26: Solar w/battery | C26: 7383.755362 | D26: 1811.554667 | F26: 9195.310028
B27: WICR FR | C27: 29744.666 | D27: 36474.95 | F27: 66219.616
F85: =IF(C85="","",C85+D85) -> 
F149: =IF(C149="","",C149+D149) -> 

Sheet Detailed TCO Comparison
A1: Detailed TCO over useful life comparison (per unit)
B17: To expand a technology to look at models, click on the plus (+) button below
B18: * after name indicates CCEOP eligible product
C19: Average of Unit cost | D19: Average of Spare parts | E19: Average of Installation costs | F19: Average of energy costs | G19: Average of Maintenance & Repairs
B20: WICR FR | C20: 28016.666 | D20: 0 | E20: 1728 | F20: 35634.95 | G20: 840
B21: ILR | C21: 1436.278722 | D21: 355.499913 | E21: 748 | F21: 1035.345312 | G21: 1186.666667
B22: SDD | C22: 4977.806519 | D22: 552.3711357 | E22: 1042 | F22: 0 | G22: 1075
B23: Freezer | C23: 1646.79527 | D23: 362.3686574 | E23: 716 | F23: 1926.47 | G23: 1186.666667
B24: LT passive | C24: 960.5033333 | D24: 0 | E24: 316 | F24: 0 | G24: 528
B25: Solar w battery | C25: 3907.00014 | D25: 429.7652218 | E25: 1042 | F25: 0 | G25: 1811.554667
B26: Gas | C26: 1823.5475 | D26: 103.4119333 | E26: 441 | F26: 4096.76 | G26: 580
B27: Kerosene | C27: 1976.593167 | D27: 143.9233638 | E27: 441 | F27: 3843.45 | G27: 926

Sheet Cost per Liter Comparison
A1: Cost per liter of storage comparison
B16: To expand a technology to look at models, click on the plus (+) button below
B17: * after name indicates CCEOP eligible product
C18: Average of Capex per liter | D18: Average of Opex over useful life per liter | E18: Average of Total cost per liter
B19: WICR FR | C19: 5.07667988 | D19: 5.8709101 | E19: 10.94758998
B20: ILR | C20: 33.07561232 | D20: 33.35975708 | E20: 66.43536939
B21: SDD | C21: 147.4860622 | D21: 26.44340267 | E21: 173.9294649
B22: Freezer | C22: 21.85487048 | D22: 18.58986188 | E22: 40.44473236
B23: LT passive | C23: 215.892284 | D23: 72.19259259 | E23: 288.0848765
B24: Solar w/battery | C24: 97.35547028 | D24: 24.81468554 | E24: 122.1701558
B25: Gas | C25: 92.84233498 | D25: 170.9102548 | E25: 263.7525897
B26: Kerosene | C26: 110.0202815 | D26: 162.1822876 | E26: 272.2025691

Sheet ROI (hidden)
B1: Return on investment and impact analysis
B2: Immunization Schedule
B3: Vaccines (select from dropdown) | C3: National coverage | D3: Annual vaccine volume demand (cm3) | E3: # of vaccinated children per year | F3: # of doses (children x schedule) | G3: Value of vaccines per year | H3: Cost over forecast horizon | I3: present value of vaccines over forecast
B4: BCG-lyophilized-20 | C4: 0.9 | D4: =IF(B4="--","",VLOOKUP(B4,vaccines!$B:$O,14,FALSE)*Population*BirthRate*ROI!C4) -> 365625 | E4: =IF(B4="--","",D4/VLOOKUP(ROI!B4,vaccines!$B:$O,14,FALSE)) -> 112500 | F4: =IF(B4="--","",VLOOKUP(B4,vaccines!$B:$W,7,FALSE)*E4) -> 112500 | G4: =IF(B4="--","",F4*VLOOKUP(B4,vaccines!$B:$W,22,FALSE)) -> 15412.5 | H4: =IF(B4="--","",G4*'Total Solution Costs'!$B$2) -> 154125 | I4: =IF(B4="--","",PV(DiscountRate,'Total Solution Costs'!$B$2,-G4,,1)) -> 154125
B5: TT-liquid-20 | C5: 0.9 | D5: =IF(B5="--","",VLOOKUP(B5,vaccines!$B:$O,14,FALSE)*Population*BirthRate*ROI!C5) -> 602043.75 | E5: =IF(B5="--","",D5/VLOOKUP(ROI!B5,vaccines!$B:$O,14,FALSE)) -> 112500 | F5: =IF(B5="--","",VLOOKUP(B5,vaccines!$B:$W,7,FALSE)*E5) -> 225000 | G5: =IF(B5="--","",F5*VLOOKUP(B5,vaccines!$B:$W,22,FALSE)) -> 11250 | H5: =IF(B5="--","",G5*'Total Solution Costs'!$B$2) -> 112500 | I5: =IF(B5="--","",PV(DiscountRate,'Total Solution Costs'!$B$2,-G5,,1)) -> 112500
B6: Measles-lyophilized-5 | C6: 0.9 | D6: =IF(B6="--","",VLOOKUP(B6,vaccines!$B:$O,14,FALSE)*Population*BirthRate*ROI!C6) -> 3234705.882 | E6: =IF(B6="--","",D6/VLOOKUP(ROI!B6,vaccines!$B:$O,14,FALSE)) -> 112500 | F6: =IF(B6="--","",VLOOKUP(B6,vaccines!$B:$W,7,FALSE)*E6) -> 225000 | G6: =IF(B6="--","",F6*VLOOKUP(B6,vaccines!$B:$W,22,FALSE)) -> 145935 | H6: =IF(B6="--","",G6*'Total Solution Costs'!$B$2) -> 1459350 | I6: =IF(B6="--","",PV(DiscountRate,'Total Solution Costs'!$B$2,-G6,,1)) -> 1459350
B7: OPV-liquid-20 | C7: 0.9 | D7: =IF(B7="--","",VLOOKUP(B7,vaccines!$B:$O,14,FALSE)*Population*BirthRate*ROI!C7) -> 388125 | E7: =IF(B7="--","",D7/VLOOKUP(ROI!B7,vaccines!$B:$O,14,FALSE)) -> 112500 | F7: =IF(B7="--","",VLOOKUP(B7,vaccines!$B:$W,7,FALSE)*E7) -> 450000 | G7: =IF(B7="--","",F7*VLOOKUP(B7,vaccines!$B:$W,22,FALSE)) -> 59265 | H7: =IF(B7="--","",G7*'Total Solution Costs'!$B$2) -> 592650 | I7: =IF(B7="--","",PV(DiscountRate,'Total Solution Costs'!$B$2,-G7,,1)) -> 592650
B8: DTP-HepB-Hib-liquid-10 | C8: 0.9 | D8: =IF(B8="--","",VLOOKUP(B8,vaccines!$B:$O,14,FALSE)*Population*BirthRate*ROI!C8) -> 1091911.765 | E8: =IF(B8="--","",D8/VLOOKUP(ROI!B8,vaccines!$B:$O,14,FALSE)) -> 112500 | F8: =IF(B8="--","",VLOOKUP(B8,vaccines!$B:$W,7,FALSE)*E8) -> 337500 | G8: =IF(B8="--","",F8*VLOOKUP(B8,vaccines!$B:$W,22,FALSE)) -> 513000 | H8: =IF(B8="--","",G8*'Total Solution Costs'!$B$2) -> 5130000 | I8: =IF(B8="--","",PV(DiscountRate,'Total Solution Costs'!$B$2,-G8,,1)) -> 5130000
B9: PCV-13-liquid-1 | C9: 0.9 | D9: =IF(B9="--","",VLOOKUP(B9,vaccines!$B:$O,14,FALSE)*Population*BirthRate*ROI!C9) -> 4094318.182 | E9: =IF(B9="--","",D9/VLOOKUP(ROI!B9,vaccines!$B:$O,14,FALSE)) -> 112500 | F9: =IF(B9="--","",VLOOKUP(B9,vaccines!$B:$W,7,FALSE)*E9) -> 337500 | G9: =IF(B9="--","",F9*VLOOKUP(B9,vaccines!$B:$W,22,FALSE)) -> 1113750 | H9: =IF(B9="--","",G9*'Total Solution Costs'!$B$2) -> 11137500 | I9: =IF(B9="--","",PV(DiscountRate,'Total Solution Costs'!$B$2,-G9,,1)) -> 11137500
B10: Rota_liq-liquid-1 | C10: 0.9 | D10: =IF(B10="--","",VLOOKUP(B10,vaccines!$B:$O,14,FALSE)*Population*BirthRate*ROI!C10) ->  | E10: =IF(B10="--","",D10/VLOOKUP(ROI!B10,vaccines!$B:$O,14,FALSE)) ->  | F10: =IF(B10="--","",VLOOKUP(B10,vaccines!$B:$W,7,FALSE)*E10) ->  | G10: =IF(B10="--","",F10*VLOOKUP(B10,vaccines!$B:$W,22,FALSE)) ->  | H10: =IF(B10="--","",G10*'Total Solution Costs'!$B$2) ->  | I10: =IF(B10="--","",PV(DiscountRate,'Total Solution Costs'!$B$2,-G10,,1)) -> 
B11: -- | D11: =IF(B11="--","",VLOOKUP(B11,vaccines!$B:$O,14,FALSE)*Population*BirthRate*ROI!C11) ->  | E11: =IF(B11="--","",D11/VLOOKUP(ROI!B11,vaccines!$B:$O,14,FALSE)) ->  | F11: =IF(B11="--","",VLOOKUP(B11,vaccines!$B:$W,7,FALSE)*E11) ->  | G11: =IF(B11="--","",F11*VLOOKUP(B11,vaccines!$B:$W,22,FALSE)) ->  | H11: =IF(B11="--","",G11*'Total Solution Costs'!$B$2) ->  | I11: =IF(B11="--","",PV(DiscountRate,'Total Solution Costs'!$B$2,-G11,,1)) -> 
B12: -- | D12: =IF(B12="--","",VLOOKUP(B12,vaccines!$B:$O,14,FALSE)*Population*BirthRate*ROI!C12) ->  | E12: =IF(B12="--","",D12/VLOOKUP(ROI!B12,vaccines!$B:$O,14,FALSE)) ->  | F12: =IF(B12="--","",VLOOKUP(B12,vaccines!$B:$W,7,FALSE)*E12) ->  | G12: =IF(B12="--","",F12*VLOOKUP(B12,vaccines!$B:$W,22,FALSE)) ->  | H12: =IF(B12="--","",G12*'Total Solution Costs'!$B$2) ->  | I12: =IF(B12="--","",PV(DiscountRate,'Total Solution Costs'!$B$2,-G12,,1)) -> 
B13: -- | D13: =IF(B13="--","",VLOOKUP(B13,vaccines!$B:$O,14,FALSE)*Population*BirthRate*ROI!C13) ->  | E13: =IF(B13="--","",D13/VLOOKUP(ROI!B13,vaccines!$B:$O,14,FALSE)) ->  | F13: =IF(B13="--","",VLOOKUP(B13,vaccines!$B:$W,7,FALSE)*E13) ->  | G13: =IF(B13="--","",F13*VLOOKUP(B13,vaccines!$B:$W,22,FALSE)) ->  | H13: =IF(B13="--","",G13*'Total Solution Costs'!$B$2) ->  | I13: =IF(B13="--","",PV(DiscountRate,'Total Solution Costs'!$B$2,-G13,,1)) -> 
B14: -- | D14: =IF(B14="--","",VLOOKUP(B14,vaccines!$B:$O,14,FALSE)*Population*BirthRate*ROI!C14) ->  | E14: =IF(B14="--","",D14/VLOOKUP(ROI!B14,vaccines!$B:$O,14,FALSE)) ->  | F14: =IF(B14="--","",VLOOKUP(B14,vaccines!$B:$W,7,FALSE)*E14) ->  | G14: =IF(B14="--","",F14*VLOOKUP(B14,vaccines!$B:$W,22,FALSE)) ->  | H14: =IF(B14="--","",G14*'Total Solution Costs'!$B$2) ->  | I14: =IF(B14="--","",PV(DiscountRate,'Total Solution Costs'!$B$2,-G14,,1)) -> 
B16: Financial metrics
B17: Values are calculated in # of years in the forecast horizon in "Forecasted NPV Costs" worksheet
B18: CCE solution cost (NPV) | C18: ------> | D18: =GETPIVOTDATA("Average of Net Present Value (Driven by years of planning)",'Total Solution Costs'!$A$24) ->  | H18: Net Present Value of vaccines | I18: =SUM(I4:I14) -> 
B19: Note: The default value above ^ is the average solution cost of ALL CCE. For proper analysis enter the solution cost for a specific model found in the "Forecasted NPV Costs" worksheet.
B22: Total investment | D22: =D18+I18 ->  | F22: Total net present value of the vaccines procured and CCE for the target population
B23: Number of vaccinations | D23: =SUM(E4:E14)*'Total Solution Costs'!B2 ->  | F23: Total # of full vaccine schedules completed over forecast (not including a wastage factor yet)
B24: Number of doses | D24: =SUM(F4:F14)*'Total Solution Costs'!B2 -> 
B25: Total cost per fully vaccinated child | D25: =D22/D23 ->  | F25: Based on the immunization schedule and coverage targets above
B26: Total Cost per dose | D26: =D22/D24 -> 
B27: Total storage cost per vaccinated child | D27: =D18/D23 ->  | F27: Cost of storage solution divided by # of vaccinated children
B28: Total storage cost per dose | D28: =D18/D24 ->  | F28: Cost of storage solution divided by # of doses
B29: Breakeven (years) | D29: =(D18/I18)*'Total Solution Costs'!B2 ->  | F29: Years it will take for value of vaccines protected to equal the cost of CCE solution
B30: Storage as a % of total solution | D30: =D18/D22 -> 
B32: Energy savings of new equipment? | D32: NPV of fuel costs over forecast | G32: Current absorption equipment (drop down)
B34: Health impact metrics
B35: Wastage reduction | D35: 0.02 | G35: =D23*D35*D25 ->  | I35: how much impact freezing? Heat?
B36: Incremental vaccinations | D36: 0.01 | G36: =D23*D36*D25 -> 
B38: Add screen scrape macro to pull findings per solution.

Sheet Solution costs = =>
B2: Total Solution Cost
C3: Provides the total costs for a solution that meets the CCE scenario needs. This incorporates the number of facilities to equip and storage needs per re-supply period as well as the useful life of equipment compared to the forecast horizon.
B5: Cash Flows Comparison
C6: Graphical representation of the solution costs by year for selected equipment. Allows visualization for cash flow planning based on equipment useful life (hardware, solar panels, batteries). Parts are not included in the chart.

Sheet Total Solution Costs
A1: Total solution costs over forecasted years
A2: Forecast horizon | B2: 10 | C2: <-- Select number of years to calculate (up to 20)
A19: Cold chain level (segmentation) evaluated | C19: =facilitysegment -> User-defined field
A20: Number of facilities to equip | C20: =NumberFacilitiestoEquip -> 10
A21: Needed storage volume per facility | C21: =LitersPerFacility -> 12.5
A22: When selecting a capacity segment, it may be useful to select the next larger segment as well to compare costs for larger equipment.
A23: * after name indicates CCEOP eligible product
A24: Technology/Model | B24: Solution Cost | C24: Number of Units required | D24: Useful life (years) | E24: Unit price | F24: Opex per year | G24: TCO per unit | H24: Net vaccine capacity (liters) | I24: Gross freezer capacity (liters) | J24: Operating range (°C) | K24: Holdover (hours) | L24: Shipping weight (kg) | M24: Dimensions | N24: TechNet review
A25: WICR FR | B25: 540612.9933 | C25: 10 | D25: 15 | E25: =IFERROR(VLOOKUP($A25,PQS!$D$5:$AU$107,MATCH(PQS!$Q$3,PQS!$D$3:$AU$3,0),FALSE),"") ->  | F25: =IFERROR(VLOOKUP($A25,PQS!$D$5:$AU$107,MATCH(PQS!$AL$3,PQS!$D$3:$AU$3,0),FALSE),"") ->  | G25: =IF(E25="","",(B25/C25)) ->  | H25: =IFERROR(VLOOKUP($A25,PQS!$D$5:$AU$107,MATCH(PQS!$I$3,PQS!$D$3:$AU$3,0),FALSE),"") ->  | I25: =IFERROR(VLOOKUP($A25,PQS!$D$5:$AU$107,MATCH(PQS!$J$3,PQS!$D$3:$AU$3,0),FALSE),"") ->  | J25: =IFERROR(VLOOKUP($A25,PQS!$D$5:$AU$107,MATCH(PQS!$AK$3,PQS!$D$3:$AU$3,0),FALSE),"") ->  | K25: =IFERROR(VLOOKUP($A25,PQS!$D$5:$AU$107,COLUMN(PQS!$AA$5)-3,FALSE),"") ->  | L25: =IFERROR(VLOOKUP($A25,PQS!$D$5:$AU$107,MATCH(PQS!$H$3,PQS!$D$3:$AU$3,0),FALSE),"") ->  | M25: =IFERROR(VLOOKUP($A25,PQS!$D$5:$AU$107,MATCH(PQS!$AF$3,PQS!$D$3:$AU$3,0),FALSE),"") ->  | N25: =IFERROR(HYPERLINK(VLOOKUP($A25,PQS!$D$5:$AU$107,MATCH(PQS!$AJ$3,PQS!$D$3:$AU$3,0),FALSE),VLOOKUP($A25,PQS!$D$5:$AU$107,MATCH(PQS!$AI$3,PQS!$D$3:$AU$3,0),FALSE)),"") -> 
A26: ILR | B26: 47617.90614 | C26: 10 | D26: 10 | E26: =IFERROR(VLOOKUP($A26,PQS!$D$5:$AU$107,MATCH(PQS!$Q$3,PQS!$D$3:$AU$3,0),FALSE),"") ->  | F26: =IFERROR(VLOOKUP($A26,PQS!$D$5:$AU$107,MATCH(PQS!$AL$3,PQS!$D$3:$AU$3,0),FALSE),"") ->  | G26: =IF(E26="","",(B26/C26)) ->  | H26: =IFERROR(VLOOKUP($A26,PQS!$D$5:$AU$107,MATCH(PQS!$I$3,PQS!$D$3:$AU$3,0),FALSE),"") ->  | I26: =IFERROR(VLOOKUP($A26,PQS!$D$5:$AU$107,MATCH(PQS!$J$3,PQS!$D$3:$AU$3,0),FALSE),"") ->  | J26: =IFERROR(VLOOKUP($A26,PQS!$D$5:$AU$107,MATCH(PQS!$AK$3,PQS!$D$3:$AU$3,0),FALSE),"") ->  | K26: =IFERROR(VLOOKUP($A26,PQS!$D$5:$AU$107,COLUMN(PQS!$AA$5)-3,FALSE),"") ->  | L26: =IFERROR(VLOOKUP($A26,PQS!$D$5:$AU$107,MATCH(PQS!$H$3,PQS!$D$3:$AU$3,0),FALSE),"") ->  | M26: =IFERROR(VLOOKUP($A26,PQS!$D$5:$AU$107,MATCH(PQS!$AF$3,PQS!$D$3:$AU$3,0),FALSE),"") ->  | N26: =IFERROR(HYPERLINK(VLOOKUP($A26,PQS!$D$5:$AU$107,MATCH(PQS!$AJ$3,PQS!$D$3:$AU$3,0),FALSE),VLOOKUP($A26,PQS!$D$5:$AU$107,MATCH(PQS!$AI$3,PQS!$D$3:$AU$3,0),FALSE)),"") -> 
A27: SDD | B27: 78346.77654 | C27: 10 | D27: 10 | E27: =IFERROR(VLOOKUP($A27,PQS!$D$5:$AU$107,MATCH(PQS!$Q$3,PQS!$D$3:$AU$3,0),FALSE),"") ->  | F27: =IFERROR(VLOOKUP($A27,PQS!$D$5:$AU$107,MATCH(PQS!$AL$3,PQS!$D$3:$AU$3,0),FALSE),"") ->  | H27: =IFERROR(VLOOKUP($A27,PQS!$D$5:$AU$107,MATCH(PQS!$I$3,PQS!$D$3:$AU$3,0),FALSE),"") ->  | I27: =IFERROR(VLOOKUP($A27,PQS!$D$5:$AU$107,MATCH(PQS!$J$3,PQS!$D$3:$AU$3,0),FALSE),"") ->  | J27: =IFERROR(VLOOKUP($A27,PQS!$D$5:$AU$107,MATCH(PQS!$AK$3,PQS!$D$3:$AU$3,0),FALSE),"") ->  | K27: =IFERROR(VLOOKUP($A27,PQS!$D$5:$AU$107,COLUMN(PQS!$AA$5)-3,FALSE),"") ->  | L27: =IFERROR(VLOOKUP($A27,PQS!$D$5:$AU$107,MATCH(PQS!$H$3,PQS!$D$3:$AU$3,0),FALSE),"") ->  | M27: =IFERROR(VLOOKUP($A27,PQS!$D$5:$AU$107,MATCH(PQS!$AF$3,PQS!$D$3:$AU$3,0),FALSE),"") ->  | N27: =IFERROR(HYPERLINK(VLOOKUP($A27,PQS!$D$5:$AU$107,MATCH(PQS!$AJ$3,PQS!$D$3:$AU$3,0),FALSE),VLOOKUP($A27,PQS!$D$5:$AU$107,MATCH(PQS!$AI$3,PQS!$D$3:$AU$3,0),FALSE)),"") -> 
A28: Freezer | B28: 58383.00594 | C28: 10 | D28: 10 | E28: =IFERROR(VLOOKUP($A28,PQS!$D$5:$AU$107,MATCH(PQS!$Q$3,PQS!$D$3:$AU$3,0),FALSE),"") ->  | F28: =IFERROR(VLOOKUP($A28,PQS!$D$5:$AU$107,MATCH(PQS!$AL$3,PQS!$D$3:$AU$3,0),FALSE),"") ->  | H28: =IFERROR(VLOOKUP($A28,PQS!$D$5:$AU$107,MATCH(PQS!$I$3,PQS!$D$3:$AU$3,0),FALSE),"") ->  | I28: =IFERROR(VLOOKUP($A28,PQS!$D$5:$AU$107,MATCH(PQS!$J$3,PQS!$D$3:$AU$3,0),FALSE),"") ->  | J28: =IFERROR(VLOOKUP($A28,PQS!$D$5:$AU$107,MATCH(PQS!$AK$3,PQS!$D$3:$AU$3,0),FALSE),"") ->  | K28: =IFERROR(VLOOKUP($A28,PQS!$D$5:$AU$107,COLUMN(PQS!$AA$5)-3,FALSE),"") ->  | L28: =IFERROR(VLOOKUP($A28,PQS!$D$5:$AU$107,MATCH(PQS!$H$3,PQS!$D$3:$AU$3,0),FALSE),"") ->  | M28: =IFERROR(VLOOKUP($A28,PQS!$D$5:$AU$107,MATCH(PQS!$AF$3,PQS!$D$3:$AU$3,0),FALSE),"") ->  | N28: =IFERROR(HYPERLINK(VLOOKUP($A28,PQS!$D$5:$AU$107,MATCH(PQS!$AJ$3,PQS!$D$3:$AU$3,0),FALSE),VLOOKUP($A28,PQS!$D$5:$AU$107,MATCH(PQS!$AI$3,PQS!$D$3:$AU$3,0),FALSE)),"") -> 
A29: LT passive | B29: 86350.2 | C29: 46.66666667 | D29: 8 | E29: =IFERROR(VLOOKUP($A29,PQS!$D$5:$AU$107,MATCH(PQS!$Q$3,PQS!$D$3:$AU$3,0),FALSE),"") ->  | F29: =IFERROR(VLOOKUP($A29,PQS!$D$5:$AU$107,MATCH(PQS!$AL$3,PQS!$D$3:$AU$3,0),FALSE),"") ->  | H29: =IFERROR(VLOOKUP($A29,PQS!$D$5:$AU$107,MATCH(PQS!$I$3,PQS!$D$3:$AU$3,0),FALSE),"") ->  | I29: =IFERROR(VLOOKUP($A29,PQS!$D$5:$AU$107,MATCH(PQS!$J$3,PQS!$D$3:$AU$3,0),FALSE),"") ->  | J29: =IFERROR(VLOOKUP($A29,PQS!$D$5:$AU$107,MATCH(PQS!$AK$3,PQS!$D$3:$AU$3,0),FALSE),"") ->  | K29: =IFERROR(VLOOKUP($A29,PQS!$D$5:$AU$107,COLUMN(PQS!$AA$5)-3,FALSE),"") ->  | L29: =IFERROR(VLOOKUP($A29,PQS!$D$5:$AU$107,MATCH(PQS!$H$3,PQS!$D$3:$AU$3,0),FALSE),"") ->  | M29: =IFERROR(VLOOKUP($A29,PQS!$D$5:$AU$107,MATCH(PQS!$AF$3,PQS!$D$3:$AU$3,0),FALSE),"") ->  | N29: =IFERROR(HYPERLINK(VLOOKUP($A29,PQS!$D$5:$AU$107,MATCH(PQS!$AJ$3,PQS!$D$3:$AU$3,0),FALSE),VLOOKUP($A29,PQS!$D$5:$AU$107,MATCH(PQS!$AI$3,PQS!$D$3:$AU$3,0),FALSE)),"") -> 
A30: Solar w/battery | B30: 91953.10028 | C30: 10 | D30: 10 | E30: =IFERROR(VLOOKUP($A30,PQS!$D$5:$AU$107,MATCH(PQS!$Q$3,PQS!$D$3:$AU$3,0),FALSE),"") ->  | F30: =IFERROR(VLOOKUP($A30,PQS!$D$5:$AU$107,MATCH(PQS!$AL$3,PQS!$D$3:$AU$3,0),FALSE),"") ->  | H30: =IFERROR(VLOOKUP($A30,PQS!$D$5:$AU$107,MATCH(PQS!$I$3,PQS!$D$3:$AU$3,0),FALSE),"") ->  | I30: =IFERROR(VLOOKUP($A30,PQS!$D$5:$AU$107,MATCH(PQS!$J$3,PQS!$D$3:$AU$3,0),FALSE),"") ->  | J30: =IFERROR(VLOOKUP($A30,PQS!$D$5:$AU$107,MATCH(PQS!$AK$3,PQS!$D$3:$AU$3,0),FALSE),"") ->  | K30: =IFERROR(VLOOKUP($A30,PQS!$D$5:$AU$107,COLUMN(PQS!$AA$5)-3,FALSE),"") ->  | L30: =IFERROR(VLOOKUP($A30,PQS!$D$5:$AU$107,MATCH(PQS!$H$3,PQS!$D$3:$AU$3,0),FALSE),"") ->  | M30: =IFERROR(VLOOKUP($A30,PQS!$D$5:$AU$107,MATCH(PQS!$AF$3,PQS!$D$3:$AU$3,0),FALSE),"") ->  | N30: =IFERROR(HYPERLINK(VLOOKUP($A30,PQS!$D$5:$AU$107,MATCH(PQS!$AJ$3,PQS!$D$3:$AU$3,0),FALSE),VLOOKUP($A30,PQS!$D$5:$AU$107,MATCH(PQS!$AI$3,PQS!$D$3:$AU$3,0),FALSE)),"") -> 
A31: Gas | B31: 70447.19433 | C31: 10 | D31: 10 | E31: =IFERROR(VLOOKUP($A31,PQS!$D$5:$AU$107,MATCH(PQS!$Q$3,PQS!$D$3:$AU$3,0),FALSE),"") ->  | F31: =IFERROR(VLOOKUP($A31,PQS!$D$5:$AU$107,MATCH(PQS!$AL$3,PQS!$D$3:$AU$3,0),FALSE),"") ->  | H31: =IFERROR(VLOOKUP($A31,PQS!$D$5:$AU$107,MATCH(PQS!$I$3,PQS!$D$3:$AU$3,0),FALSE),"") ->  | I31: =IFERROR(VLOOKUP($A31,PQS!$D$5:$AU$107,MATCH(PQS!$J$3,PQS!$D$3:$AU$3,0),FALSE),"") ->  | J31: =IFERROR(VLOOKUP($A31,PQS!$D$5:$AU$107,MATCH(PQS!$AK$3,PQS!$D$3:$AU$3,0),FALSE),"") ->  | K31: =IFERROR(VLOOKUP($A31,PQS!$D$5:$AU$107,COLUMN(PQS!$AA$5)-3,FALSE),"") ->  | L31: =IFERROR(VLOOKUP($A31,PQS!$D$5:$AU$107,MATCH(PQS!$H$3,PQS!$D$3:$AU$3,0),FALSE),"") ->  | M31: =IFERROR(VLOOKUP($A31,PQS!$D$5:$AU$107,MATCH(PQS!$AF$3,PQS!$D$3:$AU$3,0),FALSE),"") ->  | N31: =IFERROR(HYPERLINK(VLOOKUP($A31,PQS!$D$5:$AU$107,MATCH(PQS!$AJ$3,PQS!$D$3:$AU$3,0),FALSE),VLOOKUP($A31,PQS!$D$5:$AU$107,MATCH(PQS!$AI$3,PQS!$D$3:$AU$3,0),FALSE)),"") -> 
A32: Kerosene | B32: 73309.6653 | C32: 10 | D32: 10 | E32: =IFERROR(VLOOKUP($A32,PQS!$D$5:$AU$107,MATCH(PQS!$Q$3,PQS!$D$3:$AU$3,0),FALSE),"") ->  | F32: =IFERROR(VLOOKUP($A32,PQS!$D$5:$AU$107,MATCH(PQS!$AL$3,PQS!$D$3:$AU$3,0),FALSE),"") ->  | H32: =IFERROR(VLOOKUP($A32,PQS!$D$5:$AU$107,MATCH(PQS!$I$3,PQS!$D$3:$AU$3,0),FALSE),"") ->  | I32: =IFERROR(VLOOKUP($A32,PQS!$D$5:$AU$107,MATCH(PQS!$J$3,PQS!$D$3:$AU$3,0),FALSE),"") ->  | J32: =IFERROR(VLOOKUP($A32,PQS!$D$5:$AU$107,MATCH(PQS!$AK$3,PQS!$D$3:$AU$3,0),FALSE),"") ->  | K32: =IFERROR(VLOOKUP($A32,PQS!$D$5:$AU$107,COLUMN(PQS!$AA$5)-3,FALSE),"") ->  | L32: =IFERROR(VLOOKUP($A32,PQS!$D$5:$AU$107,MATCH(PQS!$H$3,PQS!$D$3:$AU$3,0),FALSE),"") ->  | M32: =IFERROR(VLOOKUP($A32,PQS!$D$5:$AU$107,MATCH(PQS!$AF$3,PQS!$D$3:$AU$3,0),FALSE),"") ->  | N32: =IFERROR(HYPERLINK(VLOOKUP($A32,PQS!$D$5:$AU$107,MATCH(PQS!$AJ$3,PQS!$D$3:$AU$3,0),FALSE),VLOOKUP($A32,PQS!$D$5:$AU$107,MATCH(PQS!$AI$3,PQS!$D$3:$AU$3,0),FALSE)),"") -> 
E33: =IFERROR(VLOOKUP($A33,PQS!$D$5:$AU$107,MATCH(PQS!$Q$3,PQS!$D$3:$AU$3,0),FALSE),"") ->  | F33: =IFERROR(VLOOKUP($A33,PQS!$D$5:$AU$107,MATCH(PQS!$AL$3,PQS!$D$3:$AU$3,0),FALSE),"") ->  | H33: =IFERROR(VLOOKUP($A33,PQS!$D$5:$AU$107,MATCH(PQS!$I$3,PQS!$D$3:$AU$3,0),FALSE),"") ->  | I33: =IFERROR(VLOOKUP($A33,PQS!$D$5:$AU$107,MATCH(PQS!$J$3,PQS!$D$3:$AU$3,0),FALSE),"") ->  | J33: =IFERROR(VLOOKUP($A33,PQS!$D$5:$AU$107,MATCH(PQS!$AK$3,PQS!$D$3:$AU$3,0),FALSE),"") ->  | K33: =IFERROR(VLOOKUP($A33,PQS!$D$5:$AU$107,COLUMN(PQS!$AA$5)-3,FALSE),"") ->  | L33: =IFERROR(VLOOKUP($A33,PQS!$D$5:$AU$107,MATCH(PQS!$H$3,PQS!$D$3:$AU$3,0),FALSE),"") ->  | M33: =IFERROR(VLOOKUP($A33,PQS!$D$5:$AU$107,MATCH(PQS!$AF$3,PQS!$D$3:$AU$3,0),FALSE),"") ->  | N33: =IFERROR(HYPERLINK(VLOOKUP($A33,PQS!$D$5:$AU$107,MATCH(PQS!$AJ$3,PQS!$D$3:$AU$3,0),FALSE),VLOOKUP($A33,PQS!$D$5:$AU$107,MATCH(PQS!$AI$3,PQS!$D$3:$AU$3,0),FALSE)),"") -> 
E34: =IFERROR(VLOOKUP($A34,PQS!$D$5:$AU$107,MATCH(PQS!$Q$3,PQS!$D$3:$AU$3,0),FALSE),"") ->  | F34: =IFERROR(VLOOKUP($A34,PQS!$D$5:$AU$107,MATCH(PQS!$AL$3,PQS!$D$3:$AU$3,0),FALSE),"") ->  | H34: =IFERROR(VLOOKUP($A34,PQS!$D$5:$AU$107,MATCH(PQS!$I$3,PQS!$D$3:$AU$3,0),FALSE),"") ->  | I34: =IFERROR(VLOOKUP($A34,PQS!$D$5:$AU$107,MATCH(PQS!$J$3,PQS!$D$3:$AU$3,0),FALSE),"") ->  | J34: =IFERROR(VLOOKUP($A34,PQS!$D$5:$AU$107,MATCH(PQS!$AK$3,PQS!$D$3:$AU$3,0),FALSE),"") ->  | K34: =IFERROR(VLOOKUP($A34,PQS!$D$5:$AU$107,COLUMN(PQS!$AA$5)-3,FALSE),"") ->  | L34: =IFERROR(VLOOKUP($A34,PQS!$D$5:$AU$107,MATCH(PQS!$H$3,PQS!$D$3:$AU$3,0),FALSE),"") ->  | M34: =IFERROR(VLOOKUP($A34,PQS!$D$5:$AU$107,MATCH(PQS!$AF$3,PQS!$D$3:$AU$3,0),FALSE),"") ->  | N34: =IFERROR(HYPERLINK(VLOOKUP($A34,PQS!$D$5:$AU$107,MATCH(PQS!$AJ$3,PQS!$D$3:$AU$3,0),FALSE),VLOOKUP($A34,PQS!$D$5:$AU$107,MATCH(PQS!$AI$3,PQS!$D$3:$AU$3,0),FALSE)),"") -> 
E35: =IFERROR(VLOOKUP($A35,PQS!$D$5:$AU$107,MATCH(PQS!$Q$3,PQS!$D$3:$AU$3,0),FALSE),"") ->  | F35: =IFERROR(VLOOKUP($A35,PQS!$D$5:$AU$107,MATCH(PQS!$AL$3,PQS!$D$3:$AU$3,0),FALSE),"") ->  | H35: =IFERROR(VLOOKUP($A35,PQS!$D$5:$AU$107,MATCH(PQS!$I$3,PQS!$D$3:$AU$3,0),FALSE),"") ->  | I35: =IFERROR(VLOOKUP($A35,PQS!$D$5:$AU$107,MATCH(PQS!$J$3,PQS!$D$3:$AU$3,0),FALSE),"") ->  | J35: =IFERROR(VLOOKUP($A35,PQS!$D$5:$AU$107,MATCH(PQS!$AK$3,PQS!$D$3:$AU$3,0),FALSE),"") ->  | K35: =IFERROR(VLOOKUP($A35,PQS!$D$5:$AU$107,COLUMN(PQS!$AA$5)-3,FALSE),"") ->  | L35: =IFERROR(VLOOKUP($A35,PQS!$D$5:$AU$107,MATCH(PQS!$H$3,PQS!$D$3:$AU$3,0),FALSE),"") ->  | M35: =IFERROR(VLOOKUP($A35,PQS!$D$5:$AU$107,MATCH(PQS!$AF$3,PQS!$D$3:$AU$3,0),FALSE),"") ->  | N35: =IFERROR(HYPERLINK(VLOOKUP($A35,PQS!$D$5:$AU$107,MATCH(PQS!$AJ$3,PQS!$D$3:$AU$3,0),FALSE),VLOOKUP($A35,PQS!$D$5:$AU$107,MATCH(PQS!$AI$3,PQS!$D$3:$AU$3,0),FALSE)),"") -> 
E36: =IFERROR(VLOOKUP($A36,PQS!$D$5:$AU$107,MATCH(PQS!$Q$3,PQS!$D$3:$AU$3,0),FALSE),"") ->  | F36: =IFERROR(VLOOKUP($A36,PQS!$D$5:$AU$107,MATCH(PQS!$AL$3,PQS!$D$3:$AU$3,0),FALSE),"") ->  | H36: =IFERROR(VLOOKUP($A36,PQS!$D$5:$AU$107,MATCH(PQS!$I$3,PQS!$D$3:$AU$3,0),FALSE),"") ->  | I36: =IFERROR(VLOOKUP($A36,PQS!$D$5:$AU$107,MATCH(PQS!$J$3,PQS!$D$3:$AU$3,0),FALSE),"") ->  | J36: =IFERROR(VLOOKUP($A36,PQS!$D$5:$AU$107,MATCH(PQS!$AK$3,PQS!$D$3:$AU$3,0),FALSE),"") ->  | K36: =IFERROR(VLOOKUP($A36,PQS!$D$5:$AU$107,COLUMN(PQS!$AA$5)-3,FALSE),"") ->  | L36: =IFERROR(VLOOKUP($A36,PQS!$D$5:$AU$107,MATCH(PQS!$H$3,PQS!$D$3:$AU$3,0),FALSE),"") ->  | M36: =IFERROR(VLOOKUP($A36,PQS!$D$5:$AU$107,MATCH(PQS!$AF$3,PQS!$D$3:$AU$3,0),FALSE),"") ->  | N36: =IFERROR(HYPERLINK(VLOOKUP($A36,PQS!$D$5:$AU$107,MATCH(PQS!$AJ$3,PQS!$D$3:$AU$3,0),FALSE),VLOOKUP($A36,PQS!$D$5:$AU$107,MATCH(PQS!$AI$3,PQS!$D$3:$AU$3,0),FALSE)),"") -> 
E37: =IFERROR(VLOOKUP($A37,PQS!$D$5:$AU$107,MATCH(PQS!$Q$3,PQS!$D$3:$AU$3,0),FALSE),"") ->  | F37: =IFERROR(VLOOKUP($A37,PQS!$D$5:$AU$107,MATCH(PQS!$AL$3,PQS!$D$3:$AU$3,0),FALSE),"") ->  | H37: =IFERROR(VLOOKUP($A37,PQS!$D$5:$AU$107,MATCH(PQS!$I$3,PQS!$D$3:$AU$3,0),FALSE),"") ->  | I37: =IFERROR(VLOOKUP($A37,PQS!$D$5:$AU$107,MATCH(PQS!$J$3,PQS!$D$3:$AU$3,0),FALSE),"") ->  | J37: =IFERROR(VLOOKUP($A37,PQS!$D$5:$AU$107,MATCH(PQS!$AK$3,PQS!$D$3:$AU$3,0),FALSE),"") ->  | K37: =IFERROR(VLOOKUP($A37,PQS!$D$5:$AU$107,COLUMN(PQS!$AA$5)-3,FALSE),"") ->  | L37: =IFERROR(VLOOKUP($A37,PQS!$D$5:$AU$107,MATCH(PQS!$H$3,PQS!$D$3:$AU$3,0),FALSE),"") ->  | M37: =IFERROR(VLOOKUP($A37,PQS!$D$5:$AU$107,MATCH(PQS!$AF$3,PQS!$D$3:$AU$3,0),FALSE),"") ->  | N37: =IFERROR(HYPERLINK(VLOOKUP($A37,PQS!$D$5:$AU$107,MATCH(PQS!$AJ$3,PQS!$D$3:$AU$3,0),FALSE),VLOOKUP($A37,PQS!$D$5:$AU$107,MATCH(PQS!$AI$3,PQS!$D$3:$AU$3,0),FALSE)),"") -> 
E38: =IFERROR(VLOOKUP($A38,PQS!$D$5:$AU$107,MATCH(PQS!$Q$3,PQS!$D$3:$AU$3,0),FALSE),"") ->  | F38: =IFERROR(VLOOKUP($A38,PQS!$D$5:$AU$107,MATCH(PQS!$AL$3,PQS!$D$3:$AU$3,0),FALSE),"") ->  | H38: =IFERROR(VLOOKUP($A38,PQS!$D$5:$AU$107,MATCH(PQS!$I$3,PQS!$D$3:$AU$3,0),FALSE),"") ->  | I38: =IFERROR(VLOOKUP($A38,PQS!$D$5:$AU$107,MATCH(PQS!$J$3,PQS!$D$3:$AU$3,0),FALSE),"") ->  | J38: =IFERROR(VLOOKUP($A38,PQS!$D$5:$AU$107,MATCH(PQS!$AK$3,PQS!$D$3:$AU$3,0),FALSE),"") ->  | K38: =IFERROR(VLOOKUP($A38,PQS!$D$5:$AU$107,COLUMN(PQS!$AA$5)-3,FALSE),"") ->  | L38: =IFERROR(VLOOKUP($A38,PQS!$D$5:$AU$107,MATCH(PQS!$H$3,PQS!$D$3:$AU$3,0),FALSE),"") ->  | M38: =IFERROR(VLOOKUP($A38,PQS!$D$5:$AU$107,MATCH(PQS!$AF$3,PQS!$D$3:$AU$3,0),FALSE),"") ->  | N38: =IFERROR(HYPERLINK(VLOOKUP($A38,PQS!$D$5:$AU$107,MATCH(PQS!$AJ$3,PQS!$D$3:$AU$3,0),FALSE),VLOOKUP($A38,PQS!$D$5:$AU$107,MATCH(PQS!$AI$3,PQS!$D$3:$AU$3,0),FALSE)),"") -> 
E39: =IFERROR(VLOOKUP($A39,PQS!$D$5:$AU$107,MATCH(PQS!$Q$3,PQS!$D$3:$AU$3,0),FALSE),"") ->  | F39: =IFERROR(VLOOKUP($A39,PQS!$D$5:$AU$107,MATCH(PQS!$AL$3,PQS!$D$3:$AU$3,0),FALSE),"") ->  | H39: =IFERROR(VLOOKUP($A39,PQS!$D$5:$AU$107,MATCH(PQS!$I$3,PQS!$D$3:$AU$3,0),FALSE),"") ->  | I39: =IFERROR(VLOOKUP($A39,PQS!$D$5:$AU$107,MATCH(PQS!$J$3,PQS!$D$3:$AU$3,0),FALSE),"") ->  | J39: =IFERROR(VLOOKUP($A39,PQS!$D$5:$AU$107,MATCH(PQS!$AK$3,PQS!$D$3:$AU$3,0),FALSE),"") ->  | K39: =IFERROR(VLOOKUP($A39,PQS!$D$5:$AU$107,COLUMN(PQS!$AA$5)-3,FALSE),"") ->  | L39: =IFERROR(VLOOKUP($A39,PQS!$D$5:$AU$107,MATCH(PQS!$H$3,PQS!$D$3:$AU$3,0),FALSE),"") ->  | M39: =IFERROR(VLOOKUP($A39,PQS!$D$5:$AU$107,MATCH(PQS!$AF$3,PQS!$D$3:$AU$3,0),FALSE),"") ->  | N39: =IFERROR(HYPERLINK(VLOOKUP($A39,PQS!$D$5:$AU$107,MATCH(PQS!$AJ$3,PQS!$D$3:$AU$3,0),FALSE),VLOOKUP($A39,PQS!$D$5:$AU$107,MATCH(PQS!$AI$3,PQS!$D$3:$AU$3,0),FALSE)),"") -> 
E40: =IFERROR(VLOOKUP($A40,PQS!$D$5:$AU$107,MATCH(PQS!$Q$3,PQS!$D$3:$AU$3,0),FALSE),"") ->  | F40: =IFERROR(VLOOKUP($A40,PQS!$D$5:$AU$107,MATCH(PQS!$AL$3,PQS!$D$3:$AU$3,0),FALSE),"") ->  | H40: =IFERROR(VLOOKUP($A40,PQS!$D$5:$AU$107,MATCH(PQS!$I$3,PQS!$D$3:$AU$3,0),FALSE),"") ->  | I40: =IFERROR(VLOOKUP($A40,PQS!$D$5:$AU$107,MATCH(PQS!$J$3,PQS!$D$3:$AU$3,0),FALSE),"") ->  | J40: =IFERROR(VLOOKUP($A40,PQS!$D$5:$AU$107,MATCH(PQS!$AK$3,PQS!$D$3:$AU$3,0),FALSE),"") ->  | K40: =IFERROR(VLOOKUP($A40,PQS!$D$5:$AU$107,COLUMN(PQS!$AA$5)-3,FALSE),"") ->  | L40: =IFERROR(VLOOKUP($A40,PQS!$D$5:$AU$107,MATCH(PQS!$H$3,PQS!$D$3:$AU$3,0),FALSE),"") ->  | M40: =IFERROR(VLOOKUP($A40,PQS!$D$5:$AU$107,MATCH(PQS!$AF$3,PQS!$D$3:$AU$3,0),FALSE),"") ->  | N40: =IFERROR(HYPERLINK(VLOOKUP($A40,PQS!$D$5:$AU$107,MATCH(PQS!$AJ$3,PQS!$D$3:$AU$3,0),FALSE),VLOOKUP($A40,PQS!$D$5:$AU$107,MATCH(PQS!$AI$3,PQS!$D$3:$AU$3,0),FALSE)),"") -> 
E41: =IFERROR(VLOOKUP($A41,PQS!$D$5:$AU$107,MATCH(PQS!$Q$3,PQS!$D$3:$AU$3,0),FALSE),"") ->  | F41: =IFERROR(VLOOKUP($A41,PQS!$D$5:$AU$107,MATCH(PQS!$AL$3,PQS!$D$3:$AU$3,0),FALSE),"") ->  | H41: =IFERROR(VLOOKUP($A41,PQS!$D$5:$AU$107,MATCH(PQS!$I$3,PQS!$D$3:$AU$3,0),FALSE),"") ->  | I41: =IFERROR(VLOOKUP($A41,PQS!$D$5:$AU$107,MATCH(PQS!$J$3,PQS!$D$3:$AU$3,0),FALSE),"") ->  | J41: =IFERROR(VLOOKUP($A41,PQS!$D$5:$AU$107,MATCH(PQS!$AK$3,PQS!$D$3:$AU$3,0),FALSE),"") ->  | K41: =IFERROR(VLOOKUP($A41,PQS!$D$5:$AU$107,COLUMN(PQS!$AA$5)-3,FALSE),"") ->  | L41: =IFERROR(VLOOKUP($A41,PQS!$D$5:$AU$107,MATCH(PQS!$H$3,PQS!$D$3:$AU$3,0),FALSE),"") ->  | M41: =IFERROR(VLOOKUP($A41,PQS!$D$5:$AU$107,MATCH(PQS!$AF$3,PQS!$D$3:$AU$3,0),FALSE),"") ->  | N41: =IFERROR(HYPERLINK(VLOOKUP($A41,PQS!$D$5:$AU$107,MATCH(PQS!$AJ$3,PQS!$D$3:$AU$3,0),FALSE),VLOOKUP($A41,PQS!$D$5:$AU$107,MATCH(PQS!$AI$3,PQS!$D$3:$AU$3,0),FALSE)),"") -> 
E42: =IFERROR(VLOOKUP($A42,PQS!$D$5:$AU$107,MATCH(PQS!$Q$3,PQS!$D$3:$AU$3,0),FALSE),"") ->  | F42: =IFERROR(VLOOKUP($A42,PQS!$D$5:$AU$107,MATCH(PQS!$AL$3,PQS!$D$3:$AU$3,0),FALSE),"") ->  | H42: =IFERROR(VLOOKUP($A42,PQS!$D$5:$AU$107,MATCH(PQS!$I$3,PQS!$D$3:$AU$3,0),FALSE),"") ->  | I42: =IFERROR(VLOOKUP($A42,PQS!$D$5:$AU$107,MATCH(PQS!$J$3,PQS!$D$3:$AU$3,0),FALSE),"") ->  | J42: =IFERROR(VLOOKUP($A42,PQS!$D$5:$AU$107,MATCH(PQS!$AK$3,PQS!$D$3:$AU$3,0),FALSE),"") ->  | K42: =IFERROR(VLOOKUP($A42,PQS!$D$5:$AU$107,COLUMN(PQS!$AA$5)-3,FALSE),"") ->  | L42: =IFERROR(VLOOKUP($A42,PQS!$D$5:$AU$107,MATCH(PQS!$H$3,PQS!$D$3:$AU$3,0),FALSE),"") ->  | M42: =IFERROR(VLOOKUP($A42,PQS!$D$5:$AU$107,MATCH(PQS!$AF$3,PQS!$D$3:$AU$3,0),FALSE),"") ->  | N42: =IFERROR(HYPERLINK(VLOOKUP($A42,PQS!$D$5:$AU$107,MATCH(PQS!$AJ$3,PQS!$D$3:$AU$3,0),FALSE),VLOOKUP($A42,PQS!$D$5:$AU$107,MATCH(PQS!$AI$3,PQS!$D$3:$AU$3,0),FALSE)),"") -> 
E43: =IFERROR(VLOOKUP($A43,PQS!$D$5:$AU$107,MATCH(PQS!$Q$3,PQS!$D$3:$AU$3,0),FALSE),"") ->  | F43: =IFERROR(VLOOKUP($A43,PQS!$D$5:$AU$107,MATCH(PQS!$AL$3,PQS!$D$3:$AU$3,0),FALSE),"") ->  | H43: =IFERROR(VLOOKUP($A43,PQS!$D$5:$AU$107,MATCH(PQS!$I$3,PQS!$D$3:$AU$3,0),FALSE),"") ->  | I43: =IFERROR(VLOOKUP($A43,PQS!$D$5:$AU$107,MATCH(PQS!$J$3,PQS!$D$3:$AU$3,0),FALSE),"") ->  | J43: =IFERROR(VLOOKUP($A43,PQS!$D$5:$AU$107,MATCH(PQS!$AK$3,PQS!$D$3:$AU$3,0),FALSE),"") ->  | K43: =IFERROR(VLOOKUP($A43,PQS!$D$5:$AU$107,COLUMN(PQS!$AA$5)-3,FALSE),"") ->  | L43: =IFERROR(VLOOKUP($A43,PQS!$D$5:$AU$107,MATCH(PQS!$H$3,PQS!$D$3:$AU$3,0),FALSE),"") ->  | M43: =IFERROR(VLOOKUP($A43,PQS!$D$5:$AU$107,MATCH(PQS!$AF$3,PQS!$D$3:$AU$3,0),FALSE),"") ->  | N43: =IFERROR(HYPERLINK(VLOOKUP($A43,PQS!$D$5:$AU$107,MATCH(PQS!$AJ$3,PQS!$D$3:$AU$3,0),FALSE),VLOOKUP($A43,PQS!$D$5:$AU$107,MATCH(PQS!$AI$3,PQS!$D$3:$AU$3,0),FALSE)),"") -> 
E44: =IFERROR(VLOOKUP($A44,PQS!$D$5:$AU$107,MATCH(PQS!$Q$3,PQS!$D$3:$AU$3,0),FALSE),"") ->  | F44: =IFERROR(VLOOKUP($A44,PQS!$D$5:$AU$107,MATCH(PQS!$AL$3,PQS!$D$3:$AU$3,0),FALSE),"") ->  | H44: =IFERROR(VLOOKUP($A44,PQS!$D$5:$AU$107,MATCH(PQS!$I$3,PQS!$D$3:$AU$3,0),FALSE),"") ->  | I44: =IFERROR(VLOOKUP($A44,PQS!$D$5:$AU$107,MATCH(PQS!$J$3,PQS!$D$3:$AU$3,0),FALSE),"") ->  | J44: =IFERROR(VLOOKUP($A44,PQS!$D$5:$AU$107,MATCH(PQS!$AK$3,PQS!$D$3:$AU$3,0),FALSE),"") ->  | K44: =IFERROR(VLOOKUP($A44,PQS!$D$5:$AU$107,COLUMN(PQS!$AA$5)-3,FALSE),"") ->  | L44: =IFERROR(VLOOKUP($A44,PQS!$D$5:$AU$107,MATCH(PQS!$H$3,PQS!$D$3:$AU$3,0),FALSE),"") ->  | M44: =IFERROR(VLOOKUP($A44,PQS!$D$5:$AU$107,MATCH(PQS!$AF$3,PQS!$D$3:$AU$3,0),FALSE),"") ->  | N44: =IFERROR(HYPERLINK(VLOOKUP($A44,PQS!$D$5:$AU$107,MATCH(PQS!$AJ$3,PQS!$D$3:$AU$3,0),FALSE),VLOOKUP($A44,PQS!$D$5:$AU$107,MATCH(PQS!$AI$3,PQS!$D$3:$AU$3,0),FALSE)),"") -> 
E45: =IFERROR(VLOOKUP($A45,PQS!$D$5:$AU$107,MATCH(PQS!$Q$3,PQS!$D$3:$AU$3,0),FALSE),"") ->  | F45: =IFERROR(VLOOKUP($A45,PQS!$D$5:$AU$107,MATCH(PQS!$AL$3,PQS!$D$3:$AU$3,0),FALSE),"") ->  | H45: =IFERROR(VLOOKUP($A45,PQS!$D$5:$AU$107,MATCH(PQS!$I$3,PQS!$D$3:$AU$3,0),FALSE),"") ->  | I45: =IFERROR(VLOOKUP($A45,PQS!$D$5:$AU$107,MATCH(PQS!$J$3,PQS!$D$3:$AU$3,0),FALSE),"") ->  | J45: =IFERROR(VLOOKUP($A45,PQS!$D$5:$AU$107,MATCH(PQS!$AK$3,PQS!$D$3:$AU$3,0),FALSE),"") ->  | K45: =IFERROR(VLOOKUP($A45,PQS!$D$5:$AU$107,COLUMN(PQS!$AA$5)-3,FALSE),"") ->  | L45: =IFERROR(VLOOKUP($A45,PQS!$D$5:$AU$107,MATCH(PQS!$H$3,PQS!$D$3:$AU$3,0),FALSE),"") ->  | M45: =IFERROR(VLOOKUP($A45,PQS!$D$5:$AU$107,MATCH(PQS!$AF$3,PQS!$D$3:$AU$3,0),FALSE),"") ->  | N45: =IFERROR(HYPERLINK(VLOOKUP($A45,PQS!$D$5:$AU$107,MATCH(PQS!$AJ$3,PQS!$D$3:$AU$3,0),FALSE),VLOOKUP($A45,PQS!$D$5:$AU$107,MATCH(PQS!$AI$3,PQS!$D$3:$AU$3,0),FALSE)),"") -> 
E46: =IFERROR(VLOOKUP($A46,PQS!$D$5:$AU$107,MATCH(PQS!$Q$3,PQS!$D$3:$AU$3,0),FALSE),"") ->  | F46: =IFERROR(VLOOKUP($A46,PQS!$D$5:$AU$107,MATCH(PQS!$AL$3,PQS!$D$3:$AU$3,0),FALSE),"") ->  | H46: =IFERROR(VLOOKUP($A46,PQS!$D$5:$AU$107,MATCH(PQS!$I$3,PQS!$D$3:$AU$3,0),FALSE),"") ->  | I46: =IFERROR(VLOOKUP($A46,PQS!$D$5:$AU$107,MATCH(PQS!$J$3,PQS!$D$3:$AU$3,0),FALSE),"") ->  | J46: =IFERROR(VLOOKUP($A46,PQS!$D$5:$AU$107,MATCH(PQS!$AK$3,PQS!$D$3:$AU$3,0),FALSE),"") ->  | K46: =IFERROR(VLOOKUP($A46,PQS!$D$5:$AU$107,COLUMN(PQS!$AA$5)-3,FALSE),"") ->  | L46: =IFERROR(VLOOKUP($A46,PQS!$D$5:$AU$107,MATCH(PQS!$H$3,PQS!$D$3:$AU$3,0),FALSE),"") ->  | M46: =IFERROR(VLOOKUP($A46,PQS!$D$5:$AU$107,MATCH(PQS!$AF$3,PQS!$D$3:$AU$3,0),FALSE),"") ->  | N46: =IFERROR(HYPERLINK(VLOOKUP($A46,PQS!$D$5:$AU$107,MATCH(PQS!$AJ$3,PQS!$D$3:$AU$3,0),FALSE),VLOOKUP($A46,PQS!$D$5:$AU$107,MATCH(PQS!$AI$3,PQS!$D$3:$AU$3,0),FALSE)),"") -> 
E47: =IFERROR(VLOOKUP($A47,PQS!$D$5:$AU$107,MATCH(PQS!$Q$3,PQS!$D$3:$AU$3,0),FALSE),"") ->  | F47: =IFERROR(VLOOKUP($A47,PQS!$D$5:$AU$107,MATCH(PQS!$AL$3,PQS!$D$3:$AU$3,0),FALSE),"") ->  | H47: =IFERROR(VLOOKUP($A47,PQS!$D$5:$AU$107,MATCH(PQS!$I$3,PQS!$D$3:$AU$3,0),FALSE),"") ->  | I47: =IFERROR(VLOOKUP($A47,PQS!$D$5:$AU$107,MATCH(PQS!$J$3,PQS!$D$3:$AU$3,0),FALSE),"") ->  | J47: =IFERROR(VLOOKUP($A47,PQS!$D$5:$AU$107,MATCH(PQS!$AK$3,PQS!$D$3:$AU$3,0),FALSE),"") ->  | K47: =IFERROR(VLOOKUP($A47,PQS!$D$5:$AU$107,COLUMN(PQS!$AA$5)-3,FALSE),"") ->  | L47: =IFERROR(VLOOKUP($A47,PQS!$D$5:$AU$107,MATCH(PQS!$H$3,PQS!$D$3:$AU$3,0),FALSE),"") ->  | M47: =IFERROR(VLOOKUP($A47,PQS!$D$5:$AU$107,MATCH(PQS!$AF$3,PQS!$D$3:$AU$3,0),FALSE),"") ->  | N47: =IFERROR(HYPERLINK(VLOOKUP($A47,PQS!$D$5:$AU$107,MATCH(PQS!$AJ$3,PQS!$D$3:$AU$3,0),FALSE),VLOOKUP($A47,PQS!$D$5:$AU$107,MATCH(PQS!$AI$3,PQS!$D$3:$AU$3,0),FALSE)),"") -> 
E48: =IFERROR(VLOOKUP($A48,PQS!$D$5:$AU$107,MATCH(PQS!$Q$3,PQS!$D$3:$AU$3,0),FALSE),"") ->  | F48: =IFERROR(VLOOKUP($A48,PQS!$D$5:$AU$107,MATCH(PQS!$AL$3,PQS!$D$3:$AU$3,0),FALSE),"") ->  | H48: =IFERROR(VLOOKUP($A48,PQS!$D$5:$AU$107,MATCH(PQS!$I$3,PQS!$D$3:$AU$3,0),FALSE),"") ->  | I48: =IFERROR(VLOOKUP($A48,PQS!$D$5:$AU$107,MATCH(PQS!$J$3,PQS!$D$3:$AU$3,0),FALSE),"") ->  | J48: =IFERROR(VLOOKUP($A48,PQS!$D$5:$AU$107,MATCH(PQS!$AK$3,PQS!$D$3:$AU$3,0),FALSE),"") ->  | K48: =IFERROR(VLOOKUP($A48,PQS!$D$5:$AU$107,COLUMN(PQS!$AA$5)-3,FALSE),"") ->  | L48: =IFERROR(VLOOKUP($A48,PQS!$D$5:$AU$107,MATCH(PQS!$H$3,PQS!$D$3:$AU$3,0),FALSE),"") ->  | M48: =IFERROR(VLOOKUP($A48,PQS!$D$5:$AU$107,MATCH(PQS!$AF$3,PQS!$D$3:$AU$3,0),FALSE),"") ->  | N48: =IFERROR(HYPERLINK(VLOOKUP($A48,PQS!$D$5:$AU$107,MATCH(PQS!$AJ$3,PQS!$D$3:$AU$3,0),FALSE),VLOOKUP($A48,PQS!$D$5:$AU$107,MATCH(PQS!$AI$3,PQS!$D$3:$AU$3,0),FALSE)),"") -> 
E49: =IFERROR(VLOOKUP($A49,PQS!$D$5:$AU$107,MATCH(PQS!$Q$3,PQS!$D$3:$AU$3,0),FALSE),"") ->  | F49: =IFERROR(VLOOKUP($A49,PQS!$D$5:$AU$107,MATCH(PQS!$AL$3,PQS!$D$3:$AU$3,0),FALSE),"") ->  | H49: =IFERROR(VLOOKUP($A49,PQS!$D$5:$AU$107,MATCH(PQS!$I$3,PQS!$D$3:$AU$3,0),FALSE),"") ->  | I49: =IFERROR(VLOOKUP($A49,PQS!$D$5:$AU$107,MATCH(PQS!$J$3,PQS!$D$3:$AU$3,0),FALSE),"") ->  | J49: =IFERROR(VLOOKUP($A49,PQS!$D$5:$AU$107,MATCH(PQS!$AK$3,PQS!$D$3:$AU$3,0),FALSE),"") ->  | K49: =IFERROR(VLOOKUP($A49,PQS!$D$5:$AU$107,COLUMN(PQS!$AA$5)-3,FALSE),"") ->  | L49: =IFERROR(VLOOKUP($A49,PQS!$D$5:$AU$107,MATCH(PQS!$H$3,PQS!$D$3:$AU$3,0),FALSE),"") ->  | M49: =IFERROR(VLOOKUP($A49,PQS!$D$5:$AU$107,MATCH(PQS!$AF$3,PQS!$D$3:$AU$3,0),FALSE),"") ->  | N49: =IFERROR(HYPERLINK(VLOOKUP($A49,PQS!$D$5:$AU$107,MATCH(PQS!$AJ$3,PQS!$D$3:$AU$3,0),FALSE),VLOOKUP($A49,PQS!$D$5:$AU$107,MATCH(PQS!$AI$3,PQS!$D$3:$AU$3,0),FALSE)),"") -> 
E50: =IFERROR(VLOOKUP($A50,PQS!$D$5:$AU$107,MATCH(PQS!$Q$3,PQS!$D$3:$AU$3,0),FALSE),"") ->  | F50: =IFERROR(VLOOKUP($A50,PQS!$D$5:$AU$107,MATCH(PQS!$AL$3,PQS!$D$3:$AU$3,0),FALSE),"") ->  | H50: =IFERROR(VLOOKUP($A50,PQS!$D$5:$AU$107,MATCH(PQS!$I$3,PQS!$D$3:$AU$3,0),FALSE),"") ->  | I50: =IFERROR(VLOOKUP($A50,PQS!$D$5:$AU$107,MATCH(PQS!$J$3,PQS!$D$3:$AU$3,0),FALSE),"") ->  | J50: =IFERROR(VLOOKUP($A50,PQS!$D$5:$AU$107,MATCH(PQS!$AK$3,PQS!$D$3:$AU$3,0),FALSE),"") ->  | K50: =IFERROR(VLOOKUP($A50,PQS!$D$5:$AU$107,COLUMN(PQS!$AA$5)-3,FALSE),"") ->  | L50: =IFERROR(VLOOKUP($A50,PQS!$D$5:$AU$107,MATCH(PQS!$H$3,PQS!$D$3:$AU$3,0),FALSE),"") ->  | M50: =IFERROR(VLOOKUP($A50,PQS!$D$5:$AU$107,MATCH(PQS!$AF$3,PQS!$D$3:$AU$3,0),FALSE),"") ->  | N50: =IFERROR(HYPERLINK(VLOOKUP($A50,PQS!$D$5:$AU$107,MATCH(PQS!$AJ$3,PQS!$D$3:$AU$3,0),FALSE),VLOOKUP($A50,PQS!$D$5:$AU$107,MATCH(PQS!$AI$3,PQS!$D$3:$AU$3,0),FALSE)),"") -> 
E51: =IFERROR(VLOOKUP($A51,PQS!$D$5:$AU$107,MATCH(PQS!$Q$3,PQS!$D$3:$AU$3,0),FALSE),"") ->  | F51: =IFERROR(VLOOKUP($A51,PQS!$D$5:$AU$107,MATCH(PQS!$AL$3,PQS!$D$3:$AU$3,0),FALSE),"") ->  | H51: =IFERROR(VLOOKUP($A51,PQS!$D$5:$AU$107,MATCH(PQS!$I$3,PQS!$D$3:$AU$3,0),FALSE),"") ->  | I51: =IFERROR(VLOOKUP($A51,PQS!$D$5:$AU$107,MATCH(PQS!$J$3,PQS!$D$3:$AU$3,0),FALSE),"") ->  | J51: =IFERROR(VLOOKUP($A51,PQS!$D$5:$AU$107,MATCH(PQS!$AK$3,PQS!$D$3:$AU$3,0),FALSE),"") ->  | K51: =IFERROR(VLOOKUP($A51,PQS!$D$5:$AU$107,COLUMN(PQS!$AA$5)-3,FALSE),"") ->  | L51: =IFERROR(VLOOKUP($A51,PQS!$D$5:$AU$107,MATCH(PQS!$H$3,PQS!$D$3:$AU$3,0),FALSE),"") ->  | M51: =IFERROR(VLOOKUP($A51,PQS!$D$5:$AU$107,MATCH(PQS!$AF$3,PQS!$D$3:$AU$3,0),FALSE),"") ->  | N51: =IFERROR(HYPERLINK(VLOOKUP($A51,PQS!$D$5:$AU$107,MATCH(PQS!$AJ$3,PQS!$D$3:$AU$3,0),FALSE),VLOOKUP($A51,PQS!$D$5:$AU$107,MATCH(PQS!$AI$3,PQS!$D$3:$AU$3,0),FALSE)),"") -> 
E52: =IFERROR(VLOOKUP($A52,PQS!$D$5:$AU$107,MATCH(PQS!$Q$3,PQS!$D$3:$AU$3,0),FALSE),"") ->  | F52: =IFERROR(VLOOKUP($A52,PQS!$D$5:$AU$107,MATCH(PQS!$AL$3,PQS!$D$3:$AU$3,0),FALSE),"") ->  | H52: =IFERROR(VLOOKUP($A52,PQS!$D$5:$AU$107,MATCH(PQS!$I$3,PQS!$D$3:$AU$3,0),FALSE),"") ->  | I52: =IFERROR(VLOOKUP($A52,PQS!$D$5:$AU$107,MATCH(PQS!$J$3,PQS!$D$3:$AU$3,0),FALSE),"") ->  | J52: =IFERROR(VLOOKUP($A52,PQS!$D$5:$AU$107,MATCH(PQS!$AK$3,PQS!$D$3:$AU$3,0),FALSE),"") ->  | K52: =IFERROR(VLOOKUP($A52,PQS!$D$5:$AU$107,COLUMN(PQS!$AA$5)-3,FALSE),"") ->  | L52: =IFERROR(VLOOKUP($A52,PQS!$D$5:$AU$107,MATCH(PQS!$H$3,PQS!$D$3:$AU$3,0),FALSE),"") ->  | M52: =IFERROR(VLOOKUP($A52,PQS!$D$5:$AU$107,MATCH(PQS!$AF$3,PQS!$D$3:$AU$3,0),FALSE),"") ->  | N52: =IFERROR(HYPERLINK(VLOOKUP($A52,PQS!$D$5:$AU$107,MATCH(PQS!$AJ$3,PQS!$D$3:$AU$3,0),FALSE),VLOOKUP($A52,PQS!$D$5:$AU$107,MATCH(PQS!$AI$3,PQS!$D$3:$AU$3,0),FALSE)),"") -> 
E53: =IFERROR(VLOOKUP($A53,PQS!$D$5:$AU$107,MATCH(PQS!$Q$3,PQS!$D$3:$AU$3,0),FALSE),"") ->  | F53: =IFERROR(VLOOKUP($A53,PQS!$D$5:$AU$107,MATCH(PQS!$AL$3,PQS!$D$3:$AU$3,0),FALSE),"") ->  | H53: =IFERROR(VLOOKUP($A53,PQS!$D$5:$AU$107,MATCH(PQS!$I$3,PQS!$D$3:$AU$3,0),FALSE),"") ->  | I53: =IFERROR(VLOOKUP($A53,PQS!$D$5:$AU$107,MATCH(PQS!$J$3,PQS!$D$3:$AU$3,0),FALSE),"") ->  | J53: =IFERROR(VLOOKUP($A53,PQS!$D$5:$AU$107,MATCH(PQS!$AK$3,PQS!$D$3:$AU$3,0),FALSE),"") ->  | K53: =IFERROR(VLOOKUP($A53,PQS!$D$5:$AU$107,COLUMN(PQS!$AA$5)-3,FALSE),"") ->  | L53: =IFERROR(VLOOKUP($A53,PQS!$D$5:$AU$107,MATCH(PQS!$H$3,PQS!$D$3:$AU$3,0),FALSE),"") ->  | M53: =IFERROR(VLOOKUP($A53,PQS!$D$5:$AU$107,MATCH(PQS!$AF$3,PQS!$D$3:$AU$3,0),FALSE),"") ->  | N53: =IFERROR(HYPERLINK(VLOOKUP($A53,PQS!$D$5:$AU$107,MATCH(PQS!$AJ$3,PQS!$D$3:$AU$3,0),FALSE),VLOOKUP($A53,PQS!$D$5:$AU$107,MATCH(PQS!$AI$3,PQS!$D$3:$AU$3,0),FALSE)),"") -> 
E54: =IFERROR(VLOOKUP($A54,PQS!$D$5:$AU$107,MATCH(PQS!$Q$3,PQS!$D$3:$AU$3,0),FALSE),"") ->  | F54: =IFERROR(VLOOKUP($A54,PQS!$D$5:$AU$107,MATCH(PQS!$AL$3,PQS!$D$3:$AU$3,0),FALSE),"") ->  | H54: =IFERROR(VLOOKUP($A54,PQS!$D$5:$AU$107,MATCH(PQS!$I$3,PQS!$D$3:$AU$3,0),FALSE),"") ->  | I54: =IFERROR(VLOOKUP($A54,PQS!$D$5:$AU$107,MATCH(PQS!$J$3,PQS!$D$3:$AU$3,0),FALSE),"") ->  | J54: =IFERROR(VLOOKUP($A54,PQS!$D$5:$AU$107,MATCH(PQS!$AK$3,PQS!$D$3:$AU$3,0),FALSE),"") ->  | K54: =IFERROR(VLOOKUP($A54,PQS!$D$5:$AU$107,COLUMN(PQS!$AA$5)-3,FALSE),"") ->  | L54: =IFERROR(VLOOKUP($A54,PQS!$D$5:$AU$107,MATCH(PQS!$H$3,PQS!$D$3:$AU$3,0),FALSE),"") ->  | M54: =IFERROR(VLOOKUP($A54,PQS!$D$5:$AU$107,MATCH(PQS!$AF$3,PQS!$D$3:$AU$3,0),FALSE),"") ->  | N54: =IFERROR(HYPERLINK(VLOOKUP($A54,PQS!$D$5:$AU$107,MATCH(PQS!$AJ$3,PQS!$D$3:$AU$3,0),FALSE),VLOOKUP($A54,PQS!$D$5:$AU$107,MATCH(PQS!$AI$3,PQS!$D$3:$AU$3,0),FALSE)),"") -> 
E55: =IFERROR(VLOOKUP($A55,PQS!$D$5:$AU$107,MATCH(PQS!$Q$3,PQS!$D$3:$AU$3,0),FALSE),"") ->  | F55: =IFERROR(VLOOKUP($A55,PQS!$D$5:$AU$107,MATCH(PQS!$AL$3,PQS!$D$3:$AU$3,0),FALSE),"") ->  | H55: =IFERROR(VLOOKUP($A55,PQS!$D$5:$AU$107,MATCH(PQS!$I$3,PQS!$D$3:$AU$3,0),FALSE),"") ->  | I55: =IFERROR(VLOOKUP($A55,PQS!$D$5:$AU$107,MATCH(PQS!$J$3,PQS!$D$3:$AU$3,0),FALSE),"") ->  | J55: =IFERROR(VLOOKUP($A55,PQS!$D$5:$AU$107,MATCH(PQS!$AK$3,PQS!$D$3:$AU$3,0),FALSE),"") ->  | K55: =IFERROR(VLOOKUP($A55,PQS!$D$5:$AU$107,COLUMN(PQS!$AA$5)-3,FALSE),"") ->  | L55: =IFERROR(VLOOKUP($A55,PQS!$D$5:$AU$107,MATCH(PQS!$H$3,PQS!$D$3:$AU$3,0),FALSE),"") ->  | M55: =IFERROR(VLOOKUP($A55,PQS!$D$5:$AU$107,MATCH(PQS!$AF$3,PQS!$D$3:$AU$3,0),FALSE),"") ->  | N55: =IFERROR(HYPERLINK(VLOOKUP($A55,PQS!$D$5:$AU$107,MATCH(PQS!$AJ$3,PQS!$D$3:$AU$3,0),FALSE),VLOOKUP($A55,PQS!$D$5:$AU$107,MATCH(PQS!$AI$3,PQS!$D$3:$AU$3,0),FALSE)),"") -> 
E56: =IFERROR(VLOOKUP($A56,PQS!$D$5:$AU$107,MATCH(PQS!$Q$3,PQS!$D$3:$AU$3,0),FALSE),"") ->  | F56: =IFERROR(VLOOKUP($A56,PQS!$D$5:$AU$107,MATCH(PQS!$AL$3,PQS!$D$3:$AU$3,0),FALSE),"") ->  | H56: =IFERROR(VLOOKUP($A56,PQS!$D$5:$AU$107,MATCH(PQS!$I$3,PQS!$D$3:$AU$3,0),FALSE),"") ->  | I56: =IFERROR(VLOOKUP($A56,PQS!$D$5:$AU$107,MATCH(PQS!$J$3,PQS!$D$3:$AU$3,0),FALSE),"") ->  | J56: =IFERROR(VLOOKUP($A56,PQS!$D$5:$AU$107,MATCH(PQS!$AK$3,PQS!$D$3:$AU$3,0),FALSE),"") ->  | K56: =IFERROR(VLOOKUP($A56,PQS!$D$5:$AU$107,COLUMN(PQS!$AA$5)-3,FALSE),"") ->  | L56: =IFERROR(VLOOKUP($A56,PQS!$D$5:$AU$107,MATCH(PQS!$H$3,PQS!$D$3:$AU$3,0),FALSE),"") ->  | M56: =IFERROR(VLOOKUP($A56,PQS!$D$5:$AU$107,MATCH(PQS!$AF$3,PQS!$D$3:$AU$3,0),FALSE),"") ->  | N56: =IFERROR(HYPERLINK(VLOOKUP($A56,PQS!$D$5:$AU$107,MATCH(PQS!$AJ$3,PQS!$D$3:$AU$3,0),FALSE),VLOOKUP($A56,PQS!$D$5:$AU$107,MATCH(PQS!$AI$3,PQS!$D$3:$AU$3,0),FALSE)),"") -> 
E57: =IFERROR(VLOOKUP($A57,PQS!$D$5:$AU$107,MATCH(PQS!$Q$3,PQS!$D$3:$AU$3,0),FALSE),"") ->  | F57: =IFERROR(VLOOKUP($A57,PQS!$D$5:$AU$107,MATCH(PQS!$AL$3,PQS!$D$3:$AU$3,0),FALSE),"") ->  | H57: =IFERROR(VLOOKUP($A57,PQS!$D$5:$AU$107,MATCH(PQS!$I$3,PQS!$D$3:$AU$3,0),FALSE),"") ->  | I57: =IFERROR(VLOOKUP($A57,PQS!$D$5:$AU$107,MATCH(PQS!$J$3,PQS!$D$3:$AU$3,0),FALSE),"") ->  | J57: =IFERROR(VLOOKUP($A57,PQS!$D$5:$AU$107,MATCH(PQS!$AK$3,PQS!$D$3:$AU$3,0),FALSE),"") ->  | K57: =IFERROR(VLOOKUP($A57,PQS!$D$5:$AU$107,COLUMN(PQS!$AA$5)-3,FALSE),"") ->  | L57: =IFERROR(VLOOKUP($A57,PQS!$D$5:$AU$107,MATCH(PQS!$H$3,PQS!$D$3:$AU$3,0),FALSE),"") ->  | M57: =IFERROR(VLOOKUP($A57,PQS!$D$5:$AU$107,MATCH(PQS!$AF$3,PQS!$D$3:$AU$3,0),FALSE),"") ->  | N57: =IFERROR(HYPERLINK(VLOOKUP($A57,PQS!$D$5:$AU$107,MATCH(PQS!$AJ$3,PQS!$D$3:$AU$3,0),FALSE),VLOOKUP($A57,PQS!$D$5:$AU$107,MATCH(PQS!$AI$3,PQS!$D$3:$AU$3,0),FALSE)),"") -> 
E58: =IFERROR(VLOOKUP($A58,PQS!$D$5:$AU$107,MATCH(PQS!$Q$3,PQS!$D$3:$AU$3,0),FALSE),"") ->  | F58: =IFERROR(VLOOKUP($A58,PQS!$D$5:$AU$107,MATCH(PQS!$AL$3,PQS!$D$3:$AU$3,0),FALSE),"") ->  | H58: =IFERROR(VLOOKUP($A58,PQS!$D$5:$AU$107,MATCH(PQS!$I$3,PQS!$D$3:$AU$3,0),FALSE),"") ->  | I58: =IFERROR(VLOOKUP($A58,PQS!$D$5:$AU$107,MATCH(PQS!$J$3,PQS!$D$3:$AU$3,0),FALSE),"") ->  | J58: =IFERROR(VLOOKUP($A58,PQS!$D$5:$AU$107,MATCH(PQS!$AK$3,PQS!$D$3:$AU$3,0),FALSE),"") ->  | K58: =IFERROR(VLOOKUP($A58,PQS!$D$5:$AU$107,COLUMN(PQS!$AA$5)-3,FALSE),"") ->  | L58: =IFERROR(VLOOKUP($A58,PQS!$D$5:$AU$107,MATCH(PQS!$H$3,PQS!$D$3:$AU$3,0),FALSE),"") ->  | M58: =IFERROR(VLOOKUP($A58,PQS!$D$5:$AU$107,MATCH(PQS!$AF$3,PQS!$D$3:$AU$3,0),FALSE),"") ->  | N58: =IFERROR(HYPERLINK(VLOOKUP($A58,PQS!$D$5:$AU$107,MATCH(PQS!$AJ$3,PQS!$D$3:$AU$3,0),FALSE),VLOOKUP($A58,PQS!$D$5:$AU$107,MATCH(PQS!$AI$3,PQS!$D$3:$AU$3,0),FALSE)),"") -> 
E59: =IFERROR(VLOOKUP($A59,PQS!$D$5:$AU$107,MATCH(PQS!$Q$3,PQS!$D$3:$AU$3,0),FALSE),"") ->  | F59: =IFERROR(VLOOKUP($A59,PQS!$D$5:$AU$107,MATCH(PQS!$AL$3,PQS!$D$3:$AU$3,0),FALSE),"") ->  | H59: =IFERROR(VLOOKUP($A59,PQS!$D$5:$AU$107,MATCH(PQS!$I$3,PQS!$D$3:$AU$3,0),FALSE),"") ->  | I59: =IFERROR(VLOOKUP($A59,PQS!$D$5:$AU$107,MATCH(PQS!$J$3,PQS!$D$3:$AU$3,0),FALSE),"") ->  | J59: =IFERROR(VLOOKUP($A59,PQS!$D$5:$AU$107,MATCH(PQS!$AK$3,PQS!$D$3:$AU$3,0),FALSE),"") ->  | K59: =IFERROR(VLOOKUP($A59,PQS!$D$5:$AU$107,COLUMN(PQS!$AA$5)-3,FALSE),"") ->  | L59: =IFERROR(VLOOKUP($A59,PQS!$D$5:$AU$107,MATCH(PQS!$H$3,PQS!$D$3:$AU$3,0),FALSE),"") ->  | M59: =IFERROR(VLOOKUP($A59,PQS!$D$5:$AU$107,MATCH(PQS!$AF$3,PQS!$D$3:$AU$3,0),FALSE),"") ->  | N59: =IFERROR(HYPERLINK(VLOOKUP($A59,PQS!$D$5:$AU$107,MATCH(PQS!$AJ$3,PQS!$D$3:$AU$3,0),FALSE),VLOOKUP($A59,PQS!$D$5:$AU$107,MATCH(PQS!$AI$3,PQS!$D$3:$AU$3,0),FALSE)),"") -> 
E60: =IFERROR(VLOOKUP($A60,PQS!$D$5:$AU$107,MATCH(PQS!$Q$3,PQS!$D$3:$AU$3,0),FALSE),"") ->  | F60: =IFERROR(VLOOKUP($A60,PQS!$D$5:$AU$107,MATCH(PQS!$AL$3,PQS!$D$3:$AU$3,0),FALSE),"") ->  | H60: =IFERROR(VLOOKUP($A60,PQS!$D$5:$AU$107,MATCH(PQS!$I$3,PQS!$D$3:$AU$3,0),FALSE),"") ->  | I60: =IFERROR(VLOOKUP($A60,PQS!$D$5:$AU$107,MATCH(PQS!$J$3,PQS!$D$3:$AU$3,0),FALSE),"") ->  | J60: =IFERROR(VLOOKUP($A60,PQS!$D$5:$AU$107,MATCH(PQS!$AK$3,PQS!$D$3:$AU$3,0),FALSE),"") ->  | K60: =IFERROR(VLOOKUP($A60,PQS!$D$5:$AU$107,COLUMN(PQS!$AA$5)-3,FALSE),"") ->  | L60: =IFERROR(VLOOKUP($A60,PQS!$D$5:$AU$107,MATCH(PQS!$H$3,PQS!$D$3:$AU$3,0),FALSE),"") ->  | M60: =IFERROR(VLOOKUP($A60,PQS!$D$5:$AU$107,MATCH(PQS!$AF$3,PQS!$D$3:$AU$3,0),FALSE),"") ->  | N60: =IFERROR(HYPERLINK(VLOOKUP($A60,PQS!$D$5:$AU$107,MATCH(PQS!$AJ$3,PQS!$D$3:$AU$3,0),FALSE),VLOOKUP($A60,PQS!$D$5:$AU$107,MATCH(PQS!$AI$3,PQS!$D$3:$AU$3,0),FALSE)),"") -> 
E61: =IFERROR(VLOOKUP($A61,PQS!$D$5:$AU$107,MATCH(PQS!$Q$3,PQS!$D$3:$AU$3,0),FALSE),"") ->  | F61: =IFERROR(VLOOKUP($A61,PQS!$D$5:$AU$107,MATCH(PQS!$AL$3,PQS!$D$3:$AU$3,0),FALSE),"") ->  | H61: =IFERROR(VLOOKUP($A61,PQS!$D$5:$AU$107,MATCH(PQS!$I$3,PQS!$D$3:$AU$3,0),FALSE),"") ->  | I61: =IFERROR(VLOOKUP($A61,PQS!$D$5:$AU$107,MATCH(PQS!$J$3,PQS!$D$3:$AU$3,0),FALSE),"") ->  | J61: =IFERROR(VLOOKUP($A61,PQS!$D$5:$AU$107,MATCH(PQS!$AK$3,PQS!$D$3:$AU$3,0),FALSE),"") ->  | K61: =IFERROR(VLOOKUP($A61,PQS!$D$5:$AU$107,COLUMN(PQS!$AA$5)-3,FALSE),"") ->  | L61: =IFERROR(VLOOKUP($A61,PQS!$D$5:$AU$107,MATCH(PQS!$H$3,PQS!$D$3:$AU$3,0),FALSE),"") ->  | M61: =IFERROR(VLOOKUP($A61,PQS!$D$5:$AU$107,MATCH(PQS!$AF$3,PQS!$D$3:$AU$3,0),FALSE),"") ->  | N61: =IFERROR(HYPERLINK(VLOOKUP($A61,PQS!$D$5:$AU$107,MATCH(PQS!$AJ$3,PQS!$D$3:$AU$3,0),FALSE),VLOOKUP($A61,PQS!$D$5:$AU$107,MATCH(PQS!$AI$3,PQS!$D$3:$AU$3,0),FALSE)),"") -> 
E62: =IFERROR(VLOOKUP($A62,PQS!$D$5:$AU$107,MATCH(PQS!$Q$3,PQS!$D$3:$AU$3,0),FALSE),"") ->  | F62: =IFERROR(VLOOKUP($A62,PQS!$D$5:$AU$107,MATCH(PQS!$AL$3,PQS!$D$3:$AU$3,0),FALSE),"") ->  | H62: =IFERROR(VLOOKUP($A62,PQS!$D$5:$AU$107,MATCH(PQS!$I$3,PQS!$D$3:$AU$3,0),FALSE),"") ->  | I62: =IFERROR(VLOOKUP($A62,PQS!$D$5:$AU$107,MATCH(PQS!$J$3,PQS!$D$3:$AU$3,0),FALSE),"") ->  | J62: =IFERROR(VLOOKUP($A62,PQS!$D$5:$AU$107,MATCH(PQS!$AK$3,PQS!$D$3:$AU$3,0),FALSE),"") ->  | K62: =IFERROR(VLOOKUP($A62,PQS!$D$5:$AU$107,COLUMN(PQS!$AA$5)-3,FALSE),"") ->  | L62: =IFERROR(VLOOKUP($A62,PQS!$D$5:$AU$107,MATCH(PQS!$H$3,PQS!$D$3:$AU$3,0),FALSE),"") ->  | M62: =IFERROR(VLOOKUP($A62,PQS!$D$5:$AU$107,MATCH(PQS!$AF$3,PQS!$D$3:$AU$3,0),FALSE),"") ->  | N62: =IFERROR(HYPERLINK(VLOOKUP($A62,PQS!$D$5:$AU$107,MATCH(PQS!$AJ$3,PQS!$D$3:$AU$3,0),FALSE),VLOOKUP($A62,PQS!$D$5:$AU$107,MATCH(PQS!$AI$3,PQS!$D$3:$AU$3,0),FALSE)),"") -> 
E63: =IFERROR(VLOOKUP($A63,PQS!$D$5:$AU$107,MATCH(PQS!$Q$3,PQS!$D$3:$AU$3,0),FALSE),"") ->  | F63: =IFERROR(VLOOKUP($A63,PQS!$D$5:$AU$107,MATCH(PQS!$AL$3,PQS!$D$3:$AU$3,0),FALSE),"") ->  | H63: =IFERROR(VLOOKUP($A63,PQS!$D$5:$AU$107,MATCH(PQS!$I$3,PQS!$D$3:$AU$3,0),FALSE),"") ->  | I63: =IFERROR(VLOOKUP($A63,PQS!$D$5:$AU$107,MATCH(PQS!$J$3,PQS!$D$3:$AU$3,0),FALSE),"") ->  | J63: =IFERROR(VLOOKUP($A63,PQS!$D$5:$AU$107,MATCH(PQS!$AK$3,PQS!$D$3:$AU$3,0),FALSE),"") ->  | K63: =IFERROR(VLOOKUP($A63,PQS!$D$5:$AU$107,COLUMN(PQS!$AA$5)-3,FALSE),"") ->  | L63: =IFERROR(VLOOKUP($A63,PQS!$D$5:$AU$107,MATCH(PQS!$H$3,PQS!$D$3:$AU$3,0),FALSE),"") ->  | M63: =IFERROR(VLOOKUP($A63,PQS!$D$5:$AU$107,MATCH(PQS!$AF$3,PQS!$D$3:$AU$3,0),FALSE),"") ->  | N63: =IFERROR(HYPERLINK(VLOOKUP($A63,PQS!$D$5:$AU$107,MATCH(PQS!$AJ$3,PQS!$D$3:$AU$3,0),FALSE),VLOOKUP($A63,PQS!$D$5:$AU$107,MATCH(PQS!$AI$3,PQS!$D$3:$AU$3,0),FALSE)),"") -> 
E64: =IFERROR(VLOOKUP($A64,PQS!$D$5:$AU$107,MATCH(PQS!$Q$3,PQS!$D$3:$AU$3,0),FALSE),"") ->  | F64: =IFERROR(VLOOKUP($A64,PQS!$D$5:$AU$107,MATCH(PQS!$AL$3,PQS!$D$3:$AU$3,0),FALSE),"") ->  | H64: =IFERROR(VLOOKUP($A64,PQS!$D$5:$AU$107,MATCH(PQS!$I$3,PQS!$D$3:$AU$3,0),FALSE),"") ->  | I64: =IFERROR(VLOOKUP($A64,PQS!$D$5:$AU$107,MATCH(PQS!$J$3,PQS!$D$3:$AU$3,0),FALSE),"") ->  | J64: =IFERROR(VLOOKUP($A64,PQS!$D$5:$AU$107,MATCH(PQS!$AK$3,PQS!$D$3:$AU$3,0),FALSE),"") ->  | K64: =IFERROR(VLOOKUP($A64,PQS!$D$5:$AU$107,COLUMN(PQS!$AA$5)-3,FALSE),"") ->  | L64: =IFERROR(VLOOKUP($A64,PQS!$D$5:$AU$107,MATCH(PQS!$H$3,PQS!$D$3:$AU$3,0),FALSE),"") ->  | M64: =IFERROR(VLOOKUP($A64,PQS!$D$5:$AU$107,MATCH(PQS!$AF$3,PQS!$D$3:$AU$3,0),FALSE),"") ->  | N64: =IFERROR(HYPERLINK(VLOOKUP($A64,PQS!$D$5:$AU$107,MATCH(PQS!$AJ$3,PQS!$D$3:$AU$3,0),FALSE),VLOOKUP($A64,PQS!$D$5:$AU$107,MATCH(PQS!$AI$3,PQS!$D$3:$AU$3,0),FALSE)),"") -> 
E65: =IFERROR(VLOOKUP($A65,PQS!$D$5:$AU$107,MATCH(PQS!$Q$3,PQS!$D$3:$AU$3,0),FALSE),"") ->  | F65: =IFERROR(VLOOKUP($A65,PQS!$D$5:$AU$107,MATCH(PQS!$AL$3,PQS!$D$3:$AU$3,0),FALSE),"") ->  | H65: =IFERROR(VLOOKUP($A65,PQS!$D$5:$AU$107,MATCH(PQS!$I$3,PQS!$D$3:$AU$3,0),FALSE),"") ->  | I65: =IFERROR(VLOOKUP($A65,PQS!$D$5:$AU$107,MATCH(PQS!$J$3,PQS!$D$3:$AU$3,0),FALSE),"") ->  | J65: =IFERROR(VLOOKUP($A65,PQS!$D$5:$AU$107,MATCH(PQS!$AK$3,PQS!$D$3:$AU$3,0),FALSE),"") ->  | K65: =IFERROR(VLOOKUP($A65,PQS!$D$5:$AU$107,COLUMN(PQS!$AA$5)-3,FALSE),"") ->  | L65: =IFERROR(VLOOKUP($A65,PQS!$D$5:$AU$107,MATCH(PQS!$H$3,PQS!$D$3:$AU$3,0),FALSE),"") ->  | M65: =IFERROR(VLOOKUP($A65,PQS!$D$5:$AU$107,MATCH(PQS!$AF$3,PQS!$D$3:$AU$3,0),FALSE),"") ->  | N65: =IFERROR(HYPERLINK(VLOOKUP($A65,PQS!$D$5:$AU$107,MATCH(PQS!$AJ$3,PQS!$D$3:$AU$3,0),FALSE),VLOOKUP($A65,PQS!$D$5:$AU$107,MATCH(PQS!$AI$3,PQS!$D$3:$AU$3,0),FALSE)),"") -> 
E66: =IFERROR(VLOOKUP($A66,PQS!$D$5:$AU$107,MATCH(PQS!$Q$3,PQS!$D$3:$AU$3,0),FALSE),"") ->  | F66: =IFERROR(VLOOKUP($A66,PQS!$D$5:$AU$107,MATCH(PQS!$AL$3,PQS!$D$3:$AU$3,0),FALSE),"") ->  | H66: =IFERROR(VLOOKUP($A66,PQS!$D$5:$AU$107,MATCH(PQS!$I$3,PQS!$D$3:$AU$3,0),FALSE),"") ->  | I66: =IFERROR(VLOOKUP($A66,PQS!$D$5:$AU$107,MATCH(PQS!$J$3,PQS!$D$3:$AU$3,0),FALSE),"") ->  | J66: =IFERROR(VLOOKUP($A66,PQS!$D$5:$AU$107,MATCH(PQS!$AK$3,PQS!$D$3:$AU$3,0),FALSE),"") ->  | K66: =IFERROR(VLOOKUP($A66,PQS!$D$5:$AU$107,COLUMN(PQS!$AA$5)-3,FALSE),"") ->  | L66: =IFERROR(VLOOKUP($A66,PQS!$D$5:$AU$107,MATCH(PQS!$H$3,PQS!$D$3:$AU$3,0),FALSE),"") ->  | M66: =IFERROR(VLOOKUP($A66,PQS!$D$5:$AU$107,MATCH(PQS!$AF$3,PQS!$D$3:$AU$3,0),FALSE),"") ->  | N66: =IFERROR(HYPERLINK(VLOOKUP($A66,PQS!$D$5:$AU$107,MATCH(PQS!$AJ$3,PQS!$D$3:$AU$3,0),FALSE),VLOOKUP($A66,PQS!$D$5:$AU$107,MATCH(PQS!$AI$3,PQS!$D$3:$AU$3,0),FALSE)),"") -> 
E67: =IFERROR(VLOOKUP($A67,PQS!$D$5:$AU$107,MATCH(PQS!$Q$3,PQS!$D$3:$AU$3,0),FALSE),"") ->  | F67: =IFERROR(VLOOKUP($A67,PQS!$D$5:$AU$107,MATCH(PQS!$AL$3,PQS!$D$3:$AU$3,0),FALSE),"") ->  | H67: =IFERROR(VLOOKUP($A67,PQS!$D$5:$AU$107,MATCH(PQS!$I$3,PQS!$D$3:$AU$3,0),FALSE),"") ->  | I67: =IFERROR(VLOOKUP($A67,PQS!$D$5:$AU$107,MATCH(PQS!$J$3,PQS!$D$3:$AU$3,0),FALSE),"") ->  | J67: =IFERROR(VLOOKUP($A67,PQS!$D$5:$AU$107,MATCH(PQS!$AK$3,PQS!$D$3:$AU$3,0),FALSE),"") ->  | K67: =IFERROR(VLOOKUP($A67,PQS!$D$5:$AU$107,COLUMN(PQS!$AA$5)-3,FALSE),"") ->  | L67: =IFERROR(VLOOKUP($A67,PQS!$D$5:$AU$107,MATCH(PQS!$H$3,PQS!$D$3:$AU$3,0),FALSE),"") ->  | M67: =IFERROR(VLOOKUP($A67,PQS!$D$5:$AU$107,MATCH(PQS!$AF$3,PQS!$D$3:$AU$3,0),FALSE),"") ->  | N67: =IFERROR(HYPERLINK(VLOOKUP($A67,PQS!$D$5:$AU$107,MATCH(PQS!$AJ$3,PQS!$D$3:$AU$3,0),FALSE),VLOOKUP($A67,PQS!$D$5:$AU$107,MATCH(PQS!$AI$3,PQS!$D$3:$AU$3,0),FALSE)),"") -> 
E68: =IFERROR(VLOOKUP($A68,PQS!$D$5:$AU$107,MATCH(PQS!$Q$3,PQS!$D$3:$AU$3,0),FALSE),"") ->  | F68: =IFERROR(VLOOKUP($A68,PQS!$D$5:$AU$107,MATCH(PQS!$AL$3,PQS!$D$3:$AU$3,0),FALSE),"") ->  | H68: =IFERROR(VLOOKUP($A68,PQS!$D$5:$AU$107,MATCH(PQS!$I$3,PQS!$D$3:$AU$3,0),FALSE),"") ->  | I68: =IFERROR(VLOOKUP($A68,PQS!$D$5:$AU$107,MATCH(PQS!$J$3,PQS!$D$3:$AU$3,0),FALSE),"") ->  | J68: =IFERROR(VLOOKUP($A68,PQS!$D$5:$AU$107,MATCH(PQS!$AK$3,PQS!$D$3:$AU$3,0),FALSE),"") ->  | K68: =IFERROR(VLOOKUP($A68,PQS!$D$5:$AU$107,COLUMN(PQS!$AA$5)-3,FALSE),"") ->  | L68: =IFERROR(VLOOKUP($A68,PQS!$D$5:$AU$107,MATCH(PQS!$H$3,PQS!$D$3:$AU$3,0),FALSE),"") ->  | M68: =IFERROR(VLOOKUP($A68,PQS!$D$5:$AU$107,MATCH(PQS!$AF$3,PQS!$D$3:$AU$3,0),FALSE),"") ->  | N68: =IFERROR(HYPERLINK(VLOOKUP($A68,PQS!$D$5:$AU$107,MATCH(PQS!$AJ$3,PQS!$D$3:$AU$3,0),FALSE),VLOOKUP($A68,PQS!$D$5:$AU$107,MATCH(PQS!$AI$3,PQS!$D$3:$AU$3,0),FALSE)),"") -> 
E69: =IFERROR(VLOOKUP($A69,PQS!$D$5:$AU$107,MATCH(PQS!$Q$3,PQS!$D$3:$AU$3,0),FALSE),"") ->  | F69: =IFERROR(VLOOKUP($A69,PQS!$D$5:$AU$107,MATCH(PQS!$AL$3,PQS!$D$3:$AU$3,0),FALSE),"") ->  | H69: =IFERROR(VLOOKUP($A69,PQS!$D$5:$AU$107,MATCH(PQS!$I$3,PQS!$D$3:$AU$3,0),FALSE),"") ->  | I69: =IFERROR(VLOOKUP($A69,PQS!$D$5:$AU$107,MATCH(PQS!$J$3,PQS!$D$3:$AU$3,0),FALSE),"") ->  | J69: =IFERROR(VLOOKUP($A69,PQS!$D$5:$AU$107,MATCH(PQS!$AK$3,PQS!$D$3:$AU$3,0),FALSE),"") ->  | K69: =IFERROR(VLOOKUP($A69,PQS!$D$5:$AU$107,COLUMN(PQS!$AA$5)-3,FALSE),"") ->  | L69: =IFERROR(VLOOKUP($A69,PQS!$D$5:$AU$107,MATCH(PQS!$H$3,PQS!$D$3:$AU$3,0),FALSE),"") ->  | M69: =IFERROR(VLOOKUP($A69,PQS!$D$5:$AU$107,MATCH(PQS!$AF$3,PQS!$D$3:$AU$3,0),FALSE),"") ->  | N69: =IFERROR(HYPERLINK(VLOOKUP($A69,PQS!$D$5:$AU$107,MATCH(PQS!$AJ$3,PQS!$D$3:$AU$3,0),FALSE),VLOOKUP($A69,PQS!$D$5:$AU$107,MATCH(PQS!$AI$3,PQS!$D$3:$AU$3,0),FALSE)),"") -> 
E70: =IFERROR(VLOOKUP($A70,PQS!$D$5:$AU$107,MATCH(PQS!$Q$3,PQS!$D$3:$AU$3,0),FALSE),"") ->  | F70: =IFERROR(VLOOKUP($A70,PQS!$D$5:$AU$107,MATCH(PQS!$AL$3,PQS!$D$3:$AU$3,0),FALSE),"") ->  | H70: =IFERROR(VLOOKUP($A70,PQS!$D$5:$AU$107,MATCH(PQS!$I$3,PQS!$D$3:$AU$3,0),FALSE),"") ->  | I70: =IFERROR(VLOOKUP($A70,PQS!$D$5:$AU$107,MATCH(PQS!$J$3,PQS!$D$3:$AU$3,0),FALSE),"") ->  | J70: =IFERROR(VLOOKUP($A70,PQS!$D$5:$AU$107,MATCH(PQS!$AK$3,PQS!$D$3:$AU$3,0),FALSE),"") ->  | K70: =IFERROR(VLOOKUP($A70,PQS!$D$5:$AU$107,COLUMN(PQS!$AA$5)-3,FALSE),"") ->  | L70: =IFERROR(VLOOKUP($A70,PQS!$D$5:$AU$107,MATCH(PQS!$H$3,PQS!$D$3:$AU$3,0),FALSE),"") ->  | M70: =IFERROR(VLOOKUP($A70,PQS!$D$5:$AU$107,MATCH(PQS!$AF$3,PQS!$D$3:$AU$3,0),FALSE),"") ->  | N70: =IFERROR(HYPERLINK(VLOOKUP($A70,PQS!$D$5:$AU$107,MATCH(PQS!$AJ$3,PQS!$D$3:$AU$3,0),FALSE),VLOOKUP($A70,PQS!$D$5:$AU$107,MATCH(PQS!$AI$3,PQS!$D$3:$AU$3,0),FALSE)),"") -> 
E71: =IFERROR(VLOOKUP($A71,PQS!$D$5:$AU$107,MATCH(PQS!$Q$3,PQS!$D$3:$AU$3,0),FALSE),"") ->  | F71: =IFERROR(VLOOKUP($A71,PQS!$D$5:$AU$107,MATCH(PQS!$AL$3,PQS!$D$3:$AU$3,0),FALSE),"") ->  | H71: =IFERROR(VLOOKUP($A71,PQS!$D$5:$AU$107,MATCH(PQS!$I$3,PQS!$D$3:$AU$3,0),FALSE),"") ->  | I71: =IFERROR(VLOOKUP($A71,PQS!$D$5:$AU$107,MATCH(PQS!$J$3,PQS!$D$3:$AU$3,0),FALSE),"") ->  | J71: =IFERROR(VLOOKUP($A71,PQS!$D$5:$AU$107,MATCH(PQS!$AK$3,PQS!$D$3:$AU$3,0),FALSE),"") ->  | K71: =IFERROR(VLOOKUP($A71,PQS!$D$5:$AU$107,COLUMN(PQS!$AA$5)-3,FALSE),"") ->  | L71: =IFERROR(VLOOKUP($A71,PQS!$D$5:$AU$107,MATCH(PQS!$H$3,PQS!$D$3:$AU$3,0),FALSE),"") ->  | M71: =IFERROR(VLOOKUP($A71,PQS!$D$5:$AU$107,MATCH(PQS!$AF$3,PQS!$D$3:$AU$3,0),FALSE),"") ->  | N71: =IFERROR(HYPERLINK(VLOOKUP($A71,PQS!$D$5:$AU$107,MATCH(PQS!$AJ$3,PQS!$D$3:$AU$3,0),FALSE),VLOOKUP($A71,PQS!$D$5:$AU$107,MATCH(PQS!$AI$3,PQS!$D$3:$AU$3,0),FALSE)),"") -> 
E72: =IFERROR(VLOOKUP($A72,PQS!$D$5:$AU$107,MATCH(PQS!$Q$3,PQS!$D$3:$AU$3,0),FALSE),"") ->  | F72: =IFERROR(VLOOKUP($A72,PQS!$D$5:$AU$107,MATCH(PQS!$AL$3,PQS!$D$3:$AU$3,0),FALSE),"") ->  | H72: =IFERROR(VLOOKUP($A72,PQS!$D$5:$AU$107,MATCH(PQS!$I$3,PQS!$D$3:$AU$3,0),FALSE),"") ->  | I72: =IFERROR(VLOOKUP($A72,PQS!$D$5:$AU$107,MATCH(PQS!$J$3,PQS!$D$3:$AU$3,0),FALSE),"") ->  | J72: =IFERROR(VLOOKUP($A72,PQS!$D$5:$AU$107,MATCH(PQS!$AK$3,PQS!$D$3:$AU$3,0),FALSE),"") ->  | K72: =IFERROR(VLOOKUP($A72,PQS!$D$5:$AU$107,COLUMN(PQS!$AA$5)-3,FALSE),"") ->  | L72: =IFERROR(VLOOKUP($A72,PQS!$D$5:$AU$107,MATCH(PQS!$H$3,PQS!$D$3:$AU$3,0),FALSE),"") ->  | M72: =IFERROR(VLOOKUP($A72,PQS!$D$5:$AU$107,MATCH(PQS!$AF$3,PQS!$D$3:$AU$3,0),FALSE),"") ->  | N72: =IFERROR(HYPERLINK(VLOOKUP($A72,PQS!$D$5:$AU$107,MATCH(PQS!$AJ$3,PQS!$D$3:$AU$3,0),FALSE),VLOOKUP($A72,PQS!$D$5:$AU$107,MATCH(PQS!$AI$3,PQS!$D$3:$AU$3,0),FALSE)),"") -> 
E73: =IFERROR(VLOOKUP($A73,PQS!$D$5:$AU$107,MATCH(PQS!$Q$3,PQS!$D$3:$AU$3,0),FALSE),"") ->  | F73: =IFERROR(VLOOKUP($A73,PQS!$D$5:$AU$107,MATCH(PQS!$AL$3,PQS!$D$3:$AU$3,0),FALSE),"") ->  | H73: =IFERROR(VLOOKUP($A73,PQS!$D$5:$AU$107,MATCH(PQS!$I$3,PQS!$D$3:$AU$3,0),FALSE),"") ->  | I73: =IFERROR(VLOOKUP($A73,PQS!$D$5:$AU$107,MATCH(PQS!$J$3,PQS!$D$3:$AU$3,0),FALSE),"") ->  | J73: =IFERROR(VLOOKUP($A73,PQS!$D$5:$AU$107,MATCH(PQS!$AK$3,PQS!$D$3:$AU$3,0),FALSE),"") ->  | K73: =IFERROR(VLOOKUP($A73,PQS!$D$5:$AU$107,COLUMN(PQS!$AA$5)-3,FALSE),"") ->  | L73: =IFERROR(VLOOKUP($A73,PQS!$D$5:$AU$107,MATCH(PQS!$H$3,PQS!$D$3:$AU$3,0),FALSE),"") ->  | M73: =IFERROR(VLOOKUP($A73,PQS!$D$5:$AU$107,MATCH(PQS!$AF$3,PQS!$D$3:$AU$3,0),FALSE),"") ->  | N73: =IFERROR(HYPERLINK(VLOOKUP($A73,PQS!$D$5:$AU$107,MATCH(PQS!$AJ$3,PQS!$D$3:$AU$3,0),FALSE),VLOOKUP($A73,PQS!$D$5:$AU$107,MATCH(PQS!$AI$3,PQS!$D$3:$AU$3,0),FALSE)),"") -> 
E74: =IFERROR(VLOOKUP($A74,PQS!$D$5:$AU$107,MATCH(PQS!$Q$3,PQS!$D$3:$AU$3,0),FALSE),"") ->  | F74: =IFERROR(VLOOKUP($A74,PQS!$D$5:$AU$107,MATCH(PQS!$AL$3,PQS!$D$3:$AU$3,0),FALSE),"") ->  | H74: =IFERROR(VLOOKUP($A74,PQS!$D$5:$AU$107,MATCH(PQS!$I$3,PQS!$D$3:$AU$3,0),FALSE),"") ->  | I74: =IFERROR(VLOOKUP($A74,PQS!$D$5:$AU$107,MATCH(PQS!$J$3,PQS!$D$3:$AU$3,0),FALSE),"") ->  | J74: =IFERROR(VLOOKUP($A74,PQS!$D$5:$AU$107,MATCH(PQS!$AK$3,PQS!$D$3:$AU$3,0),FALSE),"") ->  | K74: =IFERROR(VLOOKUP($A74,PQS!$D$5:$AU$107,COLUMN(PQS!$AA$5)-3,FALSE),"") ->  | L74: =IFERROR(VLOOKUP($A74,PQS!$D$5:$AU$107,MATCH(PQS!$H$3,PQS!$D$3:$AU$3,0),FALSE),"") ->  | M74: =IFERROR(VLOOKUP($A74,PQS!$D$5:$AU$107,MATCH(PQS!$AF$3,PQS!$D$3:$AU$3,0),FALSE),"") ->  | N74: =IFERROR(HYPERLINK(VLOOKUP($A74,PQS!$D$5:$AU$107,MATCH(PQS!$AJ$3,PQS!$D$3:$AU$3,0),FALSE),VLOOKUP($A74,PQS!$D$5:$AU$107,MATCH(PQS!$AI$3,PQS!$D$3:$AU$3,0),FALSE)),"") -> 
E75: =IFERROR(VLOOKUP($A75,PQS!$D$5:$AU$107,MATCH(PQS!$Q$3,PQS!$D$3:$AU$3,0),FALSE),"") ->  | F75: =IFERROR(VLOOKUP($A75,PQS!$D$5:$AU$107,MATCH(PQS!$AL$3,PQS!$D$3:$AU$3,0),FALSE),"") ->  | H75: =IFERROR(VLOOKUP($A75,PQS!$D$5:$AU$107,MATCH(PQS!$I$3,PQS!$D$3:$AU$3,0),FALSE),"") ->  | I75: =IFERROR(VLOOKUP($A75,PQS!$D$5:$AU$107,MATCH(PQS!$J$3,PQS!$D$3:$AU$3,0),FALSE),"") ->  | J75: =IFERROR(VLOOKUP($A75,PQS!$D$5:$AU$107,MATCH(PQS!$AK$3,PQS!$D$3:$AU$3,0),FALSE),"") ->  | K75: =IFERROR(VLOOKUP($A75,PQS!$D$5:$AU$107,COLUMN(PQS!$AA$5)-3,FALSE),"") ->  | L75: =IFERROR(VLOOKUP($A75,PQS!$D$5:$AU$107,MATCH(PQS!$H$3,PQS!$D$3:$AU$3,0),FALSE),"") ->  | M75: =IFERROR(VLOOKUP($A75,PQS!$D$5:$AU$107,MATCH(PQS!$AF$3,PQS!$D$3:$AU$3,0),FALSE),"") ->  | N75: =IFERROR(HYPERLINK(VLOOKUP($A75,PQS!$D$5:$AU$107,MATCH(PQS!$AJ$3,PQS!$D$3:$AU$3,0),FALSE),VLOOKUP($A75,PQS!$D$5:$AU$107,MATCH(PQS!$AI$3,PQS!$D$3:$AU$3,0),FALSE)),"") -> 
E76: =IFERROR(VLOOKUP($A76,PQS!$D$5:$AU$107,MATCH(PQS!$Q$3,PQS!$D$3:$AU$3,0),FALSE),"") ->  | F76: =IFERROR(VLOOKUP($A76,PQS!$D$5:$AU$107,MATCH(PQS!$AL$3,PQS!$D$3:$AU$3,0),FALSE),"") ->  | H76: =IFERROR(VLOOKUP($A76,PQS!$D$5:$AU$107,MATCH(PQS!$I$3,PQS!$D$3:$AU$3,0),FALSE),"") ->  | I76: =IFERROR(VLOOKUP($A76,PQS!$D$5:$AU$107,MATCH(PQS!$J$3,PQS!$D$3:$AU$3,0),FALSE),"") ->  | J76: =IFERROR(VLOOKUP($A76,PQS!$D$5:$AU$107,MATCH(PQS!$AK$3,PQS!$D$3:$AU$3,0),FALSE),"") ->  | K76: =IFERROR(VLOOKUP($A76,PQS!$D$5:$AU$107,COLUMN(PQS!$AA$5)-3,FALSE),"") ->  | L76: =IFERROR(VLOOKUP($A76,PQS!$D$5:$AU$107,MATCH(PQS!$H$3,PQS!$D$3:$AU$3,0),FALSE),"") ->  | M76: =IFERROR(VLOOKUP($A76,PQS!$D$5:$AU$107,MATCH(PQS!$AF$3,PQS!$D$3:$AU$3,0),FALSE),"") ->  | N76: =IFERROR(HYPERLINK(VLOOKUP($A76,PQS!$D$5:$AU$107,MATCH(PQS!$AJ$3,PQS!$D$3:$AU$3,0),FALSE),VLOOKUP($A76,PQS!$D$5:$AU$107,MATCH(PQS!$AI$3,PQS!$D$3:$AU$3,0),FALSE)),"") -> 
E77: =IFERROR(VLOOKUP($A77,PQS!$D$5:$AU$107,MATCH(PQS!$Q$3,PQS!$D$3:$AU$3,0),FALSE),"") ->  | F77: =IFERROR(VLOOKUP($A77,PQS!$D$5:$AU$107,MATCH(PQS!$AL$3,PQS!$D$3:$AU$3,0),FALSE),"") ->  | H77: =IFERROR(VLOOKUP($A77,PQS!$D$5:$AU$107,MATCH(PQS!$I$3,PQS!$D$3:$AU$3,0),FALSE),"") ->  | I77: =IFERROR(VLOOKUP($A77,PQS!$D$5:$AU$107,MATCH(PQS!$J$3,PQS!$D$3:$AU$3,0),FALSE),"") ->  | J77: =IFERROR(VLOOKUP($A77,PQS!$D$5:$AU$107,MATCH(PQS!$AK$3,PQS!$D$3:$AU$3,0),FALSE),"") ->  | K77: =IFERROR(VLOOKUP($A77,PQS!$D$5:$AU$107,COLUMN(PQS!$AA$5)-3,FALSE),"") ->  | L77: =IFERROR(VLOOKUP($A77,PQS!$D$5:$AU$107,MATCH(PQS!$H$3,PQS!$D$3:$AU$3,0),FALSE),"") ->  | M77: =IFERROR(VLOOKUP($A77,PQS!$D$5:$AU$107,MATCH(PQS!$AF$3,PQS!$D$3:$AU$3,0),FALSE),"") ->  | N77: =IFERROR(HYPERLINK(VLOOKUP($A77,PQS!$D$5:$AU$107,MATCH(PQS!$AJ$3,PQS!$D$3:$AU$3,0),FALSE),VLOOKUP($A77,PQS!$D$5:$AU$107,MATCH(PQS!$AI$3,PQS!$D$3:$AU$3,0),FALSE)),"") -> 
E78: =IFERROR(VLOOKUP($A78,PQS!$D$5:$AU$107,MATCH(PQS!$Q$3,PQS!$D$3:$AU$3,0),FALSE),"") ->  | F78: =IFERROR(VLOOKUP($A78,PQS!$D$5:$AU$107,MATCH(PQS!$AL$3,PQS!$D$3:$AU$3,0),FALSE),"") ->  | H78: =IFERROR(VLOOKUP($A78,PQS!$D$5:$AU$107,MATCH(PQS!$I$3,PQS!$D$3:$AU$3,0),FALSE),"") ->  | I78: =IFERROR(VLOOKUP($A78,PQS!$D$5:$AU$107,MATCH(PQS!$J$3,PQS!$D$3:$AU$3,0),FALSE),"") ->  | J78: =IFERROR(VLOOKUP($A78,PQS!$D$5:$AU$107,MATCH(PQS!$AK$3,PQS!$D$3:$AU$3,0),FALSE),"") ->  | K78: =IFERROR(VLOOKUP($A78,PQS!$D$5:$AU$107,COLUMN(PQS!$AA$5)-3,FALSE),"") ->  | L78: =IFERROR(VLOOKUP($A78,PQS!$D$5:$AU$107,MATCH(PQS!$H$3,PQS!$D$3:$AU$3,0),FALSE),"") ->  | M78: =IFERROR(VLOOKUP($A78,PQS!$D$5:$AU$107,MATCH(PQS!$AF$3,PQS!$D$3:$AU$3,0),FALSE),"") ->  | N78: =IFERROR(HYPERLINK(VLOOKUP($A78,PQS!$D$5:$AU$107,MATCH(PQS!$AJ$3,PQS!$D$3:$AU$3,0),FALSE),VLOOKUP($A78,PQS!$D$5:$AU$107,MATCH(PQS!$AI$3,PQS!$D$3:$AU$3,0),FALSE)),"") -> 
E79: =IFERROR(VLOOKUP($A79,PQS!$D$5:$AU$107,MATCH(PQS!$Q$3,PQS!$D$3:$AU$3,0),FALSE),"") ->  | F79: =IFERROR(VLOOKUP($A79,PQS!$D$5:$AU$107,MATCH(PQS!$AL$3,PQS!$D$3:$AU$3,0),FALSE),"") ->  | H79: =IFERROR(VLOOKUP($A79,PQS!$D$5:$AU$107,MATCH(PQS!$I$3,PQS!$D$3:$AU$3,0),FALSE),"") ->  | I79: =IFERROR(VLOOKUP($A79,PQS!$D$5:$AU$107,MATCH(PQS!$J$3,PQS!$D$3:$AU$3,0),FALSE),"") ->  | J79: =IFERROR(VLOOKUP($A79,PQS!$D$5:$AU$107,MATCH(PQS!$AK$3,PQS!$D$3:$AU$3,0),FALSE),"") ->  | K79: =IFERROR(VLOOKUP($A79,PQS!$D$5:$AU$107,COLUMN(PQS!$AA$5)-3,FALSE),"") ->  | L79: =IFERROR(VLOOKUP($A79,PQS!$D$5:$AU$107,MATCH(PQS!$H$3,PQS!$D$3:$AU$3,0),FALSE),"") ->  | M79: =IFERROR(VLOOKUP($A79,PQS!$D$5:$AU$107,MATCH(PQS!$AF$3,PQS!$D$3:$AU$3,0),FALSE),"") ->  | N79: =IFERROR(HYPERLINK(VLOOKUP($A79,PQS!$D$5:$AU$107,MATCH(PQS!$AJ$3,PQS!$D$3:$AU$3,0),FALSE),VLOOKUP($A79,PQS!$D$5:$AU$107,MATCH(PQS!$AI$3,PQS!$D$3:$AU$3,0),FALSE)),"") -> 
E80: =IFERROR(VLOOKUP($A80,PQS!$D$5:$AU$107,MATCH(PQS!$Q$3,PQS!$D$3:$AU$3,0),FALSE),"") ->  | F80: =IFERROR(VLOOKUP($A80,PQS!$D$5:$AU$107,MATCH(PQS!$AL$3,PQS!$D$3:$AU$3,0),FALSE),"") ->  | H80: =IFERROR(VLOOKUP($A80,PQS!$D$5:$AU$107,MATCH(PQS!$I$3,PQS!$D$3:$AU$3,0),FALSE),"") ->  | I80: =IFERROR(VLOOKUP($A80,PQS!$D$5:$AU$107,MATCH(PQS!$J$3,PQS!$D$3:$AU$3,0),FALSE),"") ->  | J80: =IFERROR(VLOOKUP($A80,PQS!$D$5:$AU$107,MATCH(PQS!$AK$3,PQS!$D$3:$AU$3,0),FALSE),"") ->  | K80: =IFERROR(VLOOKUP($A80,PQS!$D$5:$AU$107,COLUMN(PQS!$AA$5)-3,FALSE),"") ->  | L80: =IFERROR(VLOOKUP($A80,PQS!$D$5:$AU$107,MATCH(PQS!$H$3,PQS!$D$3:$AU$3,0),FALSE),"") ->  | M80: =IFERROR(VLOOKUP($A80,PQS!$D$5:$AU$107,MATCH(PQS!$AF$3,PQS!$D$3:$AU$3,0),FALSE),"") ->  | N80: =IFERROR(HYPERLINK(VLOOKUP($A80,PQS!$D$5:$AU$107,MATCH(PQS!$AJ$3,PQS!$D$3:$AU$3,0),FALSE),VLOOKUP($A80,PQS!$D$5:$AU$107,MATCH(PQS!$AI$3,PQS!$D$3:$AU$3,0),FALSE)),"") -> 
E81: =IFERROR(VLOOKUP($A81,PQS!$D$5:$AU$107,MATCH(PQS!$Q$3,PQS!$D$3:$AU$3,0),FALSE),"") ->  | F81: =IFERROR(VLOOKUP($A81,PQS!$D$5:$AU$107,MATCH(PQS!$AL$3,PQS!$D$3:$AU$3,0),FALSE),"") ->  | H81: =IFERROR(VLOOKUP($A81,PQS!$D$5:$AU$107,MATCH(PQS!$I$3,PQS!$D$3:$AU$3,0),FALSE),"") ->  | I81: =IFERROR(VLOOKUP($A81,PQS!$D$5:$AU$107,MATCH(PQS!$J$3,PQS!$D$3:$AU$3,0),FALSE),"") ->  | J81: =IFERROR(VLOOKUP($A81,PQS!$D$5:$AU$107,MATCH(PQS!$AK$3,PQS!$D$3:$AU$3,0),FALSE),"") ->  | K81: =IFERROR(VLOOKUP($A81,PQS!$D$5:$AU$107,COLUMN(PQS!$AA$5)-3,FALSE),"") ->  | L81: =IFERROR(VLOOKUP($A81,PQS!$D$5:$AU$107,MATCH(PQS!$H$3,PQS!$D$3:$AU$3,0),FALSE),"") ->  | M81: =IFERROR(VLOOKUP($A81,PQS!$D$5:$AU$107,MATCH(PQS!$AF$3,PQS!$D$3:$AU$3,0),FALSE),"") ->  | N81: =IFERROR(HYPERLINK(VLOOKUP($A81,PQS!$D$5:$AU$107,MATCH(PQS!$AJ$3,PQS!$D$3:$AU$3,0),FALSE),VLOOKUP($A81,PQS!$D$5:$AU$107,MATCH(PQS!$AI$3,PQS!$D$3:$AU$3,0),FALSE)),"") -> 
E82: =IFERROR(VLOOKUP($A82,PQS!$D$5:$AU$107,MATCH(PQS!$Q$3,PQS!$D$3:$AU$3,0),FALSE),"") ->  | F82: =IFERROR(VLOOKUP($A82,PQS!$D$5:$AU$107,MATCH(PQS!$AL$3,PQS!$D$3:$AU$3,0),FALSE),"") ->  | H82: =IFERROR(VLOOKUP($A82,PQS!$D$5:$AU$107,MATCH(PQS!$I$3,PQS!$D$3:$AU$3,0),FALSE),"") ->  | I82: =IFERROR(VLOOKUP($A82,PQS!$D$5:$AU$107,MATCH(PQS!$J$3,PQS!$D$3:$AU$3,0),FALSE),"") ->  | J82: =IFERROR(VLOOKUP($A82,PQS!$D$5:$AU$107,MATCH(PQS!$AK$3,PQS!$D$3:$AU$3,0),FALSE),"") ->  | K82: =IFERROR(VLOOKUP($A82,PQS!$D$5:$AU$107,COLUMN(PQS!$AA$5)-3,FALSE),"") ->  | L82: =IFERROR(VLOOKUP($A82,PQS!$D$5:$AU$107,MATCH(PQS!$H$3,PQS!$D$3:$AU$3,0),FALSE),"") ->  | M82: =IFERROR(VLOOKUP($A82,PQS!$D$5:$AU$107,MATCH(PQS!$AF$3,PQS!$D$3:$AU$3,0),FALSE),"") ->  | N82: =IFERROR(HYPERLINK(VLOOKUP($A82,PQS!$D$5:$AU$107,MATCH(PQS!$AJ$3,PQS!$D$3:$AU$3,0),FALSE),VLOOKUP($A82,PQS!$D$5:$AU$107,MATCH(PQS!$AI$3,PQS!$D$3:$AU$3,0),FALSE)),"") -> 
E83: =IFERROR(VLOOKUP($A83,PQS!$D$5:$AU$107,MATCH(PQS!$Q$3,PQS!$D$3:$AU$3,0),FALSE),"") ->  | F83: =IFERROR(VLOOKUP($A83,PQS!$D$5:$AU$107,MATCH(PQS!$AL$3,PQS!$D$3:$AU$3,0),FALSE),"") ->  | H83: =IFERROR(VLOOKUP($A83,PQS!$D$5:$AU$107,MATCH(PQS!$I$3,PQS!$D$3:$AU$3,0),FALSE),"") ->  | I83: =IFERROR(VLOOKUP($A83,PQS!$D$5:$AU$107,MATCH(PQS!$J$3,PQS!$D$3:$AU$3,0),FALSE),"") ->  | J83: =IFERROR(VLOOKUP($A83,PQS!$D$5:$AU$107,MATCH(PQS!$AK$3,PQS!$D$3:$AU$3,0),FALSE),"") ->  | K83: =IFERROR(VLOOKUP($A83,PQS!$D$5:$AU$107,COLUMN(PQS!$AA$5)-3,FALSE),"") ->  | L83: =IFERROR(VLOOKUP($A83,PQS!$D$5:$AU$107,MATCH(PQS!$H$3,PQS!$D$3:$AU$3,0),FALSE),"") ->  | M83: =IFERROR(VLOOKUP($A83,PQS!$D$5:$AU$107,MATCH(PQS!$AF$3,PQS!$D$3:$AU$3,0),FALSE),"") ->  | N83: =IFERROR(HYPERLINK(VLOOKUP($A83,PQS!$D$5:$AU$107,MATCH(PQS!$AJ$3,PQS!$D$3:$AU$3,0),FALSE),VLOOKUP($A83,PQS!$D$5:$AU$107,MATCH(PQS!$AI$3,PQS!$D$3:$AU$3,0),FALSE)),"") -> 
E84: =IFERROR(VLOOKUP($A84,PQS!$D$5:$AU$107,MATCH(PQS!$Q$3,PQS!$D$3:$AU$3,0),FALSE),"") ->  | F84: =IFERROR(VLOOKUP($A84,PQS!$D$5:$AU$107,MATCH(PQS!$AL$3,PQS!$D$3:$AU$3,0),FALSE),"") ->  | H84: =IFERROR(VLOOKUP($A84,PQS!$D$5:$AU$107,MATCH(PQS!$I$3,PQS!$D$3:$AU$3,0),FALSE),"") ->  | I84: =IFERROR(VLOOKUP($A84,PQS!$D$5:$AU$107,MATCH(PQS!$J$3,PQS!$D$3:$AU$3,0),FALSE),"") ->  | J84: =IFERROR(VLOOKUP($A84,PQS!$D$5:$AU$107,MATCH(PQS!$AK$3,PQS!$D$3:$AU$3,0),FALSE),"") ->  | K84: =IFERROR(VLOOKUP($A84,PQS!$D$5:$AU$107,COLUMN(PQS!$AA$5)-3,FALSE),"") ->  | L84: =IFERROR(VLOOKUP($A84,PQS!$D$5:$AU$107,MATCH(PQS!$H$3,PQS!$D$3:$AU$3,0),FALSE),"") ->  | M84: =IFERROR(VLOOKUP($A84,PQS!$D$5:$AU$107,MATCH(PQS!$AF$3,PQS!$D$3:$AU$3,0),FALSE),"") ->  | N84: =IFERROR(HYPERLINK(VLOOKUP($A84,PQS!$D$5:$AU$107,MATCH(PQS!$AJ$3,PQS!$D$3:$AU$3,0),FALSE),VLOOKUP($A84,PQS!$D$5:$AU$107,MATCH(PQS!$AI$3,PQS!$D$3:$AU$3,0),FALSE)),"") -> 
E85: =IFERROR(VLOOKUP($A85,PQS!$D$5:$AU$107,MATCH(PQS!$Q$3,PQS!$D$3:$AU$3,0),FALSE),"") ->  | F85: =IFERROR(VLOOKUP($A85,PQS!$D$5:$AU$107,MATCH(PQS!$AL$3,PQS!$D$3:$AU$3,0),FALSE),"") ->  | H85: =IFERROR(VLOOKUP($A85,PQS!$D$5:$AU$107,MATCH(PQS!$I$3,PQS!$D$3:$AU$3,0),FALSE),"") ->  | I85: =IFERROR(VLOOKUP($A85,PQS!$D$5:$AU$107,MATCH(PQS!$J$3,PQS!$D$3:$AU$3,0),FALSE),"") ->  | J85: =IFERROR(VLOOKUP($A85,PQS!$D$5:$AU$107,MATCH(PQS!$AK$3,PQS!$D$3:$AU$3,0),FALSE),"") ->  | K85: =IFERROR(VLOOKUP($A85,PQS!$D$5:$AU$107,COLUMN(PQS!$AA$5)-3,FALSE),"") ->  | L85: =IFERROR(VLOOKUP($A85,PQS!$D$5:$AU$107,MATCH(PQS!$H$3,PQS!$D$3:$AU$3,0),FALSE),"") ->  | M85: =IFERROR(VLOOKUP($A85,PQS!$D$5:$AU$107,MATCH(PQS!$AF$3,PQS!$D$3:$AU$3,0),FALSE),"") ->  | N85: =IFERROR(HYPERLINK(VLOOKUP($A85,PQS!$D$5:$AU$107,MATCH(PQS!$AJ$3,PQS!$D$3:$AU$3,0),FALSE),VLOOKUP($A85,PQS!$D$5:$AU$107,MATCH(PQS!$AI$3,PQS!$D$3:$AU$3,0),FALSE)),"") -> 
E86: =IFERROR(VLOOKUP($A86,PQS!$D$5:$AU$107,MATCH(PQS!$Q$3,PQS!$D$3:$AU$3,0),FALSE),"") ->  | F86: =IFERROR(VLOOKUP($A86,PQS!$D$5:$AU$107,MATCH(PQS!$AL$3,PQS!$D$3:$AU$3,0),FALSE),"") ->  | H86: =IFERROR(VLOOKUP($A86,PQS!$D$5:$AU$107,MATCH(PQS!$I$3,PQS!$D$3:$AU$3,0),FALSE),"") ->  | I86: =IFERROR(VLOOKUP($A86,PQS!$D$5:$AU$107,MATCH(PQS!$J$3,PQS!$D$3:$AU$3,0),FALSE),"") ->  | J86: =IFERROR(VLOOKUP($A86,PQS!$D$5:$AU$107,MATCH(PQS!$AK$3,PQS!$D$3:$AU$3,0),FALSE),"") ->  | K86: =IFERROR(VLOOKUP($A86,PQS!$D$5:$AU$107,COLUMN(PQS!$AA$5)-3,FALSE),"") ->  | L86: =IFERROR(VLOOKUP($A86,PQS!$D$5:$AU$107,MATCH(PQS!$H$3,PQS!$D$3:$AU$3,0),FALSE),"") ->  | M86: =IFERROR(VLOOKUP($A86,PQS!$D$5:$AU$107,MATCH(PQS!$AF$3,PQS!$D$3:$AU$3,0),FALSE),"") ->  | N86: =IFERROR(HYPERLINK(VLOOKUP($A86,PQS!$D$5:$AU$107,MATCH(PQS!$AJ$3,PQS!$D$3:$AU$3,0),FALSE),VLOOKUP($A86,PQS!$D$5:$AU$107,MATCH(PQS!$AI$3,PQS!$D$3:$AU$3,0),FALSE)),"") -> 
E87: =IFERROR(VLOOKUP($A87,PQS!$D$5:$AU$107,MATCH(PQS!$Q$3,PQS!$D$3:$AU$3,0),FALSE),"") ->  | F87: =IFERROR(VLOOKUP($A87,PQS!$D$5:$AU$107,MATCH(PQS!$AL$3,PQS!$D$3:$AU$3,0),FALSE),"") ->  | H87: =IFERROR(VLOOKUP($A87,PQS!$D$5:$AU$107,MATCH(PQS!$I$3,PQS!$D$3:$AU$3,0),FALSE),"") ->  | I87: =IFERROR(VLOOKUP($A87,PQS!$D$5:$AU$107,MATCH(PQS!$J$3,PQS!$D$3:$AU$3,0),FALSE),"") ->  | J87: =IFERROR(VLOOKUP($A87,PQS!$D$5:$AU$107,MATCH(PQS!$AK$3,PQS!$D$3:$AU$3,0),FALSE),"") ->  | K87: =IFERROR(VLOOKUP($A87,PQS!$D$5:$AU$107,COLUMN(PQS!$AA$5)-3,FALSE),"") ->  | L87: =IFERROR(VLOOKUP($A87,PQS!$D$5:$AU$107,MATCH(PQS!$H$3,PQS!$D$3:$AU$3,0),FALSE),"") ->  | M87: =IFERROR(VLOOKUP($A87,PQS!$D$5:$AU$107,MATCH(PQS!$AF$3,PQS!$D$3:$AU$3,0),FALSE),"") ->  | N87: =IFERROR(HYPERLINK(VLOOKUP($A87,PQS!$D$5:$AU$107,MATCH(PQS!$AJ$3,PQS!$D$3:$AU$3,0),FALSE),VLOOKUP($A87,PQS!$D$5:$AU$107,MATCH(PQS!$AI$3,PQS!$D$3:$AU$3,0),FALSE)),"") -> 
E88: =IFERROR(VLOOKUP($A88,PQS!$D$5:$AU$107,MATCH(PQS!$Q$3,PQS!$D$3:$AU$3,0),FALSE),"") ->  | F88: =IFERROR(VLOOKUP($A88,PQS!$D$5:$AU$107,MATCH(PQS!$AL$3,PQS!$D$3:$AU$3,0),FALSE),"") ->  | H88: =IFERROR(VLOOKUP($A88,PQS!$D$5:$AU$107,MATCH(PQS!$I$3,PQS!$D$3:$AU$3,0),FALSE),"") ->  | I88: =IFERROR(VLOOKUP($A88,PQS!$D$5:$AU$107,MATCH(PQS!$J$3,PQS!$D$3:$AU$3,0),FALSE),"") ->  | J88: =IFERROR(VLOOKUP($A88,PQS!$D$5:$AU$107,MATCH(PQS!$AK$3,PQS!$D$3:$AU$3,0),FALSE),"") ->  | K88: =IFERROR(VLOOKUP($A88,PQS!$D$5:$AU$107,COLUMN(PQS!$AA$5)-3,FALSE),"") ->  | L88: =IFERROR(VLOOKUP($A88,PQS!$D$5:$AU$107,MATCH(PQS!$H$3,PQS!$D$3:$AU$3,0),FALSE),"") ->  | M88: =IFERROR(VLOOKUP($A88,PQS!$D$5:$AU$107,MATCH(PQS!$AF$3,PQS!$D$3:$AU$3,0),FALSE),"") ->  | N88: =IFERROR(HYPERLINK(VLOOKUP($A88,PQS!$D$5:$AU$107,MATCH(PQS!$AJ$3,PQS!$D$3:$AU$3,0),FALSE),VLOOKUP($A88,PQS!$D$5:$AU$107,MATCH(PQS!$AI$3,PQS!$D$3:$AU$3,0),FALSE)),"") -> 
E89: =IFERROR(VLOOKUP($A89,PQS!$D$5:$AU$107,MATCH(PQS!$Q$3,PQS!$D$3:$AU$3,0),FALSE),"") ->  | F89: =IFERROR(VLOOKUP($A89,PQS!$D$5:$AU$107,MATCH(PQS!$AL$3,PQS!$D$3:$AU$3,0),FALSE),"") ->  | H89: =IFERROR(VLOOKUP($A89,PQS!$D$5:$AU$107,MATCH(PQS!$I$3,PQS!$D$3:$AU$3,0),FALSE),"") ->  | I89: =IFERROR(VLOOKUP($A89,PQS!$D$5:$AU$107,MATCH(PQS!$J$3,PQS!$D$3:$AU$3,0),FALSE),"") ->  | J89: =IFERROR(VLOOKUP($A89,PQS!$D$5:$AU$107,MATCH(PQS!$AK$3,PQS!$D$3:$AU$3,0),FALSE),"") ->  | K89: =IFERROR(VLOOKUP($A89,PQS!$D$5:$AU$107,COLUMN(PQS!$AA$5)-3,FALSE),"") ->  | L89: =IFERROR(VLOOKUP($A89,PQS!$D$5:$AU$107,MATCH(PQS!$H$3,PQS!$D$3:$AU$3,0),FALSE),"") ->  | M89: =IFERROR(VLOOKUP($A89,PQS!$D$5:$AU$107,MATCH(PQS!$AF$3,PQS!$D$3:$AU$3,0),FALSE),"") ->  | N89: =IFERROR(HYPERLINK(VLOOKUP($A89,PQS!$D$5:$AU$107,MATCH(PQS!$AJ$3,PQS!$D$3:$AU$3,0),FALSE),VLOOKUP($A89,PQS!$D$5:$AU$107,MATCH(PQS!$AI$3,PQS!$D$3:$AU$3,0),FALSE)),"") -> 
E90: =IFERROR(VLOOKUP($A90,PQS!$D$5:$AU$107,MATCH(PQS!$Q$3,PQS!$D$3:$AU$3,0),FALSE),"") ->  | F90: =IFERROR(VLOOKUP($A90,PQS!$D$5:$AU$107,MATCH(PQS!$AL$3,PQS!$D$3:$AU$3,0),FALSE),"") ->  | G90: =IF(E90="","",(B90/C90)) ->  | H90: =IFERROR(VLOOKUP($A90,PQS!$D$5:$AU$107,MATCH(PQS!$I$3,PQS!$D$3:$AU$3,0),FALSE),"") ->  | I90: =IFERROR(VLOOKUP($A90,PQS!$D$5:$AU$107,MATCH(PQS!$J$3,PQS!$D$3:$AU$3,0),FALSE),"") ->  | J90: =IFERROR(VLOOKUP($A90,PQS!$D$5:$AU$107,MATCH(PQS!$AK$3,PQS!$D$3:$AU$3,0),FALSE),"") ->  | K90: =IFERROR(VLOOKUP($A90,PQS!$D$5:$AU$107,COLUMN(PQS!$AA$5)-3,FALSE),"") ->  | L90: =IFERROR(VLOOKUP($A90,PQS!$D$5:$AU$107,MATCH(PQS!$H$3,PQS!$D$3:$AU$3,0),FALSE),"") ->  | M90: =IFERROR(VLOOKUP($A90,PQS!$D$5:$AU$107,MATCH(PQS!$AF$3,PQS!$D$3:$AU$3,0),FALSE),"") ->  | N90: =IFERROR(HYPERLINK(VLOOKUP($A90,PQS!$D$5:$AU$107,MATCH(PQS!$AJ$3,PQS!$D$3:$AU$3,0),FALSE),VLOOKUP($A90,PQS!$D$5:$AU$107,MATCH(PQS!$AI$3,PQS!$D$3:$AU$3,0),FALSE)),"") -> 
E91: =IFERROR(VLOOKUP($A91,PQS!$D$5:$AU$107,MATCH(PQS!$Q$3,PQS!$D$3:$AU$3,0),FALSE),"") ->  | F91: =IFERROR(VLOOKUP($A91,PQS!$D$5:$AU$107,MATCH(PQS!$AL$3,PQS!$D$3:$AU$3,0),FALSE),"") ->  | H91: =IFERROR(VLOOKUP($A91,PQS!$D$5:$AU$107,MATCH(PQS!$I$3,PQS!$D$3:$AU$3,0),FALSE),"") ->  | I91: =IFERROR(VLOOKUP($A91,PQS!$D$5:$AU$107,MATCH(PQS!$J$3,PQS!$D$3:$AU$3,0),FALSE),"") ->  | J91: =IFERROR(VLOOKUP($A91,PQS!$D$5:$AU$107,MATCH(PQS!$AK$3,PQS!$D$3:$AU$3,0),FALSE),"") ->  | K91: =IFERROR(VLOOKUP($A91,PQS!$D$5:$AU$107,COLUMN(PQS!$AA$5)-3,FALSE),"") ->  | L91: =IFERROR(VLOOKUP($A91,PQS!$D$5:$AU$107,MATCH(PQS!$H$3,PQS!$D$3:$AU$3,0),FALSE),"") ->  | M91: =IFERROR(VLOOKUP($A91,PQS!$D$5:$AU$107,MATCH(PQS!$AF$3,PQS!$D$3:$AU$3,0),FALSE),"") ->  | N91: =IFERROR(HYPERLINK(VLOOKUP($A91,PQS!$D$5:$AU$107,MATCH(PQS!$AJ$3,PQS!$D$3:$AU$3,0),FALSE),VLOOKUP($A91,PQS!$D$5:$AU$107,MATCH(PQS!$AI$3,PQS!$D$3:$AU$3,0),FALSE)),"") -> 
E92: =IFERROR(VLOOKUP($A92,PQS!$D$5:$AU$107,MATCH(PQS!$Q$3,PQS!$D$3:$AU$3,0),FALSE),"") ->  | F92: =IFERROR(VLOOKUP($A92,PQS!$D$5:$AU$107,MATCH(PQS!$AL$3,PQS!$D$3:$AU$3,0),FALSE),"") ->  | H92: =IFERROR(VLOOKUP($A92,PQS!$D$5:$AU$107,MATCH(PQS!$I$3,PQS!$D$3:$AU$3,0),FALSE),"") ->  | I92: =IFERROR(VLOOKUP($A92,PQS!$D$5:$AU$107,MATCH(PQS!$J$3,PQS!$D$3:$AU$3,0),FALSE),"") ->  | J92: =IFERROR(VLOOKUP($A92,PQS!$D$5:$AU$107,MATCH(PQS!$AK$3,PQS!$D$3:$AU$3,0),FALSE),"") ->  | K92: =IFERROR(VLOOKUP($A92,PQS!$D$5:$AU$107,COLUMN(PQS!$AA$5)-3,FALSE),"") ->  | L92: =IFERROR(VLOOKUP($A92,PQS!$D$5:$AU$107,MATCH(PQS!$H$3,PQS!$D$3:$AU$3,0),FALSE),"") ->  | M92: =IFERROR(VLOOKUP($A92,PQS!$D$5:$AU$107,MATCH(PQS!$AF$3,PQS!$D$3:$AU$3,0),FALSE),"") ->  | N92: =IFERROR(HYPERLINK(VLOOKUP($A92,PQS!$D$5:$AU$107,MATCH(PQS!$AJ$3,PQS!$D$3:$AU$3,0),FALSE),VLOOKUP($A92,PQS!$D$5:$AU$107,MATCH(PQS!$AI$3,PQS!$D$3:$AU$3,0),FALSE)),"") -> 
E93: =IFERROR(VLOOKUP($A93,PQS!$D$5:$AU$107,MATCH(PQS!$Q$3,PQS!$D$3:$AU$3,0),FALSE),"") ->  | F93: =IFERROR(VLOOKUP($A93,PQS!$D$5:$AU$107,MATCH(PQS!$AL$3,PQS!$D$3:$AU$3,0),FALSE),"") ->  | H93: =IFERROR(VLOOKUP($A93,PQS!$D$5:$AU$107,MATCH(PQS!$I$3,PQS!$D$3:$AU$3,0),FALSE),"") ->  | I93: =IFERROR(VLOOKUP($A93,PQS!$D$5:$AU$107,MATCH(PQS!$J$3,PQS!$D$3:$AU$3,0),FALSE),"") ->  | J93: =IFERROR(VLOOKUP($A93,PQS!$D$5:$AU$107,MATCH(PQS!$AK$3,PQS!$D$3:$AU$3,0),FALSE),"") ->  | K93: =IFERROR(VLOOKUP($A93,PQS!$D$5:$AU$107,COLUMN(PQS!$AA$5)-3,FALSE),"") ->  | L93: =IFERROR(VLOOKUP($A93,PQS!$D$5:$AU$107,MATCH(PQS!$H$3,PQS!$D$3:$AU$3,0),FALSE),"") ->  | M93: =IFERROR(VLOOKUP($A93,PQS!$D$5:$AU$107,MATCH(PQS!$AF$3,PQS!$D$3:$AU$3,0),FALSE),"") ->  | N93: =IFERROR(HYPERLINK(VLOOKUP($A93,PQS!$D$5:$AU$107,MATCH(PQS!$AJ$3,PQS!$D$3:$AU$3,0),FALSE),VLOOKUP($A93,PQS!$D$5:$AU$107,MATCH(PQS!$AI$3,PQS!$D$3:$AU$3,0),FALSE)),"") -> 
E94: =IFERROR(VLOOKUP($A94,PQS!$D$5:$AU$107,MATCH(PQS!$Q$3,PQS!$D$3:$AU$3,0),FALSE),"") ->  | F94: =IFERROR(VLOOKUP($A94,PQS!$D$5:$AU$107,MATCH(PQS!$AL$3,PQS!$D$3:$AU$3,0),FALSE),"") ->  | H94: =IFERROR(VLOOKUP($A94,PQS!$D$5:$AU$107,MATCH(PQS!$I$3,PQS!$D$3:$AU$3,0),FALSE),"") ->  | I94: =IFERROR(VLOOKUP($A94,PQS!$D$5:$AU$107,MATCH(PQS!$J$3,PQS!$D$3:$AU$3,0),FALSE),"") ->  | J94: =IFERROR(VLOOKUP($A94,PQS!$D$5:$AU$107,MATCH(PQS!$AK$3,PQS!$D$3:$AU$3,0),FALSE),"") ->  | K94: =IFERROR(VLOOKUP($A94,PQS!$D$5:$AU$107,COLUMN(PQS!$AA$5)-3,FALSE),"") ->  | L94: =IFERROR(VLOOKUP($A94,PQS!$D$5:$AU$107,MATCH(PQS!$H$3,PQS!$D$3:$AU$3,0),FALSE),"") ->  | M94: =IFERROR(VLOOKUP($A94,PQS!$D$5:$AU$107,MATCH(PQS!$AF$3,PQS!$D$3:$AU$3,0),FALSE),"") ->  | N94: =IFERROR(HYPERLINK(VLOOKUP($A94,PQS!$D$5:$AU$107,MATCH(PQS!$AJ$3,PQS!$D$3:$AU$3,0),FALSE),VLOOKUP($A94,PQS!$D$5:$AU$107,MATCH(PQS!$AI$3,PQS!$D$3:$AU$3,0),FALSE)),"") -> 
E95: =IFERROR(VLOOKUP($A95,PQS!$D$5:$AU$107,MATCH(PQS!$Q$3,PQS!$D$3:$AU$3,0),FALSE),"") ->  | F95: =IFERROR(VLOOKUP($A95,PQS!$D$5:$AU$107,MATCH(PQS!$AL$3,PQS!$D$3:$AU$3,0),FALSE),"") ->  | H95: =IFERROR(VLOOKUP($A95,PQS!$D$5:$AU$107,MATCH(PQS!$I$3,PQS!$D$3:$AU$3,0),FALSE),"") ->  | I95: =IFERROR(VLOOKUP($A95,PQS!$D$5:$AU$107,MATCH(PQS!$J$3,PQS!$D$3:$AU$3,0),FALSE),"") ->  | J95: =IFERROR(VLOOKUP($A95,PQS!$D$5:$AU$107,MATCH(PQS!$AK$3,PQS!$D$3:$AU$3,0),FALSE),"") ->  | K95: =IFERROR(VLOOKUP($A95,PQS!$D$5:$AU$107,COLUMN(PQS!$AA$5)-3,FALSE),"") ->  | L95: =IFERROR(VLOOKUP($A95,PQS!$D$5:$AU$107,MATCH(PQS!$H$3,PQS!$D$3:$AU$3,0),FALSE),"") ->  | M95: =IFERROR(VLOOKUP($A95,PQS!$D$5:$AU$107,MATCH(PQS!$AF$3,PQS!$D$3:$AU$3,0),FALSE),"") ->  | N95: =IFERROR(HYPERLINK(VLOOKUP($A95,PQS!$D$5:$AU$107,MATCH(PQS!$AJ$3,PQS!$D$3:$AU$3,0),FALSE),VLOOKUP($A95,PQS!$D$5:$AU$107,MATCH(PQS!$AI$3,PQS!$D$3:$AU$3,0),FALSE)),"") -> 
E96: =IFERROR(VLOOKUP($A96,PQS!$D$5:$AU$107,MATCH(PQS!$Q$3,PQS!$D$3:$AU$3,0),FALSE),"") ->  | F96: =IFERROR(VLOOKUP($A96,PQS!$D$5:$AU$107,MATCH(PQS!$AL$3,PQS!$D$3:$AU$3,0),FALSE),"") ->  | H96: =IFERROR(VLOOKUP($A96,PQS!$D$5:$AU$107,MATCH(PQS!$I$3,PQS!$D$3:$AU$3,0),FALSE),"") ->  | I96: =IFERROR(VLOOKUP($A96,PQS!$D$5:$AU$107,MATCH(PQS!$J$3,PQS!$D$3:$AU$3,0),FALSE),"") ->  | J96: =IFERROR(VLOOKUP($A96,PQS!$D$5:$AU$107,MATCH(PQS!$AK$3,PQS!$D$3:$AU$3,0),FALSE),"") ->  | K96: =IFERROR(VLOOKUP($A96,PQS!$D$5:$AU$107,COLUMN(PQS!$AA$5)-3,FALSE),"") ->  | L96: =IFERROR(VLOOKUP($A96,PQS!$D$5:$AU$107,MATCH(PQS!$H$3,PQS!$D$3:$AU$3,0),FALSE),"") ->  | M96: =IFERROR(VLOOKUP($A96,PQS!$D$5:$AU$107,MATCH(PQS!$AF$3,PQS!$D$3:$AU$3,0),FALSE),"") ->  | N96: =IFERROR(HYPERLINK(VLOOKUP($A96,PQS!$D$5:$AU$107,MATCH(PQS!$AJ$3,PQS!$D$3:$AU$3,0),FALSE),VLOOKUP($A96,PQS!$D$5:$AU$107,MATCH(PQS!$AI$3,PQS!$D$3:$AU$3,0),FALSE)),"") -> 
E97: =IFERROR(VLOOKUP($A97,PQS!$D$5:$AU$107,MATCH(PQS!$Q$3,PQS!$D$3:$AU$3,0),FALSE),"") ->  | F97: =IFERROR(VLOOKUP($A97,PQS!$D$5:$AU$107,MATCH(PQS!$AL$3,PQS!$D$3:$AU$3,0),FALSE),"") ->  | H97: =IFERROR(VLOOKUP($A97,PQS!$D$5:$AU$107,MATCH(PQS!$I$3,PQS!$D$3:$AU$3,0),FALSE),"") ->  | I97: =IFERROR(VLOOKUP($A97,PQS!$D$5:$AU$107,MATCH(PQS!$J$3,PQS!$D$3:$AU$3,0),FALSE),"") ->  | J97: =IFERROR(VLOOKUP($A97,PQS!$D$5:$AU$107,MATCH(PQS!$AK$3,PQS!$D$3:$AU$3,0),FALSE),"") ->  | K97: =IFERROR(VLOOKUP($A97,PQS!$D$5:$AU$107,COLUMN(PQS!$AA$5)-3,FALSE),"") ->  | L97: =IFERROR(VLOOKUP($A97,PQS!$D$5:$AU$107,MATCH(PQS!$H$3,PQS!$D$3:$AU$3,0),FALSE),"") ->  | M97: =IFERROR(VLOOKUP($A97,PQS!$D$5:$AU$107,MATCH(PQS!$AF$3,PQS!$D$3:$AU$3,0),FALSE),"") ->  | N97: =IFERROR(HYPERLINK(VLOOKUP($A97,PQS!$D$5:$AU$107,MATCH(PQS!$AJ$3,PQS!$D$3:$AU$3,0),FALSE),VLOOKUP($A97,PQS!$D$5:$AU$107,MATCH(PQS!$AI$3,PQS!$D$3:$AU$3,0),FALSE)),"") -> 
E98: =IFERROR(VLOOKUP($A98,PQS!$D$5:$AU$107,MATCH(PQS!$Q$3,PQS!$D$3:$AU$3,0),FALSE),"") ->  | F98: =IFERROR(VLOOKUP($A98,PQS!$D$5:$AU$107,MATCH(PQS!$AL$3,PQS!$D$3:$AU$3,0),FALSE),"") ->  | H98: =IFERROR(VLOOKUP($A98,PQS!$D$5:$AU$107,MATCH(PQS!$I$3,PQS!$D$3:$AU$3,0),FALSE),"") ->  | I98: =IFERROR(VLOOKUP($A98,PQS!$D$5:$AU$107,MATCH(PQS!$J$3,PQS!$D$3:$AU$3,0),FALSE),"") ->  | J98: =IFERROR(VLOOKUP($A98,PQS!$D$5:$AU$107,MATCH(PQS!$AK$3,PQS!$D$3:$AU$3,0),FALSE),"") ->  | K98: =IFERROR(VLOOKUP($A98,PQS!$D$5:$AU$107,COLUMN(PQS!$AA$5)-3,FALSE),"") ->  | L98: =IFERROR(VLOOKUP($A98,PQS!$D$5:$AU$107,MATCH(PQS!$H$3,PQS!$D$3:$AU$3,0),FALSE),"") ->  | M98: =IFERROR(VLOOKUP($A98,PQS!$D$5:$AU$107,MATCH(PQS!$AF$3,PQS!$D$3:$AU$3,0),FALSE),"") ->  | N98: =IFERROR(HYPERLINK(VLOOKUP($A98,PQS!$D$5:$AU$107,MATCH(PQS!$AJ$3,PQS!$D$3:$AU$3,0),FALSE),VLOOKUP($A98,PQS!$D$5:$AU$107,MATCH(PQS!$AI$3,PQS!$D$3:$AU$3,0),FALSE)),"") -> 
E99: =IFERROR(VLOOKUP($A99,PQS!$D$5:$AU$107,MATCH(PQS!$Q$3,PQS!$D$3:$AU$3,0),FALSE),"") ->  | F99: =IFERROR(VLOOKUP($A99,PQS!$D$5:$AU$107,MATCH(PQS!$AL$3,PQS!$D$3:$AU$3,0),FALSE),"") ->  | H99: =IFERROR(VLOOKUP($A99,PQS!$D$5:$AU$107,MATCH(PQS!$I$3,PQS!$D$3:$AU$3,0),FALSE),"") ->  | I99: =IFERROR(VLOOKUP($A99,PQS!$D$5:$AU$107,MATCH(PQS!$J$3,PQS!$D$3:$AU$3,0),FALSE),"") ->  | J99: =IFERROR(VLOOKUP($A99,PQS!$D$5:$AU$107,MATCH(PQS!$AK$3,PQS!$D$3:$AU$3,0),FALSE),"") ->  | K99: =IFERROR(VLOOKUP($A99,PQS!$D$5:$AU$107,COLUMN(PQS!$AA$5)-3,FALSE),"") ->  | L99: =IFERROR(VLOOKUP($A99,PQS!$D$5:$AU$107,MATCH(PQS!$H$3,PQS!$D$3:$AU$3,0),FALSE),"") ->  | M99: =IFERROR(VLOOKUP($A99,PQS!$D$5:$AU$107,MATCH(PQS!$AF$3,PQS!$D$3:$AU$3,0),FALSE),"") ->  | N99: =IFERROR(HYPERLINK(VLOOKUP($A99,PQS!$D$5:$AU$107,MATCH(PQS!$AJ$3,PQS!$D$3:$AU$3,0),FALSE),VLOOKUP($A99,PQS!$D$5:$AU$107,MATCH(PQS!$AI$3,PQS!$D$3:$AU$3,0),FALSE)),"") -> 
E100: =IFERROR(VLOOKUP($A100,PQS!$D$5:$AU$107,MATCH(PQS!$Q$3,PQS!$D$3:$AU$3,0),FALSE),"") ->  | F100: =IFERROR(VLOOKUP($A100,PQS!$D$5:$AU$107,MATCH(PQS!$AL$3,PQS!$D$3:$AU$3,0),FALSE),"") ->  | H100: =IFERROR(VLOOKUP($A100,PQS!$D$5:$AU$107,MATCH(PQS!$I$3,PQS!$D$3:$AU$3,0),FALSE),"") ->  | I100: =IFERROR(VLOOKUP($A100,PQS!$D$5:$AU$107,MATCH(PQS!$J$3,PQS!$D$3:$AU$3,0),FALSE),"") ->  | J100: =IFERROR(VLOOKUP($A100,PQS!$D$5:$AU$107,MATCH(PQS!$AK$3,PQS!$D$3:$AU$3,0),FALSE),"") ->  | K100: =IFERROR(VLOOKUP($A100,PQS!$D$5:$AU$107,COLUMN(PQS!$AA$5)-3,FALSE),"") ->  | L100: =IFERROR(VLOOKUP($A100,PQS!$D$5:$AU$107,MATCH(PQS!$H$3,PQS!$D$3:$AU$3,0),FALSE),"") ->  | M100: =IFERROR(VLOOKUP($A100,PQS!$D$5:$AU$107,MATCH(PQS!$AF$3,PQS!$D$3:$AU$3,0),FALSE),"") ->  | N100: =IFERROR(HYPERLINK(VLOOKUP($A100,PQS!$D$5:$AU$107,MATCH(PQS!$AJ$3,PQS!$D$3:$AU$3,0),FALSE),VLOOKUP($A100,PQS!$D$5:$AU$107,MATCH(PQS!$AI$3,PQS!$D$3:$AU$3,0),FALSE)),"") -> 
E101: =IFERROR(VLOOKUP($A101,PQS!$D$5:$AU$107,MATCH(PQS!$Q$3,PQS!$D$3:$AU$3,0),FALSE),"") ->  | F101: =IFERROR(VLOOKUP($A101,PQS!$D$5:$AU$107,MATCH(PQS!$AL$3,PQS!$D$3:$AU$3,0),FALSE),"") ->  | H101: =IFERROR(VLOOKUP($A101,PQS!$D$5:$AU$107,MATCH(PQS!$I$3,PQS!$D$3:$AU$3,0),FALSE),"") ->  | I101: =IFERROR(VLOOKUP($A101,PQS!$D$5:$AU$107,MATCH(PQS!$J$3,PQS!$D$3:$AU$3,0),FALSE),"") ->  | J101: =IFERROR(VLOOKUP($A101,PQS!$D$5:$AU$107,MATCH(PQS!$AK$3,PQS!$D$3:$AU$3,0),FALSE),"") ->  | K101: =IFERROR(VLOOKUP($A101,PQS!$D$5:$AU$107,COLUMN(PQS!$AA$5)-3,FALSE),"") ->  | L101: =IFERROR(VLOOKUP($A101,PQS!$D$5:$AU$107,MATCH(PQS!$H$3,PQS!$D$3:$AU$3,0),FALSE),"") ->  | M101: =IFERROR(VLOOKUP($A101,PQS!$D$5:$AU$107,MATCH(PQS!$AF$3,PQS!$D$3:$AU$3,0),FALSE),"") ->  | N101: =IFERROR(HYPERLINK(VLOOKUP($A101,PQS!$D$5:$AU$107,MATCH(PQS!$AJ$3,PQS!$D$3:$AU$3,0),FALSE),VLOOKUP($A101,PQS!$D$5:$AU$107,MATCH(PQS!$AI$3,PQS!$D$3:$AU$3,0),FALSE)),"") -> 
E102: =IFERROR(VLOOKUP($A102,PQS!$D$5:$AU$107,MATCH(PQS!$Q$3,PQS!$D$3:$AU$3,0),FALSE),"") ->  | F102: =IFERROR(VLOOKUP($A102,PQS!$D$5:$AU$107,MATCH(PQS!$AL$3,PQS!$D$3:$AU$3,0),FALSE),"") ->  | H102: =IFERROR(VLOOKUP($A102,PQS!$D$5:$AU$107,MATCH(PQS!$I$3,PQS!$D$3:$AU$3,0),FALSE),"") ->  | I102: =IFERROR(VLOOKUP($A102,PQS!$D$5:$AU$107,MATCH(PQS!$J$3,PQS!$D$3:$AU$3,0),FALSE),"") ->  | J102: =IFERROR(VLOOKUP($A102,PQS!$D$5:$AU$107,MATCH(PQS!$AK$3,PQS!$D$3:$AU$3,0),FALSE),"") ->  | K102: =IFERROR(VLOOKUP($A102,PQS!$D$5:$AU$107,COLUMN(PQS!$AA$5)-3,FALSE),"") ->  | L102: =IFERROR(VLOOKUP($A102,PQS!$D$5:$AU$107,MATCH(PQS!$H$3,PQS!$D$3:$AU$3,0),FALSE),"") ->  | M102: =IFERROR(VLOOKUP($A102,PQS!$D$5:$AU$107,MATCH(PQS!$AF$3,PQS!$D$3:$AU$3,0),FALSE),"") ->  | N102: =IFERROR(HYPERLINK(VLOOKUP($A102,PQS!$D$5:$AU$107,MATCH(PQS!$AJ$3,PQS!$D$3:$AU$3,0),FALSE),VLOOKUP($A102,PQS!$D$5:$AU$107,MATCH(PQS!$AI$3,PQS!$D$3:$AU$3,0),FALSE)),"") -> 
E103: =IFERROR(VLOOKUP($A103,PQS!$D$5:$AU$107,MATCH(PQS!$Q$3,PQS!$D$3:$AU$3,0),FALSE),"") ->  | F103: =IFERROR(VLOOKUP($A103,PQS!$D$5:$AU$107,MATCH(PQS!$AL$3,PQS!$D$3:$AU$3,0),FALSE),"") ->  | H103: =IFERROR(VLOOKUP($A103,PQS!$D$5:$AU$107,MATCH(PQS!$I$3,PQS!$D$3:$AU$3,0),FALSE),"") ->  | I103: =IFERROR(VLOOKUP($A103,PQS!$D$5:$AU$107,MATCH(PQS!$J$3,PQS!$D$3:$AU$3,0),FALSE),"") ->  | J103: =IFERROR(VLOOKUP($A103,PQS!$D$5:$AU$107,MATCH(PQS!$AK$3,PQS!$D$3:$AU$3,0),FALSE),"") ->  | K103: =IFERROR(VLOOKUP($A103,PQS!$D$5:$AU$107,COLUMN(PQS!$AA$5)-3,FALSE),"") ->  | L103: =IFERROR(VLOOKUP($A103,PQS!$D$5:$AU$107,MATCH(PQS!$H$3,PQS!$D$3:$AU$3,0),FALSE),"") ->  | M103: =IFERROR(VLOOKUP($A103,PQS!$D$5:$AU$107,MATCH(PQS!$AF$3,PQS!$D$3:$AU$3,0),FALSE),"") ->  | N103: =IFERROR(HYPERLINK(VLOOKUP($A103,PQS!$D$5:$AU$107,MATCH(PQS!$AJ$3,PQS!$D$3:$AU$3,0),FALSE),VLOOKUP($A103,PQS!$D$5:$AU$107,MATCH(PQS!$AI$3,PQS!$D$3:$AU$3,0),FALSE)),"") -> 
E104: =IFERROR(VLOOKUP($A104,PQS!$D$5:$AU$107,MATCH(PQS!$Q$3,PQS!$D$3:$AU$3,0),FALSE),"") ->  | F104: =IFERROR(VLOOKUP($A104,PQS!$D$5:$AU$107,MATCH(PQS!$AL$3,PQS!$D$3:$AU$3,0),FALSE),"") ->  | H104: =IFERROR(VLOOKUP($A104,PQS!$D$5:$AU$107,MATCH(PQS!$I$3,PQS!$D$3:$AU$3,0),FALSE),"") ->  | I104: =IFERROR(VLOOKUP($A104,PQS!$D$5:$AU$107,MATCH(PQS!$J$3,PQS!$D$3:$AU$3,0),FALSE),"") ->  | J104: =IFERROR(VLOOKUP($A104,PQS!$D$5:$AU$107,MATCH(PQS!$AK$3,PQS!$D$3:$AU$3,0),FALSE),"") ->  | K104: =IFERROR(VLOOKUP($A104,PQS!$D$5:$AU$107,COLUMN(PQS!$AA$5)-3,FALSE),"") ->  | L104: =IFERROR(VLOOKUP($A104,PQS!$D$5:$AU$107,MATCH(PQS!$H$3,PQS!$D$3:$AU$3,0),FALSE),"") ->  | M104: =IFERROR(VLOOKUP($A104,PQS!$D$5:$AU$107,MATCH(PQS!$AF$3,PQS!$D$3:$AU$3,0),FALSE),"") ->  | N104: =IFERROR(HYPERLINK(VLOOKUP($A104,PQS!$D$5:$AU$107,MATCH(PQS!$AJ$3,PQS!$D$3:$AU$3,0),FALSE),VLOOKUP($A104,PQS!$D$5:$AU$107,MATCH(PQS!$AI$3,PQS!$D$3:$AU$3,0),FALSE)),"") -> 
E105: =IFERROR(VLOOKUP($A105,PQS!$D$5:$AU$107,MATCH(PQS!$Q$3,PQS!$D$3:$AU$3,0),FALSE),"") ->  | F105: =IFERROR(VLOOKUP($A105,PQS!$D$5:$AU$107,MATCH(PQS!$AL$3,PQS!$D$3:$AU$3,0),FALSE),"") ->  | H105: =IFERROR(VLOOKUP($A105,PQS!$D$5:$AU$107,MATCH(PQS!$I$3,PQS!$D$3:$AU$3,0),FALSE),"") ->  | I105: =IFERROR(VLOOKUP($A105,PQS!$D$5:$AU$107,MATCH(PQS!$J$3,PQS!$D$3:$AU$3,0),FALSE),"") ->  | J105: =IFERROR(VLOOKUP($A105,PQS!$D$5:$AU$107,MATCH(PQS!$AK$3,PQS!$D$3:$AU$3,0),FALSE),"") ->  | K105: =IFERROR(VLOOKUP($A105,PQS!$D$5:$AU$107,COLUMN(PQS!$AA$5)-3,FALSE),"") ->  | L105: =IFERROR(VLOOKUP($A105,PQS!$D$5:$AU$107,MATCH(PQS!$H$3,PQS!$D$3:$AU$3,0),FALSE),"") ->  | M105: =IFERROR(VLOOKUP($A105,PQS!$D$5:$AU$107,MATCH(PQS!$AF$3,PQS!$D$3:$AU$3,0),FALSE),"") ->  | N105: =IFERROR(HYPERLINK(VLOOKUP($A105,PQS!$D$5:$AU$107,MATCH(PQS!$AJ$3,PQS!$D$3:$AU$3,0),FALSE),VLOOKUP($A105,PQS!$D$5:$AU$107,MATCH(PQS!$AI$3,PQS!$D$3:$AU$3,0),FALSE)),"") -> 
E106: =IFERROR(VLOOKUP($A106,PQS!$D$5:$AU$107,MATCH(PQS!$Q$3,PQS!$D$3:$AU$3,0),FALSE),"") ->  | F106: =IFERROR(VLOOKUP($A106,PQS!$D$5:$AU$107,MATCH(PQS!$AL$3,PQS!$D$3:$AU$3,0),FALSE),"") ->  | H106: =IFERROR(VLOOKUP($A106,PQS!$D$5:$AU$107,MATCH(PQS!$I$3,PQS!$D$3:$AU$3,0),FALSE),"") ->  | I106: =IFERROR(VLOOKUP($A106,PQS!$D$5:$AU$107,MATCH(PQS!$J$3,PQS!$D$3:$AU$3,0),FALSE),"") ->  | J106: =IFERROR(VLOOKUP($A106,PQS!$D$5:$AU$107,MATCH(PQS!$AK$3,PQS!$D$3:$AU$3,0),FALSE),"") ->  | K106: =IFERROR(VLOOKUP($A106,PQS!$D$5:$AU$107,COLUMN(PQS!$AA$5)-3,FALSE),"") ->  | L106: =IFERROR(VLOOKUP($A106,PQS!$D$5:$AU$107,MATCH(PQS!$H$3,PQS!$D$3:$AU$3,0),FALSE),"") ->  | M106: =IFERROR(VLOOKUP($A106,PQS!$D$5:$AU$107,MATCH(PQS!$AF$3,PQS!$D$3:$AU$3,0),FALSE),"") ->  | N106: =IFERROR(HYPERLINK(VLOOKUP($A106,PQS!$D$5:$AU$107,MATCH(PQS!$AJ$3,PQS!$D$3:$AU$3,0),FALSE),VLOOKUP($A106,PQS!$D$5:$AU$107,MATCH(PQS!$AI$3,PQS!$D$3:$AU$3,0),FALSE)),"") -> 
E107: =IFERROR(VLOOKUP($A107,PQS!$D$5:$AU$107,MATCH(PQS!$Q$3,PQS!$D$3:$AU$3,0),FALSE),"") ->  | F107: =IFERROR(VLOOKUP($A107,PQS!$D$5:$AU$107,MATCH(PQS!$AL$3,PQS!$D$3:$AU$3,0),FALSE),"") ->  | H107: =IFERROR(VLOOKUP($A107,PQS!$D$5:$AU$107,MATCH(PQS!$I$3,PQS!$D$3:$AU$3,0),FALSE),"") ->  | I107: =IFERROR(VLOOKUP($A107,PQS!$D$5:$AU$107,MATCH(PQS!$J$3,PQS!$D$3:$AU$3,0),FALSE),"") ->  | J107: =IFERROR(VLOOKUP($A107,PQS!$D$5:$AU$107,MATCH(PQS!$AK$3,PQS!$D$3:$AU$3,0),FALSE),"") ->  | K107: =IFERROR(VLOOKUP($A107,PQS!$D$5:$AU$107,COLUMN(PQS!$AA$5)-3,FALSE),"") ->  | L107: =IFERROR(VLOOKUP($A107,PQS!$D$5:$AU$107,MATCH(PQS!$H$3,PQS!$D$3:$AU$3,0),FALSE),"") ->  | M107: =IFERROR(VLOOKUP($A107,PQS!$D$5:$AU$107,MATCH(PQS!$AF$3,PQS!$D$3:$AU$3,0),FALSE),"") ->  | N107: =IFERROR(HYPERLINK(VLOOKUP($A107,PQS!$D$5:$AU$107,MATCH(PQS!$AJ$3,PQS!$D$3:$AU$3,0),FALSE),VLOOKUP($A107,PQS!$D$5:$AU$107,MATCH(PQS!$AI$3,PQS!$D$3:$AU$3,0),FALSE)),"") -> 
E108: =IFERROR(VLOOKUP($A108,PQS!$D$5:$AU$107,MATCH(PQS!$Q$3,PQS!$D$3:$AU$3,0),FALSE),"") ->  | F108: =IFERROR(VLOOKUP($A108,PQS!$D$5:$AU$107,MATCH(PQS!$AL$3,PQS!$D$3:$AU$3,0),FALSE),"") ->  | H108: =IFERROR(VLOOKUP($A108,PQS!$D$5:$AU$107,MATCH(PQS!$I$3,PQS!$D$3:$AU$3,0),FALSE),"") ->  | I108: =IFERROR(VLOOKUP($A108,PQS!$D$5:$AU$107,MATCH(PQS!$J$3,PQS!$D$3:$AU$3,0),FALSE),"") ->  | J108: =IFERROR(VLOOKUP($A108,PQS!$D$5:$AU$107,MATCH(PQS!$AK$3,PQS!$D$3:$AU$3,0),FALSE),"") ->  | K108: =IFERROR(VLOOKUP($A108,PQS!$D$5:$AU$107,COLUMN(PQS!$AA$5)-3,FALSE),"") ->  | L108: =IFERROR(VLOOKUP($A108,PQS!$D$5:$AU$107,MATCH(PQS!$H$3,PQS!$D$3:$AU$3,0),FALSE),"") ->  | M108: =IFERROR(VLOOKUP($A108,PQS!$D$5:$AU$107,MATCH(PQS!$AF$3,PQS!$D$3:$AU$3,0),FALSE),"") ->  | N108: =IFERROR(HYPERLINK(VLOOKUP($A108,PQS!$D$5:$AU$107,MATCH(PQS!$AJ$3,PQS!$D$3:$AU$3,0),FALSE),VLOOKUP($A108,PQS!$D$5:$AU$107,MATCH(PQS!$AI$3,PQS!$D$3:$AU$3,0),FALSE)),"") -> 
E109: =IFERROR(VLOOKUP($A109,PQS!$D$5:$AU$107,MATCH(PQS!$Q$3,PQS!$D$3:$AU$3,0),FALSE),"") ->  | F109: =IFERROR(VLOOKUP($A109,PQS!$D$5:$AU$107,MATCH(PQS!$AL$3,PQS!$D$3:$AU$3,0),FALSE),"") ->  | H109: =IFERROR(VLOOKUP($A109,PQS!$D$5:$AU$107,MATCH(PQS!$I$3,PQS!$D$3:$AU$3,0),FALSE),"") ->  | I109: =IFERROR(VLOOKUP($A109,PQS!$D$5:$AU$107,MATCH(PQS!$J$3,PQS!$D$3:$AU$3,0),FALSE),"") ->  | J109: =IFERROR(VLOOKUP($A109,PQS!$D$5:$AU$107,MATCH(PQS!$AK$3,PQS!$D$3:$AU$3,0),FALSE),"") ->  | K109: =IFERROR(VLOOKUP($A109,PQS!$D$5:$AU$107,COLUMN(PQS!$AA$5)-3,FALSE),"") ->  | L109: =IFERROR(VLOOKUP($A109,PQS!$D$5:$AU$107,MATCH(PQS!$H$3,PQS!$D$3:$AU$3,0),FALSE),"") ->  | M109: =IFERROR(VLOOKUP($A109,PQS!$D$5:$AU$107,MATCH(PQS!$AF$3,PQS!$D$3:$AU$3,0),FALSE),"") ->  | N109: =IFERROR(HYPERLINK(VLOOKUP($A109,PQS!$D$5:$AU$107,MATCH(PQS!$AJ$3,PQS!$D$3:$AU$3,0),FALSE),VLOOKUP($A109,PQS!$D$5:$AU$107,MATCH(PQS!$AI$3,PQS!$D$3:$AU$3,0),FALSE)),"") -> 
E110: =IFERROR(VLOOKUP($A110,PQS!$D$5:$AU$107,MATCH(PQS!$Q$3,PQS!$D$3:$AU$3,0),FALSE),"") ->  | F110: =IFERROR(VLOOKUP($A110,PQS!$D$5:$AU$107,MATCH(PQS!$AL$3,PQS!$D$3:$AU$3,0),FALSE),"") ->  | H110: =IFERROR(VLOOKUP($A110,PQS!$D$5:$AU$107,MATCH(PQS!$I$3,PQS!$D$3:$AU$3,0),FALSE),"") ->  | I110: =IFERROR(VLOOKUP($A110,PQS!$D$5:$AU$107,MATCH(PQS!$J$3,PQS!$D$3:$AU$3,0),FALSE),"") ->  | J110: =IFERROR(VLOOKUP($A110,PQS!$D$5:$AU$107,MATCH(PQS!$AK$3,PQS!$D$3:$AU$3,0),FALSE),"") ->  | K110: =IFERROR(VLOOKUP($A110,PQS!$D$5:$AU$107,COLUMN(PQS!$AA$5)-3,FALSE),"") ->  | L110: =IFERROR(VLOOKUP($A110,PQS!$D$5:$AU$107,MATCH(PQS!$H$3,PQS!$D$3:$AU$3,0),FALSE),"") ->  | M110: =IFERROR(VLOOKUP($A110,PQS!$D$5:$AU$107,MATCH(PQS!$AF$3,PQS!$D$3:$AU$3,0),FALSE),"") ->  | N110: =IFERROR(HYPERLINK(VLOOKUP($A110,PQS!$D$5:$AU$107,MATCH(PQS!$AJ$3,PQS!$D$3:$AU$3,0),FALSE),VLOOKUP($A110,PQS!$D$5:$AU$107,MATCH(PQS!$AI$3,PQS!$D$3:$AU$3,0),FALSE)),"") -> 
E111: =IFERROR(VLOOKUP($A111,PQS!$D$5:$AU$107,MATCH(PQS!$Q$3,PQS!$D$3:$AU$3,0),FALSE),"") ->  | F111: =IFERROR(VLOOKUP($A111,PQS!$D$5:$AU$107,MATCH(PQS!$AL$3,PQS!$D$3:$AU$3,0),FALSE),"") ->  | H111: =IFERROR(VLOOKUP($A111,PQS!$D$5:$AU$107,MATCH(PQS!$I$3,PQS!$D$3:$AU$3,0),FALSE),"") ->  | I111: =IFERROR(VLOOKUP($A111,PQS!$D$5:$AU$107,MATCH(PQS!$J$3,PQS!$D$3:$AU$3,0),FALSE),"") ->  | J111: =IFERROR(VLOOKUP($A111,PQS!$D$5:$AU$107,MATCH(PQS!$AK$3,PQS!$D$3:$AU$3,0),FALSE),"") ->  | K111: =IFERROR(VLOOKUP($A111,PQS!$D$5:$AU$107,COLUMN(PQS!$AA$5)-3,FALSE),"") ->  | L111: =IFERROR(VLOOKUP($A111,PQS!$D$5:$AU$107,MATCH(PQS!$H$3,PQS!$D$3:$AU$3,0),FALSE),"") ->  | M111: =IFERROR(VLOOKUP($A111,PQS!$D$5:$AU$107,MATCH(PQS!$AF$3,PQS!$D$3:$AU$3,0),FALSE),"") ->  | N111: =IFERROR(HYPERLINK(VLOOKUP($A111,PQS!$D$5:$AU$107,MATCH(PQS!$AJ$3,PQS!$D$3:$AU$3,0),FALSE),VLOOKUP($A111,PQS!$D$5:$AU$107,MATCH(PQS!$AI$3,PQS!$D$3:$AU$3,0),FALSE)),"") -> 
E112: =IFERROR(VLOOKUP($A112,PQS!$D$5:$AU$107,MATCH(PQS!$Q$3,PQS!$D$3:$AU$3,0),FALSE),"") ->  | F112: =IFERROR(VLOOKUP($A112,PQS!$D$5:$AU$107,MATCH(PQS!$AL$3,PQS!$D$3:$AU$3,0),FALSE),"") ->  | H112: =IFERROR(VLOOKUP($A112,PQS!$D$5:$AU$107,MATCH(PQS!$I$3,PQS!$D$3:$AU$3,0),FALSE),"") ->  | I112: =IFERROR(VLOOKUP($A112,PQS!$D$5:$AU$107,MATCH(PQS!$J$3,PQS!$D$3:$AU$3,0),FALSE),"") ->  | J112: =IFERROR(VLOOKUP($A112,PQS!$D$5:$AU$107,MATCH(PQS!$AK$3,PQS!$D$3:$AU$3,0),FALSE),"") ->  | K112: =IFERROR(VLOOKUP($A112,PQS!$D$5:$AU$107,COLUMN(PQS!$AA$5)-3,FALSE),"") ->  | L112: =IFERROR(VLOOKUP($A112,PQS!$D$5:$AU$107,MATCH(PQS!$H$3,PQS!$D$3:$AU$3,0),FALSE),"") ->  | M112: =IFERROR(VLOOKUP($A112,PQS!$D$5:$AU$107,MATCH(PQS!$AF$3,PQS!$D$3:$AU$3,0),FALSE),"") ->  | N112: =IFERROR(HYPERLINK(VLOOKUP($A112,PQS!$D$5:$AU$107,MATCH(PQS!$AJ$3,PQS!$D$3:$AU$3,0),FALSE),VLOOKUP($A112,PQS!$D$5:$AU$107,MATCH(PQS!$AI$3,PQS!$D$3:$AU$3,0),FALSE)),"") -> 
E113: =IFERROR(VLOOKUP($A113,PQS!$D$5:$AU$107,MATCH(PQS!$Q$3,PQS!$D$3:$AU$3,0),FALSE),"") ->  | F113: =IFERROR(VLOOKUP($A113,PQS!$D$5:$AU$107,MATCH(PQS!$AL$3,PQS!$D$3:$AU$3,0),FALSE),"") ->  | H113: =IFERROR(VLOOKUP($A113,PQS!$D$5:$AU$107,MATCH(PQS!$I$3,PQS!$D$3:$AU$3,0),FALSE),"") ->  | I113: =IFERROR(VLOOKUP($A113,PQS!$D$5:$AU$107,MATCH(PQS!$J$3,PQS!$D$3:$AU$3,0),FALSE),"") ->  | J113: =IFERROR(VLOOKUP($A113,PQS!$D$5:$AU$107,MATCH(PQS!$AK$3,PQS!$D$3:$AU$3,0),FALSE),"") ->  | K113: =IFERROR(VLOOKUP($A113,PQS!$D$5:$AU$107,COLUMN(PQS!$AA$5)-3,FALSE),"") ->  | L113: =IFERROR(VLOOKUP($A113,PQS!$D$5:$AU$107,MATCH(PQS!$H$3,PQS!$D$3:$AU$3,0),FALSE),"") ->  | M113: =IFERROR(VLOOKUP($A113,PQS!$D$5:$AU$107,MATCH(PQS!$AF$3,PQS!$D$3:$AU$3,0),FALSE),"") ->  | N113: =IFERROR(HYPERLINK(VLOOKUP($A113,PQS!$D$5:$AU$107,MATCH(PQS!$AJ$3,PQS!$D$3:$AU$3,0),FALSE),VLOOKUP($A113,PQS!$D$5:$AU$107,MATCH(PQS!$AI$3,PQS!$D$3:$AU$3,0),FALSE)),"") -> 
E114: =IFERROR(VLOOKUP($A114,PQS!$D$5:$AU$107,MATCH(PQS!$Q$3,PQS!$D$3:$AU$3,0),FALSE),"") ->  | F114: =IFERROR(VLOOKUP($A114,PQS!$D$5:$AU$107,MATCH(PQS!$AL$3,PQS!$D$3:$AU$3,0),FALSE),"") ->  | H114: =IFERROR(VLOOKUP($A114,PQS!$D$5:$AU$107,MATCH(PQS!$I$3,PQS!$D$3:$AU$3,0),FALSE),"") ->  | I114: =IFERROR(VLOOKUP($A114,PQS!$D$5:$AU$107,MATCH(PQS!$J$3,PQS!$D$3:$AU$3,0),FALSE),"") ->  | J114: =IFERROR(VLOOKUP($A114,PQS!$D$5:$AU$107,MATCH(PQS!$AK$3,PQS!$D$3:$AU$3,0),FALSE),"") ->  | K114: =IFERROR(VLOOKUP($A114,PQS!$D$5:$AU$107,COLUMN(PQS!$AA$5)-3,FALSE),"") ->  | L114: =IFERROR(VLOOKUP($A114,PQS!$D$5:$AU$107,MATCH(PQS!$H$3,PQS!$D$3:$AU$3,0),FALSE),"") ->  | M114: =IFERROR(VLOOKUP($A114,PQS!$D$5:$AU$107,MATCH(PQS!$AF$3,PQS!$D$3:$AU$3,0),FALSE),"") ->  | N114: =IFERROR(HYPERLINK(VLOOKUP($A114,PQS!$D$5:$AU$107,MATCH(PQS!$AJ$3,PQS!$D$3:$AU$3,0),FALSE),VLOOKUP($A114,PQS!$D$5:$AU$107,MATCH(PQS!$AI$3,PQS!$D$3:$AU$3,0),FALSE)),"") -> 
E115: =IFERROR(VLOOKUP($A115,PQS!$D$5:$AU$107,MATCH(PQS!$Q$3,PQS!$D$3:$AU$3,0),FALSE),"") ->  | F115: =IFERROR(VLOOKUP($A115,PQS!$D$5:$AU$107,MATCH(PQS!$AL$3,PQS!$D$3:$AU$3,0),FALSE),"") ->  | H115: =IFERROR(VLOOKUP($A115,PQS!$D$5:$AU$107,MATCH(PQS!$I$3,PQS!$D$3:$AU$3,0),FALSE),"") ->  | I115: =IFERROR(VLOOKUP($A115,PQS!$D$5:$AU$107,MATCH(PQS!$J$3,PQS!$D$3:$AU$3,0),FALSE),"") ->  | J115: =IFERROR(VLOOKUP($A115,PQS!$D$5:$AU$107,MATCH(PQS!$AK$3,PQS!$D$3:$AU$3,0),FALSE),"") ->  | K115: =IFERROR(VLOOKUP($A115,PQS!$D$5:$AU$107,COLUMN(PQS!$AA$5)-3,FALSE),"") ->  | L115: =IFERROR(VLOOKUP($A115,PQS!$D$5:$AU$107,MATCH(PQS!$H$3,PQS!$D$3:$AU$3,0),FALSE),"") ->  | M115: =IFERROR(VLOOKUP($A115,PQS!$D$5:$AU$107,MATCH(PQS!$AF$3,PQS!$D$3:$AU$3,0),FALSE),"") ->  | N115: =IFERROR(HYPERLINK(VLOOKUP($A115,PQS!$D$5:$AU$107,MATCH(PQS!$AJ$3,PQS!$D$3:$AU$3,0),FALSE),VLOOKUP($A115,PQS!$D$5:$AU$107,MATCH(PQS!$AI$3,PQS!$D$3:$AU$3,0),FALSE)),"") -> 
E116: =IFERROR(VLOOKUP($A116,PQS!$D$5:$AU$107,MATCH(PQS!$Q$3,PQS!$D$3:$AU$3,0),FALSE),"") ->  | F116: =IFERROR(VLOOKUP($A116,PQS!$D$5:$AU$107,MATCH(PQS!$AL$3,PQS!$D$3:$AU$3,0),FALSE),"") ->  | H116: =IFERROR(VLOOKUP($A116,PQS!$D$5:$AU$107,MATCH(PQS!$I$3,PQS!$D$3:$AU$3,0),FALSE),"") ->  | I116: =IFERROR(VLOOKUP($A116,PQS!$D$5:$AU$107,MATCH(PQS!$J$3,PQS!$D$3:$AU$3,0),FALSE),"") ->  | J116: =IFERROR(VLOOKUP($A116,PQS!$D$5:$AU$107,MATCH(PQS!$AK$3,PQS!$D$3:$AU$3,0),FALSE),"") ->  | K116: =IFERROR(VLOOKUP($A116,PQS!$D$5:$AU$107,COLUMN(PQS!$AA$5)-3,FALSE),"") ->  | L116: =IFERROR(VLOOKUP($A116,PQS!$D$5:$AU$107,MATCH(PQS!$H$3,PQS!$D$3:$AU$3,0),FALSE),"") ->  | M116: =IFERROR(VLOOKUP($A116,PQS!$D$5:$AU$107,MATCH(PQS!$AF$3,PQS!$D$3:$AU$3,0),FALSE),"") ->  | N116: =IFERROR(HYPERLINK(VLOOKUP($A116,PQS!$D$5:$AU$107,MATCH(PQS!$AJ$3,PQS!$D$3:$AU$3,0),FALSE),VLOOKUP($A116,PQS!$D$5:$AU$107,MATCH(PQS!$AI$3,PQS!$D$3:$AU$3,0),FALSE)),"") -> 
E117: =IFERROR(VLOOKUP($A117,PQS!$D$5:$AU$107,MATCH(PQS!$Q$3,PQS!$D$3:$AU$3,0),FALSE),"") ->  | F117: =IFERROR(VLOOKUP($A117,PQS!$D$5:$AU$107,MATCH(PQS!$AL$3,PQS!$D$3:$AU$3,0),FALSE),"") ->  | H117: =IFERROR(VLOOKUP($A117,PQS!$D$5:$AU$107,MATCH(PQS!$I$3,PQS!$D$3:$AU$3,0),FALSE),"") ->  | I117: =IFERROR(VLOOKUP($A117,PQS!$D$5:$AU$107,MATCH(PQS!$J$3,PQS!$D$3:$AU$3,0),FALSE),"") ->  | J117: =IFERROR(VLOOKUP($A117,PQS!$D$5:$AU$107,MATCH(PQS!$AK$3,PQS!$D$3:$AU$3,0),FALSE),"") ->  | K117: =IFERROR(VLOOKUP($A117,PQS!$D$5:$AU$107,COLUMN(PQS!$AA$5)-3,FALSE),"") ->  | L117: =IFERROR(VLOOKUP($A117,PQS!$D$5:$AU$107,MATCH(PQS!$H$3,PQS!$D$3:$AU$3,0),FALSE),"") ->  | M117: =IFERROR(VLOOKUP($A117,PQS!$D$5:$AU$107,MATCH(PQS!$AF$3,PQS!$D$3:$AU$3,0),FALSE),"") ->  | N117: =IFERROR(HYPERLINK(VLOOKUP($A117,PQS!$D$5:$AU$107,MATCH(PQS!$AJ$3,PQS!$D$3:$AU$3,0),FALSE),VLOOKUP($A117,PQS!$D$5:$AU$107,MATCH(PQS!$AI$3,PQS!$D$3:$AU$3,0),FALSE)),"") -> 
E118: =IFERROR(VLOOKUP($A118,PQS!$D$5:$AU$107,MATCH(PQS!$Q$3,PQS!$D$3:$AU$3,0),FALSE),"") ->  | F118: =IFERROR(VLOOKUP($A118,PQS!$D$5:$AU$107,MATCH(PQS!$AL$3,PQS!$D$3:$AU$3,0),FALSE),"") ->  | H118: =IFERROR(VLOOKUP($A118,PQS!$D$5:$AU$107,MATCH(PQS!$I$3,PQS!$D$3:$AU$3,0),FALSE),"") ->  | I118: =IFERROR(VLOOKUP($A118,PQS!$D$5:$AU$107,MATCH(PQS!$J$3,PQS!$D$3:$AU$3,0),FALSE),"") ->  | J118: =IFERROR(VLOOKUP($A118,PQS!$D$5:$AU$107,MATCH(PQS!$AK$3,PQS!$D$3:$AU$3,0),FALSE),"") ->  | K118: =IFERROR(VLOOKUP($A118,PQS!$D$5:$AU$107,COLUMN(PQS!$AA$5)-3,FALSE),"") ->  | L118: =IFERROR(VLOOKUP($A118,PQS!$D$5:$AU$107,MATCH(PQS!$H$3,PQS!$D$3:$AU$3,0),FALSE),"") ->  | M118: =IFERROR(VLOOKUP($A118,PQS!$D$5:$AU$107,MATCH(PQS!$AF$3,PQS!$D$3:$AU$3,0),FALSE),"") ->  | N118: =IFERROR(HYPERLINK(VLOOKUP($A118,PQS!$D$5:$AU$107,MATCH(PQS!$AJ$3,PQS!$D$3:$AU$3,0),FALSE),VLOOKUP($A118,PQS!$D$5:$AU$107,MATCH(PQS!$AI$3,PQS!$D$3:$AU$3,0),FALSE)),"") -> 
E119: =IFERROR(VLOOKUP($A119,PQS!$D$5:$AU$107,MATCH(PQS!$Q$3,PQS!$D$3:$AU$3,0),FALSE),"") ->  | F119: =IFERROR(VLOOKUP($A119,PQS!$D$5:$AU$107,MATCH(PQS!$AL$3,PQS!$D$3:$AU$3,0),FALSE),"") ->  | H119: =IFERROR(VLOOKUP($A119,PQS!$D$5:$AU$107,MATCH(PQS!$I$3,PQS!$D$3:$AU$3,0),FALSE),"") ->  | I119: =IFERROR(VLOOKUP($A119,PQS!$D$5:$AU$107,MATCH(PQS!$J$3,PQS!$D$3:$AU$3,0),FALSE),"") ->  | J119: =IFERROR(VLOOKUP($A119,PQS!$D$5:$AU$107,MATCH(PQS!$AK$3,PQS!$D$3:$AU$3,0),FALSE),"") ->  | K119: =IFERROR(VLOOKUP($A119,PQS!$D$5:$AU$107,COLUMN(PQS!$AA$5)-3,FALSE),"") ->  | L119: =IFERROR(VLOOKUP($A119,PQS!$D$5:$AU$107,MATCH(PQS!$H$3,PQS!$D$3:$AU$3,0),FALSE),"") ->  | M119: =IFERROR(VLOOKUP($A119,PQS!$D$5:$AU$107,MATCH(PQS!$AF$3,PQS!$D$3:$AU$3,0),FALSE),"") ->  | N119: =IFERROR(HYPERLINK(VLOOKUP($A119,PQS!$D$5:$AU$107,MATCH(PQS!$AJ$3,PQS!$D$3:$AU$3,0),FALSE),VLOOKUP($A119,PQS!$D$5:$AU$107,MATCH(PQS!$AI$3,PQS!$D$3:$AU$3,0),FALSE)),"") -> 
E120: =IFERROR(VLOOKUP($A120,PQS!$D$5:$AU$107,MATCH(PQS!$Q$3,PQS!$D$3:$AU$3,0),FALSE),"") ->  | F120: =IFERROR(VLOOKUP($A120,PQS!$D$5:$AU$107,MATCH(PQS!$AL$3,PQS!$D$3:$AU$3,0),FALSE),"") ->  | H120: =IFERROR(VLOOKUP($A120,PQS!$D$5:$AU$107,MATCH(PQS!$I$3,PQS!$D$3:$AU$3,0),FALSE),"") ->  | I120: =IFERROR(VLOOKUP($A120,PQS!$D$5:$AU$107,MATCH(PQS!$J$3,PQS!$D$3:$AU$3,0),FALSE),"") ->  | J120: =IFERROR(VLOOKUP($A120,PQS!$D$5:$AU$107,MATCH(PQS!$AK$3,PQS!$D$3:$AU$3,0),FALSE),"") ->  | K120: =IFERROR(VLOOKUP($A120,PQS!$D$5:$AU$107,COLUMN(PQS!$AA$5)-3,FALSE),"") ->  | L120: =IFERROR(VLOOKUP($A120,PQS!$D$5:$AU$107,MATCH(PQS!$H$3,PQS!$D$3:$AU$3,0),FALSE),"") ->  | M120: =IFERROR(VLOOKUP($A120,PQS!$D$5:$AU$107,MATCH(PQS!$AF$3,PQS!$D$3:$AU$3,0),FALSE),"") ->  | N120: =IFERROR(HYPERLINK(VLOOKUP($A120,PQS!$D$5:$AU$107,MATCH(PQS!$AJ$3,PQS!$D$3:$AU$3,0),FALSE),VLOOKUP($A120,PQS!$D$5:$AU$107,MATCH(PQS!$AI$3,PQS!$D$3:$AU$3,0),FALSE)),"") -> 
E121: =IFERROR(VLOOKUP($A121,PQS!$D$5:$AU$107,MATCH(PQS!$Q$3,PQS!$D$3:$AU$3,0),FALSE),"") ->  | F121: =IFERROR(VLOOKUP($A121,PQS!$D$5:$AU$107,MATCH(PQS!$AL$3,PQS!$D$3:$AU$3,0),FALSE),"") ->  | H121: =IFERROR(VLOOKUP($A121,PQS!$D$5:$AU$107,MATCH(PQS!$I$3,PQS!$D$3:$AU$3,0),FALSE),"") ->  | I121: =IFERROR(VLOOKUP($A121,PQS!$D$5:$AU$107,MATCH(PQS!$J$3,PQS!$D$3:$AU$3,0),FALSE),"") ->  | J121: =IFERROR(VLOOKUP($A121,PQS!$D$5:$AU$107,MATCH(PQS!$AK$3,PQS!$D$3:$AU$3,0),FALSE),"") ->  | K121: =IFERROR(VLOOKUP($A121,PQS!$D$5:$AU$107,COLUMN(PQS!$AA$5)-3,FALSE),"") ->  | L121: =IFERROR(VLOOKUP($A121,PQS!$D$5:$AU$107,MATCH(PQS!$H$3,PQS!$D$3:$AU$3,0),FALSE),"") ->  | M121: =IFERROR(VLOOKUP($A121,PQS!$D$5:$AU$107,MATCH(PQS!$AF$3,PQS!$D$3:$AU$3,0),FALSE),"") ->  | N121: =IFERROR(HYPERLINK(VLOOKUP($A121,PQS!$D$5:$AU$107,MATCH(PQS!$AJ$3,PQS!$D$3:$AU$3,0),FALSE),VLOOKUP($A121,PQS!$D$5:$AU$107,MATCH(PQS!$AI$3,PQS!$D$3:$AU$3,0),FALSE)),"") -> 
E122: =IFERROR(VLOOKUP($A122,PQS!$D$5:$AU$107,MATCH(PQS!$Q$3,PQS!$D$3:$AU$3,0),FALSE),"") ->  | F122: =IFERROR(VLOOKUP($A122,PQS!$D$5:$AU$107,MATCH(PQS!$AL$3,PQS!$D$3:$AU$3,0),FALSE),"") ->  | H122: =IFERROR(VLOOKUP($A122,PQS!$D$5:$AU$107,MATCH(PQS!$I$3,PQS!$D$3:$AU$3,0),FALSE),"") ->  | I122: =IFERROR(VLOOKUP($A122,PQS!$D$5:$AU$107,MATCH(PQS!$J$3,PQS!$D$3:$AU$3,0),FALSE),"") ->  | J122: =IFERROR(VLOOKUP($A122,PQS!$D$5:$AU$107,MATCH(PQS!$AK$3,PQS!$D$3:$AU$3,0),FALSE),"") ->  | K122: =IFERROR(VLOOKUP($A122,PQS!$D$5:$AU$107,COLUMN(PQS!$AA$5)-3,FALSE),"") ->  | L122: =IFERROR(VLOOKUP($A122,PQS!$D$5:$AU$107,MATCH(PQS!$H$3,PQS!$D$3:$AU$3,0),FALSE),"") ->  | M122: =IFERROR(VLOOKUP($A122,PQS!$D$5:$AU$107,MATCH(PQS!$AF$3,PQS!$D$3:$AU$3,0),FALSE),"") ->  | N122: =IFERROR(HYPERLINK(VLOOKUP($A122,PQS!$D$5:$AU$107,MATCH(PQS!$AJ$3,PQS!$D$3:$AU$3,0),FALSE),VLOOKUP($A122,PQS!$D$5:$AU$107,MATCH(PQS!$AI$3,PQS!$D$3:$AU$3,0),FALSE)),"") -> 
E123: =IFERROR(VLOOKUP($A123,PQS!$D$5:$AU$107,MATCH(PQS!$Q$3,PQS!$D$3:$AU$3,0),FALSE),"") ->  | F123: =IFERROR(VLOOKUP($A123,PQS!$D$5:$AU$107,MATCH(PQS!$AL$3,PQS!$D$3:$AU$3,0),FALSE),"") ->  | H123: =IFERROR(VLOOKUP($A123,PQS!$D$5:$AU$107,MATCH(PQS!$I$3,PQS!$D$3:$AU$3,0),FALSE),"") ->  | I123: =IFERROR(VLOOKUP($A123,PQS!$D$5:$AU$107,MATCH(PQS!$J$3,PQS!$D$3:$AU$3,0),FALSE),"") ->  | J123: =IFERROR(VLOOKUP($A123,PQS!$D$5:$AU$107,MATCH(PQS!$AK$3,PQS!$D$3:$AU$3,0),FALSE),"") ->  | K123: =IFERROR(VLOOKUP($A123,PQS!$D$5:$AU$107,COLUMN(PQS!$AA$5)-3,FALSE),"") ->  | L123: =IFERROR(VLOOKUP($A123,PQS!$D$5:$AU$107,MATCH(PQS!$H$3,PQS!$D$3:$AU$3,0),FALSE),"") ->  | M123: =IFERROR(VLOOKUP($A123,PQS!$D$5:$AU$107,MATCH(PQS!$AF$3,PQS!$D$3:$AU$3,0),FALSE),"") ->  | N123: =IFERROR(HYPERLINK(VLOOKUP($A123,PQS!$D$5:$AU$107,MATCH(PQS!$AJ$3,PQS!$D$3:$AU$3,0),FALSE),VLOOKUP($A123,PQS!$D$5:$AU$107,MATCH(PQS!$AI$3,PQS!$D$3:$AU$3,0),FALSE)),"") -> 
E124: =IFERROR(VLOOKUP($A124,PQS!$D$5:$AU$107,MATCH(PQS!$Q$3,PQS!$D$3:$AU$3,0),FALSE),"") ->  | F124: =IFERROR(VLOOKUP($A124,PQS!$D$5:$AU$107,MATCH(PQS!$AL$3,PQS!$D$3:$AU$3,0),FALSE),"") ->  | H124: =IFERROR(VLOOKUP($A124,PQS!$D$5:$AU$107,MATCH(PQS!$I$3,PQS!$D$3:$AU$3,0),FALSE),"") ->  | I124: =IFERROR(VLOOKUP($A124,PQS!$D$5:$AU$107,MATCH(PQS!$J$3,PQS!$D$3:$AU$3,0),FALSE),"") ->  | J124: =IFERROR(VLOOKUP($A124,PQS!$D$5:$AU$107,MATCH(PQS!$AK$3,PQS!$D$3:$AU$3,0),FALSE),"") ->  | K124: =IFERROR(VLOOKUP($A124,PQS!$D$5:$AU$107,COLUMN(PQS!$AA$5)-3,FALSE),"") ->  | L124: =IFERROR(VLOOKUP($A124,PQS!$D$5:$AU$107,MATCH(PQS!$H$3,PQS!$D$3:$AU$3,0),FALSE),"") ->  | M124: =IFERROR(VLOOKUP($A124,PQS!$D$5:$AU$107,MATCH(PQS!$AF$3,PQS!$D$3:$AU$3,0),FALSE),"") ->  | N124: =IFERROR(HYPERLINK(VLOOKUP($A124,PQS!$D$5:$AU$107,MATCH(PQS!$AJ$3,PQS!$D$3:$AU$3,0),FALSE),VLOOKUP($A124,PQS!$D$5:$AU$107,MATCH(PQS!$AI$3,PQS!$D$3:$AU$3,0),FALSE)),"") -> 
E125: =IFERROR(VLOOKUP($A125,PQS!$D$5:$AU$107,MATCH(PQS!$Q$3,PQS!$D$3:$AU$3,0),FALSE),"") ->  | F125: =IFERROR(VLOOKUP($A125,PQS!$D$5:$AU$107,MATCH(PQS!$AL$3,PQS!$D$3:$AU$3,0),FALSE),"") ->  | H125: =IFERROR(VLOOKUP($A125,PQS!$D$5:$AU$107,MATCH(PQS!$I$3,PQS!$D$3:$AU$3,0),FALSE),"") ->  | I125: =IFERROR(VLOOKUP($A125,PQS!$D$5:$AU$107,MATCH(PQS!$J$3,PQS!$D$3:$AU$3,0),FALSE),"") ->  | J125: =IFERROR(VLOOKUP($A125,PQS!$D$5:$AU$107,MATCH(PQS!$AK$3,PQS!$D$3:$AU$3,0),FALSE),"") ->  | K125: =IFERROR(VLOOKUP($A125,PQS!$D$5:$AU$107,COLUMN(PQS!$AA$5)-3,FALSE),"") ->  | L125: =IFERROR(VLOOKUP($A125,PQS!$D$5:$AU$107,MATCH(PQS!$H$3,PQS!$D$3:$AU$3,0),FALSE),"") ->  | M125: =IFERROR(VLOOKUP($A125,PQS!$D$5:$AU$107,MATCH(PQS!$AF$3,PQS!$D$3:$AU$3,0),FALSE),"") ->  | N125: =IFERROR(HYPERLINK(VLOOKUP($A125,PQS!$D$5:$AU$107,MATCH(PQS!$AJ$3,PQS!$D$3:$AU$3,0),FALSE),VLOOKUP($A125,PQS!$D$5:$AU$107,MATCH(PQS!$AI$3,PQS!$D$3:$AU$3,0),FALSE)),"") -> 
E126: =IFERROR(VLOOKUP($A126,PQS!$D$5:$AU$107,MATCH(PQS!$Q$3,PQS!$D$3:$AU$3,0),FALSE),"") ->  | F126: =IFERROR(VLOOKUP($A126,PQS!$D$5:$AU$107,MATCH(PQS!$AL$3,PQS!$D$3:$AU$3,0),FALSE),"") ->  | H126: =IFERROR(VLOOKUP($A126,PQS!$D$5:$AU$107,MATCH(PQS!$I$3,PQS!$D$3:$AU$3,0),FALSE),"") ->  | I126: =IFERROR(VLOOKUP($A126,PQS!$D$5:$AU$107,MATCH(PQS!$J$3,PQS!$D$3:$AU$3,0),FALSE),"") ->  | J126: =IFERROR(VLOOKUP($A126,PQS!$D$5:$AU$107,MATCH(PQS!$AK$3,PQS!$D$3:$AU$3,0),FALSE),"") ->  | K126: =IFERROR(VLOOKUP($A126,PQS!$D$5:$AU$107,COLUMN(PQS!$AA$5)-3,FALSE),"") ->  | L126: =IFERROR(VLOOKUP($A126,PQS!$D$5:$AU$107,MATCH(PQS!$H$3,PQS!$D$3:$AU$3,0),FALSE),"") ->  | M126: =IFERROR(VLOOKUP($A126,PQS!$D$5:$AU$107,MATCH(PQS!$AF$3,PQS!$D$3:$AU$3,0),FALSE),"") ->  | N126: =IFERROR(HYPERLINK(VLOOKUP($A126,PQS!$D$5:$AU$107,MATCH(PQS!$AJ$3,PQS!$D$3:$AU$3,0),FALSE),VLOOKUP($A126,PQS!$D$5:$AU$107,MATCH(PQS!$AI$3,PQS!$D$3:$AU$3,0),FALSE)),"") -> 
E127: =IFERROR(VLOOKUP($A127,PQS!$D$5:$AU$107,MATCH(PQS!$Q$3,PQS!$D$3:$AU$3,0),FALSE),"") ->  | F127: =IFERROR(VLOOKUP($A127,PQS!$D$5:$AU$107,MATCH(PQS!$AL$3,PQS!$D$3:$AU$3,0),FALSE),"") ->  | H127: =IFERROR(VLOOKUP($A127,PQS!$D$5:$AU$107,MATCH(PQS!$I$3,PQS!$D$3:$AU$3,0),FALSE),"") ->  | I127: =IFERROR(VLOOKUP($A127,PQS!$D$5:$AU$107,MATCH(PQS!$J$3,PQS!$D$3:$AU$3,0),FALSE),"") ->  | J127: =IFERROR(VLOOKUP($A127,PQS!$D$5:$AU$107,MATCH(PQS!$AK$3,PQS!$D$3:$AU$3,0),FALSE),"") ->  | K127: =IFERROR(VLOOKUP($A127,PQS!$D$5:$AU$107,COLUMN(PQS!$AA$5)-3,FALSE),"") ->  | L127: =IFERROR(VLOOKUP($A127,PQS!$D$5:$AU$107,MATCH(PQS!$H$3,PQS!$D$3:$AU$3,0),FALSE),"") ->  | M127: =IFERROR(VLOOKUP($A127,PQS!$D$5:$AU$107,MATCH(PQS!$AF$3,PQS!$D$3:$AU$3,0),FALSE),"") ->  | N127: =IFERROR(HYPERLINK(VLOOKUP($A127,PQS!$D$5:$AU$107,MATCH(PQS!$AJ$3,PQS!$D$3:$AU$3,0),FALSE),VLOOKUP($A127,PQS!$D$5:$AU$107,MATCH(PQS!$AI$3,PQS!$D$3:$AU$3,0),FALSE)),"") -> 
E128: =IFERROR(VLOOKUP($A128,PQS!$D$5:$AU$107,MATCH(PQS!$Q$3,PQS!$D$3:$AU$3,0),FALSE),"") ->  | F128: =IFERROR(VLOOKUP($A128,PQS!$D$5:$AU$107,MATCH(PQS!$AL$3,PQS!$D$3:$AU$3,0),FALSE),"") ->  | H128: =IFERROR(VLOOKUP($A128,PQS!$D$5:$AU$107,MATCH(PQS!$I$3,PQS!$D$3:$AU$3,0),FALSE),"") ->  | I128: =IFERROR(VLOOKUP($A128,PQS!$D$5:$AU$107,MATCH(PQS!$J$3,PQS!$D$3:$AU$3,0),FALSE),"") ->  | J128: =IFERROR(VLOOKUP($A128,PQS!$D$5:$AU$107,MATCH(PQS!$AK$3,PQS!$D$3:$AU$3,0),FALSE),"") ->  | K128: =IFERROR(VLOOKUP($A128,PQS!$D$5:$AU$107,COLUMN(PQS!$AA$5)-3,FALSE),"") ->  | L128: =IFERROR(VLOOKUP($A128,PQS!$D$5:$AU$107,MATCH(PQS!$H$3,PQS!$D$3:$AU$3,0),FALSE),"") ->  | M128: =IFERROR(VLOOKUP($A128,PQS!$D$5:$AU$107,MATCH(PQS!$AF$3,PQS!$D$3:$AU$3,0),FALSE),"") ->  | N128: =IFERROR(HYPERLINK(VLOOKUP($A128,PQS!$D$5:$AU$107,MATCH(PQS!$AJ$3,PQS!$D$3:$AU$3,0),FALSE),VLOOKUP($A128,PQS!$D$5:$AU$107,MATCH(PQS!$AI$3,PQS!$D$3:$AU$3,0),FALSE)),"") -> 
E129: =IFERROR(VLOOKUP($A129,PQS!$D$5:$AU$107,MATCH(PQS!$Q$3,PQS!$D$3:$AU$3,0),FALSE),"") ->  | F129: =IFERROR(VLOOKUP($A129,PQS!$D$5:$AU$107,MATCH(PQS!$AL$3,PQS!$D$3:$AU$3,0),FALSE),"") ->  | H129: =IFERROR(VLOOKUP($A129,PQS!$D$5:$AU$107,MATCH(PQS!$I$3,PQS!$D$3:$AU$3,0),FALSE),"") ->  | I129: =IFERROR(VLOOKUP($A129,PQS!$D$5:$AU$107,MATCH(PQS!$J$3,PQS!$D$3:$AU$3,0),FALSE),"") ->  | J129: =IFERROR(VLOOKUP($A129,PQS!$D$5:$AU$107,MATCH(PQS!$AK$3,PQS!$D$3:$AU$3,0),FALSE),"") ->  | K129: =IFERROR(VLOOKUP($A129,PQS!$D$5:$AU$107,COLUMN(PQS!$AA$5)-3,FALSE),"") ->  | L129: =IFERROR(VLOOKUP($A129,PQS!$D$5:$AU$107,MATCH(PQS!$H$3,PQS!$D$3:$AU$3,0),FALSE),"") ->  | M129: =IFERROR(VLOOKUP($A129,PQS!$D$5:$AU$107,MATCH(PQS!$AF$3,PQS!$D$3:$AU$3,0),FALSE),"") ->  | N129: =IFERROR(HYPERLINK(VLOOKUP($A129,PQS!$D$5:$AU$107,MATCH(PQS!$AJ$3,PQS!$D$3:$AU$3,0),FALSE),VLOOKUP($A129,PQS!$D$5:$AU$107,MATCH(PQS!$AI$3,PQS!$D$3:$AU$3,0),FALSE)),"") -> 
E130: =IFERROR(VLOOKUP($A130,PQS!$D$5:$AU$107,MATCH(PQS!$Q$3,PQS!$D$3:$AU$3,0),FALSE),"") ->  | F130: =IFERROR(VLOOKUP($A130,PQS!$D$5:$AU$107,MATCH(PQS!$AL$3,PQS!$D$3:$AU$3,0),FALSE),"") ->  | H130: =IFERROR(VLOOKUP($A130,PQS!$D$5:$AU$107,MATCH(PQS!$I$3,PQS!$D$3:$AU$3,0),FALSE),"") ->  | I130: =IFERROR(VLOOKUP($A130,PQS!$D$5:$AU$107,MATCH(PQS!$J$3,PQS!$D$3:$AU$3,0),FALSE),"") ->  | J130: =IFERROR(VLOOKUP($A130,PQS!$D$5:$AU$107,MATCH(PQS!$AK$3,PQS!$D$3:$AU$3,0),FALSE),"") ->  | K130: =IFERROR(VLOOKUP($A130,PQS!$D$5:$AU$107,COLUMN(PQS!$AA$5)-3,FALSE),"") ->  | L130: =IFERROR(VLOOKUP($A130,PQS!$D$5:$AU$107,MATCH(PQS!$H$3,PQS!$D$3:$AU$3,0),FALSE),"") ->  | M130: =IFERROR(VLOOKUP($A130,PQS!$D$5:$AU$107,MATCH(PQS!$AF$3,PQS!$D$3:$AU$3,0),FALSE),"") ->  | N130: =IFERROR(HYPERLINK(VLOOKUP($A130,PQS!$D$5:$AU$107,MATCH(PQS!$AJ$3,PQS!$D$3:$AU$3,0),FALSE),VLOOKUP($A130,PQS!$D$5:$AU$107,MATCH(PQS!$AI$3,PQS!$D$3:$AU$3,0),FALSE)),"") -> 
E131: =IFERROR(VLOOKUP($A131,PQS!$D$5:$AU$107,MATCH(PQS!$Q$3,PQS!$D$3:$AU$3,0),FALSE),"") ->  | F131: =IFERROR(VLOOKUP($A131,PQS!$D$5:$AU$107,MATCH(PQS!$AL$3,PQS!$D$3:$AU$3,0),FALSE),"") ->  | H131: =IFERROR(VLOOKUP($A131,PQS!$D$5:$AU$107,MATCH(PQS!$I$3,PQS!$D$3:$AU$3,0),FALSE),"") ->  | I131: =IFERROR(VLOOKUP($A131,PQS!$D$5:$AU$107,MATCH(PQS!$J$3,PQS!$D$3:$AU$3,0),FALSE),"") ->  | J131: =IFERROR(VLOOKUP($A131,PQS!$D$5:$AU$107,MATCH(PQS!$AK$3,PQS!$D$3:$AU$3,0),FALSE),"") ->  | K131: =IFERROR(VLOOKUP($A131,PQS!$D$5:$AU$107,COLUMN(PQS!$AA$5)-3,FALSE),"") ->  | L131: =IFERROR(VLOOKUP($A131,PQS!$D$5:$AU$107,MATCH(PQS!$H$3,PQS!$D$3:$AU$3,0),FALSE),"") ->  | M131: =IFERROR(VLOOKUP($A131,PQS!$D$5:$AU$107,MATCH(PQS!$AF$3,PQS!$D$3:$AU$3,0),FALSE),"") ->  | N131: =IFERROR(HYPERLINK(VLOOKUP($A131,PQS!$D$5:$AU$107,MATCH(PQS!$AJ$3,PQS!$D$3:$AU$3,0),FALSE),VLOOKUP($A131,PQS!$D$5:$AU$107,MATCH(PQS!$AI$3,PQS!$D$3:$AU$3,0),FALSE)),"") -> 
E132: =IFERROR(VLOOKUP($A132,PQS!$D$5:$AU$107,MATCH(PQS!$Q$3,PQS!$D$3:$AU$3,0),FALSE),"") ->  | F132: =IFERROR(VLOOKUP($A132,PQS!$D$5:$AU$107,MATCH(PQS!$AL$3,PQS!$D$3:$AU$3,0),FALSE),"") ->  | H132: =IFERROR(VLOOKUP($A132,PQS!$D$5:$AU$107,MATCH(PQS!$I$3,PQS!$D$3:$AU$3,0),FALSE),"") ->  | I132: =IFERROR(VLOOKUP($A132,PQS!$D$5:$AU$107,MATCH(PQS!$J$3,PQS!$D$3:$AU$3,0),FALSE),"") ->  | J132: =IFERROR(VLOOKUP($A132,PQS!$D$5:$AU$107,MATCH(PQS!$AK$3,PQS!$D$3:$AU$3,0),FALSE),"") ->  | K132: =IFERROR(VLOOKUP($A132,PQS!$D$5:$AU$107,COLUMN(PQS!$AA$5)-3,FALSE),"") ->  | L132: =IFERROR(VLOOKUP($A132,PQS!$D$5:$AU$107,MATCH(PQS!$H$3,PQS!$D$3:$AU$3,0),FALSE),"") ->  | M132: =IFERROR(VLOOKUP($A132,PQS!$D$5:$AU$107,MATCH(PQS!$AF$3,PQS!$D$3:$AU$3,0),FALSE),"") ->  | N132: =IFERROR(HYPERLINK(VLOOKUP($A132,PQS!$D$5:$AU$107,MATCH(PQS!$AJ$3,PQS!$D$3:$AU$3,0),FALSE),VLOOKUP($A132,PQS!$D$5:$AU$107,MATCH(PQS!$AI$3,PQS!$D$3:$AU$3,0),FALSE)),"") -> 
E133: =IFERROR(VLOOKUP($A133,PQS!$D$5:$AU$107,MATCH(PQS!$Q$3,PQS!$D$3:$AU$3,0),FALSE),"") ->  | F133: =IFERROR(VLOOKUP($A133,PQS!$D$5:$AU$107,MATCH(PQS!$AL$3,PQS!$D$3:$AU$3,0),FALSE),"") ->  | H133: =IFERROR(VLOOKUP($A133,PQS!$D$5:$AU$107,MATCH(PQS!$I$3,PQS!$D$3:$AU$3,0),FALSE),"") ->  | I133: =IFERROR(VLOOKUP($A133,PQS!$D$5:$AU$107,MATCH(PQS!$J$3,PQS!$D$3:$AU$3,0),FALSE),"") ->  | J133: =IFERROR(VLOOKUP($A133,PQS!$D$5:$AU$107,MATCH(PQS!$AK$3,PQS!$D$3:$AU$3,0),FALSE),"") ->  | K133: =IFERROR(VLOOKUP($A133,PQS!$D$5:$AU$107,COLUMN(PQS!$AA$5)-3,FALSE),"") ->  | L133: =IFERROR(VLOOKUP($A133,PQS!$D$5:$AU$107,MATCH(PQS!$H$3,PQS!$D$3:$AU$3,0),FALSE),"") ->  | M133: =IFERROR(VLOOKUP($A133,PQS!$D$5:$AU$107,MATCH(PQS!$AF$3,PQS!$D$3:$AU$3,0),FALSE),"") ->  | N133: =IFERROR(HYPERLINK(VLOOKUP($A133,PQS!$D$5:$AU$107,MATCH(PQS!$AJ$3,PQS!$D$3:$AU$3,0),FALSE),VLOOKUP($A133,PQS!$D$5:$AU$107,MATCH(PQS!$AI$3,PQS!$D$3:$AU$3,0),FALSE)),"") -> 
E134: =IFERROR(VLOOKUP($A134,PQS!$D$5:$AU$107,MATCH(PQS!$Q$3,PQS!$D$3:$AU$3,0),FALSE),"") ->  | F134: =IFERROR(VLOOKUP($A134,PQS!$D$5:$AU$107,MATCH(PQS!$AL$3,PQS!$D$3:$AU$3,0),FALSE),"") ->  | H134: =IFERROR(VLOOKUP($A134,PQS!$D$5:$AU$107,MATCH(PQS!$I$3,PQS!$D$3:$AU$3,0),FALSE),"") ->  | I134: =IFERROR(VLOOKUP($A134,PQS!$D$5:$AU$107,MATCH(PQS!$J$3,PQS!$D$3:$AU$3,0),FALSE),"") ->  | J134: =IFERROR(VLOOKUP($A134,PQS!$D$5:$AU$107,MATCH(PQS!$AK$3,PQS!$D$3:$AU$3,0),FALSE),"") ->  | K134: =IFERROR(VLOOKUP($A134,PQS!$D$5:$AU$107,COLUMN(PQS!$AA$5)-3,FALSE),"") ->  | L134: =IFERROR(VLOOKUP($A134,PQS!$D$5:$AU$107,MATCH(PQS!$H$3,PQS!$D$3:$AU$3,0),FALSE),"") ->  | M134: =IFERROR(VLOOKUP($A134,PQS!$D$5:$AU$107,MATCH(PQS!$AF$3,PQS!$D$3:$AU$3,0),FALSE),"") ->  | N134: =IFERROR(HYPERLINK(VLOOKUP($A134,PQS!$D$5:$AU$107,MATCH(PQS!$AJ$3,PQS!$D$3:$AU$3,0),FALSE),VLOOKUP($A134,PQS!$D$5:$AU$107,MATCH(PQS!$AI$3,PQS!$D$3:$AU$3,0),FALSE)),"") -> 
E135: =IFERROR(VLOOKUP($A135,PQS!$D$5:$AU$107,MATCH(PQS!$Q$3,PQS!$D$3:$AU$3,0),FALSE),"") ->  | F135: =IFERROR(VLOOKUP($A135,PQS!$D$5:$AU$107,MATCH(PQS!$AL$3,PQS!$D$3:$AU$3,0),FALSE),"") ->  | H135: =IFERROR(VLOOKUP($A135,PQS!$D$5:$AU$107,MATCH(PQS!$I$3,PQS!$D$3:$AU$3,0),FALSE),"") ->  | I135: =IFERROR(VLOOKUP($A135,PQS!$D$5:$AU$107,MATCH(PQS!$J$3,PQS!$D$3:$AU$3,0),FALSE),"") ->  | J135: =IFERROR(VLOOKUP($A135,PQS!$D$5:$AU$107,MATCH(PQS!$AK$3,PQS!$D$3:$AU$3,0),FALSE),"") ->  | K135: =IFERROR(VLOOKUP($A135,PQS!$D$5:$AU$107,COLUMN(PQS!$AA$5)-3,FALSE),"") ->  | L135: =IFERROR(VLOOKUP($A135,PQS!$D$5:$AU$107,MATCH(PQS!$H$3,PQS!$D$3:$AU$3,0),FALSE),"") ->  | M135: =IFERROR(VLOOKUP($A135,PQS!$D$5:$AU$107,MATCH(PQS!$AF$3,PQS!$D$3:$AU$3,0),FALSE),"") ->  | N135: =IFERROR(HYPERLINK(VLOOKUP($A135,PQS!$D$5:$AU$107,MATCH(PQS!$AJ$3,PQS!$D$3:$AU$3,0),FALSE),VLOOKUP($A135,PQS!$D$5:$AU$107,MATCH(PQS!$AI$3,PQS!$D$3:$AU$3,0),FALSE)),"") -> 
E136: =IFERROR(VLOOKUP($A136,PQS!$D$5:$AU$107,MATCH(PQS!$Q$3,PQS!$D$3:$AU$3,0),FALSE),"") ->  | F136: =IFERROR(VLOOKUP($A136,PQS!$D$5:$AU$107,MATCH(PQS!$AL$3,PQS!$D$3:$AU$3,0),FALSE),"") ->  | H136: =IFERROR(VLOOKUP($A136,PQS!$D$5:$AU$107,MATCH(PQS!$I$3,PQS!$D$3:$AU$3,0),FALSE),"") ->  | I136: =IFERROR(VLOOKUP($A136,PQS!$D$5:$AU$107,MATCH(PQS!$J$3,PQS!$D$3:$AU$3,0),FALSE),"") ->  | J136: =IFERROR(VLOOKUP($A136,PQS!$D$5:$AU$107,MATCH(PQS!$AK$3,PQS!$D$3:$AU$3,0),FALSE),"") ->  | K136: =IFERROR(VLOOKUP($A136,PQS!$D$5:$AU$107,COLUMN(PQS!$AA$5)-3,FALSE),"") ->  | L136: =IFERROR(VLOOKUP($A136,PQS!$D$5:$AU$107,MATCH(PQS!$H$3,PQS!$D$3:$AU$3,0),FALSE),"") ->  | M136: =IFERROR(VLOOKUP($A136,PQS!$D$5:$AU$107,MATCH(PQS!$AF$3,PQS!$D$3:$AU$3,0),FALSE),"") ->  | N136: =IFERROR(HYPERLINK(VLOOKUP($A136,PQS!$D$5:$AU$107,MATCH(PQS!$AJ$3,PQS!$D$3:$AU$3,0),FALSE),VLOOKUP($A136,PQS!$D$5:$AU$107,MATCH(PQS!$AI$3,PQS!$D$3:$AU$3,0),FALSE)),"") -> 
E137: =IFERROR(VLOOKUP($A137,PQS!$D$5:$AU$107,MATCH(PQS!$Q$3,PQS!$D$3:$AU$3,0),FALSE),"") ->  | F137: =IFERROR(VLOOKUP($A137,PQS!$D$5:$AU$107,MATCH(PQS!$AL$3,PQS!$D$3:$AU$3,0),FALSE),"") ->  | H137: =IFERROR(VLOOKUP($A137,PQS!$D$5:$AU$107,MATCH(PQS!$I$3,PQS!$D$3:$AU$3,0),FALSE),"") ->  | I137: =IFERROR(VLOOKUP($A137,PQS!$D$5:$AU$107,MATCH(PQS!$J$3,PQS!$D$3:$AU$3,0),FALSE),"") ->  | J137: =IFERROR(VLOOKUP($A137,PQS!$D$5:$AU$107,MATCH(PQS!$AK$3,PQS!$D$3:$AU$3,0),FALSE),"") ->  | K137: =IFERROR(VLOOKUP($A137,PQS!$D$5:$AU$107,COLUMN(PQS!$AA$5)-3,FALSE),"") ->  | L137: =IFERROR(VLOOKUP($A137,PQS!$D$5:$AU$107,MATCH(PQS!$H$3,PQS!$D$3:$AU$3,0),FALSE),"") ->  | M137: =IFERROR(VLOOKUP($A137,PQS!$D$5:$AU$107,MATCH(PQS!$AF$3,PQS!$D$3:$AU$3,0),FALSE),"") ->  | N137: =IFERROR(HYPERLINK(VLOOKUP($A137,PQS!$D$5:$AU$107,MATCH(PQS!$AJ$3,PQS!$D$3:$AU$3,0),FALSE),VLOOKUP($A137,PQS!$D$5:$AU$107,MATCH(PQS!$AI$3,PQS!$D$3:$AU$3,0),FALSE)),"") -> 
E138: =IFERROR(VLOOKUP($A138,PQS!$D$5:$AU$107,MATCH(PQS!$Q$3,PQS!$D$3:$AU$3,0),FALSE),"") ->  | F138: =IFERROR(VLOOKUP($A138,PQS!$D$5:$AU$107,MATCH(PQS!$AL$3,PQS!$D$3:$AU$3,0),FALSE),"") ->  | H138: =IFERROR(VLOOKUP($A138,PQS!$D$5:$AU$107,MATCH(PQS!$I$3,PQS!$D$3:$AU$3,0),FALSE),"") ->  | I138: =IFERROR(VLOOKUP($A138,PQS!$D$5:$AU$107,MATCH(PQS!$J$3,PQS!$D$3:$AU$3,0),FALSE),"") ->  | J138: =IFERROR(VLOOKUP($A138,PQS!$D$5:$AU$107,MATCH(PQS!$AK$3,PQS!$D$3:$AU$3,0),FALSE),"") ->  | K138: =IFERROR(VLOOKUP($A138,PQS!$D$5:$AU$107,COLUMN(PQS!$AA$5)-3,FALSE),"") ->  | L138: =IFERROR(VLOOKUP($A138,PQS!$D$5:$AU$107,MATCH(PQS!$H$3,PQS!$D$3:$AU$3,0),FALSE),"") ->  | M138: =IFERROR(VLOOKUP($A138,PQS!$D$5:$AU$107,MATCH(PQS!$AF$3,PQS!$D$3:$AU$3,0),FALSE),"") ->  | N138: =IFERROR(HYPERLINK(VLOOKUP($A138,PQS!$D$5:$AU$107,MATCH(PQS!$AJ$3,PQS!$D$3:$AU$3,0),FALSE),VLOOKUP($A138,PQS!$D$5:$AU$107,MATCH(PQS!$AI$3,PQS!$D$3:$AU$3,0),FALSE)),"") -> 
E139: =IFERROR(VLOOKUP($A139,PQS!$D$5:$AU$107,MATCH(PQS!$Q$3,PQS!$D$3:$AU$3,0),FALSE),"") ->  | F139: =IFERROR(VLOOKUP($A139,PQS!$D$5:$AU$107,MATCH(PQS!$AL$3,PQS!$D$3:$AU$3,0),FALSE),"") ->  | H139: =IFERROR(VLOOKUP($A139,PQS!$D$5:$AU$107,MATCH(PQS!$I$3,PQS!$D$3:$AU$3,0),FALSE),"") ->  | I139: =IFERROR(VLOOKUP($A139,PQS!$D$5:$AU$107,MATCH(PQS!$J$3,PQS!$D$3:$AU$3,0),FALSE),"") ->  | J139: =IFERROR(VLOOKUP($A139,PQS!$D$5:$AU$107,MATCH(PQS!$AK$3,PQS!$D$3:$AU$3,0),FALSE),"") ->  | K139: =IFERROR(VLOOKUP($A139,PQS!$D$5:$AU$107,COLUMN(PQS!$AA$5)-3,FALSE),"") ->  | L139: =IFERROR(VLOOKUP($A139,PQS!$D$5:$AU$107,MATCH(PQS!$H$3,PQS!$D$3:$AU$3,0),FALSE),"") ->  | M139: =IFERROR(VLOOKUP($A139,PQS!$D$5:$AU$107,MATCH(PQS!$AF$3,PQS!$D$3:$AU$3,0),FALSE),"") ->  | N139: =IFERROR(HYPERLINK(VLOOKUP($A139,PQS!$D$5:$AU$107,MATCH(PQS!$AJ$3,PQS!$D$3:$AU$3,0),FALSE),VLOOKUP($A139,PQS!$D$5:$AU$107,MATCH(PQS!$AI$3,PQS!$D$3:$AU$3,0),FALSE)),"") -> 
E140: =IFERROR(VLOOKUP($A140,PQS!$D$5:$AU$107,MATCH(PQS!$Q$3,PQS!$D$3:$AU$3,0),FALSE),"") ->  | F140: =IFERROR(VLOOKUP($A140,PQS!$D$5:$AU$107,MATCH(PQS!$AL$3,PQS!$D$3:$AU$3,0),FALSE),"") ->  | H140: =IFERROR(VLOOKUP($A140,PQS!$D$5:$AU$107,MATCH(PQS!$I$3,PQS!$D$3:$AU$3,0),FALSE),"") ->  | I140: =IFERROR(VLOOKUP($A140,PQS!$D$5:$AU$107,MATCH(PQS!$J$3,PQS!$D$3:$AU$3,0),FALSE),"") ->  | J140: =IFERROR(VLOOKUP($A140,PQS!$D$5:$AU$107,MATCH(PQS!$AK$3,PQS!$D$3:$AU$3,0),FALSE),"") ->  | K140: =IFERROR(VLOOKUP($A140,PQS!$D$5:$AU$107,COLUMN(PQS!$AA$5)-3,FALSE),"") ->  | L140: =IFERROR(VLOOKUP($A140,PQS!$D$5:$AU$107,MATCH(PQS!$H$3,PQS!$D$3:$AU$3,0),FALSE),"") ->  | M140: =IFERROR(VLOOKUP($A140,PQS!$D$5:$AU$107,MATCH(PQS!$AF$3,PQS!$D$3:$AU$3,0),FALSE),"") ->  | N140: =IFERROR(HYPERLINK(VLOOKUP($A140,PQS!$D$5:$AU$107,MATCH(PQS!$AJ$3,PQS!$D$3:$AU$3,0),FALSE),VLOOKUP($A140,PQS!$D$5:$AU$107,MATCH(PQS!$AI$3,PQS!$D$3:$AU$3,0),FALSE)),"") -> 
E141: =IFERROR(VLOOKUP($A141,PQS!$D$5:$AU$107,MATCH(PQS!$Q$3,PQS!$D$3:$AU$3,0),FALSE),"") ->  | F141: =IFERROR(VLOOKUP($A141,PQS!$D$5:$AU$107,MATCH(PQS!$AL$3,PQS!$D$3:$AU$3,0),FALSE),"") ->  | H141: =IFERROR(VLOOKUP($A141,PQS!$D$5:$AU$107,MATCH(PQS!$I$3,PQS!$D$3:$AU$3,0),FALSE),"") ->  | I141: =IFERROR(VLOOKUP($A141,PQS!$D$5:$AU$107,MATCH(PQS!$J$3,PQS!$D$3:$AU$3,0),FALSE),"") ->  | J141: =IFERROR(VLOOKUP($A141,PQS!$D$5:$AU$107,MATCH(PQS!$AK$3,PQS!$D$3:$AU$3,0),FALSE),"") ->  | K141: =IFERROR(VLOOKUP($A141,PQS!$D$5:$AU$107,COLUMN(PQS!$AA$5)-3,FALSE),"") ->  | L141: =IFERROR(VLOOKUP($A141,PQS!$D$5:$AU$107,MATCH(PQS!$H$3,PQS!$D$3:$AU$3,0),FALSE),"") ->  | M141: =IFERROR(VLOOKUP($A141,PQS!$D$5:$AU$107,MATCH(PQS!$AF$3,PQS!$D$3:$AU$3,0),FALSE),"") ->  | N141: =IFERROR(HYPERLINK(VLOOKUP($A141,PQS!$D$5:$AU$107,MATCH(PQS!$AJ$3,PQS!$D$3:$AU$3,0),FALSE),VLOOKUP($A141,PQS!$D$5:$AU$107,MATCH(PQS!$AI$3,PQS!$D$3:$AU$3,0),FALSE)),"") -> 
E142: =IFERROR(VLOOKUP($A142,PQS!$D$5:$AU$107,MATCH(PQS!$Q$3,PQS!$D$3:$AU$3,0),FALSE),"") ->  | F142: =IFERROR(VLOOKUP($A142,PQS!$D$5:$AU$107,MATCH(PQS!$AL$3,PQS!$D$3:$AU$3,0),FALSE),"") ->  | H142: =IFERROR(VLOOKUP($A142,PQS!$D$5:$AU$107,MATCH(PQS!$I$3,PQS!$D$3:$AU$3,0),FALSE),"") ->  | I142: =IFERROR(VLOOKUP($A142,PQS!$D$5:$AU$107,MATCH(PQS!$J$3,PQS!$D$3:$AU$3,0),FALSE),"") ->  | J142: =IFERROR(VLOOKUP($A142,PQS!$D$5:$AU$107,MATCH(PQS!$AK$3,PQS!$D$3:$AU$3,0),FALSE),"") ->  | K142: =IFERROR(VLOOKUP($A142,PQS!$D$5:$AU$107,COLUMN(PQS!$AA$5)-3,FALSE),"") ->  | L142: =IFERROR(VLOOKUP($A142,PQS!$D$5:$AU$107,MATCH(PQS!$H$3,PQS!$D$3:$AU$3,0),FALSE),"") ->  | M142: =IFERROR(VLOOKUP($A142,PQS!$D$5:$AU$107,MATCH(PQS!$AF$3,PQS!$D$3:$AU$3,0),FALSE),"") ->  | N142: =IFERROR(HYPERLINK(VLOOKUP($A142,PQS!$D$5:$AU$107,MATCH(PQS!$AJ$3,PQS!$D$3:$AU$3,0),FALSE),VLOOKUP($A142,PQS!$D$5:$AU$107,MATCH(PQS!$AI$3,PQS!$D$3:$AU$3,0),FALSE)),"") -> 
E143: =IFERROR(VLOOKUP($A143,PQS!$D$5:$AU$107,MATCH(PQS!$Q$3,PQS!$D$3:$AU$3,0),FALSE),"") ->  | F143: =IFERROR(VLOOKUP($A143,PQS!$D$5:$AU$107,MATCH(PQS!$AL$3,PQS!$D$3:$AU$3,0),FALSE),"") ->  | H143: =IFERROR(VLOOKUP($A143,PQS!$D$5:$AU$107,MATCH(PQS!$I$3,PQS!$D$3:$AU$3,0),FALSE),"") ->  | I143: =IFERROR(VLOOKUP($A143,PQS!$D$5:$AU$107,MATCH(PQS!$J$3,PQS!$D$3:$AU$3,0),FALSE),"") ->  | J143: =IFERROR(VLOOKUP($A143,PQS!$D$5:$AU$107,MATCH(PQS!$AK$3,PQS!$D$3:$AU$3,0),FALSE),"") ->  | K143: =IFERROR(VLOOKUP($A143,PQS!$D$5:$AU$107,COLUMN(PQS!$AA$5)-3,FALSE),"") ->  | L143: =IFERROR(VLOOKUP($A143,PQS!$D$5:$AU$107,MATCH(PQS!$H$3,PQS!$D$3:$AU$3,0),FALSE),"") ->  | M143: =IFERROR(VLOOKUP($A143,PQS!$D$5:$AU$107,MATCH(PQS!$AF$3,PQS!$D$3:$AU$3,0),FALSE),"") ->  | N143: =IFERROR(HYPERLINK(VLOOKUP($A143,PQS!$D$5:$AU$107,MATCH(PQS!$AJ$3,PQS!$D$3:$AU$3,0),FALSE),VLOOKUP($A143,PQS!$D$5:$AU$107,MATCH(PQS!$AI$3,PQS!$D$3:$AU$3,0),FALSE)),"") -> 
E144: =IFERROR(VLOOKUP($A144,PQS!$D$5:$AU$107,MATCH(PQS!$Q$3,PQS!$D$3:$AU$3,0),FALSE),"") ->  | F144: =IFERROR(VLOOKUP($A144,PQS!$D$5:$AU$107,MATCH(PQS!$AL$3,PQS!$D$3:$AU$3,0),FALSE),"") ->  | H144: =IFERROR(VLOOKUP($A144,PQS!$D$5:$AU$107,MATCH(PQS!$I$3,PQS!$D$3:$AU$3,0),FALSE),"") ->  | I144: =IFERROR(VLOOKUP($A144,PQS!$D$5:$AU$107,MATCH(PQS!$J$3,PQS!$D$3:$AU$3,0),FALSE),"") ->  | J144: =IFERROR(VLOOKUP($A144,PQS!$D$5:$AU$107,MATCH(PQS!$AK$3,PQS!$D$3:$AU$3,0),FALSE),"") ->  | K144: =IFERROR(VLOOKUP($A144,PQS!$D$5:$AU$107,COLUMN(PQS!$AA$5)-3,FALSE),"") ->  | L144: =IFERROR(VLOOKUP($A144,PQS!$D$5:$AU$107,MATCH(PQS!$H$3,PQS!$D$3:$AU$3,0),FALSE),"") ->  | M144: =IFERROR(VLOOKUP($A144,PQS!$D$5:$AU$107,MATCH(PQS!$AF$3,PQS!$D$3:$AU$3,0),FALSE),"") ->  | N144: =IFERROR(HYPERLINK(VLOOKUP($A144,PQS!$D$5:$AU$107,MATCH(PQS!$AJ$3,PQS!$D$3:$AU$3,0),FALSE),VLOOKUP($A144,PQS!$D$5:$AU$107,MATCH(PQS!$AI$3,PQS!$D$3:$AU$3,0),FALSE)),"") -> 
E145: =IFERROR(VLOOKUP($A145,PQS!$D$5:$AU$107,MATCH(PQS!$Q$3,PQS!$D$3:$AU$3,0),FALSE),"") ->  | F145: =IFERROR(VLOOKUP($A145,PQS!$D$5:$AU$107,MATCH(PQS!$AL$3,PQS!$D$3:$AU$3,0),FALSE),"") ->  | H145: =IFERROR(VLOOKUP($A145,PQS!$D$5:$AU$107,MATCH(PQS!$I$3,PQS!$D$3:$AU$3,0),FALSE),"") ->  | I145: =IFERROR(VLOOKUP($A145,PQS!$D$5:$AU$107,MATCH(PQS!$J$3,PQS!$D$3:$AU$3,0),FALSE),"") ->  | J145: =IFERROR(VLOOKUP($A145,PQS!$D$5:$AU$107,MATCH(PQS!$AK$3,PQS!$D$3:$AU$3,0),FALSE),"") ->  | K145: =IFERROR(VLOOKUP($A145,PQS!$D$5:$AU$107,COLUMN(PQS!$AA$5)-3,FALSE),"") ->  | L145: =IFERROR(VLOOKUP($A145,PQS!$D$5:$AU$107,MATCH(PQS!$H$3,PQS!$D$3:$AU$3,0),FALSE),"") ->  | M145: =IFERROR(VLOOKUP($A145,PQS!$D$5:$AU$107,MATCH(PQS!$AF$3,PQS!$D$3:$AU$3,0),FALSE),"") ->  | N145: =IFERROR(HYPERLINK(VLOOKUP($A145,PQS!$D$5:$AU$107,MATCH(PQS!$AJ$3,PQS!$D$3:$AU$3,0),FALSE),VLOOKUP($A145,PQS!$D$5:$AU$107,MATCH(PQS!$AI$3,PQS!$D$3:$AU$3,0),FALSE)),"") -> 
E146: =IFERROR(VLOOKUP($A146,PQS!$D$5:$AU$107,MATCH(PQS!$Q$3,PQS!$D$3:$AU$3,0),FALSE),"") ->  | F146: =IFERROR(VLOOKUP($A146,PQS!$D$5:$AU$107,MATCH(PQS!$AL$3,PQS!$D$3:$AU$3,0),FALSE),"") ->  | H146: =IFERROR(VLOOKUP($A146,PQS!$D$5:$AU$107,MATCH(PQS!$I$3,PQS!$D$3:$AU$3,0),FALSE),"") ->  | I146: =IFERROR(VLOOKUP($A146,PQS!$D$5:$AU$107,MATCH(PQS!$J$3,PQS!$D$3:$AU$3,0),FALSE),"") ->  | J146: =IFERROR(VLOOKUP($A146,PQS!$D$5:$AU$107,MATCH(PQS!$AK$3,PQS!$D$3:$AU$3,0),FALSE),"") ->  | K146: =IFERROR(VLOOKUP($A146,PQS!$D$5:$AU$107,COLUMN(PQS!$AA$5)-3,FALSE),"") ->  | L146: =IFERROR(VLOOKUP($A146,PQS!$D$5:$AU$107,MATCH(PQS!$H$3,PQS!$D$3:$AU$3,0),FALSE),"") ->  | M146: =IFERROR(VLOOKUP($A146,PQS!$D$5:$AU$107,MATCH(PQS!$AF$3,PQS!$D$3:$AU$3,0),FALSE),"") ->  | N146: =IFERROR(HYPERLINK(VLOOKUP($A146,PQS!$D$5:$AU$107,MATCH(PQS!$AJ$3,PQS!$D$3:$AU$3,0),FALSE),VLOOKUP($A146,PQS!$D$5:$AU$107,MATCH(PQS!$AI$3,PQS!$D$3:$AU$3,0),FALSE)),"") -> 
E147: =IFERROR(VLOOKUP($A147,PQS!$D$5:$AU$107,MATCH(PQS!$Q$3,PQS!$D$3:$AU$3,0),FALSE),"") ->  | F147: =IFERROR(VLOOKUP($A147,PQS!$D$5:$AU$107,MATCH(PQS!$AL$3,PQS!$D$3:$AU$3,0),FALSE),"") ->  | H147: =IFERROR(VLOOKUP($A147,PQS!$D$5:$AU$107,MATCH(PQS!$I$3,PQS!$D$3:$AU$3,0),FALSE),"") ->  | I147: =IFERROR(VLOOKUP($A147,PQS!$D$5:$AU$107,MATCH(PQS!$J$3,PQS!$D$3:$AU$3,0),FALSE),"") ->  | J147: =IFERROR(VLOOKUP($A147,PQS!$D$5:$AU$107,MATCH(PQS!$AK$3,PQS!$D$3:$AU$3,0),FALSE),"") ->  | K147: =IFERROR(VLOOKUP($A147,PQS!$D$5:$AU$107,COLUMN(PQS!$AA$5)-3,FALSE),"") ->  | L147: =IFERROR(VLOOKUP($A147,PQS!$D$5:$AU$107,MATCH(PQS!$H$3,PQS!$D$3:$AU$3,0),FALSE),"") ->  | M147: =IFERROR(VLOOKUP($A147,PQS!$D$5:$AU$107,MATCH(PQS!$AF$3,PQS!$D$3:$AU$3,0),FALSE),"") ->  | N147: =IFERROR(HYPERLINK(VLOOKUP($A147,PQS!$D$5:$AU$107,MATCH(PQS!$AJ$3,PQS!$D$3:$AU$3,0),FALSE),VLOOKUP($A147,PQS!$D$5:$AU$107,MATCH(PQS!$AI$3,PQS!$D$3:$AU$3,0),FALSE)),"") -> 
E148: =IFERROR(VLOOKUP($A148,PQS!$D$5:$AU$107,MATCH(PQS!$Q$3,PQS!$D$3:$AU$3,0),FALSE),"") ->  | F148: =IFERROR(VLOOKUP($A148,PQS!$D$5:$AU$107,MATCH(PQS!$AL$3,PQS!$D$3:$AU$3,0),FALSE),"") ->  | H148: =IFERROR(VLOOKUP($A148,PQS!$D$5:$AU$107,MATCH(PQS!$I$3,PQS!$D$3:$AU$3,0),FALSE),"") ->  | I148: =IFERROR(VLOOKUP($A148,PQS!$D$5:$AU$107,MATCH(PQS!$J$3,PQS!$D$3:$AU$3,0),FALSE),"") ->  | J148: =IFERROR(VLOOKUP($A148,PQS!$D$5:$AU$107,MATCH(PQS!$AK$3,PQS!$D$3:$AU$3,0),FALSE),"") ->  | K148: =IFERROR(VLOOKUP($A148,PQS!$D$5:$AU$107,COLUMN(PQS!$AA$5)-3,FALSE),"") ->  | L148: =IFERROR(VLOOKUP($A148,PQS!$D$5:$AU$107,MATCH(PQS!$H$3,PQS!$D$3:$AU$3,0),FALSE),"") ->  | M148: =IFERROR(VLOOKUP($A148,PQS!$D$5:$AU$107,MATCH(PQS!$AF$3,PQS!$D$3:$AU$3,0),FALSE),"") ->  | N148: =IFERROR(HYPERLINK(VLOOKUP($A148,PQS!$D$5:$AU$107,MATCH(PQS!$AJ$3,PQS!$D$3:$AU$3,0),FALSE),VLOOKUP($A148,PQS!$D$5:$AU$107,MATCH(PQS!$AI$3,PQS!$D$3:$AU$3,0),FALSE)),"") -> 
E149: =IFERROR(VLOOKUP($A149,PQS!$D$5:$AU$107,MATCH(PQS!$Q$3,PQS!$D$3:$AU$3,0),FALSE),"") ->  | F149: =IFERROR(VLOOKUP($A149,PQS!$D$5:$AU$107,MATCH(PQS!$AL$3,PQS!$D$3:$AU$3,0),FALSE),"") ->  | H149: =IFERROR(VLOOKUP($A149,PQS!$D$5:$AU$107,MATCH(PQS!$I$3,PQS!$D$3:$AU$3,0),FALSE),"") ->  | I149: =IFERROR(VLOOKUP($A149,PQS!$D$5:$AU$107,MATCH(PQS!$J$3,PQS!$D$3:$AU$3,0),FALSE),"") ->  | J149: =IFERROR(VLOOKUP($A149,PQS!$D$5:$AU$107,MATCH(PQS!$AK$3,PQS!$D$3:$AU$3,0),FALSE),"") ->  | K149: =IFERROR(VLOOKUP($A149,PQS!$D$5:$AU$107,COLUMN(PQS!$AA$5)-3,FALSE),"") ->  | L149: =IFERROR(VLOOKUP($A149,PQS!$D$5:$AU$107,MATCH(PQS!$H$3,PQS!$D$3:$AU$3,0),FALSE),"") ->  | M149: =IFERROR(VLOOKUP($A149,PQS!$D$5:$AU$107,MATCH(PQS!$AF$3,PQS!$D$3:$AU$3,0),FALSE),"") ->  | N149: =IFERROR(HYPERLINK(VLOOKUP($A149,PQS!$D$5:$AU$107,MATCH(PQS!$AJ$3,PQS!$D$3:$AU$3,0),FALSE),VLOOKUP($A149,PQS!$D$5:$AU$107,MATCH(PQS!$AI$3,PQS!$D$3:$AU$3,0),FALSE)),"") -> 
E150: =IFERROR(VLOOKUP($A150,PQS!$D$5:$AU$107,MATCH(PQS!$Q$3,PQS!$D$3:$AU$3,0),FALSE),"") ->  | F150: =IFERROR(VLOOKUP($A150,PQS!$D$5:$AU$107,MATCH(PQS!$AL$3,PQS!$D$3:$AU$3,0),FALSE),"") ->  | H150: =IFERROR(VLOOKUP($A150,PQS!$D$5:$AU$107,MATCH(PQS!$I$3,PQS!$D$3:$AU$3,0),FALSE),"") ->  | I150: =IFERROR(VLOOKUP($A150,PQS!$D$5:$AU$107,MATCH(PQS!$J$3,PQS!$D$3:$AU$3,0),FALSE),"") ->  | J150: =IFERROR(VLOOKUP($A150,PQS!$D$5:$AU$107,MATCH(PQS!$AK$3,PQS!$D$3:$AU$3,0),FALSE),"") ->  | K150: =IFERROR(VLOOKUP($A150,PQS!$D$5:$AU$107,COLUMN(PQS!$AA$5)-3,FALSE),"") ->  | L150: =IFERROR(VLOOKUP($A150,PQS!$D$5:$AU$107,MATCH(PQS!$H$3,PQS!$D$3:$AU$3,0),FALSE),"") ->  | M150: =IFERROR(VLOOKUP($A150,PQS!$D$5:$AU$107,MATCH(PQS!$AF$3,PQS!$D$3:$AU$3,0),FALSE),"") ->  | N150: =IFERROR(HYPERLINK(VLOOKUP($A150,PQS!$D$5:$AU$107,MATCH(PQS!$AJ$3,PQS!$D$3:$AU$3,0),FALSE),VLOOKUP($A150,PQS!$D$5:$AU$107,MATCH(PQS!$AI$3,PQS!$D$3:$AU$3,0),FALSE)),"") -> 
E151: =IFERROR(VLOOKUP($A151,PQS!$D$5:$AU$107,MATCH(PQS!$Q$3,PQS!$D$3:$AU$3,0),FALSE),"") ->  | F151: =IFERROR(VLOOKUP($A151,PQS!$D$5:$AU$107,MATCH(PQS!$AL$3,PQS!$D$3:$AU$3,0),FALSE),"") ->  | H151: =IFERROR(VLOOKUP($A151,PQS!$D$5:$AU$107,MATCH(PQS!$I$3,PQS!$D$3:$AU$3,0),FALSE),"") ->  | I151: =IFERROR(VLOOKUP($A151,PQS!$D$5:$AU$107,MATCH(PQS!$J$3,PQS!$D$3:$AU$3,0),FALSE),"") ->  | J151: =IFERROR(VLOOKUP($A151,PQS!$D$5:$AU$107,MATCH(PQS!$AK$3,PQS!$D$3:$AU$3,0),FALSE),"") ->  | K151: =IFERROR(VLOOKUP($A151,PQS!$D$5:$AU$107,COLUMN(PQS!$AA$5)-3,FALSE),"") ->  | L151: =IFERROR(VLOOKUP($A151,PQS!$D$5:$AU$107,MATCH(PQS!$H$3,PQS!$D$3:$AU$3,0),FALSE),"") ->  | M151: =IFERROR(VLOOKUP($A151,PQS!$D$5:$AU$107,MATCH(PQS!$AF$3,PQS!$D$3:$AU$3,0),FALSE),"") ->  | N151: =IFERROR(HYPERLINK(VLOOKUP($A151,PQS!$D$5:$AU$107,MATCH(PQS!$AJ$3,PQS!$D$3:$AU$3,0),FALSE),VLOOKUP($A151,PQS!$D$5:$AU$107,MATCH(PQS!$AI$3,PQS!$D$3:$AU$3,0),FALSE)),"") -> 
E152: =IFERROR(VLOOKUP($A152,PQS!$D$5:$AU$107,MATCH(PQS!$Q$3,PQS!$D$3:$AU$3,0),FALSE),"") ->  | F152: =IFERROR(VLOOKUP($A152,PQS!$D$5:$AU$107,MATCH(PQS!$AL$3,PQS!$D$3:$AU$3,0),FALSE),"") ->  | H152: =IFERROR(VLOOKUP($A152,PQS!$D$5:$AU$107,MATCH(PQS!$I$3,PQS!$D$3:$AU$3,0),FALSE),"") ->  | I152: =IFERROR(VLOOKUP($A152,PQS!$D$5:$AU$107,MATCH(PQS!$J$3,PQS!$D$3:$AU$3,0),FALSE),"") ->  | J152: =IFERROR(VLOOKUP($A152,PQS!$D$5:$AU$107,MATCH(PQS!$AK$3,PQS!$D$3:$AU$3,0),FALSE),"") ->  | K152: =IFERROR(VLOOKUP($A152,PQS!$D$5:$AU$107,COLUMN(PQS!$AA$5)-3,FALSE),"") ->  | L152: =IFERROR(VLOOKUP($A152,PQS!$D$5:$AU$107,MATCH(PQS!$H$3,PQS!$D$3:$AU$3,0),FALSE),"") ->  | M152: =IFERROR(VLOOKUP($A152,PQS!$D$5:$AU$107,MATCH(PQS!$AF$3,PQS!$D$3:$AU$3,0),FALSE),"") ->  | N152: =IFERROR(HYPERLINK(VLOOKUP($A152,PQS!$D$5:$AU$107,MATCH(PQS!$AJ$3,PQS!$D$3:$AU$3,0),FALSE),VLOOKUP($A152,PQS!$D$5:$AU$107,MATCH(PQS!$AI$3,PQS!$D$3:$AU$3,0),FALSE)),"") -> 
E153: =IFERROR(VLOOKUP($A153,PQS!$D$5:$AU$107,MATCH(PQS!$Q$3,PQS!$D$3:$AU$3,0),FALSE),"") ->  | F153: =IFERROR(VLOOKUP($A153,PQS!$D$5:$AU$107,MATCH(PQS!$AL$3,PQS!$D$3:$AU$3,0),FALSE),"") ->  | H153: =IFERROR(VLOOKUP($A153,PQS!$D$5:$AU$107,MATCH(PQS!$I$3,PQS!$D$3:$AU$3,0),FALSE),"") ->  | I153: =IFERROR(VLOOKUP($A153,PQS!$D$5:$AU$107,MATCH(PQS!$J$3,PQS!$D$3:$AU$3,0),FALSE),"") ->  | J153: =IFERROR(VLOOKUP($A153,PQS!$D$5:$AU$107,MATCH(PQS!$AK$3,PQS!$D$3:$AU$3,0),FALSE),"") ->  | K153: =IFERROR(VLOOKUP($A153,PQS!$D$5:$AU$107,COLUMN(PQS!$AA$5)-3,FALSE),"") ->  | L153: =IFERROR(VLOOKUP($A153,PQS!$D$5:$AU$107,MATCH(PQS!$H$3,PQS!$D$3:$AU$3,0),FALSE),"") ->  | M153: =IFERROR(VLOOKUP($A153,PQS!$D$5:$AU$107,MATCH(PQS!$AF$3,PQS!$D$3:$AU$3,0),FALSE),"") ->  | N153: =IFERROR(HYPERLINK(VLOOKUP($A153,PQS!$D$5:$AU$107,MATCH(PQS!$AJ$3,PQS!$D$3:$AU$3,0),FALSE),VLOOKUP($A153,PQS!$D$5:$AU$107,MATCH(PQS!$AI$3,PQS!$D$3:$AU$3,0),FALSE)),"") -> 
E154: =IFERROR(VLOOKUP($A154,PQS!$D$5:$AU$107,MATCH(PQS!$Q$3,PQS!$D$3:$AU$3,0),FALSE),"") ->  | F154: =IFERROR(VLOOKUP($A154,PQS!$D$5:$AU$107,MATCH(PQS!$AL$3,PQS!$D$3:$AU$3,0),FALSE),"") ->  | G154: =IF(E154="","",(B154/C154)) ->  | H154: =IFERROR(VLOOKUP($A154,PQS!$D$5:$AU$107,MATCH(PQS!$I$3,PQS!$D$3:$AU$3,0),FALSE),"") ->  | I154: =IFERROR(VLOOKUP($A154,PQS!$D$5:$AU$107,MATCH(PQS!$J$3,PQS!$D$3:$AU$3,0),FALSE),"") ->  | J154: =IFERROR(VLOOKUP($A154,PQS!$D$5:$AU$107,MATCH(PQS!$AK$3,PQS!$D$3:$AU$3,0),FALSE),"") ->  | K154: =IFERROR(VLOOKUP($A154,PQS!$D$5:$AU$107,COLUMN(PQS!$AA$5)-3,FALSE),"") ->  | L154: =IFERROR(VLOOKUP($A154,PQS!$D$5:$AU$107,MATCH(PQS!$H$3,PQS!$D$3:$AU$3,0),FALSE),"") ->  | M154: =IFERROR(VLOOKUP($A154,PQS!$D$5:$AU$107,MATCH(PQS!$AF$3,PQS!$D$3:$AU$3,0),FALSE),"") ->  | N154: =IFERROR(HYPERLINK(VLOOKUP($A154,PQS!$D$5:$AU$107,MATCH(PQS!$AJ$3,PQS!$D$3:$AU$3,0),FALSE),VLOOKUP($A154,PQS!$D$5:$AU$107,MATCH(PQS!$AI$3,PQS!$D$3:$AU$3,0),FALSE)),"") -> 
E155: =IFERROR(VLOOKUP($A155,PQS!$D$5:$AU$107,MATCH(PQS!$Q$3,PQS!$D$3:$AU$3,0),FALSE),"") ->  | F155: =IFERROR(VLOOKUP($A155,PQS!$D$5:$AU$107,MATCH(PQS!$AL$3,PQS!$D$3:$AU$3,0),FALSE),"") ->  | H155: =IFERROR(VLOOKUP($A155,PQS!$D$5:$AU$107,MATCH(PQS!$I$3,PQS!$D$3:$AU$3,0),FALSE),"") ->  | I155: =IFERROR(VLOOKUP($A155,PQS!$D$5:$AU$107,MATCH(PQS!$J$3,PQS!$D$3:$AU$3,0),FALSE),"") ->  | J155: =IFERROR(VLOOKUP($A155,PQS!$D$5:$AU$107,MATCH(PQS!$AK$3,PQS!$D$3:$AU$3,0),FALSE),"") ->  | K155: =IFERROR(VLOOKUP($A155,PQS!$D$5:$AU$107,COLUMN(PQS!$AA$5)-3,FALSE),"") ->  | L155: =IFERROR(VLOOKUP($A155,PQS!$D$5:$AU$107,MATCH(PQS!$H$3,PQS!$D$3:$AU$3,0),FALSE),"") ->  | M155: =IFERROR(VLOOKUP($A155,PQS!$D$5:$AU$107,MATCH(PQS!$AF$3,PQS!$D$3:$AU$3,0),FALSE),"") ->  | N155: =IFERROR(HYPERLINK(VLOOKUP($A155,PQS!$D$5:$AU$107,MATCH(PQS!$AJ$3,PQS!$D$3:$AU$3,0),FALSE),VLOOKUP($A155,PQS!$D$5:$AU$107,MATCH(PQS!$AI$3,PQS!$D$3:$AU$3,0),FALSE)),"") -> 
E156: =IFERROR(VLOOKUP($A156,PQS!$D$5:$AU$107,MATCH(PQS!$Q$3,PQS!$D$3:$AU$3,0),FALSE),"") ->  | F156: =IFERROR(VLOOKUP($A156,PQS!$D$5:$AU$107,MATCH(PQS!$AL$3,PQS!$D$3:$AU$3,0),FALSE),"") ->  | H156: =IFERROR(VLOOKUP($A156,PQS!$D$5:$AU$107,MATCH(PQS!$I$3,PQS!$D$3:$AU$3,0),FALSE),"") ->  | I156: =IFERROR(VLOOKUP($A156,PQS!$D$5:$AU$107,MATCH(PQS!$J$3,PQS!$D$3:$AU$3,0),FALSE),"") ->  | J156: =IFERROR(VLOOKUP($A156,PQS!$D$5:$AU$107,MATCH(PQS!$AK$3,PQS!$D$3:$AU$3,0),FALSE),"") ->  | K156: =IFERROR(VLOOKUP($A156,PQS!$D$5:$AU$107,COLUMN(PQS!$AA$5)-3,FALSE),"") ->  | L156: =IFERROR(VLOOKUP($A156,PQS!$D$5:$AU$107,MATCH(PQS!$H$3,PQS!$D$3:$AU$3,0),FALSE),"") ->  | M156: =IFERROR(VLOOKUP($A156,PQS!$D$5:$AU$107,MATCH(PQS!$AF$3,PQS!$D$3:$AU$3,0),FALSE),"") ->  | N156: =IFERROR(HYPERLINK(VLOOKUP($A156,PQS!$D$5:$AU$107,MATCH(PQS!$AJ$3,PQS!$D$3:$AU$3,0),FALSE),VLOOKUP($A156,PQS!$D$5:$AU$107,MATCH(PQS!$AI$3,PQS!$D$3:$AU$3,0),FALSE)),"") -> 
E157: =IFERROR(VLOOKUP($A157,PQS!$D$5:$AU$107,MATCH(PQS!$Q$3,PQS!$D$3:$AU$3,0),FALSE),"") ->  | F157: =IFERROR(VLOOKUP($A157,PQS!$D$5:$AU$107,MATCH(PQS!$AL$3,PQS!$D$3:$AU$3,0),FALSE),"") ->  | H157: =IFERROR(VLOOKUP($A157,PQS!$D$5:$AU$107,MATCH(PQS!$I$3,PQS!$D$3:$AU$3,0),FALSE),"") ->  | I157: =IFERROR(VLOOKUP($A157,PQS!$D$5:$AU$107,MATCH(PQS!$J$3,PQS!$D$3:$AU$3,0),FALSE),"") ->  | J157: =IFERROR(VLOOKUP($A157,PQS!$D$5:$AU$107,MATCH(PQS!$AK$3,PQS!$D$3:$AU$3,0),FALSE),"") ->  | K157: =IFERROR(VLOOKUP($A157,PQS!$D$5:$AU$107,COLUMN(PQS!$AA$5)-3,FALSE),"") ->  | L157: =IFERROR(VLOOKUP($A157,PQS!$D$5:$AU$107,MATCH(PQS!$H$3,PQS!$D$3:$AU$3,0),FALSE),"") ->  | M157: =IFERROR(VLOOKUP($A157,PQS!$D$5:$AU$107,MATCH(PQS!$AF$3,PQS!$D$3:$AU$3,0),FALSE),"") ->  | N157: =IFERROR(HYPERLINK(VLOOKUP($A157,PQS!$D$5:$AU$107,MATCH(PQS!$AJ$3,PQS!$D$3:$AU$3,0),FALSE),VLOOKUP($A157,PQS!$D$5:$AU$107,MATCH(PQS!$AI$3,PQS!$D$3:$AU$3,0),FALSE)),"") -> 
E158: =IFERROR(VLOOKUP($A158,PQS!$D$5:$AU$107,MATCH(PQS!$Q$3,PQS!$D$3:$AU$3,0),FALSE),"") ->  | F158: =IFERROR(VLOOKUP($A158,PQS!$D$5:$AU$107,MATCH(PQS!$AL$3,PQS!$D$3:$AU$3,0),FALSE),"") ->  | H158: =IFERROR(VLOOKUP($A158,PQS!$D$5:$AU$107,MATCH(PQS!$I$3,PQS!$D$3:$AU$3,0),FALSE),"") ->  | I158: =IFERROR(VLOOKUP($A158,PQS!$D$5:$AU$107,MATCH(PQS!$J$3,PQS!$D$3:$AU$3,0),FALSE),"") ->  | J158: =IFERROR(VLOOKUP($A158,PQS!$D$5:$AU$107,MATCH(PQS!$AK$3,PQS!$D$3:$AU$3,0),FALSE),"") ->  | K158: =IFERROR(VLOOKUP($A158,PQS!$D$5:$AU$107,COLUMN(PQS!$AA$5)-3,FALSE),"") ->  | L158: =IFERROR(VLOOKUP($A158,PQS!$D$5:$AU$107,MATCH(PQS!$H$3,PQS!$D$3:$AU$3,0),FALSE),"") ->  | M158: =IFERROR(VLOOKUP($A158,PQS!$D$5:$AU$107,MATCH(PQS!$AF$3,PQS!$D$3:$AU$3,0),FALSE),"") ->  | N158: =IFERROR(HYPERLINK(VLOOKUP($A158,PQS!$D$5:$AU$107,MATCH(PQS!$AJ$3,PQS!$D$3:$AU$3,0),FALSE),VLOOKUP($A158,PQS!$D$5:$AU$107,MATCH(PQS!$AI$3,PQS!$D$3:$AU$3,0),FALSE)),"") -> 
E159: =IFERROR(VLOOKUP($A159,PQS!$D$5:$AU$107,MATCH(PQS!$Q$3,PQS!$D$3:$AU$3,0),FALSE),"") ->  | F159: =IFERROR(VLOOKUP($A159,PQS!$D$5:$AU$107,MATCH(PQS!$AL$3,PQS!$D$3:$AU$3,0),FALSE),"") ->  | H159: =IFERROR(VLOOKUP($A159,PQS!$D$5:$AU$107,MATCH(PQS!$I$3,PQS!$D$3:$AU$3,0),FALSE),"") ->  | I159: =IFERROR(VLOOKUP($A159,PQS!$D$5:$AU$107,MATCH(PQS!$J$3,PQS!$D$3:$AU$3,0),FALSE),"") ->  | J159: =IFERROR(VLOOKUP($A159,PQS!$D$5:$AU$107,MATCH(PQS!$AK$3,PQS!$D$3:$AU$3,0),FALSE),"") ->  | K159: =IFERROR(VLOOKUP($A159,PQS!$D$5:$AU$107,COLUMN(PQS!$AA$5)-3,FALSE),"") ->  | L159: =IFERROR(VLOOKUP($A159,PQS!$D$5:$AU$107,MATCH(PQS!$H$3,PQS!$D$3:$AU$3,0),FALSE),"") ->  | M159: =IFERROR(VLOOKUP($A159,PQS!$D$5:$AU$107,MATCH(PQS!$AF$3,PQS!$D$3:$AU$3,0),FALSE),"") ->  | N159: =IFERROR(HYPERLINK(VLOOKUP($A159,PQS!$D$5:$AU$107,MATCH(PQS!$AJ$3,PQS!$D$3:$AU$3,0),FALSE),VLOOKUP($A159,PQS!$D$5:$AU$107,MATCH(PQS!$AI$3,PQS!$D$3:$AU$3,0),FALSE)),"") -> 
E160: =IFERROR(VLOOKUP($A160,PQS!$D$5:$AU$107,MATCH(PQS!$Q$3,PQS!$D$3:$AU$3,0),FALSE),"") ->  | F160: =IFERROR(VLOOKUP($A160,PQS!$D$5:$AU$107,MATCH(PQS!$AL$3,PQS!$D$3:$AU$3,0),FALSE),"") ->  | H160: =IFERROR(VLOOKUP($A160,PQS!$D$5:$AU$107,MATCH(PQS!$I$3,PQS!$D$3:$AU$3,0),FALSE),"") ->  | I160: =IFERROR(VLOOKUP($A160,PQS!$D$5:$AU$107,MATCH(PQS!$J$3,PQS!$D$3:$AU$3,0),FALSE),"") ->  | J160: =IFERROR(VLOOKUP($A160,PQS!$D$5:$AU$107,MATCH(PQS!$AK$3,PQS!$D$3:$AU$3,0),FALSE),"") ->  | K160: =IFERROR(VLOOKUP($A160,PQS!$D$5:$AU$107,COLUMN(PQS!$AA$5)-3,FALSE),"") ->  | L160: =IFERROR(VLOOKUP($A160,PQS!$D$5:$AU$107,MATCH(PQS!$H$3,PQS!$D$3:$AU$3,0),FALSE),"") ->  | M160: =IFERROR(VLOOKUP($A160,PQS!$D$5:$AU$107,MATCH(PQS!$AF$3,PQS!$D$3:$AU$3,0),FALSE),"") ->  | N160: =IFERROR(HYPERLINK(VLOOKUP($A160,PQS!$D$5:$AU$107,MATCH(PQS!$AJ$3,PQS!$D$3:$AU$3,0),FALSE),VLOOKUP($A160,PQS!$D$5:$AU$107,MATCH(PQS!$AI$3,PQS!$D$3:$AU$3,0),FALSE)),"") -> 
E161: =IFERROR(VLOOKUP($A161,PQS!$D$5:$AU$107,MATCH(PQS!$Q$3,PQS!$D$3:$AU$3,0),FALSE),"") ->  | F161: =IFERROR(VLOOKUP($A161,PQS!$D$5:$AU$107,MATCH(PQS!$AL$3,PQS!$D$3:$AU$3,0),FALSE),"") ->  | H161: =IFERROR(VLOOKUP($A161,PQS!$D$5:$AU$107,MATCH(PQS!$I$3,PQS!$D$3:$AU$3,0),FALSE),"") ->  | I161: =IFERROR(VLOOKUP($A161,PQS!$D$5:$AU$107,MATCH(PQS!$J$3,PQS!$D$3:$AU$3,0),FALSE),"") ->  | J161: =IFERROR(VLOOKUP($A161,PQS!$D$5:$AU$107,MATCH(PQS!$AK$3,PQS!$D$3:$AU$3,0),FALSE),"") ->  | K161: =IFERROR(VLOOKUP($A161,PQS!$D$5:$AU$107,COLUMN(PQS!$AA$5)-3,FALSE),"") ->  | L161: =IFERROR(VLOOKUP($A161,PQS!$D$5:$AU$107,MATCH(PQS!$H$3,PQS!$D$3:$AU$3,0),FALSE),"") ->  | M161: =IFERROR(VLOOKUP($A161,PQS!$D$5:$AU$107,MATCH(PQS!$AF$3,PQS!$D$3:$AU$3,0),FALSE),"") ->  | N161: =IFERROR(HYPERLINK(VLOOKUP($A161,PQS!$D$5:$AU$107,MATCH(PQS!$AJ$3,PQS!$D$3:$AU$3,0),FALSE),VLOOKUP($A161,PQS!$D$5:$AU$107,MATCH(PQS!$AI$3,PQS!$D$3:$AU$3,0),FALSE)),"") -> 
E162: =IFERROR(VLOOKUP($A162,PQS!$D$5:$AU$107,MATCH(PQS!$Q$3,PQS!$D$3:$AU$3,0),FALSE),"") ->  | F162: =IFERROR(VLOOKUP($A162,PQS!$D$5:$AU$107,MATCH(PQS!$AL$3,PQS!$D$3:$AU$3,0),FALSE),"") ->  | H162: =IFERROR(VLOOKUP($A162,PQS!$D$5:$AU$107,MATCH(PQS!$I$3,PQS!$D$3:$AU$3,0),FALSE),"") ->  | I162: =IFERROR(VLOOKUP($A162,PQS!$D$5:$AU$107,MATCH(PQS!$J$3,PQS!$D$3:$AU$3,0),FALSE),"") ->  | J162: =IFERROR(VLOOKUP($A162,PQS!$D$5:$AU$107,MATCH(PQS!$AK$3,PQS!$D$3:$AU$3,0),FALSE),"") ->  | K162: =IFERROR(VLOOKUP($A162,PQS!$D$5:$AU$107,COLUMN(PQS!$AA$5)-3,FALSE),"") ->  | L162: =IFERROR(VLOOKUP($A162,PQS!$D$5:$AU$107,MATCH(PQS!$H$3,PQS!$D$3:$AU$3,0),FALSE),"") ->  | M162: =IFERROR(VLOOKUP($A162,PQS!$D$5:$AU$107,MATCH(PQS!$AF$3,PQS!$D$3:$AU$3,0),FALSE),"") ->  | N162: =IFERROR(HYPERLINK(VLOOKUP($A162,PQS!$D$5:$AU$107,MATCH(PQS!$AJ$3,PQS!$D$3:$AU$3,0),FALSE),VLOOKUP($A162,PQS!$D$5:$AU$107,MATCH(PQS!$AI$3,PQS!$D$3:$AU$3,0),FALSE)),"") -> 
E163: =IFERROR(VLOOKUP($A163,PQS!$D$5:$AU$107,MATCH(PQS!$Q$3,PQS!$D$3:$AU$3,0),FALSE),"") ->  | F163: =IFERROR(VLOOKUP($A163,PQS!$D$5:$AU$107,MATCH(PQS!$AL$3,PQS!$D$3:$AU$3,0),FALSE),"") ->  | H163: =IFERROR(VLOOKUP($A163,PQS!$D$5:$AU$107,MATCH(PQS!$I$3,PQS!$D$3:$AU$3,0),FALSE),"") ->  | I163: =IFERROR(VLOOKUP($A163,PQS!$D$5:$AU$107,MATCH(PQS!$J$3,PQS!$D$3:$AU$3,0),FALSE),"") ->  | J163: =IFERROR(VLOOKUP($A163,PQS!$D$5:$AU$107,MATCH(PQS!$AK$3,PQS!$D$3:$AU$3,0),FALSE),"") ->  | K163: =IFERROR(VLOOKUP($A163,PQS!$D$5:$AU$107,COLUMN(PQS!$AA$5)-3,FALSE),"") ->  | L163: =IFERROR(VLOOKUP($A163,PQS!$D$5:$AU$107,MATCH(PQS!$H$3,PQS!$D$3:$AU$3,0),FALSE),"") ->  | M163: =IFERROR(VLOOKUP($A163,PQS!$D$5:$AU$107,MATCH(PQS!$AF$3,PQS!$D$3:$AU$3,0),FALSE),"") ->  | N163: =IFERROR(HYPERLINK(VLOOKUP($A163,PQS!$D$5:$AU$107,MATCH(PQS!$AJ$3,PQS!$D$3:$AU$3,0),FALSE),VLOOKUP($A163,PQS!$D$5:$AU$107,MATCH(PQS!$AI$3,PQS!$D$3:$AU$3,0),FALSE)),"") -> 
E164: =IFERROR(VLOOKUP($A164,PQS!$D$5:$AU$107,MATCH(PQS!$Q$3,PQS!$D$3:$AU$3,0),FALSE),"") ->  | F164: =IFERROR(VLOOKUP($A164,PQS!$D$5:$AU$107,MATCH(PQS!$AL$3,PQS!$D$3:$AU$3,0),FALSE),"") ->  | H164: =IFERROR(VLOOKUP($A164,PQS!$D$5:$AU$107,MATCH(PQS!$I$3,PQS!$D$3:$AU$3,0),FALSE),"") ->  | I164: =IFERROR(VLOOKUP($A164,PQS!$D$5:$AU$107,MATCH(PQS!$J$3,PQS!$D$3:$AU$3,0),FALSE),"") ->  | J164: =IFERROR(VLOOKUP($A164,PQS!$D$5:$AU$107,MATCH(PQS!$AK$3,PQS!$D$3:$AU$3,0),FALSE),"") ->  | K164: =IFERROR(VLOOKUP($A164,PQS!$D$5:$AU$107,COLUMN(PQS!$AA$5)-3,FALSE),"") ->  | L164: =IFERROR(VLOOKUP($A164,PQS!$D$5:$AU$107,MATCH(PQS!$H$3,PQS!$D$3:$AU$3,0),FALSE),"") ->  | M164: =IFERROR(VLOOKUP($A164,PQS!$D$5:$AU$107,MATCH(PQS!$AF$3,PQS!$D$3:$AU$3,0),FALSE),"") ->  | N164: =IFERROR(HYPERLINK(VLOOKUP($A164,PQS!$D$5:$AU$107,MATCH(PQS!$AJ$3,PQS!$D$3:$AU$3,0),FALSE),VLOOKUP($A164,PQS!$D$5:$AU$107,MATCH(PQS!$AI$3,PQS!$D$3:$AU$3,0),FALSE)),"") -> 
E165: =IFERROR(VLOOKUP($A165,PQS!$D$5:$AU$107,MATCH(PQS!$Q$3,PQS!$D$3:$AU$3,0),FALSE),"") ->  | F165: =IFERROR(VLOOKUP($A165,PQS!$D$5:$AU$107,MATCH(PQS!$AL$3,PQS!$D$3:$AU$3,0),FALSE),"") ->  | H165: =IFERROR(VLOOKUP($A165,PQS!$D$5:$AU$107,MATCH(PQS!$I$3,PQS!$D$3:$AU$3,0),FALSE),"") ->  | I165: =IFERROR(VLOOKUP($A165,PQS!$D$5:$AU$107,MATCH(PQS!$J$3,PQS!$D$3:$AU$3,0),FALSE),"") ->  | J165: =IFERROR(VLOOKUP($A165,PQS!$D$5:$AU$107,MATCH(PQS!$AK$3,PQS!$D$3:$AU$3,0),FALSE),"") ->  | K165: =IFERROR(VLOOKUP($A165,PQS!$D$5:$AU$107,COLUMN(PQS!$AA$5)-3,FALSE),"") ->  | L165: =IFERROR(VLOOKUP($A165,PQS!$D$5:$AU$107,MATCH(PQS!$H$3,PQS!$D$3:$AU$3,0),FALSE),"") ->  | M165: =IFERROR(VLOOKUP($A165,PQS!$D$5:$AU$107,MATCH(PQS!$AF$3,PQS!$D$3:$AU$3,0),FALSE),"") ->  | N165: =IFERROR(HYPERLINK(VLOOKUP($A165,PQS!$D$5:$AU$107,MATCH(PQS!$AJ$3,PQS!$D$3:$AU$3,0),FALSE),VLOOKUP($A165,PQS!$D$5:$AU$107,MATCH(PQS!$AI$3,PQS!$D$3:$AU$3,0),FALSE)),"") -> 
E166: =IFERROR(VLOOKUP($A166,PQS!$D$5:$AU$107,MATCH(PQS!$Q$3,PQS!$D$3:$AU$3,0),FALSE),"") ->  | F166: =IFERROR(VLOOKUP($A166,PQS!$D$5:$AU$107,MATCH(PQS!$AL$3,PQS!$D$3:$AU$3,0),FALSE),"") ->  | H166: =IFERROR(VLOOKUP($A166,PQS!$D$5:$AU$107,MATCH(PQS!$I$3,PQS!$D$3:$AU$3,0),FALSE),"") ->  | I166: =IFERROR(VLOOKUP($A166,PQS!$D$5:$AU$107,MATCH(PQS!$J$3,PQS!$D$3:$AU$3,0),FALSE),"") ->  | J166: =IFERROR(VLOOKUP($A166,PQS!$D$5:$AU$107,MATCH(PQS!$AK$3,PQS!$D$3:$AU$3,0),FALSE),"") ->  | K166: =IFERROR(VLOOKUP($A166,PQS!$D$5:$AU$107,COLUMN(PQS!$AA$5)-3,FALSE),"") ->  | L166: =IFERROR(VLOOKUP($A166,PQS!$D$5:$AU$107,MATCH(PQS!$H$3,PQS!$D$3:$AU$3,0),FALSE),"") ->  | M166: =IFERROR(VLOOKUP($A166,PQS!$D$5:$AU$107,MATCH(PQS!$AF$3,PQS!$D$3:$AU$3,0),FALSE),"") ->  | N166: =IFERROR(HYPERLINK(VLOOKUP($A166,PQS!$D$5:$AU$107,MATCH(PQS!$AJ$3,PQS!$D$3:$AU$3,0),FALSE),VLOOKUP($A166,PQS!$D$5:$AU$107,MATCH(PQS!$AI$3,PQS!$D$3:$AU$3,0),FALSE)),"") -> 
E167: =IFERROR(VLOOKUP($A167,PQS!$D$5:$AU$107,MATCH(PQS!$Q$3,PQS!$D$3:$AU$3,0),FALSE),"") ->  | F167: =IFERROR(VLOOKUP($A167,PQS!$D$5:$AU$107,MATCH(PQS!$AL$3,PQS!$D$3:$AU$3,0),FALSE),"") ->  | H167: =IFERROR(VLOOKUP($A167,PQS!$D$5:$AU$107,MATCH(PQS!$I$3,PQS!$D$3:$AU$3,0),FALSE),"") ->  | I167: =IFERROR(VLOOKUP($A167,PQS!$D$5:$AU$107,MATCH(PQS!$J$3,PQS!$D$3:$AU$3,0),FALSE),"") ->  | J167: =IFERROR(VLOOKUP($A167,PQS!$D$5:$AU$107,MATCH(PQS!$AK$3,PQS!$D$3:$AU$3,0),FALSE),"") ->  | K167: =IFERROR(VLOOKUP($A167,PQS!$D$5:$AU$107,COLUMN(PQS!$AA$5)-3,FALSE),"") ->  | L167: =IFERROR(VLOOKUP($A167,PQS!$D$5:$AU$107,MATCH(PQS!$H$3,PQS!$D$3:$AU$3,0),FALSE),"") ->  | M167: =IFERROR(VLOOKUP($A167,PQS!$D$5:$AU$107,MATCH(PQS!$AF$3,PQS!$D$3:$AU$3,0),FALSE),"") ->  | N167: =IFERROR(HYPERLINK(VLOOKUP($A167,PQS!$D$5:$AU$107,MATCH(PQS!$AJ$3,PQS!$D$3:$AU$3,0),FALSE),VLOOKUP($A167,PQS!$D$5:$AU$107,MATCH(PQS!$AI$3,PQS!$D$3:$AU$3,0),FALSE)),"") -> 
E168: =IFERROR(VLOOKUP($A168,PQS!$D$5:$AU$107,MATCH(PQS!$Q$3,PQS!$D$3:$AU$3,0),FALSE),"") ->  | F168: =IFERROR(VLOOKUP($A168,PQS!$D$5:$AU$107,MATCH(PQS!$AL$3,PQS!$D$3:$AU$3,0),FALSE),"") ->  | H168: =IFERROR(VLOOKUP($A168,PQS!$D$5:$AU$107,MATCH(PQS!$I$3,PQS!$D$3:$AU$3,0),FALSE),"") ->  | I168: =IFERROR(VLOOKUP($A168,PQS!$D$5:$AU$107,MATCH(PQS!$J$3,PQS!$D$3:$AU$3,0),FALSE),"") ->  | J168: =IFERROR(VLOOKUP($A168,PQS!$D$5:$AU$107,MATCH(PQS!$AK$3,PQS!$D$3:$AU$3,0),FALSE),"") ->  | K168: =IFERROR(VLOOKUP($A168,PQS!$D$5:$AU$107,COLUMN(PQS!$AA$5)-3,FALSE),"") ->  | L168: =IFERROR(VLOOKUP($A168,PQS!$D$5:$AU$107,MATCH(PQS!$H$3,PQS!$D$3:$AU$3,0),FALSE),"") ->  | M168: =IFERROR(VLOOKUP($A168,PQS!$D$5:$AU$107,MATCH(PQS!$AF$3,PQS!$D$3:$AU$3,0),FALSE),"") ->  | N168: =IFERROR(HYPERLINK(VLOOKUP($A168,PQS!$D$5:$AU$107,MATCH(PQS!$AJ$3,PQS!$D$3:$AU$3,0),FALSE),VLOOKUP($A168,PQS!$D$5:$AU$107,MATCH(PQS!$AI$3,PQS!$D$3:$AU$3,0),FALSE)),"") -> 
E169: =IFERROR(VLOOKUP($A169,PQS!$D$5:$AU$107,MATCH(PQS!$Q$3,PQS!$D$3:$AU$3,0),FALSE),"") ->  | F169: =IFERROR(VLOOKUP($A169,PQS!$D$5:$AU$107,MATCH(PQS!$AL$3,PQS!$D$3:$AU$3,0),FALSE),"") ->  | H169: =IFERROR(VLOOKUP($A169,PQS!$D$5:$AU$107,MATCH(PQS!$I$3,PQS!$D$3:$AU$3,0),FALSE),"") ->  | I169: =IFERROR(VLOOKUP($A169,PQS!$D$5:$AU$107,MATCH(PQS!$J$3,PQS!$D$3:$AU$3,0),FALSE),"") ->  | J169: =IFERROR(VLOOKUP($A169,PQS!$D$5:$AU$107,MATCH(PQS!$AK$3,PQS!$D$3:$AU$3,0),FALSE),"") ->  | K169: =IFERROR(VLOOKUP($A169,PQS!$D$5:$AU$107,COLUMN(PQS!$AA$5)-3,FALSE),"") ->  | L169: =IFERROR(VLOOKUP($A169,PQS!$D$5:$AU$107,MATCH(PQS!$H$3,PQS!$D$3:$AU$3,0),FALSE),"") ->  | M169: =IFERROR(VLOOKUP($A169,PQS!$D$5:$AU$107,MATCH(PQS!$AF$3,PQS!$D$3:$AU$3,0),FALSE),"") ->  | N169: =IFERROR(HYPERLINK(VLOOKUP($A169,PQS!$D$5:$AU$107,MATCH(PQS!$AJ$3,PQS!$D$3:$AU$3,0),FALSE),VLOOKUP($A169,PQS!$D$5:$AU$107,MATCH(PQS!$AI$3,PQS!$D$3:$AU$3,0),FALSE)),"") -> 
E170: =IFERROR(VLOOKUP($A170,PQS!$D$5:$AU$107,MATCH(PQS!$Q$3,PQS!$D$3:$AU$3,0),FALSE),"") ->  | F170: =IFERROR(VLOOKUP($A170,PQS!$D$5:$AU$107,MATCH(PQS!$AL$3,PQS!$D$3:$AU$3,0),FALSE),"") ->  | H170: =IFERROR(VLOOKUP($A170,PQS!$D$5:$AU$107,MATCH(PQS!$I$3,PQS!$D$3:$AU$3,0),FALSE),"") ->  | I170: =IFERROR(VLOOKUP($A170,PQS!$D$5:$AU$107,MATCH(PQS!$J$3,PQS!$D$3:$AU$3,0),FALSE),"") ->  | J170: =IFERROR(VLOOKUP($A170,PQS!$D$5:$AU$107,MATCH(PQS!$AK$3,PQS!$D$3:$AU$3,0),FALSE),"") ->  | K170: =IFERROR(VLOOKUP($A170,PQS!$D$5:$AU$107,COLUMN(PQS!$AA$5)-3,FALSE),"") ->  | L170: =IFERROR(VLOOKUP($A170,PQS!$D$5:$AU$107,MATCH(PQS!$H$3,PQS!$D$3:$AU$3,0),FALSE),"") ->  | M170: =IFERROR(VLOOKUP($A170,PQS!$D$5:$AU$107,MATCH(PQS!$AF$3,PQS!$D$3:$AU$3,0),FALSE),"") ->  | N170: =IFERROR(HYPERLINK(VLOOKUP($A170,PQS!$D$5:$AU$107,MATCH(PQS!$AJ$3,PQS!$D$3:$AU$3,0),FALSE),VLOOKUP($A170,PQS!$D$5:$AU$107,MATCH(PQS!$AI$3,PQS!$D$3:$AU$3,0),FALSE)),"") -> 
E171: =IFERROR(VLOOKUP($A171,PQS!$D$5:$AU$107,MATCH(PQS!$Q$3,PQS!$D$3:$AU$3,0),FALSE),"") ->  | F171: =IFERROR(VLOOKUP($A171,PQS!$D$5:$AU$107,MATCH(PQS!$AL$3,PQS!$D$3:$AU$3,0),FALSE),"") ->  | H171: =IFERROR(VLOOKUP($A171,PQS!$D$5:$AU$107,MATCH(PQS!$I$3,PQS!$D$3:$AU$3,0),FALSE),"") ->  | I171: =IFERROR(VLOOKUP($A171,PQS!$D$5:$AU$107,MATCH(PQS!$J$3,PQS!$D$3:$AU$3,0),FALSE),"") ->  | J171: =IFERROR(VLOOKUP($A171,PQS!$D$5:$AU$107,MATCH(PQS!$AK$3,PQS!$D$3:$AU$3,0),FALSE),"") ->  | K171: =IFERROR(VLOOKUP($A171,PQS!$D$5:$AU$107,COLUMN(PQS!$AA$5)-3,FALSE),"") ->  | L171: =IFERROR(VLOOKUP($A171,PQS!$D$5:$AU$107,MATCH(PQS!$H$3,PQS!$D$3:$AU$3,0),FALSE),"") ->  | M171: =IFERROR(VLOOKUP($A171,PQS!$D$5:$AU$107,MATCH(PQS!$AF$3,PQS!$D$3:$AU$3,0),FALSE),"") ->  | N171: =IFERROR(HYPERLINK(VLOOKUP($A171,PQS!$D$5:$AU$107,MATCH(PQS!$AJ$3,PQS!$D$3:$AU$3,0),FALSE),VLOOKUP($A171,PQS!$D$5:$AU$107,MATCH(PQS!$AI$3,PQS!$D$3:$AU$3,0),FALSE)),"") -> 
E172: =IFERROR(VLOOKUP($A172,PQS!$D$5:$AU$107,MATCH(PQS!$Q$3,PQS!$D$3:$AU$3,0),FALSE),"") ->  | F172: =IFERROR(VLOOKUP($A172,PQS!$D$5:$AU$107,MATCH(PQS!$AL$3,PQS!$D$3:$AU$3,0),FALSE),"") ->  | H172: =IFERROR(VLOOKUP($A172,PQS!$D$5:$AU$107,MATCH(PQS!$I$3,PQS!$D$3:$AU$3,0),FALSE),"") ->  | I172: =IFERROR(VLOOKUP($A172,PQS!$D$5:$AU$107,MATCH(PQS!$J$3,PQS!$D$3:$AU$3,0),FALSE),"") ->  | J172: =IFERROR(VLOOKUP($A172,PQS!$D$5:$AU$107,MATCH(PQS!$AK$3,PQS!$D$3:$AU$3,0),FALSE),"") ->  | K172: =IFERROR(VLOOKUP($A172,PQS!$D$5:$AU$107,COLUMN(PQS!$AA$5)-3,FALSE),"") ->  | L172: =IFERROR(VLOOKUP($A172,PQS!$D$5:$AU$107,MATCH(PQS!$H$3,PQS!$D$3:$AU$3,0),FALSE),"") ->  | M172: =IFERROR(VLOOKUP($A172,PQS!$D$5:$AU$107,MATCH(PQS!$AF$3,PQS!$D$3:$AU$3,0),FALSE),"") ->  | N172: =IFERROR(HYPERLINK(VLOOKUP($A172,PQS!$D$5:$AU$107,MATCH(PQS!$AJ$3,PQS!$D$3:$AU$3,0),FALSE),VLOOKUP($A172,PQS!$D$5:$AU$107,MATCH(PQS!$AI$3,PQS!$D$3:$AU$3,0),FALSE)),"") -> 
E173: =IFERROR(VLOOKUP($A173,PQS!$D$5:$AU$107,MATCH(PQS!$Q$3,PQS!$D$3:$AU$3,0),FALSE),"") ->  | F173: =IFERROR(VLOOKUP($A173,PQS!$D$5:$AU$107,MATCH(PQS!$AL$3,PQS!$D$3:$AU$3,0),FALSE),"") ->  | H173: =IFERROR(VLOOKUP($A173,PQS!$D$5:$AU$107,MATCH(PQS!$I$3,PQS!$D$3:$AU$3,0),FALSE),"") ->  | I173: =IFERROR(VLOOKUP($A173,PQS!$D$5:$AU$107,MATCH(PQS!$J$3,PQS!$D$3:$AU$3,0),FALSE),"") ->  | J173: =IFERROR(VLOOKUP($A173,PQS!$D$5:$AU$107,MATCH(PQS!$AK$3,PQS!$D$3:$AU$3,0),FALSE),"") ->  | K173: =IFERROR(VLOOKUP($A173,PQS!$D$5:$AU$107,COLUMN(PQS!$AA$5)-3,FALSE),"") ->  | L173: =IFERROR(VLOOKUP($A173,PQS!$D$5:$AU$107,MATCH(PQS!$H$3,PQS!$D$3:$AU$3,0),FALSE),"") ->  | M173: =IFERROR(VLOOKUP($A173,PQS!$D$5:$AU$107,MATCH(PQS!$AF$3,PQS!$D$3:$AU$3,0),FALSE),"") ->  | N173: =IFERROR(HYPERLINK(VLOOKUP($A173,PQS!$D$5:$AU$107,MATCH(PQS!$AJ$3,PQS!$D$3:$AU$3,0),FALSE),VLOOKUP($A173,PQS!$D$5:$AU$107,MATCH(PQS!$AI$3,PQS!$D$3:$AU$3,0),FALSE)),"") -> 
E174: =IFERROR(VLOOKUP($A174,PQS!$D$5:$AU$107,MATCH(PQS!$Q$3,PQS!$D$3:$AU$3,0),FALSE),"") ->  | F174: =IFERROR(VLOOKUP($A174,PQS!$D$5:$AU$107,MATCH(PQS!$AL$3,PQS!$D$3:$AU$3,0),FALSE),"") ->  | H174: =IFERROR(VLOOKUP($A174,PQS!$D$5:$AU$107,MATCH(PQS!$I$3,PQS!$D$3:$AU$3,0),FALSE),"") ->  | I174: =IFERROR(VLOOKUP($A174,PQS!$D$5:$AU$107,MATCH(PQS!$J$3,PQS!$D$3:$AU$3,0),FALSE),"") ->  | J174: =IFERROR(VLOOKUP($A174,PQS!$D$5:$AU$107,MATCH(PQS!$AK$3,PQS!$D$3:$AU$3,0),FALSE),"") ->  | K174: =IFERROR(VLOOKUP($A174,PQS!$D$5:$AU$107,COLUMN(PQS!$AA$5)-3,FALSE),"") ->  | L174: =IFERROR(VLOOKUP($A174,PQS!$D$5:$AU$107,MATCH(PQS!$H$3,PQS!$D$3:$AU$3,0),FALSE),"") ->  | M174: =IFERROR(VLOOKUP($A174,PQS!$D$5:$AU$107,MATCH(PQS!$AF$3,PQS!$D$3:$AU$3,0),FALSE),"") ->  | N174: =IFERROR(HYPERLINK(VLOOKUP($A174,PQS!$D$5:$AU$107,MATCH(PQS!$AJ$3,PQS!$D$3:$AU$3,0),FALSE),VLOOKUP($A174,PQS!$D$5:$AU$107,MATCH(PQS!$AI$3,PQS!$D$3:$AU$3,0),FALSE)),"") -> 
E175: =IFERROR(VLOOKUP($A175,PQS!$D$5:$AU$107,MATCH(PQS!$Q$3,PQS!$D$3:$AU$3,0),FALSE),"") ->  | F175: =IFERROR(VLOOKUP($A175,PQS!$D$5:$AU$107,MATCH(PQS!$AL$3,PQS!$D$3:$AU$3,0),FALSE),"") ->  | H175: =IFERROR(VLOOKUP($A175,PQS!$D$5:$AU$107,MATCH(PQS!$I$3,PQS!$D$3:$AU$3,0),FALSE),"") ->  | I175: =IFERROR(VLOOKUP($A175,PQS!$D$5:$AU$107,MATCH(PQS!$J$3,PQS!$D$3:$AU$3,0),FALSE),"") ->  | J175: =IFERROR(VLOOKUP($A175,PQS!$D$5:$AU$107,MATCH(PQS!$AK$3,PQS!$D$3:$AU$3,0),FALSE),"") ->  | K175: =IFERROR(VLOOKUP($A175,PQS!$D$5:$AU$107,COLUMN(PQS!$AA$5)-3,FALSE),"") ->  | L175: =IFERROR(VLOOKUP($A175,PQS!$D$5:$AU$107,MATCH(PQS!$H$3,PQS!$D$3:$AU$3,0),FALSE),"") ->  | M175: =IFERROR(VLOOKUP($A175,PQS!$D$5:$AU$107,MATCH(PQS!$AF$3,PQS!$D$3:$AU$3,0),FALSE),"") ->  | N175: =IFERROR(HYPERLINK(VLOOKUP($A175,PQS!$D$5:$AU$107,MATCH(PQS!$AJ$3,PQS!$D$3:$AU$3,0),FALSE),VLOOKUP($A175,PQS!$D$5:$AU$107,MATCH(PQS!$AI$3,PQS!$D$3:$AU$3,0),FALSE)),"") -> 
E176: =IFERROR(VLOOKUP($A176,PQS!$D$5:$AU$107,MATCH(PQS!$Q$3,PQS!$D$3:$AU$3,0),FALSE),"") ->  | F176: =IFERROR(VLOOKUP($A176,PQS!$D$5:$AU$107,MATCH(PQS!$AL$3,PQS!$D$3:$AU$3,0),FALSE),"") ->  | H176: =IFERROR(VLOOKUP($A176,PQS!$D$5:$AU$107,MATCH(PQS!$I$3,PQS!$D$3:$AU$3,0),FALSE),"") ->  | I176: =IFERROR(VLOOKUP($A176,PQS!$D$5:$AU$107,MATCH(PQS!$J$3,PQS!$D$3:$AU$3,0),FALSE),"") ->  | J176: =IFERROR(VLOOKUP($A176,PQS!$D$5:$AU$107,MATCH(PQS!$AK$3,PQS!$D$3:$AU$3,0),FALSE),"") ->  | K176: =IFERROR(VLOOKUP($A176,PQS!$D$5:$AU$107,COLUMN(PQS!$AA$5)-3,FALSE),"") ->  | L176: =IFERROR(VLOOKUP($A176,PQS!$D$5:$AU$107,MATCH(PQS!$H$3,PQS!$D$3:$AU$3,0),FALSE),"") ->  | M176: =IFERROR(VLOOKUP($A176,PQS!$D$5:$AU$107,MATCH(PQS!$AF$3,PQS!$D$3:$AU$3,0),FALSE),"") ->  | N176: =IFERROR(HYPERLINK(VLOOKUP($A176,PQS!$D$5:$AU$107,MATCH(PQS!$AJ$3,PQS!$D$3:$AU$3,0),FALSE),VLOOKUP($A176,PQS!$D$5:$AU$107,MATCH(PQS!$AI$3,PQS!$D$3:$AU$3,0),FALSE)),"") -> 
E177: =IFERROR(VLOOKUP($A177,PQS!$D$5:$AU$107,MATCH(PQS!$Q$3,PQS!$D$3:$AU$3,0),FALSE),"") ->  | F177: =IFERROR(VLOOKUP($A177,PQS!$D$5:$AU$107,MATCH(PQS!$AL$3,PQS!$D$3:$AU$3,0),FALSE),"") ->  | H177: =IFERROR(VLOOKUP($A177,PQS!$D$5:$AU$107,MATCH(PQS!$I$3,PQS!$D$3:$AU$3,0),FALSE),"") ->  | I177: =IFERROR(VLOOKUP($A177,PQS!$D$5:$AU$107,MATCH(PQS!$J$3,PQS!$D$3:$AU$3,0),FALSE),"") ->  | J177: =IFERROR(VLOOKUP($A177,PQS!$D$5:$AU$107,MATCH(PQS!$AK$3,PQS!$D$3:$AU$3,0),FALSE),"") ->  | K177: =IFERROR(VLOOKUP($A177,PQS!$D$5:$AU$107,COLUMN(PQS!$AA$5)-3,FALSE),"") ->  | L177: =IFERROR(VLOOKUP($A177,PQS!$D$5:$AU$107,MATCH(PQS!$H$3,PQS!$D$3:$AU$3,0),FALSE),"") ->  | M177: =IFERROR(VLOOKUP($A177,PQS!$D$5:$AU$107,MATCH(PQS!$AF$3,PQS!$D$3:$AU$3,0),FALSE),"") ->  | N177: =IFERROR(HYPERLINK(VLOOKUP($A177,PQS!$D$5:$AU$107,MATCH(PQS!$AJ$3,PQS!$D$3:$AU$3,0),FALSE),VLOOKUP($A177,PQS!$D$5:$AU$107,MATCH(PQS!$AI$3,PQS!$D$3:$AU$3,0),FALSE)),"") -> 
E178: =IFERROR(VLOOKUP($A178,PQS!$D$5:$AU$107,MATCH(PQS!$Q$3,PQS!$D$3:$AU$3,0),FALSE),"") ->  | F178: =IFERROR(VLOOKUP($A178,PQS!$D$5:$AU$107,MATCH(PQS!$AL$3,PQS!$D$3:$AU$3,0),FALSE),"") ->  | H178: =IFERROR(VLOOKUP($A178,PQS!$D$5:$AU$107,MATCH(PQS!$I$3,PQS!$D$3:$AU$3,0),FALSE),"") ->  | I178: =IFERROR(VLOOKUP($A178,PQS!$D$5:$AU$107,MATCH(PQS!$J$3,PQS!$D$3:$AU$3,0),FALSE),"") ->  | J178: =IFERROR(VLOOKUP($A178,PQS!$D$5:$AU$107,MATCH(PQS!$AK$3,PQS!$D$3:$AU$3,0),FALSE),"") ->  | K178: =IFERROR(VLOOKUP($A178,PQS!$D$5:$AU$107,COLUMN(PQS!$AA$5)-3,FALSE),"") ->  | L178: =IFERROR(VLOOKUP($A178,PQS!$D$5:$AU$107,MATCH(PQS!$H$3,PQS!$D$3:$AU$3,0),FALSE),"") ->  | M178: =IFERROR(VLOOKUP($A178,PQS!$D$5:$AU$107,MATCH(PQS!$AF$3,PQS!$D$3:$AU$3,0),FALSE),"") ->  | N178: =IFERROR(HYPERLINK(VLOOKUP($A178,PQS!$D$5:$AU$107,MATCH(PQS!$AJ$3,PQS!$D$3:$AU$3,0),FALSE),VLOOKUP($A178,PQS!$D$5:$AU$107,MATCH(PQS!$AI$3,PQS!$D$3:$AU$3,0),FALSE)),"") -> 
E179: =IFERROR(VLOOKUP($A179,PQS!$D$5:$AU$107,MATCH(PQS!$Q$3,PQS!$D$3:$AU$3,0),FALSE),"") ->  | F179: =IFERROR(VLOOKUP($A179,PQS!$D$5:$AU$107,MATCH(PQS!$AL$3,PQS!$D$3:$AU$3,0),FALSE),"") ->  | H179: =IFERROR(VLOOKUP($A179,PQS!$D$5:$AU$107,MATCH(PQS!$I$3,PQS!$D$3:$AU$3,0),FALSE),"") ->  | I179: =IFERROR(VLOOKUP($A179,PQS!$D$5:$AU$107,MATCH(PQS!$J$3,PQS!$D$3:$AU$3,0),FALSE),"") ->  | J179: =IFERROR(VLOOKUP($A179,PQS!$D$5:$AU$107,MATCH(PQS!$AK$3,PQS!$D$3:$AU$3,0),FALSE),"") ->  | K179: =IFERROR(VLOOKUP($A179,PQS!$D$5:$AU$107,COLUMN(PQS!$AA$5)-3,FALSE),"") ->  | L179: =IFERROR(VLOOKUP($A179,PQS!$D$5:$AU$107,MATCH(PQS!$H$3,PQS!$D$3:$AU$3,0),FALSE),"") ->  | M179: =IFERROR(VLOOKUP($A179,PQS!$D$5:$AU$107,MATCH(PQS!$AF$3,PQS!$D$3:$AU$3,0),FALSE),"") ->  | N179: =IFERROR(HYPERLINK(VLOOKUP($A179,PQS!$D$5:$AU$107,MATCH(PQS!$AJ$3,PQS!$D$3:$AU$3,0),FALSE),VLOOKUP($A179,PQS!$D$5:$AU$107,MATCH(PQS!$AI$3,PQS!$D$3:$AU$3,0),FALSE)),"") -> 
E180: =IFERROR(VLOOKUP($A180,PQS!$D$5:$AU$107,MATCH(PQS!$Q$3,PQS!$D$3:$AU$3,0),FALSE),"") ->  | F180: =IFERROR(VLOOKUP($A180,PQS!$D$5:$AU$107,MATCH(PQS!$AL$3,PQS!$D$3:$AU$3,0),FALSE),"") ->  | H180: =IFERROR(VLOOKUP($A180,PQS!$D$5:$AU$107,MATCH(PQS!$I$3,PQS!$D$3:$AU$3,0),FALSE),"") ->  | I180: =IFERROR(VLOOKUP($A180,PQS!$D$5:$AU$107,MATCH(PQS!$J$3,PQS!$D$3:$AU$3,0),FALSE),"") ->  | J180: =IFERROR(VLOOKUP($A180,PQS!$D$5:$AU$107,MATCH(PQS!$AK$3,PQS!$D$3:$AU$3,0),FALSE),"") ->  | K180: =IFERROR(VLOOKUP($A180,PQS!$D$5:$AU$107,COLUMN(PQS!$AA$5)-3,FALSE),"") ->  | L180: =IFERROR(VLOOKUP($A180,PQS!$D$5:$AU$107,MATCH(PQS!$H$3,PQS!$D$3:$AU$3,0),FALSE),"") ->  | M180: =IFERROR(VLOOKUP($A180,PQS!$D$5:$AU$107,MATCH(PQS!$AF$3,PQS!$D$3:$AU$3,0),FALSE),"") ->  | N180: =IFERROR(HYPERLINK(VLOOKUP($A180,PQS!$D$5:$AU$107,MATCH(PQS!$AJ$3,PQS!$D$3:$AU$3,0),FALSE),VLOOKUP($A180,PQS!$D$5:$AU$107,MATCH(PQS!$AI$3,PQS!$D$3:$AU$3,0),FALSE)),"") -> 
E181: =IFERROR(VLOOKUP($A181,PQS!$D$5:$AU$107,MATCH(PQS!$Q$3,PQS!$D$3:$AU$3,0),FALSE),"") ->  | F181: =IFERROR(VLOOKUP($A181,PQS!$D$5:$AU$107,MATCH(PQS!$AL$3,PQS!$D$3:$AU$3,0),FALSE),"") ->  | H181: =IFERROR(VLOOKUP($A181,PQS!$D$5:$AU$107,MATCH(PQS!$I$3,PQS!$D$3:$AU$3,0),FALSE),"") ->  | I181: =IFERROR(VLOOKUP($A181,PQS!$D$5:$AU$107,MATCH(PQS!$J$3,PQS!$D$3:$AU$3,0),FALSE),"") ->  | J181: =IFERROR(VLOOKUP($A181,PQS!$D$5:$AU$107,MATCH(PQS!$AK$3,PQS!$D$3:$AU$3,0),FALSE),"") ->  | K181: =IFERROR(VLOOKUP($A181,PQS!$D$5:$AU$107,COLUMN(PQS!$AA$5)-3,FALSE),"") ->  | L181: =IFERROR(VLOOKUP($A181,PQS!$D$5:$AU$107,MATCH(PQS!$H$3,PQS!$D$3:$AU$3,0),FALSE),"") ->  | M181: =IFERROR(VLOOKUP($A181,PQS!$D$5:$AU$107,MATCH(PQS!$AF$3,PQS!$D$3:$AU$3,0),FALSE),"") ->  | N181: =IFERROR(HYPERLINK(VLOOKUP($A181,PQS!$D$5:$AU$107,MATCH(PQS!$AJ$3,PQS!$D$3:$AU$3,0),FALSE),VLOOKUP($A181,PQS!$D$5:$AU$107,MATCH(PQS!$AI$3,PQS!$D$3:$AU$3,0),FALSE)),"") -> 
E182: =IFERROR(VLOOKUP($A182,PQS!$D$5:$AU$107,MATCH(PQS!$Q$3,PQS!$D$3:$AU$3,0),FALSE),"") ->  | F182: =IFERROR(VLOOKUP($A182,PQS!$D$5:$AU$107,MATCH(PQS!$AL$3,PQS!$D$3:$AU$3,0),FALSE),"") ->  | H182: =IFERROR(VLOOKUP($A182,PQS!$D$5:$AU$107,MATCH(PQS!$I$3,PQS!$D$3:$AU$3,0),FALSE),"") ->  | I182: =IFERROR(VLOOKUP($A182,PQS!$D$5:$AU$107,MATCH(PQS!$J$3,PQS!$D$3:$AU$3,0),FALSE),"") ->  | J182: =IFERROR(VLOOKUP($A182,PQS!$D$5:$AU$107,MATCH(PQS!$AK$3,PQS!$D$3:$AU$3,0),FALSE),"") ->  | K182: =IFERROR(VLOOKUP($A182,PQS!$D$5:$AU$107,COLUMN(PQS!$AA$5)-3,FALSE),"") ->  | L182: =IFERROR(VLOOKUP($A182,PQS!$D$5:$AU$107,MATCH(PQS!$H$3,PQS!$D$3:$AU$3,0),FALSE),"") ->  | M182: =IFERROR(VLOOKUP($A182,PQS!$D$5:$AU$107,MATCH(PQS!$AF$3,PQS!$D$3:$AU$3,0),FALSE),"") ->  | N182: =IFERROR(HYPERLINK(VLOOKUP($A182,PQS!$D$5:$AU$107,MATCH(PQS!$AJ$3,PQS!$D$3:$AU$3,0),FALSE),VLOOKUP($A182,PQS!$D$5:$AU$107,MATCH(PQS!$AI$3,PQS!$D$3:$AU$3,0),FALSE)),"") -> 
E183: =IFERROR(VLOOKUP($A183,PQS!$D$5:$AU$107,MATCH(PQS!$Q$3,PQS!$D$3:$AU$3,0),FALSE),"") ->  | F183: =IFERROR(VLOOKUP($A183,PQS!$D$5:$AU$107,MATCH(PQS!$AL$3,PQS!$D$3:$AU$3,0),FALSE),"") ->  | H183: =IFERROR(VLOOKUP($A183,PQS!$D$5:$AU$107,MATCH(PQS!$I$3,PQS!$D$3:$AU$3,0),FALSE),"") ->  | I183: =IFERROR(VLOOKUP($A183,PQS!$D$5:$AU$107,MATCH(PQS!$J$3,PQS!$D$3:$AU$3,0),FALSE),"") ->  | J183: =IFERROR(VLOOKUP($A183,PQS!$D$5:$AU$107,MATCH(PQS!$AK$3,PQS!$D$3:$AU$3,0),FALSE),"") ->  | K183: =IFERROR(VLOOKUP($A183,PQS!$D$5:$AU$107,COLUMN(PQS!$AA$5)-3,FALSE),"") ->  | L183: =IFERROR(VLOOKUP($A183,PQS!$D$5:$AU$107,MATCH(PQS!$H$3,PQS!$D$3:$AU$3,0),FALSE),"") ->  | M183: =IFERROR(VLOOKUP($A183,PQS!$D$5:$AU$107,MATCH(PQS!$AF$3,PQS!$D$3:$AU$3,0),FALSE),"") ->  | N183: =IFERROR(HYPERLINK(VLOOKUP($A183,PQS!$D$5:$AU$107,MATCH(PQS!$AJ$3,PQS!$D$3:$AU$3,0),FALSE),VLOOKUP($A183,PQS!$D$5:$AU$107,MATCH(PQS!$AI$3,PQS!$D$3:$AU$3,0),FALSE)),"") -> 
E184: =IFERROR(VLOOKUP($A184,PQS!$D$5:$AU$107,MATCH(PQS!$Q$3,PQS!$D$3:$AU$3,0),FALSE),"") ->  | F184: =IFERROR(VLOOKUP($A184,PQS!$D$5:$AU$107,MATCH(PQS!$AL$3,PQS!$D$3:$AU$3,0),FALSE),"") ->  | H184: =IFERROR(VLOOKUP($A184,PQS!$D$5:$AU$107,MATCH(PQS!$I$3,PQS!$D$3:$AU$3,0),FALSE),"") ->  | I184: =IFERROR(VLOOKUP($A184,PQS!$D$5:$AU$107,MATCH(PQS!$J$3,PQS!$D$3:$AU$3,0),FALSE),"") ->  | J184: =IFERROR(VLOOKUP($A184,PQS!$D$5:$AU$107,MATCH(PQS!$AK$3,PQS!$D$3:$AU$3,0),FALSE),"") ->  | K184: =IFERROR(VLOOKUP($A184,PQS!$D$5:$AU$107,COLUMN(PQS!$AA$5)-3,FALSE),"") ->  | L184: =IFERROR(VLOOKUP($A184,PQS!$D$5:$AU$107,MATCH(PQS!$H$3,PQS!$D$3:$AU$3,0),FALSE),"") ->  | M184: =IFERROR(VLOOKUP($A184,PQS!$D$5:$AU$107,MATCH(PQS!$AF$3,PQS!$D$3:$AU$3,0),FALSE),"") ->  | N184: =IFERROR(HYPERLINK(VLOOKUP($A184,PQS!$D$5:$AU$107,MATCH(PQS!$AJ$3,PQS!$D$3:$AU$3,0),FALSE),VLOOKUP($A184,PQS!$D$5:$AU$107,MATCH(PQS!$AI$3,PQS!$D$3:$AU$3,0),FALSE)),"") -> 
E185: =IFERROR(VLOOKUP($A185,PQS!$D$5:$AU$107,MATCH(PQS!$Q$3,PQS!$D$3:$AU$3,0),FALSE),"") ->  | F185: =IFERROR(VLOOKUP($A185,PQS!$D$5:$AU$107,MATCH(PQS!$AL$3,PQS!$D$3:$AU$3,0),FALSE),"") ->  | H185: =IFERROR(VLOOKUP($A185,PQS!$D$5:$AU$107,MATCH(PQS!$I$3,PQS!$D$3:$AU$3,0),FALSE),"") ->  | I185: =IFERROR(VLOOKUP($A185,PQS!$D$5:$AU$107,MATCH(PQS!$J$3,PQS!$D$3:$AU$3,0),FALSE),"") ->  | J185: =IFERROR(VLOOKUP($A185,PQS!$D$5:$AU$107,MATCH(PQS!$AK$3,PQS!$D$3:$AU$3,0),FALSE),"") ->  | K185: =IFERROR(VLOOKUP($A185,PQS!$D$5:$AU$107,COLUMN(PQS!$AA$5)-3,FALSE),"") ->  | L185: =IFERROR(VLOOKUP($A185,PQS!$D$5:$AU$107,MATCH(PQS!$H$3,PQS!$D$3:$AU$3,0),FALSE),"") ->  | M185: =IFERROR(VLOOKUP($A185,PQS!$D$5:$AU$107,MATCH(PQS!$AF$3,PQS!$D$3:$AU$3,0),FALSE),"") ->  | N185: =IFERROR(HYPERLINK(VLOOKUP($A185,PQS!$D$5:$AU$107,MATCH(PQS!$AJ$3,PQS!$D$3:$AU$3,0),FALSE),VLOOKUP($A185,PQS!$D$5:$AU$107,MATCH(PQS!$AI$3,PQS!$D$3:$AU$3,0),FALSE)),"") -> 
E186: =IFERROR(VLOOKUP($A186,PQS!$D$5:$AU$107,MATCH(PQS!$Q$3,PQS!$D$3:$AU$3,0),FALSE),"") ->  | F186: =IFERROR(VLOOKUP($A186,PQS!$D$5:$AU$107,MATCH(PQS!$AL$3,PQS!$D$3:$AU$3,0),FALSE),"") ->  | H186: =IFERROR(VLOOKUP($A186,PQS!$D$5:$AU$107,MATCH(PQS!$I$3,PQS!$D$3:$AU$3,0),FALSE),"") ->  | I186: =IFERROR(VLOOKUP($A186,PQS!$D$5:$AU$107,MATCH(PQS!$J$3,PQS!$D$3:$AU$3,0),FALSE),"") ->  | J186: =IFERROR(VLOOKUP($A186,PQS!$D$5:$AU$107,MATCH(PQS!$AK$3,PQS!$D$3:$AU$3,0),FALSE),"") ->  | K186: =IFERROR(VLOOKUP($A186,PQS!$D$5:$AU$107,COLUMN(PQS!$AA$5)-3,FALSE),"") ->  | L186: =IFERROR(VLOOKUP($A186,PQS!$D$5:$AU$107,MATCH(PQS!$H$3,PQS!$D$3:$AU$3,0),FALSE),"") ->  | M186: =IFERROR(VLOOKUP($A186,PQS!$D$5:$AU$107,MATCH(PQS!$AF$3,PQS!$D$3:$AU$3,0),FALSE),"") ->  | N186: =IFERROR(HYPERLINK(VLOOKUP($A186,PQS!$D$5:$AU$107,MATCH(PQS!$AJ$3,PQS!$D$3:$AU$3,0),FALSE),VLOOKUP($A186,PQS!$D$5:$AU$107,MATCH(PQS!$AI$3,PQS!$D$3:$AU$3,0),FALSE)),"") -> 
E187: =IFERROR(VLOOKUP($A187,PQS!$D$5:$AU$107,MATCH(PQS!$Q$3,PQS!$D$3:$AU$3,0),FALSE),"") ->  | F187: =IFERROR(VLOOKUP($A187,PQS!$D$5:$AU$107,MATCH(PQS!$AL$3,PQS!$D$3:$AU$3,0),FALSE),"") ->  | H187: =IFERROR(VLOOKUP($A187,PQS!$D$5:$AU$107,MATCH(PQS!$I$3,PQS!$D$3:$AU$3,0),FALSE),"") ->  | I187: =IFERROR(VLOOKUP($A187,PQS!$D$5:$AU$107,MATCH(PQS!$J$3,PQS!$D$3:$AU$3,0),FALSE),"") ->  | J187: =IFERROR(VLOOKUP($A187,PQS!$D$5:$AU$107,MATCH(PQS!$AK$3,PQS!$D$3:$AU$3,0),FALSE),"") ->  | K187: =IFERROR(VLOOKUP($A187,PQS!$D$5:$AU$107,COLUMN(PQS!$AA$5)-3,FALSE),"") ->  | L187: =IFERROR(VLOOKUP($A187,PQS!$D$5:$AU$107,MATCH(PQS!$H$3,PQS!$D$3:$AU$3,0),FALSE),"") ->  | M187: =IFERROR(VLOOKUP($A187,PQS!$D$5:$AU$107,MATCH(PQS!$AF$3,PQS!$D$3:$AU$3,0),FALSE),"") ->  | N187: =IFERROR(HYPERLINK(VLOOKUP($A187,PQS!$D$5:$AU$107,MATCH(PQS!$AJ$3,PQS!$D$3:$AU$3,0),FALSE),VLOOKUP($A187,PQS!$D$5:$AU$107,MATCH(PQS!$AI$3,PQS!$D$3:$AU$3,0),FALSE)),"") -> 
E188: =IFERROR(VLOOKUP($A188,PQS!$D$5:$AU$107,MATCH(PQS!$Q$3,PQS!$D$3:$AU$3,0),FALSE),"") ->  | F188: =IFERROR(VLOOKUP($A188,PQS!$D$5:$AU$107,MATCH(PQS!$AL$3,PQS!$D$3:$AU$3,0),FALSE),"") ->  | H188: =IFERROR(VLOOKUP($A188,PQS!$D$5:$AU$107,MATCH(PQS!$I$3,PQS!$D$3:$AU$3,0),FALSE),"") ->  | I188: =IFERROR(VLOOKUP($A188,PQS!$D$5:$AU$107,MATCH(PQS!$J$3,PQS!$D$3:$AU$3,0),FALSE),"") ->  | J188: =IFERROR(VLOOKUP($A188,PQS!$D$5:$AU$107,MATCH(PQS!$AK$3,PQS!$D$3:$AU$3,0),FALSE),"") ->  | K188: =IFERROR(VLOOKUP($A188,PQS!$D$5:$AU$107,COLUMN(PQS!$AA$5)-3,FALSE),"") ->  | L188: =IFERROR(VLOOKUP($A188,PQS!$D$5:$AU$107,MATCH(PQS!$H$3,PQS!$D$3:$AU$3,0),FALSE),"") ->  | M188: =IFERROR(VLOOKUP($A188,PQS!$D$5:$AU$107,MATCH(PQS!$AF$3,PQS!$D$3:$AU$3,0),FALSE),"") ->  | N188: =IFERROR(HYPERLINK(VLOOKUP($A188,PQS!$D$5:$AU$107,MATCH(PQS!$AJ$3,PQS!$D$3:$AU$3,0),FALSE),VLOOKUP($A188,PQS!$D$5:$AU$107,MATCH(PQS!$AI$3,PQS!$D$3:$AU$3,0),FALSE)),"") -> 
E189: =IFERROR(VLOOKUP($A189,PQS!$D$5:$AU$107,MATCH(PQS!$Q$3,PQS!$D$3:$AU$3,0),FALSE),"") ->  | F189: =IFERROR(VLOOKUP($A189,PQS!$D$5:$AU$107,MATCH(PQS!$AL$3,PQS!$D$3:$AU$3,0),FALSE),"") ->  | H189: =IFERROR(VLOOKUP($A189,PQS!$D$5:$AU$107,MATCH(PQS!$I$3,PQS!$D$3:$AU$3,0),FALSE),"") ->  | I189: =IFERROR(VLOOKUP($A189,PQS!$D$5:$AU$107,MATCH(PQS!$J$3,PQS!$D$3:$AU$3,0),FALSE),"") ->  | J189: =IFERROR(VLOOKUP($A189,PQS!$D$5:$AU$107,MATCH(PQS!$AK$3,PQS!$D$3:$AU$3,0),FALSE),"") ->  | K189: =IFERROR(VLOOKUP($A189,PQS!$D$5:$AU$107,COLUMN(PQS!$AA$5)-3,FALSE),"") ->  | L189: =IFERROR(VLOOKUP($A189,PQS!$D$5:$AU$107,MATCH(PQS!$H$3,PQS!$D$3:$AU$3,0),FALSE),"") ->  | M189: =IFERROR(VLOOKUP($A189,PQS!$D$5:$AU$107,MATCH(PQS!$AF$3,PQS!$D$3:$AU$3,0),FALSE),"") ->  | N189: =IFERROR(HYPERLINK(VLOOKUP($A189,PQS!$D$5:$AU$107,MATCH(PQS!$AJ$3,PQS!$D$3:$AU$3,0),FALSE),VLOOKUP($A189,PQS!$D$5:$AU$107,MATCH(PQS!$AI$3,PQS!$D$3:$AU$3,0),FALSE)),"") -> 
E190: =IFERROR(VLOOKUP($A190,PQS!$D$5:$AU$107,MATCH(PQS!$Q$3,PQS!$D$3:$AU$3,0),FALSE),"") ->  | F190: =IFERROR(VLOOKUP($A190,PQS!$D$5:$AU$107,MATCH(PQS!$AL$3,PQS!$D$3:$AU$3,0),FALSE),"") ->  | H190: =IFERROR(VLOOKUP($A190,PQS!$D$5:$AU$107,MATCH(PQS!$I$3,PQS!$D$3:$AU$3,0),FALSE),"") ->  | I190: =IFERROR(VLOOKUP($A190,PQS!$D$5:$AU$107,MATCH(PQS!$J$3,PQS!$D$3:$AU$3,0),FALSE),"") ->  | J190: =IFERROR(VLOOKUP($A190,PQS!$D$5:$AU$107,MATCH(PQS!$AK$3,PQS!$D$3:$AU$3,0),FALSE),"") ->  | K190: =IFERROR(VLOOKUP($A190,PQS!$D$5:$AU$107,COLUMN(PQS!$AA$5)-3,FALSE),"") ->  | L190: =IFERROR(VLOOKUP($A190,PQS!$D$5:$AU$107,MATCH(PQS!$H$3,PQS!$D$3:$AU$3,0),FALSE),"") ->  | M190: =IFERROR(VLOOKUP($A190,PQS!$D$5:$AU$107,MATCH(PQS!$AF$3,PQS!$D$3:$AU$3,0),FALSE),"") ->  | N190: =IFERROR(HYPERLINK(VLOOKUP($A190,PQS!$D$5:$AU$107,MATCH(PQS!$AJ$3,PQS!$D$3:$AU$3,0),FALSE),VLOOKUP($A190,PQS!$D$5:$AU$107,MATCH(PQS!$AI$3,PQS!$D$3:$AU$3,0),FALSE)),"") -> 
E191: =IFERROR(VLOOKUP($A191,PQS!$D$5:$AU$107,MATCH(PQS!$Q$3,PQS!$D$3:$AU$3,0),FALSE),"") ->  | F191: =IFERROR(VLOOKUP($A191,PQS!$D$5:$AU$107,MATCH(PQS!$AL$3,PQS!$D$3:$AU$3,0),FALSE),"") ->  | H191: =IFERROR(VLOOKUP($A191,PQS!$D$5:$AU$107,MATCH(PQS!$I$3,PQS!$D$3:$AU$3,0),FALSE),"") ->  | I191: =IFERROR(VLOOKUP($A191,PQS!$D$5:$AU$107,MATCH(PQS!$J$3,PQS!$D$3:$AU$3,0),FALSE),"") ->  | J191: =IFERROR(VLOOKUP($A191,PQS!$D$5:$AU$107,MATCH(PQS!$AK$3,PQS!$D$3:$AU$3,0),FALSE),"") ->  | K191: =IFERROR(VLOOKUP($A191,PQS!$D$5:$AU$107,COLUMN(PQS!$AA$5)-3,FALSE),"") ->  | L191: =IFERROR(VLOOKUP($A191,PQS!$D$5:$AU$107,MATCH(PQS!$H$3,PQS!$D$3:$AU$3,0),FALSE),"") ->  | M191: =IFERROR(VLOOKUP($A191,PQS!$D$5:$AU$107,MATCH(PQS!$AF$3,PQS!$D$3:$AU$3,0),FALSE),"") ->  | N191: =IFERROR(HYPERLINK(VLOOKUP($A191,PQS!$D$5:$AU$107,MATCH(PQS!$AJ$3,PQS!$D$3:$AU$3,0),FALSE),VLOOKUP($A191,PQS!$D$5:$AU$107,MATCH(PQS!$AI$3,PQS!$D$3:$AU$3,0),FALSE)),"") -> 
E192: =IFERROR(VLOOKUP($A192,PQS!$D$5:$AU$107,MATCH(PQS!$Q$3,PQS!$D$3:$AU$3,0),FALSE),"") ->  | F192: =IFERROR(VLOOKUP($A192,PQS!$D$5:$AU$107,MATCH(PQS!$AL$3,PQS!$D$3:$AU$3,0),FALSE),"") ->  | H192: =IFERROR(VLOOKUP($A192,PQS!$D$5:$AU$107,MATCH(PQS!$I$3,PQS!$D$3:$AU$3,0),FALSE),"") ->  | I192: =IFERROR(VLOOKUP($A192,PQS!$D$5:$AU$107,MATCH(PQS!$J$3,PQS!$D$3:$AU$3,0),FALSE),"") ->  | J192: =IFERROR(VLOOKUP($A192,PQS!$D$5:$AU$107,MATCH(PQS!$AK$3,PQS!$D$3:$AU$3,0),FALSE),"") ->  | K192: =IFERROR(VLOOKUP($A192,PQS!$D$5:$AU$107,COLUMN(PQS!$AA$5)-3,FALSE),"") ->  | L192: =IFERROR(VLOOKUP($A192,PQS!$D$5:$AU$107,MATCH(PQS!$H$3,PQS!$D$3:$AU$3,0),FALSE),"") ->  | M192: =IFERROR(VLOOKUP($A192,PQS!$D$5:$AU$107,MATCH(PQS!$AF$3,PQS!$D$3:$AU$3,0),FALSE),"") ->  | N192: =IFERROR(HYPERLINK(VLOOKUP($A192,PQS!$D$5:$AU$107,MATCH(PQS!$AJ$3,PQS!$D$3:$AU$3,0),FALSE),VLOOKUP($A192,PQS!$D$5:$AU$107,MATCH(PQS!$AI$3,PQS!$D$3:$AU$3,0),FALSE)),"") -> 
E193: =IFERROR(VLOOKUP($A193,PQS!$D$5:$AU$107,MATCH(PQS!$Q$3,PQS!$D$3:$AU$3,0),FALSE),"") ->  | F193: =IFERROR(VLOOKUP($A193,PQS!$D$5:$AU$107,MATCH(PQS!$AL$3,PQS!$D$3:$AU$3,0),FALSE),"") ->  | H193: =IFERROR(VLOOKUP($A193,PQS!$D$5:$AU$107,MATCH(PQS!$I$3,PQS!$D$3:$AU$3,0),FALSE),"") ->  | I193: =IFERROR(VLOOKUP($A193,PQS!$D$5:$AU$107,MATCH(PQS!$J$3,PQS!$D$3:$AU$3,0),FALSE),"") ->  | J193: =IFERROR(VLOOKUP($A193,PQS!$D$5:$AU$107,MATCH(PQS!$AK$3,PQS!$D$3:$AU$3,0),FALSE),"") ->  | K193: =IFERROR(VLOOKUP($A193,PQS!$D$5:$AU$107,COLUMN(PQS!$AA$5)-3,FALSE),"") ->  | L193: =IFERROR(VLOOKUP($A193,PQS!$D$5:$AU$107,MATCH(PQS!$H$3,PQS!$D$3:$AU$3,0),FALSE),"") ->  | M193: =IFERROR(VLOOKUP($A193,PQS!$D$5:$AU$107,MATCH(PQS!$AF$3,PQS!$D$3:$AU$3,0),FALSE),"") ->  | N193: =IFERROR(HYPERLINK(VLOOKUP($A193,PQS!$D$5:$AU$107,MATCH(PQS!$AJ$3,PQS!$D$3:$AU$3,0),FALSE),VLOOKUP($A193,PQS!$D$5:$AU$107,MATCH(PQS!$AI$3,PQS!$D$3:$AU$3,0),FALSE)),"") -> 
E194: =IFERROR(VLOOKUP($A194,PQS!$D$5:$AU$107,MATCH(PQS!$Q$3,PQS!$D$3:$AU$3,0),FALSE),"") ->  | F194: =IFERROR(VLOOKUP($A194,PQS!$D$5:$AU$107,MATCH(PQS!$AL$3,PQS!$D$3:$AU$3,0),FALSE),"") ->  | H194: =IFERROR(VLOOKUP($A194,PQS!$D$5:$AU$107,MATCH(PQS!$I$3,PQS!$D$3:$AU$3,0),FALSE),"") ->  | I194: =IFERROR(VLOOKUP($A194,PQS!$D$5:$AU$107,MATCH(PQS!$J$3,PQS!$D$3:$AU$3,0),FALSE),"") ->  | J194: =IFERROR(VLOOKUP($A194,PQS!$D$5:$AU$107,MATCH(PQS!$AK$3,PQS!$D$3:$AU$3,0),FALSE),"") ->  | K194: =IFERROR(VLOOKUP($A194,PQS!$D$5:$AU$107,COLUMN(PQS!$AA$5)-3,FALSE),"") ->  | L194: =IFERROR(VLOOKUP($A194,PQS!$D$5:$AU$107,MATCH(PQS!$H$3,PQS!$D$3:$AU$3,0),FALSE),"") ->  | M194: =IFERROR(VLOOKUP($A194,PQS!$D$5:$AU$107,MATCH(PQS!$AF$3,PQS!$D$3:$AU$3,0),FALSE),"") ->  | N194: =IFERROR(HYPERLINK(VLOOKUP($A194,PQS!$D$5:$AU$107,MATCH(PQS!$AJ$3,PQS!$D$3:$AU$3,0),FALSE),VLOOKUP($A194,PQS!$D$5:$AU$107,MATCH(PQS!$AI$3,PQS!$D$3:$AU$3,0),FALSE)),"") -> 
E195: =IFERROR(VLOOKUP($A195,PQS!$D$5:$AU$107,MATCH(PQS!$Q$3,PQS!$D$3:$AU$3,0),FALSE),"") ->  | F195: =IFERROR(VLOOKUP($A195,PQS!$D$5:$AU$107,MATCH(PQS!$AL$3,PQS!$D$3:$AU$3,0),FALSE),"") ->  | H195: =IFERROR(VLOOKUP($A195,PQS!$D$5:$AU$107,MATCH(PQS!$I$3,PQS!$D$3:$AU$3,0),FALSE),"") ->  | I195: =IFERROR(VLOOKUP($A195,PQS!$D$5:$AU$107,MATCH(PQS!$J$3,PQS!$D$3:$AU$3,0),FALSE),"") ->  | J195: =IFERROR(VLOOKUP($A195,PQS!$D$5:$AU$107,MATCH(PQS!$AK$3,PQS!$D$3:$AU$3,0),FALSE),"") ->  | K195: =IFERROR(VLOOKUP($A195,PQS!$D$5:$AU$107,COLUMN(PQS!$AA$5)-3,FALSE),"") ->  | L195: =IFERROR(VLOOKUP($A195,PQS!$D$5:$AU$107,MATCH(PQS!$H$3,PQS!$D$3:$AU$3,0),FALSE),"") ->  | M195: =IFERROR(VLOOKUP($A195,PQS!$D$5:$AU$107,MATCH(PQS!$AF$3,PQS!$D$3:$AU$3,0),FALSE),"") ->  | N195: =IFERROR(HYPERLINK(VLOOKUP($A195,PQS!$D$5:$AU$107,MATCH(PQS!$AJ$3,PQS!$D$3:$AU$3,0),FALSE),VLOOKUP($A195,PQS!$D$5:$AU$107,MATCH(PQS!$AI$3,PQS!$D$3:$AU$3,0),FALSE)),"") -> 
E196: =IFERROR(VLOOKUP($A196,PQS!$D$5:$AU$107,MATCH(PQS!$Q$3,PQS!$D$3:$AU$3,0),FALSE),"") ->  | F196: =IFERROR(VLOOKUP($A196,PQS!$D$5:$AU$107,MATCH(PQS!$AL$3,PQS!$D$3:$AU$3,0),FALSE),"") ->  | H196: =IFERROR(VLOOKUP($A196,PQS!$D$5:$AU$107,MATCH(PQS!$I$3,PQS!$D$3:$AU$3,0),FALSE),"") ->  | I196: =IFERROR(VLOOKUP($A196,PQS!$D$5:$AU$107,MATCH(PQS!$J$3,PQS!$D$3:$AU$3,0),FALSE),"") ->  | J196: =IFERROR(VLOOKUP($A196,PQS!$D$5:$AU$107,MATCH(PQS!$AK$3,PQS!$D$3:$AU$3,0),FALSE),"") ->  | K196: =IFERROR(VLOOKUP($A196,PQS!$D$5:$AU$107,COLUMN(PQS!$AA$5)-3,FALSE),"") ->  | L196: =IFERROR(VLOOKUP($A196,PQS!$D$5:$AU$107,MATCH(PQS!$H$3,PQS!$D$3:$AU$3,0),FALSE),"") ->  | M196: =IFERROR(VLOOKUP($A196,PQS!$D$5:$AU$107,MATCH(PQS!$AF$3,PQS!$D$3:$AU$3,0),FALSE),"") ->  | N196: =IFERROR(HYPERLINK(VLOOKUP($A196,PQS!$D$5:$AU$107,MATCH(PQS!$AJ$3,PQS!$D$3:$AU$3,0),FALSE),VLOOKUP($A196,PQS!$D$5:$AU$107,MATCH(PQS!$AI$3,PQS!$D$3:$AU$3,0),FALSE)),"") -> 
E197: =IFERROR(VLOOKUP($A197,PQS!$D$5:$AU$107,MATCH(PQS!$Q$3,PQS!$D$3:$AU$3,0),FALSE),"") ->  | F197: =IFERROR(VLOOKUP($A197,PQS!$D$5:$AU$107,MATCH(PQS!$AL$3,PQS!$D$3:$AU$3,0),FALSE),"") ->  | H197: =IFERROR(VLOOKUP($A197,PQS!$D$5:$AU$107,MATCH(PQS!$I$3,PQS!$D$3:$AU$3,0),FALSE),"") ->  | I197: =IFERROR(VLOOKUP($A197,PQS!$D$5:$AU$107,MATCH(PQS!$J$3,PQS!$D$3:$AU$3,0),FALSE),"") ->  | J197: =IFERROR(VLOOKUP($A197,PQS!$D$5:$AU$107,MATCH(PQS!$AK$3,PQS!$D$3:$AU$3,0),FALSE),"") ->  | K197: =IFERROR(VLOOKUP($A197,PQS!$D$5:$AU$107,COLUMN(PQS!$AA$5)-3,FALSE),"") ->  | L197: =IFERROR(VLOOKUP($A197,PQS!$D$5:$AU$107,MATCH(PQS!$H$3,PQS!$D$3:$AU$3,0),FALSE),"") ->  | M197: =IFERROR(VLOOKUP($A197,PQS!$D$5:$AU$107,MATCH(PQS!$AF$3,PQS!$D$3:$AU$3,0),FALSE),"") ->  | N197: =IFERROR(HYPERLINK(VLOOKUP($A197,PQS!$D$5:$AU$107,MATCH(PQS!$AJ$3,PQS!$D$3:$AU$3,0),FALSE),VLOOKUP($A197,PQS!$D$5:$AU$107,MATCH(PQS!$AI$3,PQS!$D$3:$AU$3,0),FALSE)),"") -> 
E198: =IFERROR(VLOOKUP($A198,PQS!$D$5:$AU$107,MATCH(PQS!$Q$3,PQS!$D$3:$AU$3,0),FALSE),"") ->  | F198: =IFERROR(VLOOKUP($A198,PQS!$D$5:$AU$107,MATCH(PQS!$AL$3,PQS!$D$3:$AU$3,0),FALSE),"") ->  | H198: =IFERROR(VLOOKUP($A198,PQS!$D$5:$AU$107,MATCH(PQS!$I$3,PQS!$D$3:$AU$3,0),FALSE),"") ->  | I198: =IFERROR(VLOOKUP($A198,PQS!$D$5:$AU$107,MATCH(PQS!$J$3,PQS!$D$3:$AU$3,0),FALSE),"") ->  | J198: =IFERROR(VLOOKUP($A198,PQS!$D$5:$AU$107,MATCH(PQS!$AK$3,PQS!$D$3:$AU$3,0),FALSE),"") ->  | K198: =IFERROR(VLOOKUP($A198,PQS!$D$5:$AU$107,COLUMN(PQS!$AA$5)-3,FALSE),"") ->  | L198: =IFERROR(VLOOKUP($A198,PQS!$D$5:$AU$107,MATCH(PQS!$H$3,PQS!$D$3:$AU$3,0),FALSE),"") ->  | M198: =IFERROR(VLOOKUP($A198,PQS!$D$5:$AU$107,MATCH(PQS!$AF$3,PQS!$D$3:$AU$3,0),FALSE),"") ->  | N198: =IFERROR(HYPERLINK(VLOOKUP($A198,PQS!$D$5:$AU$107,MATCH(PQS!$AJ$3,PQS!$D$3:$AU$3,0),FALSE),VLOOKUP($A198,PQS!$D$5:$AU$107,MATCH(PQS!$AI$3,PQS!$D$3:$AU$3,0),FALSE)),"") -> 
E199: =IFERROR(VLOOKUP($A199,PQS!$D$5:$AU$107,MATCH(PQS!$Q$3,PQS!$D$3:$AU$3,0),FALSE),"") ->  | F199: =IFERROR(VLOOKUP($A199,PQS!$D$5:$AU$107,MATCH(PQS!$AL$3,PQS!$D$3:$AU$3,0),FALSE),"") ->  | H199: =IFERROR(VLOOKUP($A199,PQS!$D$5:$AU$107,MATCH(PQS!$I$3,PQS!$D$3:$AU$3,0),FALSE),"") ->  | I199: =IFERROR(VLOOKUP($A199,PQS!$D$5:$AU$107,MATCH(PQS!$J$3,PQS!$D$3:$AU$3,0),FALSE),"") ->  | J199: =IFERROR(VLOOKUP($A199,PQS!$D$5:$AU$107,MATCH(PQS!$AK$3,PQS!$D$3:$AU$3,0),FALSE),"") ->  | K199: =IFERROR(VLOOKUP($A199,PQS!$D$5:$AU$107,COLUMN(PQS!$AA$5)-3,FALSE),"") ->  | L199: =IFERROR(VLOOKUP($A199,PQS!$D$5:$AU$107,MATCH(PQS!$H$3,PQS!$D$3:$AU$3,0),FALSE),"") ->  | M199: =IFERROR(VLOOKUP($A199,PQS!$D$5:$AU$107,MATCH(PQS!$AF$3,PQS!$D$3:$AU$3,0),FALSE),"") ->  | N199: =IFERROR(HYPERLINK(VLOOKUP($A199,PQS!$D$5:$AU$107,MATCH(PQS!$AJ$3,PQS!$D$3:$AU$3,0),FALSE),VLOOKUP($A199,PQS!$D$5:$AU$107,MATCH(PQS!$AI$3,PQS!$D$3:$AU$3,0),FALSE)),"") -> 
E200: =IFERROR(VLOOKUP($A200,PQS!$D$5:$AU$107,MATCH(PQS!$Q$3,PQS!$D$3:$AU$3,0),FALSE),"") ->  | F200: =IFERROR(VLOOKUP($A200,PQS!$D$5:$AU$107,MATCH(PQS!$AL$3,PQS!$D$3:$AU$3,0),FALSE),"") ->  | H200: =IFERROR(VLOOKUP($A200,PQS!$D$5:$AU$107,MATCH(PQS!$I$3,PQS!$D$3:$AU$3,0),FALSE),"") ->  | I200: =IFERROR(VLOOKUP($A200,PQS!$D$5:$AU$107,MATCH(PQS!$J$3,PQS!$D$3:$AU$3,0),FALSE),"") ->  | J200: =IFERROR(VLOOKUP($A200,PQS!$D$5:$AU$107,MATCH(PQS!$AK$3,PQS!$D$3:$AU$3,0),FALSE),"") ->  | K200: =IFERROR(VLOOKUP($A200,PQS!$D$5:$AU$107,COLUMN(PQS!$AA$5)-3,FALSE),"") ->  | L200: =IFERROR(VLOOKUP($A200,PQS!$D$5:$AU$107,MATCH(PQS!$H$3,PQS!$D$3:$AU$3,0),FALSE),"") ->  | M200: =IFERROR(VLOOKUP($A200,PQS!$D$5:$AU$107,MATCH(PQS!$AF$3,PQS!$D$3:$AU$3,0),FALSE),"") ->  | N200: =IFERROR(HYPERLINK(VLOOKUP($A200,PQS!$D$5:$AU$107,MATCH(PQS!$AJ$3,PQS!$D$3:$AU$3,0),FALSE),VLOOKUP($A200,PQS!$D$5:$AU$107,MATCH(PQS!$AI$3,PQS!$D$3:$AU$3,0),FALSE)),"") -> 
E201: =IFERROR(VLOOKUP($A201,PQS!$D$5:$AU$107,MATCH(PQS!$Q$3,PQS!$D$3:$AU$3,0),FALSE),"") ->  | H201: =IFERROR(VLOOKUP($A201,PQS!$D$5:$AU$107,MATCH(PQS!$I$3,PQS!$D$3:$AU$3,0),FALSE),"") ->  | I201: =IFERROR(VLOOKUP($A201,PQS!$D$5:$AU$107,MATCH(PQS!$J$3,PQS!$D$3:$AU$3,0),FALSE),"") ->  | J201: =IFERROR(VLOOKUP($A201,PQS!$D$5:$AU$107,MATCH(PQS!$AK$3,PQS!$D$3:$AU$3,0),FALSE),"") ->  | K201: =IFERROR(VLOOKUP($A201,PQS!$D$5:$AU$107,COLUMN(PQS!$AA$5)-3,FALSE),"") ->  | L201: =IFERROR(VLOOKUP($A201,PQS!$D$5:$AU$107,MATCH(PQS!$AF$3,PQS!$D$3:$AU$3,0),FALSE),"") ->  | M201: =IFERROR(HYPERLINK(VLOOKUP($A201,PQS!$D:$AU,MATCH(PQS!$AJ$3,PQS!$D$3:$AU$3,0),FALSE),VLOOKUP($A201,PQS!$D:$AU,MATCH(PQS!$AI$3,PQS!$D$3:$AU$3,0),FALSE)),"") ->  | N201: =IFERROR(HYPERLINK(VLOOKUP($A201,PQS!$D$5:$AU$107,MATCH(PQS!$AJ$3,PQS!$D$3:$AU$3,0),FALSE),VLOOKUP($A201,PQS!$D$5:$AU$107,MATCH(PQS!$AI$3,PQS!$D$3:$AU$3,0),FALSE)),"") -> 
E202: =IFERROR(VLOOKUP($A202,PQS!$D$5:$AU$107,MATCH(PQS!$Q$3,PQS!$D$3:$AU$3,0),FALSE),"") ->  | H202: =IFERROR(VLOOKUP($A202,PQS!$D$5:$AU$107,MATCH(PQS!$I$3,PQS!$D$3:$AU$3,0),FALSE),"") ->  | I202: =IFERROR(VLOOKUP($A202,PQS!$D$5:$AU$107,MATCH(PQS!$J$3,PQS!$D$3:$AU$3,0),FALSE),"") ->  | J202: =IFERROR(VLOOKUP($A202,PQS!$D$5:$AU$107,MATCH(PQS!$AK$3,PQS!$D$3:$AU$3,0),FALSE),"") ->  | K202: =IFERROR(VLOOKUP($A202,PQS!$D$5:$AU$107,COLUMN(PQS!$AA$5)-3,FALSE),"") ->  | L202: =IFERROR(VLOOKUP($A202,PQS!$D$5:$AU$107,MATCH(PQS!$AF$3,PQS!$D$3:$AU$3,0),FALSE),"") ->  | M202: =IFERROR(HYPERLINK(VLOOKUP($A202,PQS!$D:$AU,MATCH(PQS!$AJ$3,PQS!$D$3:$AU$3,0),FALSE),VLOOKUP($A202,PQS!$D:$AU,MATCH(PQS!$AI$3,PQS!$D$3:$AU$3,0),FALSE)),"") ->  | N202: =IFERROR(HYPERLINK(VLOOKUP($A202,PQS!$D$5:$AU$107,MATCH(PQS!$AJ$3,PQS!$D$3:$AU$3,0),FALSE),VLOOKUP($A202,PQS!$D$5:$AU$107,MATCH(PQS!$AI$3,PQS!$D$3:$AU$3,0),FALSE)),"") -> 
E203: =IFERROR(VLOOKUP($A203,PQS!$D$5:$AI$107,5,FALSE),"") ->  | H203: =IFERROR(VLOOKUP($A203,PQS!$D$5:$AI$107,13,FALSE),"") ->  | J203: =IFERROR(VLOOKUP($A203,PQS!$D$5:$AI$107,6,FALSE),"") -> 
E204: =IFERROR(VLOOKUP($A204,PQS!$D$5:$AI$107,5,FALSE),"") -> 
E205: =IFERROR(VLOOKUP($A205,PQS!$D$5:$AI$107,5,FALSE),"") -> 
E206: =IFERROR(VLOOKUP($A206,PQS!$D$5:$AI$107,5,FALSE),"") -> 
E207: =IFERROR(VLOOKUP($A207,PQS!$D$5:$AI$107,5,FALSE),"") -> 
E208: =IFERROR(VLOOKUP($A208,PQS!$D$5:$AI$107,5,FALSE),"") -> 
E209: =IFERROR(VLOOKUP($A209,PQS!$D$5:$AI$107,5,FALSE),"") -> 
E210: =IFERROR(VLOOKUP($A210,PQS!$D$5:$AI$107,5,FALSE),"") -> 
E211: =IFERROR(VLOOKUP($A211,PQS!$D$5:$AI$107,5,FALSE),"") -> 
E212: =IFERROR(VLOOKUP($A212,PQS!$D$5:$AI$107,5,FALSE),"") -> 

Sheet Cash Flows Comparison
A1: Cumulative cash flow comparison over forecasted years
E4: Forecast horizon years | G4: ='Total Solution Costs'!B2 -> 10
E5: Cold chain level evaluated | G5: =facilitysegment -> User-defined field
E6: Number of facilities to equip | G6: =NumberFacilitiestoEquip -> 10
E7: Needed storage volume per facility | G7: =LitersPerFacility -> 12.5
E8: * after name indicates CCEOP eligible product
A54: Is it cumulative? | B54: YES
B56: Freezer | L56: Gas | O56: ILR | AU56: Kerosene | AX56: LT passive | BA56: SDD | CG56: Solar w battery | CL56: WICR FR
B57: Haier HBD 116* | C57: Haier HBD 286* | D57: Vestfrost MF 314* | E57: Vestfrost MF 114* | F57: Vestfrost MF 214* | G57: B Medical TFW 800* | H57: Aucma DW-25W147* | I57: Aucma DW-25W300* | J57: B Medical TFW 3000 AC* | K57: B Medical TFW 40 SDD* | L57: Sibir V 110 GE | M57: B Medical RCW 50 EG | N57: Sibir V 170 GE | O57: Vestfrost MK 144 | P57: Vestfrost MK 204 | Q57: Vestfrost MK 404 | R57: Vestfrost VLS 300 | S57: Vestfrost VLS 350 | T57: Vestfrost VLS 400 | U57: Haier HBC-70 | V57: Haier HBC-200 | W57: Haier HBC-110 | X57: Haier HBC-340 | Y57: Vestfrost VLS 064 RF | Z57: Vestfrost MK 304 | AA57: Vestfrost MKF 074 | AB57: B Medical TCW 3000 AC | AC57: Vestfrost VLS 200 | AD57: Aucma CFD-50 | AE57: B Medical TCW 4000 AC* | AF57: B Medical TCW 2000 AC* | AG57: Zero ZLF 100 AC* | AH57: Zero ZLF 150 AC* | AI57: Godrej & Boyce GVR 50 AC* | AJ57: Godrej & Boyce GVR 100 AC* | AK57: Zero ZLF 30 AC* | AL57: Vestfrost VLS 200A* | AM57: Vestfrost VLS 300A* | AN57: Vestfrost VLS 350A* | AO57: Vestfrost VLS 400A* | AP57: Dulas Solar VC 225 ILR* | AQ57: Godrej & Boyce GVR 51 LITE AC* | AR57: Godrej & Boyce GVR 75 Lite* | AS57: Godrej & Boyce GVR 99 Lite* | AT57: Godrej & Boyce GVR 225 AC* | AU57: Sibir V 110 KE | AV57: Sibir V 170 KE | AW57: B Medical RCW 50 EK | AX57: SureChill tbd | AY57: Aucma tbd | AZ57: Aucma ARKTEK-YBC-5* | BA57: Vestfrost MKS 044 | BB57: Haier HTC-60 | BC57: Haier HTC-60H | BD57: B Medical TCW 3000 SDD | BE57: B Medical TCW 2000 SDD | BF57: SunDanzer BFRV 55* | BG57: Zero ZLF 100 DC* | BH57: SunDanzer BFRV 15 SDD* | BI57: Dulas Solar VC 200 SDD* | BJ57: Vestfrost VLS 054 SDD* | BK57: B Medical TCW 40 SDD* | BL57: B Medical TCW 2043 SDD* | BM57: B Medical TCW 3043 SDD* | BN57: Dulas Solar VC 150 SDD* | BO57: Godrej & Boyce GVR 50DC SDD* | BP57: Godrej & Boyce GVR 100DC (SureChill)* | BQ57: Zero ZLF 150DC* | BR57: Vestfrost VLS 094 SDD* | BS57: Vestfrost VLS 154 SDD* | BT57: Zero ZLF 30DC SDD* | BU57: Haier HTCD-160* | BV57: Dulas Solar VC 110 SDD* | BW57: Dulas Solar VC 88 SDD* | BX57: B Medical TCW 15R SDD* | BY57: B Medical TCW 40R SDD* | BZ57: Vestfrost VLS 024 SDD* | CA57: Haier HTCD 90 SDD* | CB57: Haier HTC 40 SDD* | CC57: Haier HTC 110 SDD* | CD57: Dulas Solar VC 50 SDD* | CE57: Dulas Solar VC 60 SDD* | CF57: B Medical TCW 15 SDD* | CG57: Dulas Solar VC 150-2 | CH57: Dulas Solar VC 200-1 | CI57: Dulas Solar VC 65-2 | CJ57: B Medical TCW 2000 DC | CK57: B Medical TCW 3000 DC | CL57: Zhendre WICR10 | CM57: Zhendre WICR30 | CN57: Zhendre WICR40 | CO57: Huurre WICR10 | CP57: Huurre WICR30 | CQ57: Huurre WICR40 | CR57: Haier WICR10 | CS57: Haier WICR30 | CT57: Haier WICR40 | CU57: Zhendre WIFR20 | CV57: Huurre WIFR20 | CW57: Haier WIFR20 | CX57: Zhendre CRFR40 | CY57: Huurre CRFR40 | CZ57: Haier CRFR40
A58: Year 1 | B58: 15522.49933 | C58: 19450.39133 | D58: 20790.37275 | E58: 17827.04675 | F58: 19063.21312 | G58: 49048.41702 | H58: 18455.83867 | I58: 21264.41167 | J58: 50095.45312 | K58: 72130.11567 | L58: 25194.127 | M58: 30971.379 | N58: 28903.557 | O58: 20241.07482 | P58: 21010.93808 | Q58: 25776.02382 | R58: 19888.7083 | S58: 20883.54064 | T58: 21820.61564 | U58: 17149.48633 | V58: 19147.78633 | W58: 18055.83633 | X58: 23222.75467 | Y58: 23302.89438 | Z58: 24723.13543 | AA58: 22711.65225 | AB58: 38732.00485 | AC58: 19109.18992 | AD58: 37218.01667 | AE58: 54330.15738 | AF58: 41309.09931 | AG58: 37339.66667 | AH58: 41784.06667 | AI58: 27329.66667 | AJ58: 36028.36667 | AK58: 28330.62667 | AL58: 20343.76125 | AM58: 22336.97882 | AN58: 23522.8566 | AO58: 24477.11807 | AP58: 43482.15667 | AQ58: 32165.76667 | AR58: 22890.06667 | AS58: 23549.46667 | AT58: 31620.06667 | AU58: 27688.90268 | AV58: 20693.18473 | AW58: 42771.75851 | AX58: 9780 | AY58: 9780 | AZ58: 91485.3 | BA58: 42701.34991 | BB58: 42197.045 | BC58: 44013.691 | BD58: 88721.80595 | BE58: 119392.7728 | BF58: 49854.5 | BG58: 74710.6 | BH58: 42418 | BI58: 66037.822 | BJ58: 49766.84988 | BK58: 84696.59007 | BL58: 117238.5407 | BM58: 92334.94557 | BN58: 90729.677 | BO58: 53257.1 | BP58: 67215.25 | BQ58: 79397.2 | BR58: 53531.38701 | BS58: 76854.53823 | BT58: 51930.3 | BU58: 83649.808 | BV58: 80879.355 | BW58: 65582.537 | BX58: 69789.37682 | BY58: 92472.26144 | BZ58: 48395.00288 | CA58: 79363.486 | CB58: 45103.486 | CC58: 48313.486 | CD58: 52594.73255 | CE58: 75357.29302 | CF58: 68996.05956 | CG58: 81780.68967 | CH58: 67493.51467 | CI58: 55117.68967 | CJ58: 66101.76888 | CK58: 67502.37855 | CL58: 239775 | CM58: 319431 | CN58: 274384 | CO58: 239775 | CP58: 313591 | CQ58: 274384 | CR58: 232788.9 | CS58: 301035 | CT58: 259930 | CU58: 266843.3 | CV58: 266843.3 | CW58: 236154.1 | CX58: 547280 | CY58: 542900 | CZ58: 511334.8
A59: Year 2 | B59: 16986.566 | C59: 23819.858 | D59: 25064.93941 | E59: 20648.91341 | F59: 22439.87978 | G59: 52680.58368 | H59: 22058.80533 | I59: 24911.17833 | J59: 52851.61978 | K59: 73316.78233 | L59: 29113.877 | M59: 35158.309 | N59: 34827.157 | O59: 23106.74148 | P59: 23577.30474 | Q59: 29211.09048 | R59: 21557.17496 | S59: 22515.5073 | T59: 23605.8823 | U59: 18803.353 | V59: 21312.653 | W59: 20118.503 | X59: 25913.22133 | Y59: 25584.56104 | Z59: 28245.80209 | AA59: 26424.11891 | AB59: 40918.77151 | AC59: 20814.15658 | AD59: 38959.48333 | AE59: 56137.32404 | AF59: 43860.86597 | AG59: 39957.13333 | AH59: 44416.13333 | AI59: 28925.13333 | AJ59: 37762.53333 | AK59: 30745.15333 | AL59: 21946.52791 | AM59: 24027.34548 | AN59: 25162.12326 | AO59: 26152.88473 | AP59: 45255.01333 | AQ59: 34841.63333 | AR59: 25149.83333 | AS59: 25634.03333 | AT59: 34295.93333 | AU59: 30750.15268 | AV59: 27597.88473 | AW59: 47114.15851 | AX59: 11100 | AY59: 11100 | AZ59: 93465.3 | BA59: 43776.34991 | BB59: 43272.045 | BC59: 45088.691 | BD59: 89796.80595 | BE59: 120467.7728 | BF59: 50929.5 | BG59: 75785.6 | BH59: 43493 | BI59: 67112.822 | BJ59: 50841.84988 | BK59: 85771.59007 | BL59: 118313.5407 | BM59: 93409.94557 | BN59: 91804.677 | BO59: 54332.1 | BP59: 68290.25 | BQ59: 80472.2 | BR59: 54606.38701 | BS59: 77929.53823 | BT59: 53005.3 | BU59: 84724.808 | BV59: 81954.355 | BW59: 66657.537 | BX59: 70864.37682 | BY59: 93547.26144 | BZ59: 49470.00288 | CA59: 80438.486 | CB59: 46178.486 | CC59: 49388.486 | CD59: 53669.73255 | CE59: 76432.29302 | CF59: 70071.05956 | CG59: 83592.24433 | CH59: 69305.06933 | CI59: 56929.24433 | CJ59: 67913.32354 | CK59: 69313.93321 | CL59: 252015 | CM59: 346271 | CN59: 301224 | CO59: 252015 | CP59: 334591 | CQ59: 301224 | CR59: 238042.8 | CS59: 309479 | CT59: 272316 | CU59: 307553.3 | CV59: 307553.3 | CW59: 246174.9 | CX59: 601130 | CY59: 592370 | CZ59: 529239.6
A60: Year 3 | B60: 18450.63267 | C60: 28189.32467 | D60: 29339.50608 | E60: 23470.78008 | F60: 25816.54645 | G60: 56312.75035 | H60: 25661.772 | I60: 28557.945 | J60: 55607.78645 | K60: 74503.449 | L60: 33033.627 | M60: 39345.239 | N60: 40750.757 | O60: 25972.40815 | P60: 26143.67141 | Q60: 32646.15715 | R60: 23225.64163 | S60: 24147.47397 | T60: 25391.14897 | U60: 20457.21967 | V60: 23477.51967 | W60: 22181.16967 | X60: 28603.688 | Y60: 27866.22771 | Z60: 31768.46876 | AA60: 30136.58558 | AB60: 43105.53818 | AC60: 22519.12325 | AD60: 40700.95 | AE60: 57944.49071 | AF60: 46412.63264 | AG60: 42574.6 | AH60: 47048.2 | AI60: 30520.6 | AJ60: 39496.7 | AK60: 33159.68 | AL60: 23549.29458 | AM60: 25717.71215 | AN60: 26801.38993 | AO60: 27828.6514 | AP60: 47027.87 | AQ60: 37517.5 | AR60: 27409.6 | AS60: 27718.6 | AT60: 36971.8 | AU60: 33811.40268 | AV60: 34502.58473 | AW60: 51456.55851 | AX60: 12420 | AY60: 12420 | AZ60: 95445.3 | BA60: 44851.34991 | BB60: 44347.045 | BC60: 46163.691 | BD60: 90871.80595 | BE60: 121542.7728 | BF60: 52004.5 | BG60: 76860.6 | BH60: 44568 | BI60: 68187.822 | BJ60: 51916.84988 | BK60: 86846.59007 | BL60: 119388.5407 | BM60: 94484.94557 | BN60: 92879.677 | BO60: 55407.1 | BP60: 69365.25 | BQ60: 81547.2 | BR60: 55681.38701 | BS60: 79004.53823 | BT60: 54080.3 | BU60: 85799.808 | BV60: 83029.355 | BW60: 67732.537 | BX60: 71939.37682 | BY60: 94622.26144 | BZ60: 50545.00288 | CA60: 81513.486 | CB60: 47253.486 | CC60: 50463.486 | CD60: 54744.73255 | CE60: 77507.29302 | CF60: 71146.05956 | CG60: 85403.799 | CH60: 71116.624 | CI60: 58740.799 | CJ60: 69724.87821 | CK60: 71125.48788 | CL60: 264255 | CM60: 373111 | CN60: 328064 | CO60: 264255 | CP60: 355591 | CQ60: 328064 | CR60: 243296.7 | CS60: 317923 | CT60: 284702 | CU60: 348263.3 | CV60: 348263.3 | CW60: 256195.7 | CX60: 654980 | CY60: 641840 | CZ60: 547144.4
A61: Year 4 | B61: 19914.69933 | C61: 32558.79133 | D61: 33614.07275 | E61: 26292.64675 | F61: 29193.21312 | G61: 59944.91702 | H61: 29264.73867 | I61: 32204.71167 | J61: 58363.95312 | K61: 75690.11567 | L61: 36953.377 | M61: 43532.169 | N61: 46674.357 | O61: 28838.07482 | P61: 28710.03808 | Q61: 36081.22382 | R61: 24894.1083 | S61: 25779.44064 | T61: 27176.41564 | U61: 22111.08633 | V61: 25642.38633 | W61: 24243.83633 | X61: 31294.15467 | Y61: 30147.89438 | Z61: 35291.13543 | AA61: 33849.05225 | AB61: 45292.30485 | AC61: 24224.08992 | AD61: 42442.41667 | AE61: 59751.65738 | AF61: 48964.39931 | AG61: 45192.06667 | AH61: 49680.26667 | AI61: 32116.06667 | AJ61: 41230.86667 | AK61: 35574.20667 | AL61: 25152.06125 | AM61: 27408.07882 | AN61: 28440.6566 | AO61: 29504.41807 | AP61: 48800.72667 | AQ61: 40193.36667 | AR61: 29669.36667 | AS61: 29803.16667 | AT61: 39647.66667 | AU61: 36872.65268 | AV61: 41407.28473 | AW61: 55798.95851 | AX61: 13740 | AY61: 13740 | AZ61: 97425.3 | BA61: 45926.34991 | BB61: 45422.045 | BC61: 47238.691 | BD61: 91946.80595 | BE61: 122617.7728 | BF61: 53079.5 | BG61: 77935.6 | BH61: 45643 | BI61: 69262.822 | BJ61: 52991.84988 | BK61: 87921.59007 | BL61: 120463.5407 | BM61: 95559.94557 | BN61: 93954.677 | BO61: 56482.1 | BP61: 70440.25 | BQ61: 82622.2 | BR61: 56756.38701 | BS61: 80079.53823 | BT61: 55155.3 | BU61: 86874.808 | BV61: 84104.355 | BW61: 68807.537 | BX61: 73014.37682 | BY61: 95697.26144 | BZ61: 51620.00288 | CA61: 82588.486 | CB61: 48328.486 | CC61: 51538.486 | CD61: 55819.73255 | CE61: 78582.29302 | CF61: 72221.05956 | CG61: 89898.65367 | CH61: 75611.47867 | CI61: 63235.65367 | CJ61: 74219.73288 | CK61: 75620.34255 | CL61: 276495 | CM61: 399951 | CN61: 354904 | CO61: 276495 | CP61: 376591 | CQ61: 354904 | CR61: 248550.6 | CS61: 326367 | CT61: 297088 | CU61: 388973.3 | CV61: 388973.3 | CW61: 266216.5 | CX61: 708830 | CY61: 691310 | CZ61: 565049.2
A62: Year 5 | B62: 21378.766 | C62: 36928.258 | D62: 37888.63941 | E62: 29114.51341 | F62: 32569.87978 | G62: 63577.08368 | H62: 32867.70533 | I62: 35851.47833 | J62: 61120.11978 | K62: 76876.78233 | L62: 40873.127 | M62: 47719.099 | N62: 52597.957 | O62: 31703.74148 | P62: 31276.40474 | Q62: 39516.29048 | R62: 26562.57496 | S62: 27411.4073 | T62: 28961.6823 | U62: 23764.953 | V62: 27807.253 | W62: 26306.503 | X62: 33984.62133 | Y62: 32429.56104 | Z62: 38813.80209 | AA62: 37561.51891 | AB62: 47479.07151 | AC62: 25929.05658 | AD62: 44183.88333 | AE62: 61558.82404 | AF62: 51516.16597 | AG62: 47809.53333 | AH62: 52312.33333 | AI62: 33711.53333 | AJ62: 42965.03333 | AK62: 37988.73333 | AL62: 26754.82791 | AM62: 29098.44548 | AN62: 30079.92326 | AO62: 31180.18473 | AP62: 50573.58333 | AQ62: 42869.23333 | AR62: 31929.13333 | AS62: 31887.73333 | AT62: 42323.53333 | AU62: 39933.90268 | AV62: 48311.98473 | AW62: 60141.35851 | AX62: 15060 | AY62: 15060 | AZ62: 99405.3 | BA62: 47001.34991 | BB62: 46497.045 | BC62: 48313.691 | BD62: 93021.80595 | BE62: 123692.7728 | BF62: 54154.5 | BG62: 79010.6 | BH62: 46718 | BI62: 70337.822 | BJ62: 54066.84988 | BK62: 88996.59007 | BL62: 121538.5407 | BM62: 96634.94557 | BN62: 95029.677 | BO62: 57557.1 | BP62: 71515.25 | BQ62: 83697.2 | BR62: 57831.38701 | BS62: 81154.53823 | BT62: 56230.3 | BU62: 87949.808 | BV62: 85179.355 | BW62: 69882.537 | BX62: 74089.37682 | BY62: 96772.26144 | BZ62: 52695.00288 | CA62: 83663.486 | CB62: 49403.486 | CC62: 52613.486 | CD62: 56894.73255 | CE62: 79657.29302 | CF62: 73296.05956 | CG62: 91710.20833 | CH62: 77423.03333 | CI62: 65047.20833 | CJ62: 76031.28754 | CK62: 77431.89721 | CL62: 288735 | CM62: 426791 | CN62: 381744 | CO62: 288735 | CP62: 397591 | CQ62: 381744 | CR62: 253804.5 | CS62: 334811 | CT62: 309474 | CU62: 429683.3 | CV62: 429683.3 | CW62: 276237.3 | CX62: 762680 | CY62: 740780 | CZ62: 582954
A63: Year 6 | B63: 22842.83267 | C63: 41297.72467 | D63: 42163.20608 | E63: 31936.38008 | F63: 35946.54645 | G63: 67209.25035 | H63: 36470.672 | I63: 39498.245 | J63: 63876.28645 | K63: 78063.449 | L63: 44792.877 | M63: 51906.029 | N63: 58521.557 | O63: 34569.40815 | P63: 33842.77141 | Q63: 42951.35715 | R63: 28231.04163 | S63: 29043.37397 | T63: 30746.94897 | U63: 25418.81967 | V63: 29972.11967 | W63: 28369.16967 | X63: 36675.088 | Y63: 34711.22771 | Z63: 42336.46876 | AA63: 41273.98558 | AB63: 49665.83818 | AC63: 27634.02325 | AD63: 45925.35 | AE63: 63365.99071 | AF63: 54067.93264 | AG63: 50427 | AH63: 54944.4 | AI63: 35307 | AJ63: 44699.2 | AK63: 40403.26 | AL63: 28357.59458 | AM63: 30788.81215 | AN63: 31719.18993 | AO63: 32855.9514 | AP63: 52346.44 | AQ63: 45545.1 | AR63: 34188.9 | AS63: 33972.3 | AT63: 44999.4 | AU63: 42995.15268 | AV63: 55216.68473 | AW63: 64483.75851 | AX63: 16380 | AY63: 16380 | AZ63: 101385.3 | BA63: 48076.34991 | BB63: 47572.045 | BC63: 49388.691 | BD63: 94096.80595 | BE63: 124767.7728 | BF63: 55229.5 | BG63: 80085.6 | BH63: 47793 | BI63: 71412.822 | BJ63: 55141.84988 | BK63: 90071.59007 | BL63: 122613.5407 | BM63: 97709.94557 | BN63: 96104.677 | BO63: 58632.1 | BP63: 72590.25 | BQ63: 84772.2 | BR63: 58906.38701 | BS63: 82229.53823 | BT63: 57305.3 | BU63: 89024.808 | BV63: 86254.355 | BW63: 70957.537 | BX63: 75164.37682 | BY63: 97847.26144 | BZ63: 53770.00288 | CA63: 84738.486 | CB63: 50478.486 | CC63: 53688.486 | CD63: 57969.73255 | CE63: 80732.29302 | CF63: 74371.05956 | CG63: 93521.763 | CH63: 79234.588 | CI63: 66858.763 | CJ63: 77842.84221 | CK63: 79243.45188 | CL63: 300975 | CM63: 453631 | CN63: 408584 | CO63: 300975 | CP63: 418591 | CQ63: 408584 | CR63: 259058.4 | CS63: 343255 | CT63: 321860 | CU63: 470393.3 | CV63: 470393.3 | CW63: 286258.1 | CX63: 816530 | CY63: 790250 | CZ63: 600858.8
A64: Year 7 | B64: 24306.89933 | C64: 45667.19133 | D64: 46437.77275 | E64: 34758.24675 | F64: 39323.21312 | G64: 70841.41702 | H64: 40073.63867 | I64: 43145.01167 | J64: 66632.45312 | K64: 79250.11567 | L64: 48712.627 | M64: 56092.959 | N64: 64445.157 | O64: 37435.07482 | P64: 36409.13808 | Q64: 46386.42382 | R64: 29899.5083 | S64: 30675.34064 | T64: 32532.21564 | U64: 27072.68633 | V64: 32136.98633 | W64: 30431.83633 | X64: 39365.55467 | Y64: 36992.89438 | Z64: 45859.13543 | AA64: 44986.45225 | AB64: 51852.60485 | AC64: 29338.98992 | AD64: 47666.81667 | AE64: 65173.15738 | AF64: 56619.69931 | AG64: 53044.46667 | AH64: 57576.46667 | AI64: 36902.46667 | AJ64: 46433.36667 | AK64: 42817.78667 | AL64: 29960.36125 | AM64: 32479.17882 | AN64: 33358.4566 | AO64: 34531.71807 | AP64: 54119.29667 | AQ64: 48220.96667 | AR64: 36448.66667 | AS64: 36056.86667 | AT64: 47675.26667 | AU64: 46056.40268 | AV64: 62121.38473 | AW64: 68826.15851 | AX64: 17700 | AY64: 17700 | AZ64: 103365.3 | BA64: 49151.34991 | BB64: 48647.045 | BC64: 50463.691 | BD64: 95171.80595 | BE64: 125842.7728 | BF64: 56304.5 | BG64: 81160.6 | BH64: 48868 | BI64: 72487.822 | BJ64: 56216.84988 | BK64: 91146.59007 | BL64: 123688.5407 | BM64: 98784.94557 | BN64: 97179.677 | BO64: 59707.1 | BP64: 73665.25 | BQ64: 85847.2 | BR64: 59981.38701 | BS64: 83304.53823 | BT64: 58380.3 | BU64: 90099.808 | BV64: 87329.355 | BW64: 72032.537 | BX64: 76239.37682 | BY64: 98922.26144 | BZ64: 54845.00288 | CA64: 85813.486 | CB64: 51553.486 | CC64: 54763.486 | CD64: 59044.73255 | CE64: 81807.29302 | CF64: 75446.05956 | CG64: 98016.61767 | CH64: 83729.44267 | CI64: 71353.61767 | CJ64: 82337.69688 | CK64: 83738.30655 | CL64: 313215 | CM64: 480471 | CN64: 435424 | CO64: 313215 | CP64: 439591 | CQ64: 435424 | CR64: 264312.3 | CS64: 351699 | CT64: 334246 | CU64: 511103.3 | CV64: 511103.3 | CW64: 296278.9 | CX64: 870380 | CY64: 839720 | CZ64: 618763.6
A65: Year 8 | B65: 25770.966 | C65: 50036.658 | D65: 50712.33941 | E65: 37580.11341 | F65: 42699.87978 | G65: 74473.58368 | H65: 43676.60533 | I65: 46791.77833 | J65: 69388.61978 | K65: 80436.78233 | L65: 52632.377 | M65: 60279.889 | N65: 70368.757 | O65: 40300.74148 | P65: 38975.50474 | Q65: 49821.49048 | R65: 31567.97496 | S65: 32307.3073 | T65: 34317.4823 | U65: 28726.553 | V65: 34301.853 | W65: 32494.503 | X65: 42056.02133 | Y65: 39274.56104 | Z65: 49381.80209 | AA65: 48698.91891 | AB65: 54039.37151 | AC65: 31043.95658 | AD65: 49408.28333 | AE65: 66980.32404 | AF65: 59171.46597 | AG65: 55661.93333 | AH65: 60208.53333 | AI65: 38497.93333 | AJ65: 48167.53333 | AK65: 45232.31333 | AL65: 31563.12791 | AM65: 34169.54548 | AN65: 34997.72326 | AO65: 36207.48473 | AP65: 55892.15333 | AQ65: 50896.83333 | AR65: 38708.43333 | AS65: 38141.43333 | AT65: 50351.13333 | AU65: 49117.65268 | AV65: 69026.08473 | AW65: 73168.55851 | AX65: 19020 | AY65: 19020 | AZ65: 105345.3 | BA65: 50226.34991 | BB65: 49722.045 | BC65: 51538.691 | BD65: 96246.80595 | BE65: 126917.7728 | BF65: 57379.5 | BG65: 82235.6 | BH65: 49943 | BI65: 73562.822 | BJ65: 57291.84988 | BK65: 92221.59007 | BL65: 124763.5407 | BM65: 99859.94557 | BN65: 98254.677 | BO65: 60782.1 | BP65: 74740.25 | BQ65: 86922.2 | BR65: 61056.38701 | BS65: 84379.53823 | BT65: 59455.3 | BU65: 91174.808 | BV65: 88404.355 | BW65: 73107.537 | BX65: 77314.37682 | BY65: 99997.26144 | BZ65: 55920.00288 | CA65: 86888.486 | CB65: 52628.486 | CC65: 55838.486 | CD65: 60119.73255 | CE65: 82882.29302 | CF65: 76521.05956 | CG65: 99828.17233 | CH65: 85540.99733 | CI65: 73165.17233 | CJ65: 84149.25154 | CK65: 85549.86121 | CL65: 325455 | CM65: 507311 | CN65: 462264 | CO65: 325455 | CP65: 460591 | CQ65: 462264 | CR65: 269566.2 | CS65: 360143 | CT65: 346632 | CU65: 551813.3 | CV65: 551813.3 | CW65: 306299.7 | CX65: 924230 | CY65: 889190 | CZ65: 636668.4
A66: Year 9 | B66: 27235.03267 | C66: 54406.12467 | D66: 54986.90608 | E66: 40401.98008 | F66: 46076.54645 | G66: 78105.75035 | H66: 47279.572 | I66: 50438.545 | J66: 72144.78645 | K66: 81623.449 | L66: 56552.127 | M66: 64466.819 | N66: 76292.357 | O66: 43166.40815 | P66: 41541.87141 | Q66: 53256.55715 | R66: 33236.44163 | S66: 33939.27397 | T66: 36102.74897 | U66: 30380.41967 | V66: 36466.71967 | W66: 34557.16967 | X66: 44746.488 | Y66: 41556.22771 | Z66: 52904.46876 | AA66: 52411.38558 | AB66: 56226.13818 | AC66: 32748.92325 | AD66: 51149.75 | AE66: 68787.49071 | AF66: 61723.23264 | AG66: 58279.4 | AH66: 62840.6 | AI66: 40093.4 | AJ66: 49901.7 | AK66: 47646.84 | AL66: 33165.89458 | AM66: 35859.91215 | AN66: 36636.98993 | AO66: 37883.2514 | AP66: 57665.01 | AQ66: 53572.7 | AR66: 40968.2 | AS66: 40226 | AT66: 53027 | AU66: 52178.90268 | AV66: 75930.78473 | AW66: 77510.95851 | AX66: 28800 | AY66: 28800 | AZ66: 196830.6 | BA66: 51301.34991 | BB66: 50797.045 | BC66: 52613.691 | BD66: 97321.80595 | BE66: 127992.7728 | BF66: 58454.5 | BG66: 83310.6 | BH66: 51018 | BI66: 74637.822 | BJ66: 58366.84988 | BK66: 93296.59007 | BL66: 125838.5407 | BM66: 100934.9456 | BN66: 99329.677 | BO66: 61857.1 | BP66: 75815.25 | BQ66: 87997.2 | BR66: 62131.38701 | BS66: 85454.53823 | BT66: 60530.3 | BU66: 92249.808 | BV66: 89479.355 | BW66: 74182.537 | BX66: 78389.37682 | BY66: 101072.2614 | BZ66: 56995.00288 | CA66: 87963.486 | CB66: 53703.486 | CC66: 56913.486 | CD66: 61194.73255 | CE66: 83957.29302 | CF66: 77596.05956 | CG66: 101639.727 | CH66: 87352.552 | CI66: 74976.727 | CJ66: 85960.80621 | CK66: 87361.41588 | CL66: 337695 | CM66: 534151 | CN66: 489104 | CO66: 337695 | CP66: 481591 | CQ66: 489104 | CR66: 274820.1 | CS66: 368587 | CT66: 359018 | CU66: 592523.3 | CV66: 592523.3 | CW66: 316320.5 | CX66: 978080 | CY66: 938660 | CZ66: 654573.2
A67: Year 10 | B67: 28699.09933 | C67: 58775.59133 | D67: 59261.47275 | E67: 43223.84675 | F67: 49453.21312 | G67: 81737.91702 | H67: 50882.53867 | I67: 54085.31167 | J67: 74900.95312 | K67: 82810.11567 | L67: 60471.877 | M67: 68653.749 | N67: 82215.957 | O67: 46032.07482 | P67: 44108.23808 | Q67: 56691.62382 | R67: 34904.9083 | S67: 35571.24064 | T67: 37888.01564 | U67: 32034.28633 | V67: 38631.58633 | W67: 36619.83633 | X67: 47436.95467 | Y67: 43837.89438 | Z67: 56427.13543 | AA67: 56123.85225 | AB67: 58412.90485 | AC67: 34453.88992 | AD67: 52891.21667 | AE67: 70594.65738 | AF67: 64274.99931 | AG67: 60896.86667 | AH67: 65472.66667 | AI67: 41688.86667 | AJ67: 51635.86667 | AK67: 50061.36667 | AL67: 34768.66125 | AM67: 37550.27882 | AN67: 38276.2566 | AO67: 39559.01807 | AP67: 59437.86667 | AQ67: 56248.56667 | AR67: 43227.96667 | AS67: 42310.56667 | AT67: 55702.86667 | AU67: 55240.15268 | AV67: 82835.48473 | AW67: 81853.35851 | AX67: 30120 | AY67: 30120 | AZ67: 198810.6 | BA67: 52376.34991 | BB67: 51872.045 | BC67: 53688.691 | BD67: 98396.80595 | BE67: 129067.7728 | BF67: 59529.5 | BG67: 84385.6 | BH67: 52093 | BI67: 75712.822 | BJ67: 59441.84988 | BK67: 94371.59007 | BL67: 126913.5407 | BM67: 102009.9456 | BN67: 100404.677 | BO67: 62932.1 | BP67: 76890.25 | BQ67: 89072.2 | BR67: 63206.38701 | BS67: 86529.53823 | BT67: 61605.3 | BU67: 93324.808 | BV67: 90554.355 | BW67: 75257.537 | BX67: 79464.37682 | BY67: 102147.2614 | BZ67: 58070.00288 | CA67: 89038.486 | CB67: 54778.486 | CC67: 57988.486 | CD67: 62269.73255 | CE67: 85032.29302 | CF67: 78671.05956 | CG67: 106134.5817 | CH67: 91847.40667 | CI67: 79471.58167 | CJ67: 90455.66088 | CK67: 91856.27055 | CL67: 349935 | CM67: 560991 | CN67: 515944 | CO67: 349935 | CP67: 502591 | CQ67: 515944 | CR67: 280074 | CS67: 377031 | CT67: 371404 | CU67: 633233.3 | CV67: 633233.3 | CW67: 326341.3 | CX67: 1031930 | CY67: 988130 | CZ67: 672478

Sheet Data and Assumptions ==>
A1: Data and assumptions
B2: The following worksheets contain the data and assumptions for equipment in the model.
B3: Individual technology worksheets contain labor assumptions for each model, with the default values driven from the Labor and Maintenance worksheet.
B4: Individual technology worksheets contain parts assumptions for number of parts needed over the useful life, by model, with default values input from manufacturer guidance, or PQS (World Health Organization Performance, Quality and Safety) data sheets. The default parts assumptions are parts needed per unit over the useful life of the equipment. Users may adjust these values based on one's own experiences with equipment in country.
C6: Light orange cells are assumption cells with no value. If an applicable assumption or data exists for a particular model, it can be entered in these cells and they will turn orange.
C7: Orange cells are default assumptions, which have been compiled for general use in the tool. The default assumption values that are in the Country Input and Labor and Maintenance worksheets can be overwritten as desired based on local costs or experiences with a technology.
C8: For individual model variances, please refer to the appropriate technology worksheet and locate the specific model to update if it differs from the default assumption (e.g., ice-lined refrigerator—Vestfrost MK204 useful life equals XX years instead of default 10 years).
C9: Grey cells are calculated values and should not be changed to avoid corruption of the formulas and data flow.

Sheet WICR FR
A1: Technology Assumptions - Walk in cold room / freezer room
A2: Technology | C2: =PQS!$A$90 -> WICR FR | D2: =PQS!$A$91 -> WICR FR | E2: =PQS!$A$92 -> WICR FR | F2: =PQS!$A$93 -> WICR FR | G2: =PQS!$A$94 -> WICR FR | H2: =PQS!$A$95 -> WICR FR | I2: =PQS!$A$96 -> WICR FR | J2: =PQS!$A$97 -> WICR FR | K2: =PQS!$A$98 -> WICR FR | L2: =PQS!$A$99 -> WICR FR | M2: =PQS!$A$100 -> WICR FR | N2: =PQS!$A$101 -> WICR FR | O2: =PQS!$A$102 -> WICR FR | P2: =PQS!$A$103 -> WICR FR | Q2: =PQS!$A$104 -> WICR FR | S2: AVERAGES
A3: Manufacturer | C3: =PQS!$F$90 -> Zhendre | D3: =PQS!$F$91 -> Zhendre | E3: =PQS!$F$92 -> Zhendre | F3: =PQS!$F$93 -> Huurre | G3: =PQS!$F$94 -> Huurre | H3: =PQS!$F$95 -> Huurre | I3: =PQS!$F$96 -> Haier | J3: =PQS!$F$97 -> Haier | K3: =PQS!$F$98 -> Haier | L3: =PQS!$F$99 -> Zhendre | M3: =PQS!$F$100 -> Huurre | N3: =PQS!$F$101 -> Haier | O3: =PQS!$F$102 -> Zhendre | P3: =PQS!$F$103 -> Huurre | Q3: =PQS!$F$104 -> Haier
A4: Model | C4: =PQS!$B$90 -> E001/WICR10-Zhendre | D4: =PQS!$B$91 -> E001/WICR30-Zhendre | E4: =PQS!$B$92 -> E001/WICR40-Zhendre | F4: =PQS!$B$93 -> E001/WICR10-Huurre | G4: =PQS!$B$94 -> E001/WICR30-Huurre | H4: =PQS!$B$95 -> E001/WICR40-Huurre | I4: =PQS!$B$96 -> E001/WICR10-Haier | J4: =PQS!$B$97 -> E001/WICR30-Haier | K4: =PQS!$B$98 -> E001/WICR40-Haier | L4: =PQS!$B$99 -> E001/WIFR20-Zhendre | M4: =PQS!$B$100 -> E001/WIFR20-Huurre | N4: =PQS!$B$101 -> E001/WIFR20-Haier | O4: =PQS!$B$102 -> E001/CRFR40-Zhendre | P4: =PQS!$B$103 -> E001/CRFR40-Huurre | Q4: =PQS!$B$104 -> E001/CRFR40-Haier
A5: CCEOP | C5: =VLOOKUP(C4,PQS!$B:$G,COLUMN(PQS!$G$3)-COLUMN(PQS!$B$3)+1,FALSE) -> No | D5: =VLOOKUP(D4,PQS!$B:$G,COLUMN(PQS!$G$3)-COLUMN(PQS!$B$3)+1,FALSE) -> No | E5: =VLOOKUP(E4,PQS!$B:$G,COLUMN(PQS!$G$3)-COLUMN(PQS!$B$3)+1,FALSE) -> No | F5: =VLOOKUP(F4,PQS!$B:$G,COLUMN(PQS!$G$3)-COLUMN(PQS!$B$3)+1,FALSE) -> No | G5: =VLOOKUP(G4,PQS!$B:$G,COLUMN(PQS!$G$3)-COLUMN(PQS!$B$3)+1,FALSE) -> No | H5: =VLOOKUP(H4,PQS!$B:$G,COLUMN(PQS!$G$3)-COLUMN(PQS!$B$3)+1,FALSE) -> No | I5: =VLOOKUP(I4,PQS!$B:$G,COLUMN(PQS!$G$3)-COLUMN(PQS!$B$3)+1,FALSE) -> No | J5: =VLOOKUP(J4,PQS!$B:$G,COLUMN(PQS!$G$3)-COLUMN(PQS!$B$3)+1,FALSE) -> No | K5: =VLOOKUP(K4,PQS!$B:$G,COLUMN(PQS!$G$3)-COLUMN(PQS!$B$3)+1,FALSE) -> No | L5: =VLOOKUP(L4,PQS!$B:$G,COLUMN(PQS!$G$3)-COLUMN(PQS!$B$3)+1,FALSE) -> No | M5: =VLOOKUP(M4,PQS!$B:$G,COLUMN(PQS!$G$3)-COLUMN(PQS!$B$3)+1,FALSE) -> No | N5: =VLOOKUP(N4,PQS!$B:$G,COLUMN(PQS!$G$3)-COLUMN(PQS!$B$3)+1,FALSE) -> No | O5: =VLOOKUP(O4,PQS!$B:$G,COLUMN(PQS!$G$3)-COLUMN(PQS!$B$3)+1,FALSE) -> No | P5: =VLOOKUP(P4,PQS!$B:$G,COLUMN(PQS!$G$3)-COLUMN(PQS!$B$3)+1,FALSE) -> No | Q5: =VLOOKUP(Q4,PQS!$B:$G,COLUMN(PQS!$G$3)-COLUMN(PQS!$B$3)+1,FALSE) -> No | S5: Capacity
A6: Net vaccine storage capacity | C6: =PQS!$I$90 -> 3030.30303 | D6: =PQS!$I$91 -> 7692.307692 | E6: =PQS!$I$92 -> 9523.809524 | F6: =PQS!$I$93 -> 3030.30303 | G6: =PQS!$I$94 -> 7692.307692 | H6: =PQS!$I$95 -> 9523.809524 | I6: =PQS!$I$96 -> 3030.30303 | J6: =PQS!$I$97 -> 7692.307692 | K6: =PQS!$I$98 -> 9523.809524 | L6: =PQS!$I$99 -> 5555.555556 | M6: =PQS!$I$100 -> 5555.555556 | N6: =PQS!$I$101 -> 5555.555556 | O6: =PQS!$I$102 -> 6666.666667 | P6: =PQS!$I$103 -> 6666.666667 | Q6: =PQS!$I$104 -> 6666.666667 | S6: =AVERAGE(C6:Q6) -> 6493.728494
A7: Waterpack freezing capacity | C7: =PQS!$K$90 -> 0 | D7: =PQS!$K$91 -> 0 | E7: =PQS!$K$92 -> 0 | F7: =PQS!$K$93 -> 0 | G7: =PQS!$K$94 -> 0 | H7: =PQS!$K$95 -> 0 | I7: =PQS!$K$96 -> 0 | J7: =PQS!$K$97 -> 0 | K7: =PQS!$K$98 -> 0 | L7: =PQS!$K$99 -> 0 | M7: =PQS!$K$100 -> 0 | N7: =PQS!$K$101 -> 0 | O7: =PQS!$K$102 -> 4411.764706 | P7: =PQS!$K$103 -> 4411.764706 | Q7: =PQS!$K$104 -> 4411.764706 | S7: =AVERAGE(C7:Q7) -> 882.3529412
A9: HARDWARE
A10: [Unit] | C10: =C4 -> E001/WICR10-Zhendre | D10: =D4 -> E001/WICR30-Zhendre | E10: E001/WICR40-Zhendre | F10: E001/WICR10-Huurre | G10: E001/WICR30-Huurre | H10: E001/WICR40-Huurre | I10: E001/WICR10-Haier | J10: E001/WICR30-Haier | K10: E001/WICR40-Haier | L10: E001/WIFR20-Zhendre | M10: E001/WIFR20-Huurre | N10: E001/WIFR20-Haier | O10: E001/CRFR40-Zhendre | P10: E001/CRFR40-Huurre | Q10: E001/CRFR40-Haier | S10: Useful life
A11: [unit] Expected useful life | C11: =Cold_room_freezer_roomUL -> 15 | D11: 15 | E11: 15 | F11: 15 | G11: 15 | H11: 15 | I11: 15 | J11: 15 | K11: 15 | L11: 15 | M11: 15 | N11: 15 | O11: 15 | P11: 15 | Q11: 15 | S11: =AVERAGE(C11:Q11) -> 15
A12: Solar panel expected useful life (where applicable)
A13: Battery expected useful life
A14: Installation kit price | C14: =WICRHW -> 3000 | D14: 3000 | E14: 3000 | F14: 3000 | G14: 3000 | H14: 3000 | I14: 3000 | J14: 3000 | K14: 3000 | L14: 3000 | M14: 3000 | N14: 3000 | O14: 3000 | P14: 3000 | Q14: 3000 | S14: =AVERAGE(C14:Q14) -> 3000
A17: [unit] PARTS
A18: Expressed as expected useful life of part in years | S18: Useful life
A19: Part 1
A20: Part 2
A21: Part 3
A22: Part 4
A25: LABOR
S26: Installation cost
A27: Installation labor cost (one time) | C27: ='Labor and Maintenance '!$J$17 -> 728 | D27: ='Labor and Maintenance '!$J$17 -> 728 | E27: ='Labor and Maintenance '!$J$17 -> 728 | F27: ='Labor and Maintenance '!$J$17 -> 728 | G27: ='Labor and Maintenance '!$J$17 -> 728 | H27: ='Labor and Maintenance '!$J$17 -> 728 | I27: ='Labor and Maintenance '!$J$17 -> 728 | J27: ='Labor and Maintenance '!$J$17 -> 728 | K27: ='Labor and Maintenance '!$J$17 -> 728 | L27: ='Labor and Maintenance '!$J$17 -> 728 | M27: ='Labor and Maintenance '!$J$17 -> 728 | N27: ='Labor and Maintenance '!$J$17 -> 728 | O27: ='Labor and Maintenance '!$J$17 -> 728 | P27: ='Labor and Maintenance '!$J$17 -> 728 | Q27: ='Labor and Maintenance '!$J$17 -> 728 | S27: =AVERAGE(C27:Q27) -> 728
A29: Maintenance and repairs - FREQUENCY
A30: Expressed in frequency of occurrence (in years: quarterly = 0.25, annual = 1, every 5 years = 5, etc.) | S30: Routine maintenance frequency
A31: Frequency - Routine maintenance | C31: ='Labor and Maintenance '!$E$71 -> 0.25 | D31: ='Labor and Maintenance '!$E$71 -> 0.25 | E31: ='Labor and Maintenance '!$E$71 -> 0.25 | F31: ='Labor and Maintenance '!$E$71 -> 0.25 | G31: ='Labor and Maintenance '!$E$71 -> 0.25 | H31: ='Labor and Maintenance '!$E$71 -> 0.25 | I31: ='Labor and Maintenance '!$E$71 -> 0.25 | J31: ='Labor and Maintenance '!$E$71 -> 0.25 | K31: ='Labor and Maintenance '!$E$71 -> 0.25 | L31: ='Labor and Maintenance '!$E$71 -> 0.25 | M31: ='Labor and Maintenance '!$E$71 -> 0.25 | N31: ='Labor and Maintenance '!$E$71 -> 0.25 | O31: ='Labor and Maintenance '!$E$71 -> 0.25 | P31: ='Labor and Maintenance '!$E$71 -> 0.25 | Q31: ='Labor and Maintenance '!$E$71 -> 0.25 | S31: =AVERAGE(C31:Q31) -> 0.25
A33: Major repairs (by a technician with tools) | S33: Major repair frequency
A34: Frequency - Onsite repairs 1 | C34: ='Labor and Maintenance '!$E$72 -> 3 | D34: ='Labor and Maintenance '!$E$72 -> 3 | E34: ='Labor and Maintenance '!$E$72 -> 3 | F34: ='Labor and Maintenance '!$E$72 -> 3 | G34: ='Labor and Maintenance '!$E$72 -> 3 | H34: ='Labor and Maintenance '!$E$72 -> 3 | I34: ='Labor and Maintenance '!$E$72 -> 3 | J34: ='Labor and Maintenance '!$E$72 -> 3 | K34: ='Labor and Maintenance '!$E$72 -> 3 | L34: ='Labor and Maintenance '!$E$72 -> 3 | M34: ='Labor and Maintenance '!$E$72 -> 3 | N34: ='Labor and Maintenance '!$E$72 -> 3 | O34: ='Labor and Maintenance '!$E$72 -> 3 | P34: ='Labor and Maintenance '!$E$72 -> 3 | Q34: ='Labor and Maintenance '!$E$72 -> 3 | S34: =AVERAGE(C34:Q34) -> 3
A35: Frequency - Onsite repairs 2 | C35: ='Labor and Maintenance '!$E$73 -> 0 | D35: ='Labor and Maintenance '!$E$73 -> 0 | E35: ='Labor and Maintenance '!$E$73 -> 0 | F35: ='Labor and Maintenance '!$E$73 -> 0 | G35: ='Labor and Maintenance '!$E$73 -> 0 | H35: ='Labor and Maintenance '!$E$73 -> 0 | I35: ='Labor and Maintenance '!$E$73 -> 0 | J35: ='Labor and Maintenance '!$E$73 -> 0 | K35: ='Labor and Maintenance '!$E$73 -> 0 | L35: ='Labor and Maintenance '!$E$73 -> 0 | M35: ='Labor and Maintenance '!$E$73 -> 0 | N35: ='Labor and Maintenance '!$E$73 -> 0 | O35: ='Labor and Maintenance '!$E$73 -> 0 | P35: ='Labor and Maintenance '!$E$73 -> 0 | Q35: ='Labor and Maintenance '!$E$73 -> 0 | S35: =AVERAGE(C35:Q35) -> 0
A36: Frequency - Major repairs in a workshop by a technician | C36: ='Labor and Maintenance '!$E$74 -> 0 | D36: ='Labor and Maintenance '!$E$74 -> 0 | E36: ='Labor and Maintenance '!$E$74 -> 0 | F36: ='Labor and Maintenance '!$E$74 -> 0 | G36: ='Labor and Maintenance '!$E$74 -> 0 | H36: ='Labor and Maintenance '!$E$74 -> 0 | I36: ='Labor and Maintenance '!$E$74 -> 0 | J36: ='Labor and Maintenance '!$E$74 -> 0 | K36: ='Labor and Maintenance '!$E$74 -> 0 | L36: ='Labor and Maintenance '!$E$74 -> 0 | M36: ='Labor and Maintenance '!$E$74 -> 0 | N36: ='Labor and Maintenance '!$E$74 -> 0 | O36: ='Labor and Maintenance '!$E$74 -> 0 | P36: ='Labor and Maintenance '!$E$74 -> 0 | Q36: ='Labor and Maintenance '!$E$74 -> 0 | S36: 0
A38: Maintenance and repairs - HOURS
A39: Expressed in number of hours needed to complete
A40: Hours - Routine maintenance | C40: ='Labor and Maintenance '!$C$71 -> 4 | D40: ='Labor and Maintenance '!$C$71 -> 4 | E40: ='Labor and Maintenance '!$C$71 -> 4 | F40: ='Labor and Maintenance '!$C$71 -> 4 | G40: ='Labor and Maintenance '!$C$71 -> 4 | H40: ='Labor and Maintenance '!$C$71 -> 4 | I40: ='Labor and Maintenance '!$C$71 -> 4 | J40: ='Labor and Maintenance '!$C$71 -> 4 | K40: ='Labor and Maintenance '!$C$71 -> 4 | L40: ='Labor and Maintenance '!$C$71 -> 4 | M40: ='Labor and Maintenance '!$C$71 -> 4 | N40: ='Labor and Maintenance '!$C$71 -> 4 | O40: ='Labor and Maintenance '!$C$71 -> 4 | P40: ='Labor and Maintenance '!$C$71 -> 4 | Q40: ='Labor and Maintenance '!$C$71 -> 4 | S40: =AVERAGE(C40:Q40) -> 4
A42: Major repairs (by a technician with tools)
A43: Hours - Onsite repairs 1 | C43: ='Labor and Maintenance '!$C$72 -> 16 | D43: ='Labor and Maintenance '!$C$72 -> 16 | E43: ='Labor and Maintenance '!$C$72 -> 16 | F43: ='Labor and Maintenance '!$C$72 -> 16 | G43: ='Labor and Maintenance '!$C$72 -> 16 | H43: ='Labor and Maintenance '!$C$72 -> 16 | I43: ='Labor and Maintenance '!$C$72 -> 16 | J43: ='Labor and Maintenance '!$C$72 -> 16 | K43: ='Labor and Maintenance '!$C$72 -> 16 | L43: ='Labor and Maintenance '!$C$72 -> 16 | M43: ='Labor and Maintenance '!$C$72 -> 16 | N43: ='Labor and Maintenance '!$C$72 -> 16 | O43: ='Labor and Maintenance '!$C$72 -> 16 | P43: ='Labor and Maintenance '!$C$72 -> 16 | Q43: ='Labor and Maintenance '!$C$72 -> 16 | S43: =AVERAGE(C43:Q43) -> 16
A44: Hours - Onsite repairs 2 | C44: ='Labor and Maintenance '!$C$73 -> 0 | D44: ='Labor and Maintenance '!$C$73 -> 0 | E44: ='Labor and Maintenance '!$C$73 -> 0 | F44: ='Labor and Maintenance '!$C$73 -> 0 | G44: ='Labor and Maintenance '!$C$73 -> 0 | H44: ='Labor and Maintenance '!$C$73 -> 0 | I44: ='Labor and Maintenance '!$C$73 -> 0 | J44: ='Labor and Maintenance '!$C$73 -> 0 | K44: ='Labor and Maintenance '!$C$73 -> 0 | L44: ='Labor and Maintenance '!$C$73 -> 0 | M44: ='Labor and Maintenance '!$C$73 -> 0 | N44: ='Labor and Maintenance '!$C$73 -> 0 | O44: ='Labor and Maintenance '!$C$73 -> 0 | P44: ='Labor and Maintenance '!$C$73 -> 0 | Q44: ='Labor and Maintenance '!$C$73 -> 0 | S44: =AVERAGE(C44:Q44) -> 0
A45: Hours - Major repairs in a workshop by a technician | C45: ='Labor and Maintenance '!$C$74 -> 0 | D45: ='Labor and Maintenance '!$C$74 -> 0 | E45: ='Labor and Maintenance '!$C$74 -> 0 | F45: ='Labor and Maintenance '!$C$74 -> 0 | G45: ='Labor and Maintenance '!$C$74 -> 0 | H45: ='Labor and Maintenance '!$C$74 -> 0 | I45: ='Labor and Maintenance '!$C$74 -> 0 | J45: ='Labor and Maintenance '!$C$74 -> 0 | K45: ='Labor and Maintenance '!$C$74 -> 0 | L45: ='Labor and Maintenance '!$C$74 -> 0 | M45: ='Labor and Maintenance '!$C$74 -> 0 | N45: ='Labor and Maintenance '!$C$74 -> 0 | O45: ='Labor and Maintenance '!$C$74 -> 0 | P45: ='Labor and Maintenance '!$C$74 -> 0 | Q45: ='Labor and Maintenance '!$C$74 -> 0 | S45: 0

Sheet ILR
A1: Technology Assumptions - Ice-lined refrigerator
A2: Technology | C2: =PQS!A18 -> ILR | D2: =PQS!A19 -> ILR | E2: =PQS!A20 -> ILR | F2: =PQS!A21 -> ILR | G2: =PQS!A22 -> ILR | H2: =PQS!A33 -> ILR | I2: =PQS!A24 -> ILR | J2: =PQS!A25 -> ILR | K2: =PQS!A26 -> ILR | L2: =PQS!A27 -> ILR | M2: =PQS!A28 -> ILR | N2: =PQS!A29 -> ILR | O2: =PQS!A30 -> ILR | P2: =PQS!A31 -> ILR | Q2: =PQS!A32 -> ILR | R2: =PQS!A33 -> ILR | S2: =PQS!A34 -> ILR | T2: =PQS!A35 -> ILR | U2: =PQS!A36 -> ILR | V2: =PQS!A37 -> ILR | W2: =PQS!A38 -> ILR | X2: =PQS!A39 -> ILR | Y2: =PQS!A40 -> ILR | Z2: =PQS!A41 -> ILR | AA2: =PQS!A42 -> ILR | AB2: =PQS!A43 -> ILR | AC2: =PQS!A44 -> ILR | AD2: =PQS!A45 -> ILR | AE2: =PQS!A46 -> ILR | AF2: =PQS!A47 -> ILR | AG2: =PQS!A48 -> ILR | AH2: =PQS!A49 -> ILR | AJ2: AVERAGES
A3: Manufacturer | C3: =PQS!F18 -> Haier | D3: =PQS!F19 -> Haier | E3: =PQS!F20 -> Vestfrost | F3: =PQS!F21 -> Vestfrost | G3: =PQS!F22 -> Vestfrost | H3: =PQS!F23 -> Vestfrost | I3: =PQS!F24 -> B Medical | J3: =PQS!F25 -> B Medical | K3: =PQS!F26 -> Vestfrost | L3: =PQS!F27 -> Vestfrost | M3: =PQS!F28 -> Vestfrost | N3: =PQS!F29 -> Vestfrost | O3: =PQS!F30 -> Vestfrost | P3: =PQS!F31 -> Haier | Q3: =PQS!F32 -> Zero | R3: =PQS!F33 -> Haier | S3: =PQS!F34 -> Zero | T3: =PQS!F35 -> Godrej & Boyce | U3: =PQS!F36 -> Godrej & Boyce | V3: =PQS!F37 -> Zero | W3: =PQS!F38 -> Vestfrost | X3: =PQS!F39 -> Vestfrost | Y3: =PQS!F40 -> Vestfrost | Z3: =PQS!F41 -> Vestfrost | AA3: =PQS!F42 -> B Medical | AB3: =PQS!F43 -> Vestfrost | AC3: =PQS!F44 -> Dulas Solar | AD3: =PQS!F45 -> Aucma | AE3: =PQS!F46 -> Godrej & Boyce | AF3: =PQS!F47 -> Godrej & Boyce | AG3: =PQS!F48 -> Godrej & Boyce | AH3: =PQS!F49 -> Godrej & Boyce
A4: Model | C4: =PQS!E18 -> HBC-70 | D4: =PQS!E19 -> HBC-200 | E4: =PQS!E20 -> MK 304 | F4: =PQS!E21 -> MKF 074 | G4: =PQS!E22 -> MK 204 | H4: =PQS!E23 -> MK 404 | I4: =PQS!E24 -> TCW 2000 AC* | J4: =PQS!E25 -> TCW 3000 AC | K4: =PQS!E26 -> VLS 400 | L4: =PQS!E27 -> MK 144 | M4: =PQS!E28 -> VLS 200 | N4: =PQS!E29 -> VLS 300 | O4: =PQS!E30 -> VLS 350 | P4: =PQS!E31 -> HBC-110 | Q4: =PQS!E32 -> ZLF 100 AC* | R4: =PQS!E33 -> HBC-340 | S4: =PQS!E34 -> ZLF 150 AC* | T4: =PQS!E35 -> GVR 50 AC* | U4: =PQS!E36 -> GVR 100 AC* | V4: =PQS!E37 -> ZLF 30 AC* | W4: =PQS!E38 -> VLS 200A* | X4: =PQS!E39 -> VLS 300A* | Y4: =PQS!E40 -> VLS 350A* | Z4: =PQS!E41 -> VLS 400A* | AA4: =PQS!E42 -> TCW 4000 AC* | AB4: =PQS!E43 -> VLS 064 RF | AC4: =PQS!E44 -> VC 225 ILR* | AD4: =PQS!E45 -> CFD-50 | AE4: =PQS!E46 -> GVR 51 LITE AC* | AF4: =PQS!E47 -> GVR 75 Lite* | AG4: =PQS!E48 -> GVR 99 Lite* | AH4: =PQS!E49 -> GVR 225 AC* | AJ4: Capacity
A5: CCEOP | C5: =VLOOKUP(C4,PQS!$E:$G,COLUMN(PQS!$G$3)-COLUMN(PQS!$E$3)+1,FALSE) -> No | D5: =VLOOKUP(D4,PQS!$E:$G,COLUMN(PQS!$G$3)-COLUMN(PQS!$E$3)+1,FALSE) -> No | E5: =VLOOKUP(E4,PQS!$E:$G,COLUMN(PQS!$G$3)-COLUMN(PQS!$E$3)+1,FALSE) -> No | F5: =VLOOKUP(F4,PQS!$E:$G,COLUMN(PQS!$G$3)-COLUMN(PQS!$E$3)+1,FALSE) -> No | G5: =VLOOKUP(G4,PQS!$E:$G,COLUMN(PQS!$G$3)-COLUMN(PQS!$E$3)+1,FALSE) -> No | H5: =VLOOKUP(H4,PQS!$E:$G,COLUMN(PQS!$G$3)-COLUMN(PQS!$E$3)+1,FALSE) -> No | I5: =VLOOKUP(I4,PQS!$E:$G,COLUMN(PQS!$G$3)-COLUMN(PQS!$E$3)+1,FALSE) -> Yes | J5: =VLOOKUP(J4,PQS!$E:$G,COLUMN(PQS!$G$3)-COLUMN(PQS!$E$3)+1,FALSE) -> No | K5: =VLOOKUP(K4,PQS!$E:$G,COLUMN(PQS!$G$3)-COLUMN(PQS!$E$3)+1,FALSE) -> No | L5: =VLOOKUP(L4,PQS!$E:$G,COLUMN(PQS!$G$3)-COLUMN(PQS!$E$3)+1,FALSE) -> No | M5: =VLOOKUP(M4,PQS!$E:$G,COLUMN(PQS!$G$3)-COLUMN(PQS!$E$3)+1,FALSE) -> No | N5: =VLOOKUP(N4,PQS!$E:$G,COLUMN(PQS!$G$3)-COLUMN(PQS!$E$3)+1,FALSE) -> No | O5: =VLOOKUP(O4,PQS!$E:$G,COLUMN(PQS!$G$3)-COLUMN(PQS!$E$3)+1,FALSE) -> No | P5: =VLOOKUP(P4,PQS!$E:$G,COLUMN(PQS!$G$3)-COLUMN(PQS!$E$3)+1,FALSE) -> No | Q5: =VLOOKUP(Q4,PQS!$E:$G,COLUMN(PQS!$G$3)-COLUMN(PQS!$E$3)+1,FALSE) -> Yes | R5: =VLOOKUP(R4,PQS!$E:$G,COLUMN(PQS!$G$3)-COLUMN(PQS!$E$3)+1,FALSE) -> No | S5: =VLOOKUP(S4,PQS!$E:$G,COLUMN(PQS!$G$3)-COLUMN(PQS!$E$3)+1,FALSE) -> Yes | T5: =VLOOKUP(T4,PQS!$E:$G,COLUMN(PQS!$G$3)-COLUMN(PQS!$E$3)+1,FALSE) -> Yes | U5: =VLOOKUP(U4,PQS!$E:$G,COLUMN(PQS!$G$3)-COLUMN(PQS!$E$3)+1,FALSE) -> Yes | V5: =VLOOKUP(V4,PQS!$E:$G,COLUMN(PQS!$G$3)-COLUMN(PQS!$E$3)+1,FALSE) -> Yes | W5: =VLOOKUP(W4,PQS!$E:$G,COLUMN(PQS!$G$3)-COLUMN(PQS!$E$3)+1,FALSE) -> Yes | X5: =VLOOKUP(X4,PQS!$E:$G,COLUMN(PQS!$G$3)-COLUMN(PQS!$E$3)+1,FALSE) -> Yes | Y5: =VLOOKUP(Y4,PQS!$E:$G,COLUMN(PQS!$G$3)-COLUMN(PQS!$E$3)+1,FALSE) -> Yes | Z5: =VLOOKUP(Z4,PQS!$E:$G,COLUMN(PQS!$G$3)-COLUMN(PQS!$E$3)+1,FALSE) -> Yes | AA5: =VLOOKUP(AA4,PQS!$E:$G,COLUMN(PQS!$G$3)-COLUMN(PQS!$E$3)+1,FALSE) -> Yes | AB5: =VLOOKUP(AB4,PQS!$E:$G,COLUMN(PQS!$G$3)-COLUMN(PQS!$E$3)+1,FALSE) -> No | AC5: =VLOOKUP(AC4,PQS!$E:$G,COLUMN(PQS!$G$3)-COLUMN(PQS!$E$3)+1,FALSE) -> Yes | AD5: =VLOOKUP(AD4,PQS!$E:$G,COLUMN(PQS!$G$3)-COLUMN(PQS!$E$3)+1,FALSE) -> No | AE5: =VLOOKUP(AE4,PQS!$E:$G,COLUMN(PQS!$G$3)-COLUMN(PQS!$E$3)+1,FALSE) -> Yes | AF5: =VLOOKUP(AF4,PQS!$E:$G,COLUMN(PQS!$G$3)-COLUMN(PQS!$E$3)+1,FALSE) -> Yes | AG5: =VLOOKUP(AG4,PQS!$E:$G,COLUMN(PQS!$G$3)-COLUMN(PQS!$E$3)+1,FALSE) -> Yes | AH5: =VLOOKUP(AH4,PQS!$E:$G,COLUMN(PQS!$G$3)-COLUMN(PQS!$E$3)+1,FALSE) -> Yes
A6: Net vaccine storage capacity | C6: =PQS!I18 -> 45 | D6: =PQS!I19 -> 90 | E6: =PQS!I20 -> 105 | F6: =PQS!I21 -> 16 | G6: =PQS!I22 -> 75 | H6: =PQS!I23 -> 135 | I6: =PQS!I24 -> 60 | J6: =PQS!I25 -> 150 | K6: =PQS!I26 -> 216 | L6: =PQS!I27 -> 48 | M6: =PQS!I28 -> 100 | N6: =PQS!I29 -> 148 | O6: =PQS!I30 -> 196 | P6: =PQS!I31 -> 52.5 | Q6: =PQS!I32 -> 99 | R6: =PQS!I33 -> 211 | S6: =PQS!I34 -> 128 | T6: =PQS!I35 -> 46.8 | U6: =PQS!I36 -> 99 | V6: =PQS!I37 -> 27 | W6: =PQS!I38 -> 60 | X6: =PQS!I39 -> 98 | Y6: =PQS!I40 -> 127 | Z6: =PQS!I41 -> 145 | AA6: =PQS!I42 -> 240 | AB6: =PQS!I43 -> 52.5 | AC6: =PQS!I44 -> 203.2 | AD6: =PQS!I45 -> 50 | AE6: =PQS!I46 -> 51 | AF6: =PQS!I47 -> 72.5 | AG6: =PQS!I48 -> 98.5 | AH6: =PQS!I49 -> 225 | AJ6: =AVERAGE(C6:AH6) -> 108.4375
A7: Waterpack freezing capacity | C7: =PQS!K18 -> 0 | D7: =PQS!K19 -> 0 | E7: =PQS!K20 -> 0 | F7: =PQS!K21 -> 1.6 | G7: =PQS!K22 -> 0 | H7: =PQS!K23 -> 0 | I7: =PQS!K24 -> 10 | J7: =PQS!K25 -> 0 | K7: =PQS!K26 -> 0 | L7: =PQS!K27 -> 0 | M7: =PQS!K28 -> 3 | N7: =PQS!K29 -> 0 | O7: =PQS!K30 -> 0 | P7: =PQS!K31 -> 0 | Q7: =PQS!K32 -> 0 | R7: =PQS!K33 -> 0 | S7: =PQS!K34 -> 0 | T7: =PQS!K35 -> 0 | U7: =PQS!K36 -> 0 | V7: =PQS!K37 -> 0 | W7: =PQS!K38 -> 0 | X7: =PQS!K39 -> 0 | Y7: =PQS!K40 -> 0 | Z7: =PQS!K41 -> 0 | AA7: =PQS!K42 -> 0 | AB7: =PQS!K43 -> 1.6 | AC7: =PQS!K44 -> 0 | AD7: =PQS!K45 -> 0 | AE7: =PQS!K46 -> 0 | AF7: =PQS!K47 -> 0 | AG7: =PQS!K48 -> 0 | AH7: =PQS!K49 -> 0 | AJ7: =AVERAGE(C7:AH7) -> 0.50625
A9: HARDWARE
A10: [Unit] | C10: =PQS!B18 -> E003/005 | D10: =PQS!B19 -> E003/006 | E10: =PQS!B20 -> E003/007 | F10: =PQS!B21 -> E003/010 | G10: =PQS!B22 -> E003/011 | H10: =PQS!B23 -> E003/012 | I10: =PQS!B24 -> E003/014 | J10: =PQS!B25 -> E003/017 | K10: =PQS!B26 -> E003/021 | L10: =PQS!B27 -> E003/022 | M10: =PQS!B28 -> E003/031 | N10: =PQS!B29 -> E003/032 | O10: =PQS!B30 -> E003/033 | P10: =PQS!B31 -> E003/034 | Q10: =PQS!B32 -> E003/036 | R10: =PQS!B33 -> E003/038 | S10: =PQS!B34 -> E003/044 | T10: =PQS!B35 -> E003/046 | U10: =PQS!B36 -> E003/047 | V10: =PQS!B37 -> E003/051 | W10: =PQS!B38 -> E003/062 | X10: =PQS!B39 -> E003/063 | Y10: =PQS!B40 -> E003/064 | Z10: =PQS!B41 -> E003/065 | AA10: =PQS!B42 -> E003/066 | AB10: =PQS!B43 -> E003/070 | AC10: =PQS!B44 -> E003/072 | AD10: =PQS!B45 -> E003/079 | AE10: =PQS!B46 -> E003/080 | AF10: =PQS!B47 -> E003/081 | AG10: =PQS!B48 -> E003/082 | AH10: =PQS!B49 -> E003/083 | AJ10: Useful life
A11: [unit] Expected useful life | C11: =ILRUL -> 10 | D11: 10 | E11: 10 | F11: 10 | G11: 10 | H11: 10 | I11: 10 | J11: 10 | K11: 10 | L11: 10 | M11: 10 | N11: 10 | O11: 10 | P11: 10 | Q11: 10 | R11: 10 | S11: 10 | T11: 10 | U11: 10 | V11: 10 | W11: 10 | X11: 10 | Y11: 10 | Z11: 10 | AA11: 10 | AB11: 10 | AC11: 10 | AD11: 10 | AE11: 10 | AF11: 10 | AG11: 10 | AH11: 10 | AJ11: =AVERAGE(C11:AH11) -> 10
A12: Solar panel expected useful life (where applicable)
A13: Battery expected useful life
A14: Installation kit price | C14: =IlrHardware -> 50 | D14: 50 | E14: 50 | F14: 50 | G14: 50 | H14: 50 | I14: 50 | J14: 50 | K14: 50 | L14: 50 | M14: 50 | N14: 50 | O14: 50 | P14: 50 | Q14: 50 | R14: 50 | S14: 50 | T14: 50 | U14: 50 | V14: 50 | W14: 50 | X14: 50 | Y14: 50 | Z14: 50 | AA14: 50 | AB14: 50 | AC14: 50 | AD14: 50 | AE14: 50 | AF14: 50 | AG14: 50 | AH14: 50 | AJ14: =AVERAGE(C14:AH14) -> 50
A17: [unit] PARTS
A18: Number of parts needed for useful life per unit | AJ18: Average
A19: Compressor | C19: 1 | D19: 1 | E19: 1 | F19: 1 | G19: 1 | H19: 1 | I19: 1 | J19: 1 | K19: 1 | L19: 1 | M19: 1 | N19: 1 | O19: 1 | P19: 1 | Q19: 1 | R19: 1 | S19: 1 | T19: 1 | U19: 1 | V19: 1 | W19: 1 | X19: 1 | Y19: 1 | Z19: 1 | AA19: 1 | AB19: 1 | AC19: 1 | AD19: 1 | AE19: 1 | AF19: 1 | AG19: 1 | AH19: 1 | AJ19: =AVERAGE(C19:AH19) -> 1
A20: Compressor controller | C20: 0 | D20: 0 | E20: 0 | F20: 0 | G20: 0 | H20: 0 | I20: 0 | J20: 0 | K20: 0 | L20: 0 | M20: 0 | N20: 0 | O20: 0 | P20: 0 | Q20: 0 | R20: 0 | S20: 0 | T20: 0 | U20: 0 | V20: 0 | W20: 0 | X20: 0 | Y20: 0 | Z20: 0 | AA20: 0 | AB20: 0 | AC20: 1 | AD20: 1 | AE20: 0 | AF20: 0 | AG20: 0 | AH20: 0 | AJ20: =AVERAGE(C20:AH20) -> 0.0625
A21: Thermostat | C21: 1 | D21: 1 | E21: 1 | F21: 1 | G21: 1 | H21: 1 | I21: 1 | J21: 1 | K21: 1 | L21: 1 | M21: 1 | N21: 1 | O21: 1 | P21: 1 | Q21: 1 | R21: 1 | S21: 1 | T21: 0 | U21: 0 | V21: 1 | W21: 1 | X21: 1 | Y21: 1 | Z21: 1 | AA21: 0 | AB21: 1 | AC21: 1 | AD21: 1 | AE21: 0 | AF21: 0 | AG21: 0 | AH21: 0 | AJ21: 0.78125
A22: Control panel | C22: 1 | D22: 1 | E22: 0 | F22: 0 | G22: 0 | H22: 0 | I22: 1 | J22: 0 | K22: 0 | L22: 0 | M22: 0 | N22: 0 | O22: 0 | P22: 1 | Q22: 0 | R22: 1 | S22: 0 | T22: 1 | U22: 1 | V22: 0 | W22: 0 | X22: 0 | Y22: 0 | Z22: 0 | AA22: 1 | AB22: 0 | AC22: 1 | AD22: 1 | AE22: 1 | AF22: 1 | AG22: 1 | AH22: 1 | AJ22: 0.4375
A23: Sensor for e-thermostat | C23: 0 | D23: 0 | E23: 0 | F23: 0 | G23: 0 | H23: 0 | I23: 1 | J23: 1 | K23: 0 | L23: 0 | M23: 0 | N23: 0 | O23: 0 | P23: 0 | Q23: 0 | R23: 0 | S23: 0 | T23: 0 | U23: 0 | V23: 0 | W23: 0 | X23: 0 | Y23: 0 | Z23: 0 | AA23: 0 | AB23: 0 | AC23: 0 | AD23: 1 | AE23: 0 | AF23: 0 | AG23: 0 | AH23: 0 | AJ23: 0.09375
A24: Condensor + fan | C24: 1 | D24: 1 | E24: 1 | F24: 0 | G24: 0 | H24: 1 | I24: 1 | J24: 1 | K24: 0 | L24: 0 | M24: 0 | N24: 0 | O24: 0 | P24: 1 | Q24: 1 | R24: 1 | S24: 1 | T24: 1 | U24: 1 | V24: 1 | W24: 0 | X24: 0 | Y24: 0 | Z24: 0 | AA24: 1 | AB24: 0 | AC24: 0 | AD24: 1 | AE24: 0 | AF24: 0 | AG24: 0 | AH24: 1 | AJ24: 0.5
A25: Fan for compressor | C25: 0 | D25: 0 | E25: 1 | F25: 0 | G25: 0 | H25: 1 | I25: 0 | J25: 0 | K25: 0 | L25: 0 | M25: 0 | N25: 0 | O25: 0 | P25: 0 | Q25: 0 | R25: 0 | S25: 0 | T25: 0 | U25: 0 | V25: 0 | W25: 0 | X25: 0 | Y25: 0 | Z25: 0 | AA25: 0 | AB25: 0 | AC25: 0 | AD25: 0 | AE25: 0 | AF25: 0 | AG25: 0 | AH25: 0 | AJ25: 0.0625
A26: Switch | C26: 1 | D26: 1 | E26: 0 | F26: 0 | G26: 0 | H26: 0 | I26: 1 | J26: 1 | K26: 0 | L26: 0 | M26: 0 | N26: 0 | O26: 0 | P26: 1 | Q26: 0 | R26: 1 | S26: 0 | T26: 0 | U26: 0 | V26: 0 | W26: 0 | X26: 0 | Y26: 0 | Z26: 0 | AA26: 1 | AB26: 0 | AC26: 0 | AD26: 1 | AE26: 0 | AF26: 0 | AG26: 0 | AH26: 0 | AJ26: 0.25
A27: Voltage stabilizer | C27: 1 | D27: 1 | E27: 0 | F27: 0 | G27: 0 | H27: 0 | I27: 1 | J27: 0 | K27: 0 | L27: 0 | M27: 0 | N27: 0 | O27: 0 | P27: 1 | Q27: 0 | R27: 1 | S27: 0 | T27: 1 | U27: 1 | V27: 0 | W27: 0 | X27: 0 | Y27: 0 | Z27: 0 | AA27: 0 | AB27: 0 | AC27: 0 | AD27: 0 | AE27: 1 | AF27: 1 | AG27: 1 | AH27: 1 | AJ27: 0.34375
A28: Baskets | C28: 1 | D28: 1 | E28: 2 | F28: 2 | G28: 2 | H28: 2 | I28: 1 | J28: 1 | K28: 2 | L28: 2 | M28: 2 | N28: 2 | O28: 2 | P28: 1 | Q28: 0 | R28: 1 | S28: 0 | T28: 0 | U28: 0 | V28: 0 | W28: 2 | X28: 2 | Y28: 2 | Z28: 2 | AA28: 1 | AB28: 0 | AC28: 0 | AD28: 0 | AE28: 0 | AF28: 0 | AG28: 0 | AH28: 0 | AJ28: 1.03125
A29: Starter relay | C29: 0 | D29: 0 | E29: 1 | F29: 1 | G29: 1 | H29: 1 | I29: 1 | J29: 1 | K29: 1 | L29: 1 | M29: 1 | N29: 1 | O29: 1 | P29: 0 | Q29: 0 | R29: 0 | S29: 0 | T29: 1 | U29: 1 | V29: 0 | W29: 1 | X29: 1 | Y29: 1 | Z29: 1 | AA29: 1 | AB29: 0 | AC29: 0 | AD29: 0 | AE29: 1 | AF29: 1 | AG29: 1 | AH29: 1 | AJ29: 0.6875
A30: Starting capacitor | C30: 0 | D30: 0 | E30: 1 | F30: 0 | G30: 1 | H30: 1 | I30: 1 | J30: 1 | K30: 0 | L30: 1 | M30: 0 | N30: 0 | O30: 0 | P30: 0 | Q30: 0 | R30: 0 | S30: 0 | T30: 1 | U30: 1 | V30: 0 | W30: 1 | X30: 1 | Y30: 1 | Z30: 1 | AA30: 1 | AB30: 0 | AC30: 0 | AD30: 0 | AE30: 1 | AF30: 1 | AG30: 1 | AH30: 1 | AJ30: 0.53125
A31: Drier | C31: 1 | D31: 1 | E31: 1 | F31: 1 | G31: 1 | H31: 1 | I31: 1 | J31: 1 | K31: 1 | L31: 1 | M31: 1 | N31: 1 | O31: 1 | P31: 1 | Q31: 0 | R31: 1 | S31: 0 | T31: 0 | U31: 0 | V31: 0 | W31: 1 | X31: 1 | Y31: 1 | Z31: 1 | AA31: 1 | AB31: 0 | AC31: 0 | AD31: 1 | AE31: 0 | AF31: 0 | AG31: 0 | AH31: 0 | AJ31: 0.65625
A32: Fuse | C32: 0 | D32: 0 | E32: 0 | F32: 0 | G32: 0 | H32: 0 | I32: 0 | J32: 0 | K32: 0 | L32: 0 | M32: 0 | N32: 0 | O32: 0 | P32: 0 | Q32: 0 | R32: 0 | S32: 0 | T32: 0 | U32: 0 | V32: 0 | W32: 0 | X32: 0 | Y32: 0 | Z32: 0 | AA32: 1 | AB32: 0 | AC32: 0 | AD32: 0 | AE32: 0 | AF32: 0 | AG32: 0 | AH32: 0 | AJ32: 0.03125
A33: Hinge | C33: 1 | D33: 1 | E33: 1 | F33: 2 | G33: 1 | H33: 1 | I33: 2 | J33: 2 | K33: 1 | L33: 1 | M33: 1 | N33: 1 | O33: 1 | P33: 1 | Q33: 0 | R33: 1 | S33: 0 | T33: 0 | U33: 0 | V33: 0 | W33: 0 | X33: 0 | Y33: 1 | Z33: 1 | AA33: 2 | AB33: 0 | AC33: 0 | AD33: 0 | AE33: 0 | AF33: 0 | AG33: 0 | AH33: 0 | AJ33: 0.6875
A34: Hinge cover | C34: 1 | D34: 1 | E34: 0 | F34: 0 | G34: 0 | H34: 0 | I34: 1 | J34: 1 | K34: 0 | L34: 0 | M34: 0 | N34: 0 | O34: 0 | P34: 1 | Q34: 0 | R34: 1 | S34: 0 | T34: 1 | U34: 1 | V34: 0 | W34: 2 | X34: 2 | Y34: 0 | Z34: 0 | AA34: 1 | AB34: 0 | AC34: 0 | AD34: 0 | AE34: 1 | AF34: 1 | AG34: 1 | AH34: 1 | AJ34: 0.53125
A35: Thermometer | C35: 1 | D35: 1 | E35: 1 | F35: 0 | G35: 1 | H35: 1 | I35: 0 | J35: 1 | K35: 1 | L35: 1 | M35: 1 | N35: 1 | O35: 1 | P35: 1 | Q35: 1 | R35: 1 | S35: 1 | T35: 1 | U35: 1 | V35: 1 | W35: 1 | X35: 1 | Y35: 1 | Z35: 1 | AA35: 0 | AB35: 0 | AC35: 1 | AD35: 0 | AE35: 1 | AF35: 1 | AG35: 1 | AH35: 1 | AJ35: 0.84375
A36: Ice pack | C36: 0 | D36: 0 | E36: 0 | F36: 0 | G36: 0 | H36: 0 | I36: 1 | J36: 1 | K36: 0 | L36: 0 | M36: 0 | N36: 0 | O36: 0 | P36: 1 | Q36: 0 | R36: 0 | S36: 0 | T36: 0 | U36: 0 | V36: 0 | W36: 0 | X36: 0 | Y36: 0 | Z36: 0 | AA36: 0 | AB36: 0 | AC36: 0 | AD36: 0 | AE36: 0 | AF36: 0 | AG36: 0 | AH36: 0 | AJ36: 0.09375
A37: Handle | C37: 1 | D37: 1 | E37: 1 | F37: 1 | G37: 1 | H37: 1 | I37: 0 | J37: 0 | K37: 1 | L37: 1 | M37: 1 | N37: 1 | O37: 1 | P37: 1 | Q37: 0 | R37: 1 | S37: 0 | T37: 1 | U37: 1 | V37: 0 | W37: 1 | X37: 1 | Y37: 1 | Z37: 1 | AA37: 0 | AB37: 0 | AC37: 0 | AD37: 0 | AE37: 1 | AF37: 1 | AG37: 1 | AH37: 1 | AJ37: 0.71875
A38: Electrical wiring | C38: 1 | D38: 1 | E38: 0 | F38: 0 | G38: 0 | H38: 0 | I38: 0 | J38: 0 | K38: 0 | L38: 0 | M38: 0 | N38: 0 | O38: 0 | P38: 1 | Q38: 0 | R38: 1 | S38: 0 | T38: 0 | U38: 0 | V38: 0 | W38: 0 | X38: 0 | Y38: 0 | Z38: 0 | AA38: 0 | AB38: 0 | AC38: 0 | AD38: 1 | AE38: 0 | AF38: 0 | AG38: 0 | AH38: 0 | AJ38: 0.15625
A39: Evaporator | C39: 0 | D39: 0 | E39: 0 | F39: 0 | G39: 0 | H39: 0 | I39: 0 | J39: 0 | K39: 0 | L39: 0 | M39: 0 | N39: 0 | O39: 0 | P39: 0 | Q39: 0 | R39: 0 | S39: 0 | T39: 0 | U39: 0 | V39: 0 | W39: 0 | X39: 0 | Y39: 0 | Z39: 0 | AA39: 0 | AB39: 0 | AC39: 0 | AD39: 1 | AE39: 0 | AF39: 0 | AG39: 0 | AH39: 0 | AJ39: 0.03125
A40: Sensor cooler | C40: 0 | D40: 0 | E40: 0 | F40: 0 | G40: 0 | H40: 0 | I40: 0 | J40: 0 | K40: 0 | L40: 0 | M40: 0 | N40: 0 | O40: 0 | P40: 0 | Q40: 0 | R40: 0 | S40: 0 | T40: 0 | U40: 0 | V40: 0 | W40: 0 | X40: 0 | Y40: 0 | Z40: 0 | AA40: 1 | AB40: 0 | AC40: 0 | AD40: 0 | AE40: 0 | AF40: 0 | AG40: 0 | AH40: 0 | AJ40: 0.03125
A41: Display board | C41: 0 | D41: 0 | E41: 0 | F41: 0 | G41: 0 | H41: 0 | I41: 0 | J41: 0 | K41: 0 | L41: 0 | M41: 0 | N41: 0 | O41: 0 | P41: 0 | Q41: 0 | R41: 0 | S41: 0 | T41: 0 | U41: 0 | V41: 0 | W41: 0 | X41: 0 | Y41: 0 | Z41: 0 | AA41: 1 | AB41: 0 | AC41: 0 | AD41: 0 | AE41: 0 | AF41: 0 | AG41: 0 | AH41: 0 | AJ41: 0.03125
A42: Rechargeable battery | C42: 0 | D42: 0 | E42: 0 | F42: 0 | G42: 0 | H42: 0 | I42: 0 | J42: 0 | K42: 0 | L42: 0 | M42: 0 | N42: 0 | O42: 0 | P42: 0 | Q42: 0 | R42: 1 | S42: 0 | T42: 0 | U42: 0 | V42: 0 | W42: 0 | X42: 0 | Y42: 0 | Z42: 0 | AA42: 0 | AB42: 0 | AC42: 0 | AD42: 0 | AE42: 0 | AF42: 0 | AG42: 0 | AH42: 0 | AJ42: 0.03125
A43: Surge Protector | C43: 0 | D43: 0 | E43: 0 | F43: 0 | G43: 0 | H43: 0 | I43: 0 | J43: 0 | K43: 0 | L43: 0 | M43: 0 | N43: 0 | O43: 0 | P43: 0 | Q43: 0 | R43: 0 | S43: 0 | T43: 0 | U43: 0 | V43: 0 | W43: 0 | X43: 0 | Y43: 0 | Z43: 0 | AA43: 0 | AB43: 0 | AC43: 0 | AD43: 0 | AE43: 0 | AF43: 0 | AG43: 0 | AH43: 0 | AJ43: 0
A44: Transformer | C44: 0 | D44: 0 | E44: 1 | F44: 0 | G44: 0 | H44: 1 | I44: 0 | J44: 0 | K44: 0 | L44: 0 | M44: 0 | N44: 0 | O44: 0 | P44: 0 | Q44: 0 | R44: 0 | S44: 0 | T44: 0 | U44: 0 | V44: 0 | W44: 0 | X44: 0 | Y44: 0 | Z44: 0 | AA44: 0 | AB44: 0 | AC44: 0 | AD44: 1 | AE44: 0 | AF44: 0 | AG44: 0 | AH44: 0 | AJ44: 0.09375
A45: Lid | C45: 0 | D45: 0 | E45: 0 | F45: 0 | G45: 0 | H45: 0 | I45: 0 | J45: 0 | K45: 0 | L45: 0 | M45: 0 | N45: 0 | O45: 0 | P45: 0 | Q45: 0 | R45: 0 | S45: 0 | T45: 0 | U45: 0 | V45: 0 | W45: 1 | X45: 1 | Y45: 1 | Z45: 1 | AA45: 0 | AB45: 0 | AC45: 0 | AD45: 0 | AE45: 0 | AF45: 0 | AG45: 0 | AH45: 0 | AJ45: 0.125
A46: Refrigerant | C46: 0 | D46: 0 | E46: 1 | F46: 1 | G46: 1 | H46: 1 | I46: 0 | J46: 0 | K46: 1 | L46: 1 | M46: 1 | N46: 0 | O46: 1 | P46: 0 | Q46: 0 | R46: 0 | S46: 0 | T46: 0 | U46: 0 | V46: 0 | W46: 0 | X46: 0 | Y46: 0 | Z46: 0 | AA46: 0 | AB46: 0 | AC46: 0 | AD46: 0 | AE46: 0 | AF46: 0 | AG46: 0 | AH46: 0 | AJ46: 0.25
A48: LABOR
AJ49: Installation cost
A50: Installation labor cost (one time) | C50: ='Labor and Maintenance '!$J$22 -> 198 | D50: ='Labor and Maintenance '!$J$22 -> 198 | E50: ='Labor and Maintenance '!$J$22 -> 198 | F50: ='Labor and Maintenance '!$J$22 -> 198 | G50: ='Labor and Maintenance '!$J$22 -> 198 | H50: ='Labor and Maintenance '!$J$22 -> 198 | I50: ='Labor and Maintenance '!$J$22 -> 198 | J50: ='Labor and Maintenance '!$J$22 -> 198 | K50: ='Labor and Maintenance '!$J$22 -> 198 | L50: ='Labor and Maintenance '!$J$22 -> 198 | M50: ='Labor and Maintenance '!$J$22 -> 198 | N50: ='Labor and Maintenance '!$J$22 -> 198 | O50: ='Labor and Maintenance '!$J$22 -> 198 | P50: ='Labor and Maintenance '!$J$22 -> 198 | Q50: ='Labor and Maintenance '!$J$22 -> 198 | R50: ='Labor and Maintenance '!$J$22 -> 198 | S50: ='Labor and Maintenance '!$J$22 -> 198 | T50: ='Labor and Maintenance '!$J$22 -> 198 | U50: ='Labor and Maintenance '!$J$22 -> 198 | V50: ='Labor and Maintenance '!$J$22 -> 198 | W50: ='Labor and Maintenance '!$J$22 -> 198 | X50: ='Labor and Maintenance '!$J$22 -> 198 | Y50: ='Labor and Maintenance '!$J$22 -> 198 | Z50: ='Labor and Maintenance '!$J$22 -> 198 | AA50: ='Labor and Maintenance '!$J$22 -> 198 | AB50: ='Labor and Maintenance '!$J$22 -> 198 | AC50: ='Labor and Maintenance '!$J$22 -> 198 | AD50: ='Labor and Maintenance '!$J$22 -> 198 | AE50: ='Labor and Maintenance '!$J$22 -> 198 | AF50: ='Labor and Maintenance '!$J$22 -> 198 | AG50: ='Labor and Maintenance '!$J$22 -> 198 | AH50: ='Labor and Maintenance '!$J$22 -> 198 | AJ50: =AVERAGE(C50:AH50) -> 198
A52: Maintenance and repairs - FREQUENCY
A53: Expressed in frequency of occurrence (in years: quarterly = 0.25, annual = 1, every 5 years = 5, etc.) | AJ53: Routine maintenance frequency
A54: Frequency - Routine maintenance | C54: ='Labor and Maintenance '!$E$46 -> 0.25 | D54: ='Labor and Maintenance '!$E$46 -> 0.25 | E54: ='Labor and Maintenance '!$E$46 -> 0.25 | F54: ='Labor and Maintenance '!$E$46 -> 0.25 | G54: ='Labor and Maintenance '!$E$46 -> 0.25 | H54: ='Labor and Maintenance '!$E$46 -> 0.25 | I54: ='Labor and Maintenance '!$E$46 -> 0.25 | J54: ='Labor and Maintenance '!$E$46 -> 0.25 | K54: ='Labor and Maintenance '!$E$46 -> 0.25 | L54: ='Labor and Maintenance '!$E$46 -> 0.25 | M54: ='Labor and Maintenance '!$E$46 -> 0.25 | N54: ='Labor and Maintenance '!$E$46 -> 0.25 | O54: ='Labor and Maintenance '!$E$46 -> 0.25 | P54: ='Labor and Maintenance '!$E$46 -> 0.25 | Q54: ='Labor and Maintenance '!$E$46 -> 0.25 | R54: ='Labor and Maintenance '!$E$46 -> 0.25 | S54: ='Labor and Maintenance '!$E$46 -> 0.25 | T54: ='Labor and Maintenance '!$E$46 -> 0.25 | U54: ='Labor and Maintenance '!$E$46 -> 0.25 | V54: ='Labor and Maintenance '!$E$46 -> 0.25 | W54: ='Labor and Maintenance '!$E$46 -> 0.25 | X54: ='Labor and Maintenance '!$E$46 -> 0.25 | Y54: ='Labor and Maintenance '!$E$46 -> 0.25 | Z54: ='Labor and Maintenance '!$E$46 -> 0.25 | AA54: ='Labor and Maintenance '!$E$46 -> 0.25 | AB54: ='Labor and Maintenance '!$E$46 -> 0.25 | AC54: ='Labor and Maintenance '!$E$46 -> 0.25 | AD54: ='Labor and Maintenance '!$E$46 -> 0.25 | AE54: ='Labor and Maintenance '!$E$46 -> 0.25 | AF54: ='Labor and Maintenance '!$E$46 -> 0.25 | AG54: ='Labor and Maintenance '!$E$46 -> 0.25 | AH54: ='Labor and Maintenance '!$E$46 -> 0.25 | AJ54: =AVERAGE(C54:AH54) -> 0.25
A56: Major Repairs (by a technician with tools) | AJ56: Major repair frequency
A57: Frequency - Onsite repairs 1 | C57: ='Labor and Maintenance '!$E$47 -> 1 | D57: ='Labor and Maintenance '!$E$47 -> 1 | E57: ='Labor and Maintenance '!$E$47 -> 1 | F57: ='Labor and Maintenance '!$E$47 -> 1 | G57: ='Labor and Maintenance '!$E$47 -> 1 | H57: ='Labor and Maintenance '!$E$47 -> 1 | I57: ='Labor and Maintenance '!$E$47 -> 1 | J57: ='Labor and Maintenance '!$E$47 -> 1 | K57: ='Labor and Maintenance '!$E$47 -> 1 | L57: ='Labor and Maintenance '!$E$47 -> 1 | M57: ='Labor and Maintenance '!$E$47 -> 1 | N57: ='Labor and Maintenance '!$E$47 -> 1 | O57: ='Labor and Maintenance '!$E$47 -> 1 | P57: ='Labor and Maintenance '!$E$47 -> 1 | Q57: ='Labor and Maintenance '!$E$47 -> 1 | R57: ='Labor and Maintenance '!$E$47 -> 1 | S57: ='Labor and Maintenance '!$E$47 -> 1 | T57: ='Labor and Maintenance '!$E$47 -> 1 | U57: ='Labor and Maintenance '!$E$47 -> 1 | V57: ='Labor and Maintenance '!$E$47 -> 1 | W57: ='Labor and Maintenance '!$E$47 -> 1 | X57: ='Labor and Maintenance '!$E$47 -> 1 | Y57: ='Labor and Maintenance '!$E$47 -> 1 | Z57: ='Labor and Maintenance '!$E$47 -> 1 | AA57: ='Labor and Maintenance '!$E$47 -> 1 | AB57: ='Labor and Maintenance '!$E$47 -> 1 | AC57: ='Labor and Maintenance '!$E$47 -> 1 | AD57: ='Labor and Maintenance '!$E$47 -> 1 | AE57: ='Labor and Maintenance '!$E$47 -> 1 | AF57: ='Labor and Maintenance '!$E$47 -> 1 | AG57: ='Labor and Maintenance '!$E$47 -> 1 | AH57: ='Labor and Maintenance '!$E$47 -> 1 | AJ57: =AVERAGE(C57:AH57) -> 1
A58: Frequency - Onsite repairs 2 | C58: ='Labor and Maintenance '!$E$48 -> 0 | D58: ='Labor and Maintenance '!$E$48 -> 0 | E58: ='Labor and Maintenance '!$E$48 -> 0 | F58: ='Labor and Maintenance '!$E$48 -> 0 | G58: ='Labor and Maintenance '!$E$48 -> 0 | H58: ='Labor and Maintenance '!$E$48 -> 0 | I58: ='Labor and Maintenance '!$E$48 -> 0 | J58: ='Labor and Maintenance '!$E$48 -> 0 | K58: ='Labor and Maintenance '!$E$48 -> 0 | L58: ='Labor and Maintenance '!$E$48 -> 0 | M58: ='Labor and Maintenance '!$E$48 -> 0 | N58: ='Labor and Maintenance '!$E$48 -> 0 | O58: ='Labor and Maintenance '!$E$48 -> 0 | P58: ='Labor and Maintenance '!$E$48 -> 0 | Q58: ='Labor and Maintenance '!$E$48 -> 0 | R58: ='Labor and Maintenance '!$E$48 -> 0 | S58: ='Labor and Maintenance '!$E$48 -> 0 | T58: ='Labor and Maintenance '!$E$48 -> 0 | U58: ='Labor and Maintenance '!$E$48 -> 0 | V58: ='Labor and Maintenance '!$E$48 -> 0 | W58: ='Labor and Maintenance '!$E$48 -> 0 | X58: ='Labor and Maintenance '!$E$48 -> 0 | Y58: ='Labor and Maintenance '!$E$48 -> 0 | Z58: ='Labor and Maintenance '!$E$48 -> 0 | AA58: ='Labor and Maintenance '!$E$48 -> 0 | AB58: ='Labor and Maintenance '!$E$48 -> 0 | AC58: ='Labor and Maintenance '!$E$48 -> 0 | AD58: ='Labor and Maintenance '!$E$48 -> 0 | AE58: ='Labor and Maintenance '!$E$48 -> 0 | AF58: ='Labor and Maintenance '!$E$48 -> 0 | AG58: ='Labor and Maintenance '!$E$48 -> 0 | AH58: ='Labor and Maintenance '!$E$48 -> 0 | AJ58: =AVERAGE(C58:AA58) -> 0
A59: Frequency - Major repairs in a workshop by a technician | C59: ='Labor and Maintenance '!$E$49 -> 3 | D59: ='Labor and Maintenance '!$E$49 -> 3 | E59: ='Labor and Maintenance '!$E$49 -> 3 | F59: ='Labor and Maintenance '!$E$49 -> 3 | G59: ='Labor and Maintenance '!$E$49 -> 3 | H59: ='Labor and Maintenance '!$E$49 -> 3 | I59: ='Labor and Maintenance '!$E$49 -> 3 | J59: ='Labor and Maintenance '!$E$49 -> 3 | K59: ='Labor and Maintenance '!$E$49 -> 3 | L59: ='Labor and Maintenance '!$E$49 -> 3 | M59: ='Labor and Maintenance '!$E$49 -> 3 | N59: ='Labor and Maintenance '!$E$49 -> 3 | O59: ='Labor and Maintenance '!$E$49 -> 3 | P59: ='Labor and Maintenance '!$E$49 -> 3 | Q59: ='Labor and Maintenance '!$E$49 -> 3 | R59: ='Labor and Maintenance '!$E$49 -> 3 | S59: ='Labor and Maintenance '!$E$49 -> 3 | T59: ='Labor and Maintenance '!$E$49 -> 3 | U59: ='Labor and Maintenance '!$E$49 -> 3 | V59: ='Labor and Maintenance '!$E$49 -> 3 | W59: ='Labor and Maintenance '!$E$49 -> 3 | X59: ='Labor and Maintenance '!$E$49 -> 3 | Y59: ='Labor and Maintenance '!$E$49 -> 3 | Z59: ='Labor and Maintenance '!$E$49 -> 3 | AA59: ='Labor and Maintenance '!$E$49 -> 3 | AB59: ='Labor and Maintenance '!$E$49 -> 3 | AC59: ='Labor and Maintenance '!$E$49 -> 3 | AD59: ='Labor and Maintenance '!$E$49 -> 3 | AE59: ='Labor and Maintenance '!$E$49 -> 3 | AF59: ='Labor and Maintenance '!$E$49 -> 3 | AG59: ='Labor and Maintenance '!$E$49 -> 3 | AH59: ='Labor and Maintenance '!$E$49 -> 3 | AJ59: =AVERAGE(C59:AH59) -> 3
A61: Maintenance and repairs - HOURS
A62: Expressed in number of hours needed to complete
A63: Hours - Routine maintenance | C63: =IlrMaintHrs1 -> 3 | D63: 3 | E63: 3 | F63: 3 | G63: 3 | H63: 3 | I63: 3 | J63: 3 | K63: 3 | L63: 3 | M63: 3 | N63: 3 | O63: 3 | P63: 3 | Q63: 3 | R63: 3 | S63: 3 | T63: 3 | U63: 3 | V63: 3 | W63: 3 | X63: 3 | Y63: 3 | Z63: 3 | AA63: 3 | AB63: 3 | AC63: 3 | AD63: 3 | AE63: 3 | AF63: 3 | AG63: 3 | AH63: 3 | AJ63: =AVERAGE(C63:AA63) -> 3
A65: Major repairs (by a technician with tools)
A66: Hours - Onsite repairs 1 | C66: ='Labor and Maintenance '!$C$47 -> 1 | D66: ='Labor and Maintenance '!$C$47 -> 1 | E66: ='Labor and Maintenance '!$C$47 -> 1 | F66: ='Labor and Maintenance '!$C$47 -> 1 | G66: ='Labor and Maintenance '!$C$47 -> 1 | H66: ='Labor and Maintenance '!$C$47 -> 1 | I66: ='Labor and Maintenance '!$C$47 -> 1 | J66: ='Labor and Maintenance '!$C$47 -> 1 | K66: ='Labor and Maintenance '!$C$47 -> 1 | L66: ='Labor and Maintenance '!$C$47 -> 1 | M66: ='Labor and Maintenance '!$C$47 -> 1 | N66: ='Labor and Maintenance '!$C$47 -> 1 | O66: ='Labor and Maintenance '!$C$47 -> 1 | P66: ='Labor and Maintenance '!$C$47 -> 1 | Q66: ='Labor and Maintenance '!$C$47 -> 1 | R66: ='Labor and Maintenance '!$C$47 -> 1 | S66: ='Labor and Maintenance '!$C$47 -> 1 | T66: ='Labor and Maintenance '!$C$47 -> 1 | U66: ='Labor and Maintenance '!$C$47 -> 1 | V66: ='Labor and Maintenance '!$C$47 -> 1 | W66: ='Labor and Maintenance '!$C$47 -> 1 | X66: ='Labor and Maintenance '!$C$47 -> 1 | Y66: ='Labor and Maintenance '!$C$47 -> 1 | Z66: ='Labor and Maintenance '!$C$47 -> 1 | AA66: ='Labor and Maintenance '!$C$47 -> 1 | AB66: ='Labor and Maintenance '!$C$47 -> 1 | AC66: ='Labor and Maintenance '!$C$47 -> 1 | AD66: ='Labor and Maintenance '!$C$47 -> 1 | AE66: ='Labor and Maintenance '!$C$47 -> 1 | AF66: ='Labor and Maintenance '!$C$47 -> 1 | AG66: ='Labor and Maintenance '!$C$47 -> 1 | AH66: ='Labor and Maintenance '!$C$47 -> 1 | AJ66: =AVERAGE(C66:AA66) -> 1
A67: Hours - Onsite repairs 2 | C67: ='Labor and Maintenance '!$C$48 -> 0 | D67: ='Labor and Maintenance '!$C$48 -> 0 | E67: ='Labor and Maintenance '!$C$48 -> 0 | F67: ='Labor and Maintenance '!$C$48 -> 0 | G67: ='Labor and Maintenance '!$C$48 -> 0 | H67: ='Labor and Maintenance '!$C$48 -> 0 | I67: ='Labor and Maintenance '!$C$48 -> 0 | J67: ='Labor and Maintenance '!$C$48 -> 0 | K67: ='Labor and Maintenance '!$C$48 -> 0 | L67: ='Labor and Maintenance '!$C$48 -> 0 | M67: ='Labor and Maintenance '!$C$48 -> 0 | N67: ='Labor and Maintenance '!$C$48 -> 0 | O67: ='Labor and Maintenance '!$C$48 -> 0 | P67: ='Labor and Maintenance '!$C$48 -> 0 | Q67: ='Labor and Maintenance '!$C$48 -> 0 | R67: ='Labor and Maintenance '!$C$48 -> 0 | S67: ='Labor and Maintenance '!$C$48 -> 0 | T67: ='Labor and Maintenance '!$C$48 -> 0 | U67: ='Labor and Maintenance '!$C$48 -> 0 | V67: ='Labor and Maintenance '!$C$48 -> 0 | W67: ='Labor and Maintenance '!$C$48 -> 0 | X67: ='Labor and Maintenance '!$C$48 -> 0 | Y67: ='Labor and Maintenance '!$C$48 -> 0 | Z67: ='Labor and Maintenance '!$C$48 -> 0 | AA67: ='Labor and Maintenance '!$C$48 -> 0 | AB67: ='Labor and Maintenance '!$C$48 -> 0 | AC67: ='Labor and Maintenance '!$C$48 -> 0 | AD67: ='Labor and Maintenance '!$C$48 -> 0 | AE67: ='Labor and Maintenance '!$C$48 -> 0 | AF67: ='Labor and Maintenance '!$C$48 -> 0 | AG67: ='Labor and Maintenance '!$C$48 -> 0 | AH67: ='Labor and Maintenance '!$C$48 -> 0 | AJ67: =AVERAGE(C67:AA67) -> 0
A68: Hours - Major repairs in a workshop by a technician | C68: =IlrMaintHrs2 -> 4 | D68: 4 | E68: 4 | F68: 4 | G68: 4 | H68: 4 | I68: 4 | J68: 4 | K68: 4 | L68: 4 | M68: 4 | N68: 4 | O68: 4 | P68: 4 | Q68: 4 | R68: 4 | S68: 4 | T68: 4 | U68: 4 | V68: 4 | W68: 4 | X68: 4 | Y68: 4 | Z68: 4 | AA68: 4 | AB68: 4 | AC68: 4 | AD68: 4 | AE68: 4 | AF68: 4 | AG68: 4 | AH68: 4 | AJ68: 4

Sheet SDD
A1: Technology Assumptions - Solar direct-drive
A2: Technology | C2: =PQS!A53 -> SDD | D2: =PQS!A54 -> SDD | E2: =PQS!A55 -> SDD | F2: =PQS!A56 -> SDD | G2: =PQS!A57 -> SDD | H2: =PQS!A58 -> SDD | I2: =PQS!A59 -> SDD | J2: =PQS!A60 -> SDD | K2: =PQS!A61 -> SDD | L2: =PQS!A62 -> SDD | M2: =PQS!A63 -> SDD | N2: =PQS!A64 -> SDD | O2: =PQS!A65 -> SDD | P2: =PQS!A66 -> SDD | Q2: =PQS!A67 -> SDD | R2: =PQS!A68 -> SDD | S2: =PQS!A69 -> SDD | T2: =PQS!A70 -> SDD | U2: =PQS!A71 -> SDD | V2: =PQS!A72 -> SDD | W2: =PQS!A73 -> SDD | X2: =PQS!A74 -> SDD | Y2: =PQS!A75 -> SDD | Z2: =PQS!A76 -> SDD | AA2: =PQS!A77 -> SDD | AB2: =PQS!A78 -> SDD | AC2: =PQS!A79 -> SDD | AD2: =PQS!A80 -> SDD | AE2: =PQS!A81 -> SDD | AF2: =PQS!A82 -> SDD | AG2: =PQS!A83 -> SDD | AH2: =PQS!A84 -> SDD | AJ2: AVERAGES
A3: Manufacturer | C3: =PQS!F53 -> Vestfrost | D3: =PQS!F54 -> Haier | E3: =PQS!F55 -> SunDanzer | F3: =PQS!F56 -> B Medical | G3: =PQS!F57 -> B Medical | H3: =PQS!F58 -> Zero | I3: =PQS!F59 -> SunDanzer | J3: =PQS!F60 -> Dulas Solar | K3: =PQS!F61 -> Vestfrost | L3: =PQS!F62 -> B Medical | M3: =PQS!F63 -> B Medical | N3: =PQS!F64 -> B Medical | O3: =PQS!F65 -> Dulas Solar | P3: =PQS!F66 -> Godrej & Boyce | Q3: =PQS!F67 -> Godrej & Boyce | R3: =PQS!F68 -> Zero | S3: =PQS!F69 -> Vestfrost | T3: =PQS!F70 -> Vestfrost | U3: =PQS!F71 -> Zero | V3: =PQS!F72 -> Haier | W3: =PQS!F73 -> Haier | X3: =PQS!F74 -> Dulas Solar | Y3: =PQS!F75 -> Dulas Solar | Z3: =PQS!F76 -> B Medical | AA3: =PQS!F77 -> B Medical | AB3: =PQS!F78 -> Vestfrost | AC3: =PQS!F79 -> Haier | AD3: =PQS!F80 -> Haier | AE3: =PQS!F81 -> Haier | AF3: =PQS!F82 -> B Medical | AG3: =PQS!F83 -> Dulas Solar | AH3: =PQS!F84 -> Dulas Solar
A4: Model | C4: =PQS!E53 -> MKS 044 | D4: =PQS!E54 -> HTC-60 | E4: =PQS!E55 -> BFRV 55* | F4: =PQS!E56 -> TCW 3000 SDD | G4: =PQS!E57 -> TCW 2000 SDD | H4: =PQS!E58 -> ZLF 100 DC* | I4: =PQS!E59 -> BFRV 15 SDD* | J4: =PQS!E60 -> VC 200 SDD* | K4: =PQS!E61 -> VLS 054 SDD* | L4: =PQS!E62 -> TCW 40 SDD* | M4: =PQS!E63 -> TCW 2043 SDD* | N4: =PQS!E64 -> TCW 3043 SDD* | O4: =PQS!E65 -> VC 150 SDD* | P4: =PQS!E66 -> GVR 50DC SDD* | Q4: =PQS!E67 -> GVR 100DC (SureChill)* | R4: =PQS!E68 -> ZLF 150DC* | S4: =PQS!E69 -> VLS 094 SDD* | T4: =PQS!E70 -> VLS 154 SDD* | U4: =PQS!E71 -> ZLF 30DC SDD* | V4: =PQS!E72 -> HTC-60H | W4: =PQS!E73 -> HTCD-160* | X4: =PQS!E74 -> VC 110 SDD* | Y4: =PQS!E75 -> VC 88 SDD* | Z4: =PQS!E76 -> TCW 15R SDD* | AA4: =PQS!E77 -> TCW 40R SDD* | AB4: =PQS!E78 -> VLS 024 SDD* | AC4: =PQS!E79 -> HTCD 90 SDD* | AD4: =PQS!E80 -> HTC 40 SDD* | AE4: =PQS!E81 -> HTC 110 SDD* | AF4: =PQS!E82 -> TCW 15 SDD* | AG4: =PQS!E83 -> VC 50 SDD* | AH4: =PQS!E84 -> VC 60 SDD* | AJ4: Capacity
A5: CCEOP | C5: =VLOOKUP(C4,PQS!$E:$G,COLUMN(PQS!$G$3)-COLUMN(PQS!$E$3)+1,FALSE) -> No | D5: =VLOOKUP(D4,PQS!$E:$G,COLUMN(PQS!$G$3)-COLUMN(PQS!$E$3)+1,FALSE) -> No | E5: =VLOOKUP(E4,PQS!$E:$G,COLUMN(PQS!$G$3)-COLUMN(PQS!$E$3)+1,FALSE) -> Yes | F5: =VLOOKUP(F4,PQS!$E:$G,COLUMN(PQS!$G$3)-COLUMN(PQS!$E$3)+1,FALSE) -> No | G5: =VLOOKUP(G4,PQS!$E:$G,COLUMN(PQS!$G$3)-COLUMN(PQS!$E$3)+1,FALSE) -> No | H5: =VLOOKUP(H4,PQS!$E:$G,COLUMN(PQS!$G$3)-COLUMN(PQS!$E$3)+1,FALSE) -> Yes | I5: =VLOOKUP(I4,PQS!$E:$G,COLUMN(PQS!$G$3)-COLUMN(PQS!$E$3)+1,FALSE) -> Yes | J5: =VLOOKUP(J4,PQS!$E:$G,COLUMN(PQS!$G$3)-COLUMN(PQS!$E$3)+1,FALSE) -> Yes | K5: =VLOOKUP(K4,PQS!$E:$G,COLUMN(PQS!$G$3)-COLUMN(PQS!$E$3)+1,FALSE) -> Yes | L5: =VLOOKUP(L4,PQS!$E:$G,COLUMN(PQS!$G$3)-COLUMN(PQS!$E$3)+1,FALSE) -> Yes | M5: =VLOOKUP(M4,PQS!$E:$G,COLUMN(PQS!$G$3)-COLUMN(PQS!$E$3)+1,FALSE) -> Yes | N5: =VLOOKUP(N4,PQS!$E:$G,COLUMN(PQS!$G$3)-COLUMN(PQS!$E$3)+1,FALSE) -> Yes | O5: =VLOOKUP(O4,PQS!$E:$G,COLUMN(PQS!$G$3)-COLUMN(PQS!$E$3)+1,FALSE) -> Yes | P5: =VLOOKUP(P4,PQS!$E:$G,COLUMN(PQS!$G$3)-COLUMN(PQS!$E$3)+1,FALSE) -> Yes | Q5: =VLOOKUP(Q4,PQS!$E:$G,COLUMN(PQS!$G$3)-COLUMN(PQS!$E$3)+1,FALSE) -> Yes | R5: =VLOOKUP(R4,PQS!$E:$G,COLUMN(PQS!$G$3)-COLUMN(PQS!$E$3)+1,FALSE) -> Yes | S5: =VLOOKUP(S4,PQS!$E:$G,COLUMN(PQS!$G$3)-COLUMN(PQS!$E$3)+1,FALSE) -> Yes | T5: =VLOOKUP(T4,PQS!$E:$G,COLUMN(PQS!$G$3)-COLUMN(PQS!$E$3)+1,FALSE) -> Yes | U5: =VLOOKUP(U4,PQS!$E:$G,COLUMN(PQS!$G$3)-COLUMN(PQS!$E$3)+1,FALSE) -> Yes | V5: =VLOOKUP(V4,PQS!$E:$G,COLUMN(PQS!$G$3)-COLUMN(PQS!$E$3)+1,FALSE) -> No | W5: =VLOOKUP(W4,PQS!$E:$G,COLUMN(PQS!$G$3)-COLUMN(PQS!$E$3)+1,FALSE) -> Yes | X5: =VLOOKUP(X4,PQS!$E:$G,COLUMN(PQS!$G$3)-COLUMN(PQS!$E$3)+1,FALSE) -> Yes | Y5: =VLOOKUP(Y4,PQS!$E:$G,COLUMN(PQS!$G$3)-COLUMN(PQS!$E$3)+1,FALSE) -> Yes | Z5: =VLOOKUP(Z4,PQS!$E:$G,COLUMN(PQS!$G$3)-COLUMN(PQS!$E$3)+1,FALSE) -> Yes | AA5: =VLOOKUP(AA4,PQS!$E:$G,COLUMN(PQS!$G$3)-COLUMN(PQS!$E$3)+1,FALSE) -> Yes | AB5: =VLOOKUP(AB4,PQS!$E:$G,COLUMN(PQS!$G$3)-COLUMN(PQS!$E$3)+1,FALSE) -> Yes | AC5: =VLOOKUP(AC4,PQS!$E:$G,COLUMN(PQS!$G$3)-COLUMN(PQS!$E$3)+1,FALSE) -> Yes | AD5: =VLOOKUP(AD4,PQS!$E:$G,COLUMN(PQS!$G$3)-COLUMN(PQS!$E$3)+1,FALSE) -> Yes | AE5: =VLOOKUP(AE4,PQS!$E:$G,COLUMN(PQS!$G$3)-COLUMN(PQS!$E$3)+1,FALSE) -> Yes | AF5: =VLOOKUP(AF4,PQS!$E:$G,COLUMN(PQS!$G$3)-COLUMN(PQS!$E$3)+1,FALSE) -> Yes | AG5: =VLOOKUP(AG4,PQS!$E:$G,COLUMN(PQS!$G$3)-COLUMN(PQS!$E$3)+1,FALSE) -> Yes | AH5: =VLOOKUP(AH4,PQS!$E:$G,COLUMN(PQS!$G$3)-COLUMN(PQS!$E$3)+1,FALSE) -> Yes
A6: Net vaccine storage capacity | C6: =PQS!I53 -> 19.5 | D6: =PQS!I54 -> 21 | E6: =PQS!I55 -> 54.5 | F6: =PQS!I56 -> 156 | G6: =PQS!I57 -> 99 | H6: =PQS!I58 -> 99 | I6: =PQS!I59 -> 15 | J6: =PQS!I60 -> 132 | K6: =PQS!I61 -> 55.5 | L6: =PQS!I62 -> 36 | M6: =PQS!I63 -> 70 | N6: =PQS!I64 -> 89 | O6: =PQS!I65 -> 102 | P6: =PQS!I66 -> 46.5 | Q6: =PQS!I67 -> 99 | R6: =PQS!I68 -> 128 | S6: =PQS!I69 -> 92 | T6: =PQS!I70 -> 170 | U6: =PQS!I71 -> 27 | V6: =PQS!I72 -> 21 | W6: =PQS!I73 -> 100 | X6: =PQS!I74 -> 110 | Y6: =PQS!I75 -> 88 | Z6: =PQS!I76 -> 16 | AA6: =PQS!I77 -> 36 | AB6: =PQS!I78 -> 25.5 | AC6: =PQS!I79 -> 37.5 | AD6: =PQS!I80 -> 22.5 | AE6: =PQS!I81 -> 59 | AF6: =PQS!I82 -> 16 | AG6: =PQS!I83 -> 52.5 | AH6: =PQS!I84 -> 57 | AJ6: =AVERAGE(C6:AH6) -> 67.25
A7: Waterpack freezing capacity | C7: =PQS!K53 -> 0 | D7: =PQS!K54 -> 0 | E7: =PQS!K55 -> 0 | F7: =PQS!K56 -> 0 | G7: =PQS!K57 -> 2.4 | H7: =PQS!K58 -> 0 | I7: =PQS!K59 -> 0 | J7: =PQS!K60 -> 0 | K7: =PQS!K61 -> 0 | L7: =PQS!K62 -> 1.8 | M7: =PQS!K63 -> 2.5 | N7: =PQS!K64 -> 0 | O7: =PQS!K65 -> 2.04 | P7: =PQS!K66 -> 0 | Q7: =PQS!K67 -> 0 | R7: =PQS!K68 -> 0 | S7: =PQS!K69 -> 0 | T7: =PQS!K70 -> 0 | U7: =PQS!K71 -> 0 | V7: =PQS!K72 -> 0 | W7: =PQS!K73 -> 2.08 | X7: =PQS!K74 -> 0 | Y7: =PQS!K75 -> 0 | Z7: =PQS!K76 -> 0 | AA7: =PQS!K77 -> 0 | AB7: =PQS!K78 -> 0 | AC7: =PQS!K79 -> 2.08 | AD7: =PQS!K80 -> 0 | AE7: =PQS!K81 -> 0 | AF7: =PQS!K82 -> 1.97 | AG7: =PQS!K83 -> 0 | AH7: =PQS!K84 -> 2.4 | AJ7: =AVERAGE(C7:AH7) -> 0.5396875
A9: HARDWARE
A10: [Unit] | C10: =PQS!B53 -> E003/009 | D10: =PQS!B54 -> E003/029 | E10: =PQS!B55 -> E003/020 | F10: =PQS!B56 -> E003/030 | G10: =PQS!B57 -> E003/035 | H10: =PQS!B58 -> E003/037 | I10: =PQS!B59 -> E003/039 | J10: =PQS!B60 -> E003/040 | K10: =PQS!B61 -> E003/041 | L10: =PQS!B62 -> E003/042 | M10: =PQS!B63 -> E003/043 | N10: =PQS!B64 -> E003/045 | O10: =PQS!B65 -> E003/048 | P10: =PQS!B66 -> E003/049 | Q10: =PQS!B67 -> E003/050 | R10: =PQS!B68 -> E003/052 | S10: =PQS!B69 -> E003/053 | T10: =PQS!B70 -> E003/054 | U10: =PQS!B71 -> E003/055 | V10: =PQS!B72 -> E003/056 | W10: =PQS!B73 -> E003/057 | X10: =PQS!B74 -> E003/058 | Y10: =PQS!B75 -> E003/059 | Z10: =PQS!B76 -> E003/067 | AA10: =PQS!B77 -> E003/068 | AB10: =PQS!B78 -> E003/069 | AC10: =PQS!B79 -> E003/074 | AD10: =PQS!B80 -> E003/075 | AE10: =PQS!B81 -> E003/076 | AF10: =PQS!B82 -> E003/077 | AG10: =PQS!B83 -> E003/078 | AH10: =PQS!B84 -> E003/084 | AJ10: Useful life
A11: [unit] Expected useful life | C11: =SlrChlEquipYrs -> 10 | D11: 10 | E11: 10 | F11: 10 | G11: 10 | H11: 10 | I11: 10 | J11: 10 | K11: 10 | L11: 10 | M11: 10 | N11: 10 | O11: 10 | P11: 10 | Q11: 10 | R11: 10 | S11: 10 | T11: 10 | U11: 10 | V11: 10 | W11: 10 | X11: 10 | Y11: 10 | Z11: 10 | AA11: 10 | AB11: 10 | AC11: 10 | AD11: 10 | AE11: 10 | AF11: 10 | AG11: 10 | AH11: 10 | AJ11: =AVERAGE(C11:AH11) -> 10
A12: Solar panel expected useful life (where applicable) | C12: 10 | D12: 10 | E12: 10 | F12: 10 | G12: 10 | H12: 10 | I12: 10 | J12: 10 | K12: 10 | L12: 10 | M12: 10 | N12: 10 | O12: 10 | P12: 10 | Q12: 10 | R12: 10 | S12: 10 | T12: 10 | U12: 10 | V12: 10 | W12: 10 | X12: 10 | Y12: 10 | Z12: 10 | AA12: 10 | AB12: 10 | AC12: 10 | AD12: 10 | AE12: 10 | AF12: 10 | AG12: 10 | AH12: 10 | AJ12: =AVERAGE(C12:AH12) -> 10
A13: Battery expected useful life
A14: Installation kit price | C14: =SlrChlHardware -> 120 | D14: 120 | E14: 120 | F14: 120 | G14: 120 | H14: 120 | I14: 120 | J14: 120 | K14: 120 | L14: 120 | M14: 120 | N14: 120 | O14: 120 | P14: 120 | Q14: 120 | R14: 120 | S14: 120 | T14: 120 | U14: 120 | V14: 120 | W14: 120 | X14: 120 | Y14: 120 | Z14: 120 | AA14: 120 | AB14: 120 | AC14: 120 | AD14: 120 | AE14: 120 | AF14: 120 | AG14: 120 | AH14: 120 | AJ14: =AVERAGE(C14:AH14) -> 120
A17: [unit] PARTS
A18: Number of parts needed for useful life per unit | AJ18: Average
A19: Compressor | C19: 1 | D19: 1 | E19: 1 | F19: 1 | G19: 1 | H19: 1 | I19: 1 | J19: 0 | K19: 1 | L19: 1 | M19: 1 | N19: 1 | O19: 0 | P19: 1 | Q19: 1 | R19: 1 | S19: 1 | T19: 1 | U19: 1 | V19: 1 | W19: 1 | X19: 0 | Y19: 0 | Z19: 1 | AA19: 1 | AB19: 1 | AC19: 1 | AD19: 1 | AE19: 1 | AF19: 1 | AG19: 1 | AH19: 1 | AJ19: =AVERAGE(C19:AH19) -> 0.875
A20: Thermostat | C20: 2 | D20: 1 | E20: 1 | F20: 1 | G20: 1 | H20: 1 | I20: 1 | J20: 0 | K20: 1 | L20: 1 | M20: 1 | N20: 1 | O20: 0 | P20: 1 | Q20: 1 | R20: 1 | S20: 1 | T20: 1 | U20: 1 | V20: 1 | W20: 1 | X20: 0 | Y20: 0 | Z20: 0 | AA20: 0 | AB20: 1 | AC20: 1 | AD20: 1 | AE20: 1 | AF20: 0 | AG20: 0 | AH20: 0 | AJ20: 0.75
A21: Compressor controller | C21: 1 | D21: 0 | E21: 1 | F21: 0 | G21: 0 | H21: 1 | I21: 1 | J21: 1 | K21: 1 | L21: 1 | M21: 0 | N21: 0 | O21: 1 | P21: 0 | Q21: 0 | R21: 1 | S21: 1 | T21: 1 | U21: 1 | V21: 0 | W21: 0 | X21: 1 | Y21: 1 | Z21: 0 | AA21: 0 | AB21: 1 | AC21: 0 | AD21: 0 | AE21: 0 | AF21: 0 | AG21: 1 | AH21: 1 | AJ21: 0.53125
A22: Control panel | C22: 0 | D22: 1 | E22: 0 | F22: 1 | G22: 1 | H22: 0 | I22: 0 | J22: 0 | K22: 0 | L22: 1 | M22: 1 | N22: 1 | O22: 0 | P22: 0 | Q22: 0 | R22: 0 | S22: 0 | T22: 0 | U22: 0 | V22: 1 | W22: 0 | X22: 0 | Y22: 0 | Z22: 1 | AA22: 1 | AB22: 0 | AC22: 0 | AD22: 0 | AE22: 0 | AF22: 1 | AG22: 0 | AH22: 0 | AJ22: 0.3125
A23: Sensor for e-thermostat | C23: 0 | D23: 1 | E23: 0 | F23: 1 | G23: 1 | H23: 0 | I23: 0 | J23: 0 | K23: 0 | L23: 1 | M23: 1 | N23: 1 | O23: 0 | P23: 0 | Q23: 0 | R23: 0 | S23: 0 | T23: 0 | U23: 0 | V23: 1 | W23: 1 | X23: 0 | Y23: 0 | Z23: 0 | AA23: 0 | AB23: 0 | AC23: 1 | AD23: 1 | AE23: 1 | AF23: 0 | AG23: 0 | AH23: 0 | AJ23: 0.34375
A24: Condensor + fan | C24: 1 | D24: 1 | E24: 0 | F24: 1 | G24: 1 | H24: 1 | I24: 0 | J24: 0 | K24: 1 | L24: 1 | M24: 1 | N24: 1 | O24: 1 | P24: 1 | Q24: 1 | R24: 1 | S24: 1 | T24: 1 | U24: 1 | V24: 1 | W24: 1 | X24: 0 | Y24: 0 | Z24: 1 | AA24: 1 | AB24: 1 | AC24: 1 | AD24: 1 | AE24: 1 | AF24: 1 | AG24: 0 | AH24: 1 | AJ24: 0.8125
A25: E Box | C25: 0 | D25: 0 | E25: 0 | F25: 1 | G25: 1 | H25: 0 | I25: 0 | J25: 0 | K25: 0 | L25: 1 | M25: 1 | N25: 1 | O25: 0 | P25: 0 | Q25: 0 | R25: 0 | S25: 0 | T25: 0 | U25: 0 | V25: 0 | W25: 0 | X25: 0 | Y25: 0 | Z25: 1 | AA25: 1 | AB25: 0 | AC25: 0 | AD25: 0 | AE25: 0 | AF25: 1 | AG25: 0 | AH25: 0 | AJ25: 0.25
A26: Switch | C26: 0 | D26: 1 | E26: 1 | F26: 1 | G26: 1 | H26: 0 | I26: 1 | J26: 0 | K26: 0 | L26: 1 | M26: 1 | N26: 1 | O26: 0 | P26: 0 | Q26: 0 | R26: 0 | S26: 0 | T26: 0 | U26: 0 | V26: 1 | W26: 1 | X26: 0 | Y26: 0 | Z26: 1 | AA26: 1 | AB26: 0 | AC26: 1 | AD26: 1 | AE26: 1 | AF26: 1 | AG26: 1 | AH26: 1 | AJ26: 0.5625
A27: Baskets | C27: 1 | D27: 1 | E27: 0 | F27: 1 | G27: 1 | H27: 0 | I27: 0 | J27: 0 | K27: 1 | L27: 1 | M27: 1 | N27: 1 | O27: 0 | P27: 0 | Q27: 0 | R27: 0 | S27: 1 | T27: 1 | U27: 0 | V27: 1 | W27: 1 | X27: 0 | Y27: 0 | Z27: 1 | AA27: 1 | AB27: 1 | AC27: 1 | AD27: 1 | AE27: 1 | AF27: 0 | AG27: 0 | AH27: 0 | AJ27: =AVERAGE(C27:AH27) -> 0.5625
A28: Drier | C28: 1 | D28: 1 | E28: 1 | F28: 1 | G28: 1 | H28: 0 | I28: 1 | J28: 0 | K28: 1 | L28: 1 | M28: 1 | N28: 1 | O28: 0 | P28: 0 | Q28: 0 | R28: 0 | S28: 1 | T28: 1 | U28: 0 | V28: 1 | W28: 1 | X28: 0 | Y28: 0 | Z28: 1 | AA28: 1 | AB28: 1 | AC28: 1 | AD28: 1 | AE28: 1 | AF28: 0 | AG28: 0 | AH28: 0 | AJ28: 0.625
A29: Fuse | C29: 0 | D29: 0 | E29: 0 | F29: 1 | G29: 1 | H29: 0 | I29: 0 | J29: 0 | K29: 0 | L29: 1 | M29: 1 | N29: 1 | O29: 0 | P29: 0 | Q29: 0 | R29: 0 | S29: 0 | T29: 0 | U29: 0 | V29: 0 | W29: 0 | X29: 0 | Y29: 0 | Z29: 1 | AA29: 1 | AB29: 0 | AC29: 0 | AD29: 0 | AE29: 0 | AF29: 0 | AG29: 0 | AH29: 0 | AJ29: 0.21875
A30: Hinge | C30: 1 | D30: 1 | E30: 1 | F30: 2 | G30: 2 | H30: 0 | I30: 1 | J30: 0 | K30: 1 | L30: 1 | M30: 2 | N30: 2 | O30: 0 | P30: 0 | Q30: 0 | R30: 0 | S30: 1 | T30: 1 | U30: 0 | V30: 1 | W30: 1 | X30: 0 | Y30: 0 | Z30: 1 | AA30: 1 | AB30: 1 | AC30: 1 | AD30: 1 | AE30: 1 | AF30: 0 | AG30: 0 | AH30: 0 | AJ30: 0.75
A31: Hinge cover | C31: 0 | D31: 1 | E31: 1 | F31: 1 | G31: 1 | H31: 0 | I31: 1 | J31: 0 | K31: 0 | L31: 1 | M31: 1 | N31: 1 | O31: 0 | P31: 0 | Q31: 0 | R31: 0 | S31: 0 | T31: 0 | U31: 0 | V31: 1 | W31: 0 | X31: 0 | Y31: 0 | Z31: 1 | AA31: 1 | AB31: 0 | AC31: 1 | AD31: 1 | AE31: 1 | AF31: 0 | AG31: 1 | AH31: 0 | AJ31: 0.46875
A32: Ice pack | C32: 0 | D32: 1 | E32: 0 | F32: 1 | G32: 1 | H32: 0 | I32: 0 | J32: 0 | K32: 0 | L32: 1 | M32: 1 | N32: 1 | O32: 0 | P32: 0 | Q32: 0 | R32: 0 | S32: 0 | T32: 0 | U32: 0 | V32: 1 | W32: 0 | X32: 0 | Y32: 0 | Z32: 1 | AA32: 1 | AB32: 0 | AC32: 1 | AD32: 0 | AE32: 0 | AF32: 0 | AG32: 0 | AH32: 0 | AJ32: 0.3125
A33: Thermometer | C33: 1 | D33: 1 | E33: 1 | F33: 0 | G33: 0 | H33: 0 | I33: 1 | J33: 1 | K33: 1 | L33: 0 | M33: 0 | N33: 0 | O33: 1 | P33: 0 | Q33: 0 | R33: 0 | S33: 1 | T33: 1 | U33: 0 | V33: 1 | W33: 1 | X33: 1 | Y33: 1 | Z33: 0 | AA33: 0 | AB33: 1 | AC33: 1 | AD33: 1 | AE33: 1 | AF33: 0 | AG33: 2 | AH33: 0 | AJ33: 0.59375
A34: Handle | C34: 1 | D34: 1 | E34: 1 | F34: 0 | G34: 0 | H34: 0 | I34: 1 | J34: 0 | K34: 1 | L34: 0 | M34: 0 | N34: 0 | O34: 0 | P34: 0 | Q34: 0 | R34: 0 | S34: 1 | T34: 1 | U34: 0 | V34: 1 | W34: 1 | X34: 0 | Y34: 0 | Z34: 0 | AA34: 0 | AB34: 1 | AC34: 1 | AD34: 1 | AE34: 1 | AF34: 0 | AG34: 0 | AH34: 0 | AJ34: 0.40625
A35: Rechargeable battery | C35: 0 | D35: 0 | E35: 0 | F35: 0 | G35: 0 | H35: 0 | I35: 0 | J35: 0 | K35: 0 | L35: 0 | M35: 0 | N35: 0 | O35: 0 | P35: 0 | Q35: 0 | R35: 0 | S35: 0 | T35: 0 | U35: 0 | V35: 1 | W35: 0 | X35: 0 | Y35: 0 | Z35: 0 | AA35: 0 | AB35: 0 | AC35: 0 | AD35: 0 | AE35: 0 | AF35: 0 | AG35: 0 | AH35: 0 | AJ35: 0.03125
A36: Temperature probe | C36: 0 | D36: 0 | E36: 0 | F36: 0 | G36: 0 | H36: 0 | I36: 0 | J36: 1 | K36: 0 | L36: 0 | M36: 0 | N36: 0 | O36: 1 | P36: 0 | Q36: 0 | R36: 0 | S36: 0 | T36: 0 | U36: 0 | V36: 0 | W36: 0 | X36: 1 | Y36: 1 | Z36: 0 | AA36: 0 | AB36: 0 | AC36: 0 | AD36: 0 | AE36: 0 | AF36: 0 | AG36: 2 | AH36: 1 | AJ36: 0.21875
A37: Electrical heater | C37: 0 | D37: 0 | E37: 0 | F37: 0 | G37: 0 | H37: 0 | I37: 0 | J37: 0 | K37: 0 | L37: 1 | M37: 0 | N37: 0 | O37: 0 | P37: 0 | Q37: 0 | R37: 0 | S37: 0 | T37: 0 | U37: 0 | V37: 0 | W37: 0 | X37: 0 | Y37: 0 | Z37: 0 | AA37: 1 | AB37: 0 | AC37: 0 | AD37: 0 | AE37: 0 | AF37: 0 | AG37: 0 | AH37: 0 | AJ37: 0.0625
A38: Thermocouple | C38: 0 | D38: 0 | E38: 0 | F38: 0 | G38: 0 | H38: 0 | I38: 0 | J38: 0 | K38: 0 | L38: 0 | M38: 0 | N38: 0 | O38: 0 | P38: 0 | Q38: 0 | R38: 0 | S38: 0 | T38: 0 | U38: 0 | V38: 0 | W38: 0 | X38: 0 | Y38: 0 | Z38: 1 | AA38: 1 | AB38: 0 | AC38: 0 | AD38: 0 | AE38: 0 | AF38: 0 | AG38: 0 | AH38: 0 | AJ38: 0.0625
A39: SDD controller | C39: 0 | D39: 0 | E39: 0 | F39: 1 | G39: 1 | H39: 0 | I39: 0 | J39: 1 | K39: 0 | L39: 0 | M39: 1 | N39: 1 | O39: 1 | P39: 0 | Q39: 0 | R39: 0 | S39: 0 | T39: 0 | U39: 0 | V39: 0 | W39: 0 | X39: 1 | Y39: 1 | Z39: 0 | AA39: 0 | AB39: 0 | AC39: 0 | AD39: 0 | AE39: 0 | AF39: 0 | AG39: 1 | AH39: 1 | AJ39: 0.3125
A40: Sensor cooler | C40: 0 | D40: 0 | E40: 0 | F40: 0 | G40: 0 | H40: 0 | I40: 0 | J40: 0 | K40: 0 | L40: 1 | M40: 0 | N40: 0 | O40: 0 | P40: 0 | Q40: 0 | R40: 0 | S40: 0 | T40: 0 | U40: 0 | V40: 0 | W40: 0 | X40: 0 | Y40: 0 | Z40: 1 | AA40: 1 | AB40: 0 | AC40: 0 | AD40: 0 | AE40: 0 | AF40: 1 | AG40: 0 | AH40: 0 | AJ40: 0.125
A41: Sensor heater | C41: 0 | D41: 0 | E41: 0 | F41: 0 | G41: 0 | H41: 0 | I41: 0 | J41: 0 | K41: 0 | L41: 1 | M41: 0 | N41: 0 | O41: 0 | P41: 0 | Q41: 0 | R41: 0 | S41: 0 | T41: 0 | U41: 0 | V41: 0 | W41: 0 | X41: 0 | Y41: 0 | Z41: 1 | AA41: 1 | AB41: 0 | AC41: 0 | AD41: 0 | AE41: 0 | AF41: 1 | AG41: 0 | AH41: 0 | AJ41: 0.125
A42: Electrical wiring | C42: 0 | D42: 1 | E42: 0 | F42: 0 | G42: 0 | H42: 0 | I42: 0 | J42: 0 | K42: 0 | L42: 0 | M42: 0 | N42: 0 | O42: 0 | P42: 0 | Q42: 0 | R42: 0 | S42: 0 | T42: 0 | U42: 0 | V42: 1 | W42: 1 | X42: 0 | Y42: 0 | Z42: 0 | AA42: 0 | AB42: 0 | AC42: 1 | AD42: 1 | AE42: 1 | AF42: 0 | AG42: 0 | AH42: 0 | AJ42: 0.1875
A43: Display board | C43: 0 | D43: 0 | E43: 0 | F43: 0 | G43: 0 | H43: 0 | I43: 0 | J43: 0 | K43: 0 | L43: 1 | M43: 0 | N43: 0 | O43: 0 | P43: 0 | Q43: 0 | R43: 0 | S43: 0 | T43: 0 | U43: 0 | V43: 0 | W43: 1 | X43: 0 | Y43: 0 | Z43: 1 | AA43: 1 | AB43: 0 | AC43: 1 | AD43: 1 | AE43: 1 | AF43: 1 | AG43: 0 | AH43: 0 | AJ43: 0.25
A44: Freezer foam lid | C44: 0 | D44: 0 | E44: 0 | F44: 0 | G44: 0 | H44: 0 | I44: 0 | J44: 0 | K44: 0 | L44: 0 | M44: 0 | N44: 0 | O44: 0 | P44: 0 | Q44: 0 | R44: 0 | S44: 0 | T44: 0 | U44: 0 | V44: 0 | W44: 0 | X44: 0 | Y44: 0 | Z44: 0 | AA44: 0 | AB44: 0 | AC44: 0 | AD44: 0 | AE44: 0 | AF44: 0 | AG44: 0 | AH44: 1 | AJ44: 0.03125
A45: Surge protector | C45: 0 | D45: 0 | E45: 0 | F45: 0 | G45: 0 | H45: 1 | I45: 0 | J45: 0 | K45: 0 | L45: 0 | M45: 0 | N45: 0 | O45: 0 | P45: 0 | Q45: 0 | R45: 1 | S45: 0 | T45: 0 | U45: 1 | V45: 0 | W45: 0 | X45: 0 | Y45: 0 | Z45: 0 | AA45: 0 | AB45: 0 | AC45: 0 | AD45: 0 | AE45: 0 | AF45: 0 | AG45: 0 | AH45: 0 | AJ45: 0.09375
A47: LABOR
AJ48: Installation cost
